Workbook

Sheet Data_Input_OD
A1: Eye: | B1: OD | D1: Incision size: | F1: 2.4 | G1: mm | I1: Incision location: | L1: 200 | M1: ° | N1: Device: | O1: IOLM700 | R1: Error Check: | S1: =IF(OR(S4>0,F1="",L1="",O1=""),"Error","OK") -> OK
R2: Empty Rows: | S2: =IF(MAX(O5:O3004)>S5,"Error","OK") -> OK
A3: No. | B3: Preoperative corneal astigmatism | I3: Postoperative corneal astigmatism | P3: Integrity check | R3: # of eyes "OK": | S3: =COUNTIF(P5:P3004,"OK") -> 83
B4: Kflat | C4: @flat | D4: Ksteep | E4: @steep | F4: Astigmatism | G4: @ | I4: Kflat | J4: @flat | K4: Ksteep | L4: @steep | M4: Astigmatism | N4: @ | R4: # of eyes "Error": | S4: =COUNTIF(P5:P3004,"Error") -> 0
A5: 1 | B5: 42.67 | C5: 23 | D5: 44.75 | E5: =IF(D5="","",IF(C5>90,C5-90,C5+90)) -> 113 | F5: =IF(B5="","",D5-B5) -> 2.08 | G5: =IF(E5="","",E5) -> 113 | I5: 42.65 | J5: 12 | K5: 44.44 | L5: =IF(K5="","",IF(J5>90,J5-90,J5+90)) -> 102 | M5: =IF(I5="","",K5-I5) -> 1.79 | N5: =IF(L5="","",L5) -> 102 | O5: =IF(P5<>"",A5,"") -> 1 | P5: =IF((AND(B5<=D5,I5<=K5,B5<>"",C5<>"",D5<>"",I5<>"",J5<>"",K5<>"")),"OK",IF(AND(B6="",C6="",D6="",I5="",J5="",K5=""),"","Error")) -> OK | R5: # of eyes Total: | S5: =S4+S3 -> 83
A6: 2 | B6: 45.43 | C6: 105 | D6: 46.51 | E6: 15 | F6: =IF(B6="","",D6-B6) -> 1.08 | G6: =IF(E6="","",E6) -> 15 | I6: 45.99 | J6: 106 | K6: 46.73 | L6: 16 | M6: =IF(I6="","",K6-I6) -> 0.74 | N6: =IF(L6="","",L6) -> 16 | O6: =IF(P6<>"",A6,"") -> 2 | P6: =IF((AND(B6<=D6,I6<=K6,B6<>"",C6<>"",D6<>"",I6<>"",J6<>"",K6<>"")),"OK",IF(AND(B7="",C7="",D7="",I6="",J6="",K6=""),"","Error")) -> OK
A7: 3 | B7: 45.97 | C7: 155 | D7: 46.53 | E7: 65 | F7: 0.56 | G7: 65 | I7: 45.97 | J7: 155 | K7: 46.53 | L7: 65 | M7: 0.56 | N7: 65 | O7: =IF(P7<>"",A7,"") -> 3 | P7: =IF((AND(B7<=D7,I7<=K7,B7<>"",C7<>"",D7<>"",I7<>"",J7<>"",K7<>"")),"OK",IF(AND(B8="",C8="",D8="",I7="",J7="",K7=""),"","Error")) -> OK
A8: 4 | B8: 44.43 | C8: 14 | D8: 45.17 | E8: 104 | F8: 0.74 | G8: 104 | I8: 44.78 | J8: 172 | K8: 45.24 | L8: 82 | M8: 0.46 | N8: 82 | O8: =IF(P8<>"",A8,"") -> 4 | P8: =IF((AND(B8<=D8,I8<=K8,B8<>"",C8<>"",D8<>"",I8<>"",J8<>"",K8<>"")),"OK",IF(AND(B9="",C9="",D9="",I8="",J8="",K8=""),"","Error")) -> OK
A9: 5 | B9: 42.67 | C9: 137 | D9: 43.27 | E9: 47 | F9: 0.6 | G9: 47 | I9: 42.47 | J9: 131 | K9: 44.13 | L9: 41 | M9: 1.66 | N9: 41 | O9: =IF(P9<>"",A9,"") -> 5 | P9: =IF((AND(B9<=D9,I9<=K9,B9<>"",C9<>"",D9<>"",I9<>"",J9<>"",K9<>"")),"OK",IF(AND(B10="",C10="",D10="",I9="",J9="",K9=""),"","Error")) -> OK
A10: 6 | B10: 44.47 | C10: 16 | D10: 45.05 | E10: 106 | F10: 0.58 | G10: 106 | I10: 43.9 | J10: 7 | K10: 44.59 | L10: 97 | M10: 0.69 | N10: 97 | O10: =IF(P10<>"",A10,"") -> 6 | P10: =IF((AND(B10<=D10,I10<=K10,B10<>"",C10<>"",D10<>"",I10<>"",J10<>"",K10<>"")),"OK",IF(AND(B11="",C11="",D11="",I10="",J10="",K10=""),"","Error")) -> OK
A11: 7 | B11: 44.43 | C11: 90 | D11: 45.69 | E11: 180 | F11: 1.26 | G11: 180 | I11: 44.42 | J11: 93 | K11: 45.95 | L11: 3 | M11: 1.53 | N11: 3 | O11: =IF(P11<>"",A11,"") -> 7 | P11: =IF((AND(B11<=D11,I11<=K11,B11<>"",C11<>"",D11<>"",I11<>"",J11<>"",K11<>"")),"OK",IF(AND(B12="",C12="",D12="",I11="",J11="",K11=""),"","Error")) -> OK
A12: 8 | B12: 47.85 | C12: 118 | D12: 49.89 | E12: 28 | F12: 2.04 | G12: 28 | I12: 47.87 | J12: 139 | K12: 49.47 | L12: 49 | M12: 1.6 | N12: 49 | O12: =IF(P12<>"",A12,"") -> 8 | P12: =IF((AND(B12<=D12,I12<=K12,B12<>"",C12<>"",D12<>"",I12<>"",J12<>"",K12<>"")),"OK",IF(AND(B13="",C13="",D13="",I12="",J12="",K12=""),"","Error")) -> OK
A13: 9 | B13: 43.12 | C13: 83 | D13: 43.86 | E13: 173 | F13: 0.74 | G13: 173 | I13: 42.92 | J13: 75 | K13: 43.93 | L13: 165 | M13: 1.01 | N13: 165 | O13: =IF(P13<>"",A13,"") -> 9 | P13: =IF((AND(B13<=D13,I13<=K13,B13<>"",C13<>"",D13<>"",I13<>"",J13<>"",K13<>"")),"OK",IF(AND(B14="",C14="",D14="",I13="",J13="",K13=""),"","Error")) -> OK
A14: 10 | B14: 47.07 | C14: 124 | D14: 47.42 | E14: 34 | F14: 0.35 | G14: 34 | I14: 47.07 | J14: 124 | K14: 47.42 | L14: 34 | M14: 0.35 | N14: 34 | O14: =IF(P14<>"",A14,"") -> 10 | P14: =IF((AND(B14<=D14,I14<=K14,B14<>"",C14<>"",D14<>"",I14<>"",J14<>"",K14<>"")),"OK",IF(AND(B15="",C15="",D15="",I14="",J14="",K14=""),"","Error")) -> OK
A15: 11 | B15: 32.73 | C15: 4 | D15: 33.97 | E15: 94 | F15: 1.24 | G15: 94 | I15: 32.62 | J15: 1 | K15: 33.58 | L15: 91 | M15: 0.96 | N15: 91 | O15: =IF(P15<>"",A15,"") -> 11 | P15: =IF((AND(B15<=D15,I15<=K15,B15<>"",C15<>"",D15<>"",I15<>"",J15<>"",K15<>"")),"OK",IF(AND(B16="",C16="",D16="",I15="",J15="",K15=""),"","Error")) -> OK
A16: 12 | B16: 45.21 | C16: 126 | D16: 46.49 | E16: 36 | F16: 1.28 | G16: 36 | I16: 45.33 | J16: 116 | K16: 46.59 | L16: 26 | M16: 1.26 | N16: 26 | O16: =IF(P16<>"",A16,"") -> 12 | P16: =IF((AND(B16<=D16,I16<=K16,B16<>"",C16<>"",D16<>"",I16<>"",J16<>"",K16<>"")),"OK",IF(AND(B17="",C17="",D17="",I16="",J16="",K16=""),"","Error")) -> OK
A17: 13 | B17: 45.12 | C17: 10 | D17: 46.16 | E17: 100 | F17: 1.04 | G17: 100 | I17: 44.99 | J17: 15 | K17: 46.03 | L17: 105 | M17: 1.04 | N17: 105 | O17: =IF(P17<>"",A17,"") -> 13 | P17: =IF((AND(B17<=D17,I17<=K17,B17<>"",C17<>"",D17<>"",I17<>"",J17<>"",K17<>"")),"OK",IF(AND(B18="",C18="",D18="",I17="",J17="",K17=""),"","Error")) -> OK
A18: 14 | B18: 47.68 | C18: 41 | D18: 47.87 | E18: 131 | F18: 0.19 | G18: 131 | I18: 47.78 | J18: 100 | K18: 47.95 | L18: 10 | M18: 0.17 | N18: 10 | O18: =IF(P18<>"",A18,"") -> 14 | P18: =IF((AND(B18<=D18,I18<=K18,B18<>"",C18<>"",D18<>"",I18<>"",J18<>"",K18<>"")),"OK",IF(AND(B19="",C19="",D19="",I18="",J18="",K18=""),"","Error")) -> OK
A19: 15 | B19: 42.34 | C19: 8 | D19: 42.92 | E19: 98 | F19: 0.58 | G19: 98 | I19: 41.95 | J19: 16 | K19: 42.69 | L19: 106 | M19: 0.74 | N19: 106 | O19: =IF(P19<>"",A19,"") -> 15 | P19: =IF((AND(B19<=D19,I19<=K19,B19<>"",C19<>"",D19<>"",I19<>"",J19<>"",K19<>"")),"OK",IF(AND(B20="",C20="",D20="",I19="",J19="",K19=""),"","Error")) -> OK
A20: 16 | B20: 41.35 | C20: 100 | D20: 42.47 | E20: 10 | F20: 1.12 | G20: 10 | I20: 41.38 | J20: 89 | K20: 42.4 | L20: 179 | M20: 1.02 | N20: 179 | O20: =IF(P20<>"",A20,"") -> 16 | P20: =IF((AND(B20<=D20,I20<=K20,B20<>"",C20<>"",D20<>"",I20<>"",J20<>"",K20<>"")),"OK",IF(AND(B21="",C21="",D21="",I20="",J20="",K20=""),"","Error")) -> OK
A21: 17 | B21: 43.9 | C21: 164 | D21: 44.37 | E21: 74 | F21: 0.47 | G21: 74 | I21: 43.71 | J21: 167 | K21: 44.45 | L21: 77 | M21: 0.74 | N21: 77 | O21: =IF(P21<>"",A21,"") -> 17 | P21: =IF((AND(B21<=D21,I21<=K21,B21<>"",C21<>"",D21<>"",I21<>"",J21<>"",K21<>"")),"OK",IF(AND(B22="",C22="",D22="",I21="",J21="",K21=""),"","Error")) -> OK
A22: 18 | B22: 44.09 | C22: 101 | D22: 44.25 | E22: 11 | F22: 0.16 | G22: 11 | I22: 43.95 | J22: 119 | K22: 44.2 | L22: 29 | M22: 0.25 | N22: 29 | O22: =IF(P22<>"",A22,"") -> 18 | P22: =IF((AND(B22<=D22,I22<=K22,B22<>"",C22<>"",D22<>"",I22<>"",J22<>"",K22<>"")),"OK",IF(AND(B23="",C23="",D23="",I22="",J22="",K22=""),"","Error")) -> OK
A23: 19 | B23: 43.03 | C23: 80 | D23: 44.31 | E23: 170 | F23: 1.28 | G23: 170 | I23: 43.05 | J23: 77 | K23: 44.11 | L23: 167 | M23: 1.06 | N23: 167 | O23: =IF(P23<>"",A23,"") -> 19 | P23: =IF((AND(B23<=D23,I23<=K23,B23<>"",C23<>"",D23<>"",I23<>"",J23<>"",K23<>"")),"OK",IF(AND(B24="",C24="",D24="",I23="",J23="",K23=""),"","Error")) -> OK
A24: 20 | B24: 45.07 | C24: 91 | D24: 47.38 | E24: 1 | F24: 2.31 | G24: 1 | I24: 45.5 | J24: 98 | K24: 46.45 | L24: 8 | M24: 0.95 | N24: 8 | O24: =IF(P24<>"",A24,"") -> 20 | P24: =IF((AND(B24<=D24,I24<=K24,B24<>"",C24<>"",D24<>"",I24<>"",J24<>"",K24<>"")),"OK",IF(AND(B25="",C25="",D25="",I24="",J24="",K24=""),"","Error")) -> OK
A25: 21 | B25: 42.1 | C25: 51 | D25: 42.42 | E25: 141 | F25: 0.32 | G25: 141 | I25: 42.01 | J25: 34 | K25: 42.5 | L25: 124 | M25: 0.49 | N25: 124 | O25: =IF(P25<>"",A25,"") -> 21 | P25: =IF((AND(B25<=D25,I25<=K25,B25<>"",C25<>"",D25<>"",I25<>"",J25<>"",K25<>"")),"OK",IF(AND(B26="",C26="",D26="",I25="",J25="",K25=""),"","Error")) -> OK
A26: 22 | B26: 41.27 | C26: 115 | D26: 42.2 | E26: 25 | F26: 0.93 | G26: 25 | I26: 41.23 | J26: 114 | K26: 42.24 | L26: 24 | M26: 1.01 | N26: 24 | O26: =IF(P26<>"",A26,"") -> 22 | P26: =IF((AND(B26<=D26,I26<=K26,B26<>"",C26<>"",D26<>"",I26<>"",J26<>"",K26<>"")),"OK",IF(AND(B27="",C27="",D27="",I26="",J26="",K26=""),"","Error")) -> OK
A27: 23 | B27: 44.78 | C27: 180 | D27: 45.33 | E27: 90 | F27: 0.55 | G27: 90 | I27: 44.7 | J27: 180 | K27: 45.71 | L27: 90 | M27: 1.01 | N27: 90 | O27: =IF(P27<>"",A27,"") -> 23 | P27: =IF((AND(B27<=D27,I27<=K27,B27<>"",C27<>"",D27<>"",I27<>"",J27<>"",K27<>"")),"OK",IF(AND(B28="",C28="",D28="",I27="",J27="",K27=""),"","Error")) -> OK
A28: 24 | B28: 40.07 | C28: 155 | D28: 40.67 | E28: 65 | F28: 0.6 | G28: 65 | I28: 40.1 | J28: 171 | K28: 40.75 | L28: 81 | M28: 0.65 | N28: 81 | O28: =IF(P28<>"",A28,"") -> 24 | P28: =IF((AND(B28<=D28,I28<=K28,B28<>"",C28<>"",D28<>"",I28<>"",J28<>"",K28<>"")),"OK",IF(AND(B29="",C29="",D29="",I28="",J28="",K28=""),"","Error")) -> OK
A29: 25 | B29: 38.77 | C29: 26 | D29: 39.91 | E29: 116 | F29: 1.14 | G29: 116 | I29: 38.81 | J29: 47 | K29: 39.73 | L29: 137 | M29: 0.92 | N29: 137 | O29: =IF(P29<>"",A29,"") -> 25 | P29: =IF((AND(B29<=D29,I29<=K29,B29<>"",C29<>"",D29<>"",I29<>"",J29<>"",K29<>"")),"OK",IF(AND(B30="",C30="",D30="",I29="",J29="",K29=""),"","Error")) -> OK
A30: 26 | B30: 42.04 | C30: 167 | D30: 43.16 | E30: 77 | F30: 1.12 | G30: 77 | I30: 41.97 | J30: 168 | K30: 43.07 | L30: 78 | M30: 1.1 | N30: 78 | O30: =IF(P30<>"",A30,"") -> 26 | P30: =IF((AND(B30<=D30,I30<=K30,B30<>"",C30<>"",D30<>"",I30<>"",J30<>"",K30<>"")),"OK",IF(AND(B31="",C31="",D31="",I30="",J30="",K30=""),"","Error")) -> OK
A31: 27 | B31: 41.77 | C31: 54 | D31: 42 | E31: 144 | F31: 0.23 | G31: 144 | I31: 41.72 | J31: 41 | K31: 42.21 | L31: 131 | M31: 0.49 | N31: 131 | O31: =IF(P31<>"",A31,"") -> 27 | P31: =IF((AND(B31<=D31,I31<=K31,B31<>"",C31<>"",D31<>"",I31<>"",J31<>"",K31<>"")),"OK",IF(AND(B32="",C32="",D32="",I31="",J31="",K31=""),"","Error")) -> OK
A32: 28 | B32: 40.67 | C32: 97 | D32: 40.97 | E32: 7 | F32: 0.3 | G32: 7 | I32: 40.86 | J32: 161 | K32: 40.96 | L32: 71 | M32: 0.1 | N32: 71 | O32: =IF(P32<>"",A32,"") -> 28 | P32: =IF((AND(B32<=D32,I32<=K32,B32<>"",C32<>"",D32<>"",I32<>"",J32<>"",K32<>"")),"OK",IF(AND(B33="",C33="",D33="",I32="",J32="",K32=""),"","Error")) -> OK
A33: 29 | B33: 44.79 | C33: 4 | D33: 45.33 | E33: 94 | F33: 0.54 | G33: 94 | I33: 44.65 | J33: 26 | K33: 46.24 | L33: 116 | M33: 1.59 | N33: 116 | O33: =IF(P33<>"",A33,"") -> 29 | P33: =IF((AND(B33<=D33,I33<=K33,B33<>"",C33<>"",D33<>"",I33<>"",J33<>"",K33<>"")),"OK",IF(AND(B34="",C34="",D34="",I33="",J33="",K33=""),"","Error")) -> OK
A34: 30 | B34: 42.72 | C34: 156 | D34: 44.45 | E34: 66 | F34: 1.73 | G34: 66 | I34: 42.69 | J34: 164 | K34: 44.48 | L34: 74 | M34: 1.79 | N34: 74 | O34: =IF(P34<>"",A34,"") -> 30 | P34: =IF((AND(B34<=D34,I34<=K34,B34<>"",C34<>"",D34<>"",I34<>"",J34<>"",K34<>"")),"OK",IF(AND(B35="",C35="",D35="",I34="",J34="",K34=""),"","Error")) -> OK
A35: 31 | B35: 41.37 | C35: 62 | D35: 42.34 | E35: 152 | F35: 0.97 | G35: 152 | I35: 41.72 | J35: 79 | K35: 42.2 | L35: 169 | M35: 0.48 | N35: 169 | O35: =IF(P35<>"",A35,"") -> 31 | P35: =IF((AND(B35<=D35,I35<=K35,B35<>"",C35<>"",D35<>"",I35<>"",J35<>"",K35<>"")),"OK",IF(AND(B36="",C36="",D36="",I35="",J35="",K35=""),"","Error")) -> OK
A36: 32 | B36: 44.56 | C36: 171 | D36: 45.04 | E36: 81 | F36: 0.48 | G36: 81 | I36: 44.48 | J36: 150 | K36: 44.93 | L36: 60 | M36: 0.45 | N36: 60 | O36: =IF(P36<>"",A36,"") -> 32 | P36: =IF((AND(B36<=D36,I36<=K36,B36<>"",C36<>"",D36<>"",I36<>"",J36<>"",K36<>"")),"OK",IF(AND(B37="",C37="",D37="",I36="",J36="",K36=""),"","Error")) -> OK
A37: 33 | B37: 42.28 | C37: 18 | D37: 43.34 | E37: 108 | F37: 1.06 | G37: 108 | I37: 42.39 | J37: 12 | K37: 43.22 | L37: 102 | M37: 0.83 | N37: 102 | O37: =IF(P37<>"",A37,"") -> 33 | P37: =IF((AND(B37<=D37,I37<=K37,B37<>"",C37<>"",D37<>"",I37<>"",J37<>"",K37<>"")),"OK",IF(AND(B38="",C38="",D38="",I37="",J37="",K37=""),"","Error")) -> OK
A38: 34 | B38: 42.65 | C38: 154 | D38: 42.96 | E38: 64 | F38: 0.31 | G38: 64 | I38: 42.54 | J38: 149 | K38: 42.92 | L38: 59 | M38: 0.38 | N38: 59 | O38: =IF(P38<>"",A38,"") -> 34 | P38: =IF((AND(B38<=D38,I38<=K38,B38<>"",C38<>"",D38<>"",I38<>"",J38<>"",K38<>"")),"OK",IF(AND(B39="",C39="",D39="",I38="",J38="",K38=""),"","Error")) -> OK
A39: 35 | B39: 43.81 | C39: 83 | D39: 44.34 | E39: 173 | F39: 0.53 | G39: 173 | I39: 43.96 | J39: 72 | K39: 44.74 | L39: 162 | M39: 0.78 | N39: 162 | O39: =IF(P39<>"",A39,"") -> 35 | P39: =IF((AND(B39<=D39,I39<=K39,B39<>"",C39<>"",D39<>"",I39<>"",J39<>"",K39<>"")),"OK",IF(AND(B40="",C40="",D40="",I39="",J39="",K39=""),"","Error")) -> OK
A40: 36 | B40: 42.98 | C40: 74 | D40: 43.83 | E40: 164 | F40: 0.85 | G40: 164 | I40: 42.55 | J40: 69 | K40: 43.88 | L40: 159 | M40: 1.33 | N40: 159 | O40: =IF(P40<>"",A40,"") -> 36 | P40: =IF((AND(B40<=D40,I40<=K40,B40<>"",C40<>"",D40<>"",I40<>"",J40<>"",K40<>"")),"OK",IF(AND(B41="",C41="",D41="",I40="",J40="",K40=""),"","Error")) -> OK
A41: 37 | B41: 43.03 | C41: 166 | D41: 43.92 | E41: 76 | F41: 0.89 | G41: 76 | I41: 43.67 | J41: 156 | K41: 44.33 | L41: 66 | M41: 0.66 | N41: 66 | O41: =IF(P41<>"",A41,"") -> 37 | P41: =IF((AND(B41<=D41,I41<=K41,B41<>"",C41<>"",D41<>"",I41<>"",J41<>"",K41<>"")),"OK",IF(AND(B42="",C42="",D42="",I41="",J41="",K41=""),"","Error")) -> OK
A42: 38 | B42: 45.59 | C42: 4 | D42: 46.06 | E42: 94 | F42: 0.47 | G42: 94 | I42: 45.73 | J42: 13 | K42: 45.92 | L42: 103 | M42: 0.19 | N42: 103 | O42: =IF(P42<>"",A42,"") -> 38 | P42: =IF((AND(B42<=D42,I42<=K42,B42<>"",C42<>"",D42<>"",I42<>"",J42<>"",K42<>"")),"OK",IF(AND(B43="",C43="",D43="",I42="",J42="",K42=""),"","Error")) -> OK
A43: 39 | B43: 43.94 | C43: 24 | D43: 45.16 | E43: 114 | F43: 1.22 | G43: 114 | I43: 43.97 | J43: 27 | K43: 45.29 | L43: 117 | M43: 1.32 | N43: 117 | O43: =IF(P43<>"",A43,"") -> 39 | P43: =IF((AND(B43<=D43,I43<=K43,B43<>"",C43<>"",D43<>"",I43<>"",J43<>"",K43<>"")),"OK",IF(AND(B44="",C44="",D44="",I43="",J43="",K43=""),"","Error")) -> OK
A44: 40 | B44: 44.96 | C44: 52 | D44: 45.83 | E44: 142 | F44: 0.87 | G44: 142 | I44: 45.29 | J44: 15 | K44: 46.71 | L44: 105 | M44: 1.42 | N44: 105 | O44: =IF(P44<>"",A44,"") -> 40 | P44: =IF((AND(B44<=D44,I44<=K44,B44<>"",C44<>"",D44<>"",I44<>"",J44<>"",K44<>"")),"OK",IF(AND(B45="",C45="",D45="",I44="",J44="",K44=""),"","Error")) -> OK
A45: 41 | B45: 45.95 | C45: 11 | D45: 47.58 | E45: 101 | F45: 1.63 | G45: 101 | I45: 46.97 | J45: 160 | K45: 48.21 | L45: 70 | M45: 1.24 | N45: 70 | O45: =IF(P45<>"",A45,"") -> 41 | P45: =IF((AND(B45<=D45,I45<=K45,B45<>"",C45<>"",D45<>"",I45<>"",J45<>"",K45<>"")),"OK",IF(AND(B46="",C46="",D46="",I45="",J45="",K45=""),"","Error")) -> OK
A46: 42 | B46: 43.51 | C46: 88 | D46: 45.28 | E46: 178 | F46: 1.77 | G46: 178 | I46: 44.91 | J46: 46 | K46: 45.87 | L46: 136 | M46: 0.96 | N46: 136 | O46: =IF(P46<>"",A46,"") -> 42 | P46: =IF((AND(B46<=D46,I46<=K46,B46<>"",C46<>"",D46<>"",I46<>"",J46<>"",K46<>"")),"OK",IF(AND(B47="",C47="",D47="",I46="",J46="",K46=""),"","Error")) -> OK
A47: 43 | B47: 43.76 | C47: 173 | D47: 44.37 | E47: 83 | F47: 0.61 | G47: 83 | I47: 43.59 | J47: 180 | K47: 44.42 | L47: 90 | M47: 0.83 | N47: 90 | O47: =IF(P47<>"",A47,"") -> 43 | P47: =IF((AND(B47<=D47,I47<=K47,B47<>"",C47<>"",D47<>"",I47<>"",J47<>"",K47<>"")),"OK",IF(AND(B48="",C48="",D48="",I47="",J47="",K47=""),"","Error")) -> OK
A48: 44 | B48: 44.5 | C48: 133 | D48: 44.75 | E48: 43 | F48: 0.25 | G48: 43 | I48: 44.41 | J48: 102 | K48: 44.71 | L48: 12 | M48: 0.3 | N48: 12 | O48: =IF(P48<>"",A48,"") -> 44 | P48: =IF((AND(B48<=D48,I48<=K48,B48<>"",C48<>"",D48<>"",I48<>"",J48<>"",K48<>"")),"OK",IF(AND(B49="",C49="",D49="",I48="",J48="",K48=""),"","Error")) -> OK
A49: 45 | B49: 42.09 | C49: 73 | D49: 42.76 | E49: 163 | F49: 0.67 | G49: 163 | I49: 41.46 | J49: 72 | K49: 42.52 | L49: 162 | M49: 1.06 | N49: 162 | O49: =IF(P49<>"",A49,"") -> 45 | P49: =IF((AND(B49<=D49,I49<=K49,B49<>"",C49<>"",D49<>"",I49<>"",J49<>"",K49<>"")),"OK",IF(AND(B50="",C50="",D50="",I49="",J49="",K49=""),"","Error")) -> OK
A50: 46 | B50: 44.41 | C50: 92 | D50: 44.83 | E50: 2 | F50: 0.42 | G50: 2 | I50: 44.62 | J50: 107 | K50: 45.36 | L50: 17 | M50: 0.74 | N50: 17 | O50: =IF(P50<>"",A50,"") -> 46 | P50: =IF((AND(B50<=D50,I50<=K50,B50<>"",C50<>"",D50<>"",I50<>"",J50<>"",K50<>"")),"OK",IF(AND(B51="",C51="",D51="",I50="",J50="",K50=""),"","Error")) -> OK
A51: 47 | B51: 41.94 | C51: 68 | D51: 43.3 | E51: 158 | F51: 1.36 | G51: 158 | I51: 41.58 | J51: 81 | K51: 43.15 | L51: 171 | M51: 1.57 | N51: 171 | O51: =IF(P51<>"",A51,"") -> 47 | P51: =IF((AND(B51<=D51,I51<=K51,B51<>"",C51<>"",D51<>"",I51<>"",J51<>"",K51<>"")),"OK",IF(AND(B52="",C52="",D52="",I51="",J51="",K51=""),"","Error")) -> OK
A52: 48 | B52: 44.3 | C52: 4 | D52: 45.73 | E52: 94 | F52: 1.43 | G52: 94 | I52: 44.25 | J52: 3 | K52: 45.79 | L52: 93 | M52: 1.54 | N52: 93 | O52: =IF(P52<>"",A52,"") -> 48 | P52: =IF((AND(B52<=D52,I52<=K52,B52<>"",C52<>"",D52<>"",I52<>"",J52<>"",K52<>"")),"OK",IF(AND(B53="",C53="",D53="",I52="",J52="",K52=""),"","Error")) -> OK
A53: 49 | B53: 43.85 | C53: 116 | D53: 44.43 | E53: 26 | F53: 0.58 | G53: 26 | I53: 44.1 | J53: 119 | K53: 44.28 | L53: 29 | M53: 0.18 | N53: 29 | O53: =IF(P53<>"",A53,"") -> 49 | P53: =IF((AND(B53<=D53,I53<=K53,B53<>"",C53<>"",D53<>"",I53<>"",J53<>"",K53<>"")),"OK",IF(AND(B54="",C54="",D54="",I53="",J53="",K53=""),"","Error")) -> OK
A54: 50 | B54: 43.96 | C54: 153 | D54: 44.84 | E54: 63 | F54: 0.88 | G54: 63 | I54: 44.2 | J54: 155 | K54: 44.99 | L54: 65 | M54: 0.79 | N54: 65 | O54: =IF(P54<>"",A54,"") -> 50 | P54: =IF((AND(B54<=D54,I54<=K54,B54<>"",C54<>"",D54<>"",I54<>"",J54<>"",K54<>"")),"OK",IF(AND(B55="",C55="",D55="",I54="",J54="",K54=""),"","Error")) -> OK
A55: 51 | B55: 43.46 | C55: 131 | D55: 44.66 | E55: 41 | F55: 1.2 | G55: 41 | I55: 43.61 | J55: 139 | K55: 44.46 | L55: 49 | M55: 0.85 | N55: 49 | O55: =IF(P55<>"",A55,"") -> 51 | P55: =IF((AND(B55<=D55,I55<=K55,B55<>"",C55<>"",D55<>"",I55<>"",J55<>"",K55<>"")),"OK",IF(AND(B56="",C56="",D56="",I55="",J55="",K55=""),"","Error")) -> OK
A56: 52 | B56: 44.3 | C56: 168 | D56: 46.56 | E56: 78 | F56: 2.26 | G56: 78 | I56: 44.12 | J56: 169 | K56: 46.71 | L56: 79 | M56: 2.59 | N56: 79 | O56: =IF(P56<>"",A56,"") -> 52 | P56: =IF((AND(B56<=D56,I56<=K56,B56<>"",C56<>"",D56<>"",I56<>"",J56<>"",K56<>"")),"OK",IF(AND(B57="",C57="",D57="",I56="",J56="",K56=""),"","Error")) -> OK
A57: 53 | B57: 44.15 | C57: 138 | D57: 44.76 | E57: 48 | F57: 0.61 | G57: 48 | I57: 44.18 | J57: 124 | K57: 44.73 | L57: 34 | M57: 0.55 | N57: 34 | O57: =IF(P57<>"",A57,"") -> 53 | P57: =IF((AND(B57<=D57,I57<=K57,B57<>"",C57<>"",D57<>"",I57<>"",J57<>"",K57<>"")),"OK",IF(AND(B58="",C58="",D58="",I57="",J57="",K57=""),"","Error")) -> OK
A58: 54 | B58: 43.96 | C58: 93 | D58: 44.91 | E58: 3 | F58: 0.95 | G58: 3 | I58: 44.02 | J58: 95 | K58: 45.05 | L58: 5 | M58: 1.03 | N58: 5 | O58: =IF(P58<>"",A58,"") -> 54 | P58: =IF((AND(B58<=D58,I58<=K58,B58<>"",C58<>"",D58<>"",I58<>"",J58<>"",K58<>"")),"OK",IF(AND(B59="",C59="",D59="",I58="",J58="",K58=""),"","Error")) -> OK
A59: 55 | B59: 43.98 | C59: 133 | D59: 44.87 | E59: 43 | F59: 0.89 | G59: 43 | I59: 44.11 | J59: 145 | K59: 45.04 | L59: 55 | M59: 0.93 | N59: 55 | O59: =IF(P59<>"",A59,"") -> 55 | P59: =IF((AND(B59<=D59,I59<=K59,B59<>"",C59<>"",D59<>"",I59<>"",J59<>"",K59<>"")),"OK",IF(AND(B60="",C60="",D60="",I59="",J59="",K59=""),"","Error")) -> OK
A60: 56 | B60: 41.99 | C60: 87 | D60: 43.17 | E60: 177 | F60: 1.18 | G60: 177 | I60: 41.81 | J60: 73 | K60: 42.98 | L60: 163 | M60: 1.17 | N60: 163 | O60: =IF(P60<>"",A60,"") -> 56 | P60: =IF((AND(B60<=D60,I60<=K60,B60<>"",C60<>"",D60<>"",I60<>"",J60<>"",K60<>"")),"OK",IF(AND(B61="",C61="",D61="",I60="",J60="",K60=""),"","Error")) -> OK
A61: 57 | B61: 45.65 | C61: 165 | D61: 46.3 | E61: 75 | F61: 0.65 | G61: 75 | I61: 45.65 | J61: 165 | K61: 46.3 | L61: 75 | M61: 0.65 | N61: 75 | O61: =IF(P61<>"",A61,"") -> 57 | P61: =IF((AND(B61<=D61,I61<=K61,B61<>"",C61<>"",D61<>"",I61<>"",J61<>"",K61<>"")),"OK",IF(AND(B62="",C62="",D62="",I61="",J61="",K61=""),"","Error")) -> OK
A62: 58 | B62: 43.69 | C62: 88 | D62: 44.43 | E62: 178 | F62: 0.74 | G62: 178 | I62: 44.07 | J62: 0 | K62: 44.07 | L62: 90 | M62: 0 | N62: 90 | O62: =IF(P62<>"",A62,"") -> 58 | P62: =IF((AND(B62<=D62,I62<=K62,B62<>"",C62<>"",D62<>"",I62<>"",J62<>"",K62<>"")),"OK",IF(AND(B63="",C63="",D63="",I62="",J62="",K62=""),"","Error")) -> OK
A63: 59 | B63: 44.88 | C63: 166 | D63: 45.92 | E63: 76 | F63: 1.04 | G63: 76 | I63: 44.56 | J63: 164 | K63: 46.48 | L63: 74 | M63: 1.92 | N63: 74 | O63: =IF(P63<>"",A63,"") -> 59 | P63: =IF((AND(B63<=D63,I63<=K63,B63<>"",C63<>"",D63<>"",I63<>"",J63<>"",K63<>"")),"OK",IF(AND(B64="",C64="",D64="",I63="",J63="",K63=""),"","Error")) -> OK
A64: 60 | B64: 46.58 | C64: 157 | D64: 47.05 | E64: 67 | F64: 0.47 | G64: 67 | I64: 46.59 | J64: 168 | K64: 47.09 | L64: 78 | M64: 0.5 | N64: 78 | O64: =IF(P64<>"",A64,"") -> 60 | P64: =IF((AND(B64<=D64,I64<=K64,B64<>"",C64<>"",D64<>"",I64<>"",J64<>"",K64<>"")),"OK",IF(AND(B65="",C65="",D65="",I64="",J64="",K64=""),"","Error")) -> OK
A65: 61 | B65: 42.72 | C65: 82 | D65: 42.87 | E65: 172 | F65: 0.15 | G65: 172 | I65: 42.42 | J65: 65 | K65: 42.89 | L65: 155 | M65: 0.47 | N65: 155 | O65: =IF(P65<>"",A65,"") -> 61 | P65: =IF((AND(B65<=D65,I65<=K65,B65<>"",C65<>"",D65<>"",I65<>"",J65<>"",K65<>"")),"OK",IF(AND(B66="",C66="",D66="",I65="",J65="",K65=""),"","Error")) -> OK
A66: 62 | B66: 45.09 | C66: 6 | D66: 45.85 | E66: 96 | F66: 0.76 | G66: 96 | I66: 44.84 | J66: 22 | K66: 45.71 | L66: 112 | M66: 0.87 | N66: 112 | O66: =IF(P66<>"",A66,"") -> 62 | P66: =IF((AND(B66<=D66,I66<=K66,B66<>"",C66<>"",D66<>"",I66<>"",J66<>"",K66<>"")),"OK",IF(AND(B67="",C67="",D67="",I66="",J66="",K66=""),"","Error")) -> OK
A67: 63 | B67: 41.47 | C67: 31 | D67: 42.72 | E67: 121 | F67: 1.25 | G67: 121 | I67: 40.79 | J67: 29 | K67: 42.19 | L67: 119 | M67: 1.4 | N67: 119 | O67: =IF(P67<>"",A67,"") -> 63 | P67: =IF((AND(B67<=D67,I67<=K67,B67<>"",C67<>"",D67<>"",I67<>"",J67<>"",K67<>"")),"OK",IF(AND(B68="",C68="",D68="",I67="",J67="",K67=""),"","Error")) -> OK
A68: 64 | B68: 43.8 | C68: 162 | D68: 44.44 | E68: 72 | F68: 0.64 | G68: 72 | I68: 43.68 | J68: 152 | K68: 44.02 | L68: 62 | M68: 0.34 | N68: 62 | O68: =IF(P68<>"",A68,"") -> 64 | P68: =IF((AND(B68<=D68,I68<=K68,B68<>"",C68<>"",D68<>"",I68<>"",J68<>"",K68<>"")),"OK",IF(AND(B69="",C69="",D69="",I68="",J68="",K68=""),"","Error")) -> OK
A69: 65 | B69: 40.84 | C69: 131 | D69: 41.95 | E69: =IF(D69="","",IF(C69>90,C69-90,C69+90)) -> 41 | F69: 1.11 | G69: 41 | I69: 41.37 | J69: 128 | K69: 41.86 | L69: =IF(K69="","",IF(J69>90,J69-90,J69+90)) -> 38 | M69: 0.49 | N69: 38 | O69: =IF(P69<>"",A69,"") -> 65 | P69: =IF((AND(B69<=D69,I69<=K69,B69<>"",C69<>"",D69<>"",I69<>"",J69<>"",K69<>"")),"OK",IF(AND(B70="",C70="",D70="",I69="",J69="",K69=""),"","Error")) -> OK
A70: 66 | B70: 43.54 | C70: 18 | D70: 43.78 | E70: 108 | F70: =IF(B70="","",D70-B70) -> 0.24 | G70: =IF(E70="","",E70) -> 108 | I70: 43.81 | J70: 26 | K70: 44.06 | L70: 116 | M70: =IF(I70="","",K70-I70) -> 0.25 | N70: =IF(L70="","",L70) -> 116 | O70: =IF(P70<>"",A70,"") -> 66 | P70: =IF((AND(B70<=D70,I70<=K70,B70<>"",C70<>"",D70<>"",I70<>"",J70<>"",K70<>"")),"OK",IF(AND(B71="",C71="",D71="",I70="",J70="",K70=""),"","Error")) -> OK
A71: 67 | B71: 44.53 | C71: 129 | D71: 45.02 | E71: 39 | F71: 0.49 | G71: 39 | I71: 44.58 | J71: 128 | K71: 44.87 | L71: 38 | M71: 0.29 | N71: 38 | O71: =IF(P71<>"",A71,"") -> 67 | P71: =IF((AND(B71<=D71,I71<=K71,B71<>"",C71<>"",D71<>"",I71<>"",J71<>"",K71<>"")),"OK",IF(AND(B72="",C72="",D72="",I71="",J71="",K71=""),"","Error")) -> OK
A72: 68 | B72: 41.94 | C72: 122 | D72: 43.91 | E72: 32 | F72: 1.97 | G72: 32 | I72: 41.73 | J72: 122 | K72: 43.85 | L72: 32 | M72: 2.12 | N72: 32 | O72: =IF(P72<>"",A72,"") -> 68 | P72: =IF((AND(B72<=D72,I72<=K72,B72<>"",C72<>"",D72<>"",I72<>"",J72<>"",K72<>"")),"OK",IF(AND(B73="",C73="",D73="",I72="",J72="",K72=""),"","Error")) -> OK
A73: 69 | B73: 41.97 | C73: 133 | D73: 42.64 | E73: 43 | F73: 0.67 | G73: 43 | I73: 42.1 | J73: 126 | K73: 42.61 | L73: 36 | M73: 0.51 | N73: 36 | O73: =IF(P73<>"",A73,"") -> 69 | P73: =IF((AND(B73<=D73,I73<=K73,B73<>"",C73<>"",D73<>"",I73<>"",J73<>"",K73<>"")),"OK",IF(AND(B74="",C74="",D74="",I73="",J73="",K73=""),"","Error")) -> OK
A74: 70 | B74: 42.51 | C74: 99 | D74: 43.76 | E74: 9 | F74: 1.25 | G74: 9 | I74: 42.12 | J74: 87 | K74: 44.15 | L74: 177 | M74: 2.03 | N74: 177 | O74: =IF(P74<>"",A74,"") -> 70 | P74: =IF((AND(B74<=D74,I74<=K74,B74<>"",C74<>"",D74<>"",I74<>"",J74<>"",K74<>"")),"OK",IF(AND(B75="",C75="",D75="",I74="",J74="",K74=""),"","Error")) -> OK
A75: 71 | B75: 40.95 | C75: 5 | D75: 43.55 | E75: 95 | F75: 2.6 | G75: 95 | I75: 40.95 | J75: 5 | K75: 43.55 | L75: 95 | M75: 2.6 | N75: 95 | O75: =IF(P75<>"",A75,"") -> 71 | P75: =IF((AND(B75<=D75,I75<=K75,B75<>"",C75<>"",D75<>"",I75<>"",J75<>"",K75<>"")),"OK",IF(AND(B76="",C76="",D76="",I75="",J75="",K75=""),"","Error")) -> OK
A76: 72 | B76: 38.96 | C76: 91 | D76: 48 | E76: 1 | F76: 9.04 | G76: 1 | I76: 39.04 | J76: 93 | K76: 47.7 | L76: 3 | M76: 8.66 | N76: 3 | O76: =IF(P76<>"",A76,"") -> 72 | P76: =IF((AND(B76<=D76,I76<=K76,B76<>"",C76<>"",D76<>"",I76<>"",J76<>"",K76<>"")),"OK",IF(AND(B77="",C77="",D77="",I76="",J76="",K76=""),"","Error")) -> OK
A77: 73 | B77: 41.39 | C77: 150 | D77: 43.97 | E77: 60 | F77: 2.58 | G77: 60 | I77: 41.35 | J77: 146 | K77: 43.79 | L77: 56 | M77: 2.44 | N77: 56 | O77: =IF(P77<>"",A77,"") -> 73 | P77: =IF((AND(B77<=D77,I77<=K77,B77<>"",C77<>"",D77<>"",I77<>"",J77<>"",K77<>"")),"OK",IF(AND(B78="",C78="",D78="",I77="",J77="",K77=""),"","Error")) -> OK
A78: 74 | B78: 43.98 | C78: 16 | D78: 45.26 | E78: 106 | F78: 1.28 | G78: 106 | I78: 43.74 | J78: 11 | K78: 45.51 | L78: 101 | M78: 1.77 | N78: 101 | O78: =IF(P78<>"",A78,"") -> 74 | P78: =IF((AND(B78<=D78,I78<=K78,B78<>"",C78<>"",D78<>"",I78<>"",J78<>"",K78<>"")),"OK",IF(AND(B79="",C79="",D79="",I78="",J78="",K78=""),"","Error")) -> OK
A79: 75 | B79: 40.1 | C79: 39 | D79: 42.17 | E79: 129 | F79: 2.07 | G79: 129 | I79: 40.67 | J79: 156 | K79: 42.27 | L79: 66 | M79: 1.6 | N79: 66 | O79: =IF(P79<>"",A79,"") -> 75 | P79: =IF((AND(B79<=D79,I79<=K79,B79<>"",C79<>"",D79<>"",I79<>"",J79<>"",K79<>"")),"OK",IF(AND(B80="",C80="",D80="",I79="",J79="",K79=""),"","Error")) -> OK
A80: 76 | B80: 46.04 | C80: 50 | D80: 50.02 | E80: 140 | F80: 3.98 | G80: 140 | I80: 45.42 | J80: 48 | K80: 50.04 | L80: 138 | M80: 4.62 | N80: 138 | O80: =IF(P80<>"",A80,"") -> 76 | P80: =IF((AND(B80<=D80,I80<=K80,B80<>"",C80<>"",D80<>"",I80<>"",J80<>"",K80<>"")),"OK",IF(AND(B81="",C81="",D81="",I80="",J80="",K80=""),"","Error")) -> OK
A81: 77 | B81: 44.33 | C81: 76 | D81: 46.33 | E81: =IF(D81="","",IF(C81>90,C81-90,C81+90)) -> 166 | F81: 2 | G81: 166 | I81: 44.57 | J81: 65 | K81: 46.11 | L81: =IF(K81="","",IF(J81>90,J81-90,J81+90)) -> 155 | M81: 1.54 | N81: 155 | O81: =IF(P81<>"",A81,"") -> 77 | P81: =IF((AND(B81<=D81,I81<=K81,B81<>"",C81<>"",D81<>"",I81<>"",J81<>"",K81<>"")),"OK",IF(AND(B82="",C82="",D82="",I81="",J81="",K81=""),"","Error")) -> OK
A82: 78 | B82: 42.23 | C82: 170 | D82: 44.61 | E82: =IF(D82="","",IF(C82>90,C82-90,C82+90)) -> 80 | F82: 2.38 | G82: 80 | I82: 42.3 | J82: 173 | K82: 44.85 | L82: =IF(K82="","",IF(J82>90,J82-90,J82+90)) -> 83 | M82: 2.55 | N82: 83 | O82: =IF(P82<>"",A82,"") -> 78 | P82: =IF((AND(B82<=D82,I82<=K82,B82<>"",C82<>"",D82<>"",I82<>"",J82<>"",K82<>"")),"OK",IF(AND(B83="",C83="",D83="",I82="",J82="",K82=""),"","Error")) -> OK
A83: 79 | B83: 44.06 | C83: 88 | D83: 45.5 | E83: =IF(D83="","",IF(C83>90,C83-90,C83+90)) -> 178 | F83: 1.44 | G83: 178 | I83: 44.35 | J83: 82 | K83: 45.56 | L83: =IF(K83="","",IF(J83>90,J83-90,J83+90)) -> 172 | M83: 1.21 | N83: 172 | O83: =IF(P83<>"",A83,"") -> 79 | P83: =IF((AND(B83<=D83,I83<=K83,B83<>"",C83<>"",D83<>"",I83<>"",J83<>"",K83<>"")),"OK",IF(AND(B84="",C84="",D84="",I83="",J83="",K83=""),"","Error")) -> OK
A84: 80 | B84: 45.62 | C84: 103 | D84: 46.85 | E84: =IF(D84="","",IF(C84>90,C84-90,C84+90)) -> 13 | F84: 1.23 | G84: 13 | I84: 45.45 | J84: 100 | K84: 46.69 | L84: =IF(K84="","",IF(J84>90,J84-90,J84+90)) -> 10 | M84: 1.24 | N84: 10 | O84: =IF(P84<>"",A84,"") -> 80 | P84: =IF((AND(B84<=D84,I84<=K84,B84<>"",C84<>"",D84<>"",I84<>"",J84<>"",K84<>"")),"OK",IF(AND(B85="",C85="",D85="",I84="",J84="",K84=""),"","Error")) -> OK
A85: 81 | B85: 43.42 | C85: 97 | D85: 44.97 | E85: =IF(D85="","",IF(C85>90,C85-90,C85+90)) -> 7 | F85: 1.55 | G85: 7 | I85: 43.55 | J85: 90 | K85: 44.72 | L85: =IF(K85="","",IF(J85>90,J85-90,J85+90)) -> 180 | M85: 1.17 | N85: 180 | O85: =IF(P85<>"",A85,"") -> 81 | P85: =IF((AND(B85<=D85,I85<=K85,B85<>"",C85<>"",D85<>"",I85<>"",J85<>"",K85<>"")),"OK",IF(AND(B86="",C86="",D86="",I85="",J85="",K85=""),"","Error")) -> OK
A86: 82 | B86: 39.81 | C86: 178 | D86: 42.17 | E86: 88 | F86: 2.36 | G86: 88 | I86: 40.2 | J86: 179 | K86: 42.01 | L86: 89 | M86: 1.81 | N86: 89 | O86: =IF(P86<>"",A86,"") -> 82 | P86: =IF((AND(B86<=D86,I86<=K86,B86<>"",C86<>"",D86<>"",I86<>"",J86<>"",K86<>"")),"OK",IF(AND(B87="",C87="",D87="",I86="",J86="",K86=""),"","Error")) -> OK
A87: 83 | B87: 44.7 | C87: 97 | D87: 44.98 | E87: 7 | F87: 0.28 | G87: 7 | I87: 44.56 | J87: 108 | K87: 45.03 | L87: 18 | M87: 0.47 | N87: 18 | O87: =IF(P87<>"",A87,"") -> 83 | P87: =IF((AND(B87<=D87,I87<=K87,B87<>"",C87<>"",D87<>"",I87<>"",J87<>"",K87<>"")),"OK",IF(AND(B88="",C88="",D88="",I87="",J87="",K87=""),"","Error")) -> OK
A88: 84 | O88: =IF(P88<>"",A88,"") ->  | P88: =IF((AND(B88<=D88,I88<=K88,B88<>"",C88<>"",D88<>"",I88<>"",J88<>"",K88<>"")),"OK",IF(AND(B89="",C89="",D89="",I88="",J88="",K88=""),"","Error")) -> 
A89: 85 | O89: =IF(P89<>"",A89,"") ->  | P89: =IF((AND(B89<=D89,I89<=K89,B89<>"",C89<>"",D89<>"",I89<>"",J89<>"",K89<>"")),"OK",IF(AND(B90="",C90="",D90="",I89="",J89="",K89=""),"","Error")) -> 
A90: 86 | O90: =IF(P90<>"",A90,"") ->  | P90: =IF((AND(B90<=D90,I90<=K90,B90<>"",C90<>"",D90<>"",I90<>"",J90<>"",K90<>"")),"OK",IF(AND(B91="",C91="",D91="",I90="",J90="",K90=""),"","Error")) -> 
A91: 87 | O91: =IF(P91<>"",A91,"") ->  | P91: =IF((AND(B91<=D91,I91<=K91,B91<>"",C91<>"",D91<>"",I91<>"",J91<>"",K91<>"")),"OK",IF(AND(B92="",C92="",D92="",I91="",J91="",K91=""),"","Error")) -> 
A92: 88 | O92: =IF(P92<>"",A92,"") ->  | P92: =IF((AND(B92<=D92,I92<=K92,B92<>"",C92<>"",D92<>"",I92<>"",J92<>"",K92<>"")),"OK",IF(AND(B93="",C93="",D93="",I92="",J92="",K92=""),"","Error")) -> 
A93: 89 | O93: =IF(P93<>"",A93,"") ->  | P93: =IF((AND(B93<=D93,I93<=K93,B93<>"",C93<>"",D93<>"",I93<>"",J93<>"",K93<>"")),"OK",IF(AND(B94="",C94="",D94="",I93="",J93="",K93=""),"","Error")) -> 
A94: 90 | O94: =IF(P94<>"",A94,"") ->  | P94: =IF((AND(B94<=D94,I94<=K94,B94<>"",C94<>"",D94<>"",I94<>"",J94<>"",K94<>"")),"OK",IF(AND(B95="",C95="",D95="",I94="",J94="",K94=""),"","Error")) -> 
A95: 91 | O95: =IF(P95<>"",A95,"") ->  | P95: =IF((AND(B95<=D95,I95<=K95,B95<>"",C95<>"",D95<>"",I95<>"",J95<>"",K95<>"")),"OK",IF(AND(B96="",C96="",D96="",I95="",J95="",K95=""),"","Error")) -> 
A96: 92 | O96: =IF(P96<>"",A96,"") ->  | P96: =IF((AND(B96<=D96,I96<=K96,B96<>"",C96<>"",D96<>"",I96<>"",J96<>"",K96<>"")),"OK",IF(AND(B97="",C97="",D97="",I96="",J96="",K96=""),"","Error")) -> 
A97: 93 | O97: =IF(P97<>"",A97,"") ->  | P97: =IF((AND(B97<=D97,I97<=K97,B97<>"",C97<>"",D97<>"",I97<>"",J97<>"",K97<>"")),"OK",IF(AND(B98="",C98="",D98="",I97="",J97="",K97=""),"","Error")) -> 
A98: 94 | O98: =IF(P98<>"",A98,"") ->  | P98: =IF((AND(B98<=D98,I98<=K98,B98<>"",C98<>"",D98<>"",I98<>"",J98<>"",K98<>"")),"OK",IF(AND(B99="",C99="",D99="",I98="",J98="",K98=""),"","Error")) -> 
A99: 95 | O99: =IF(P99<>"",A99,"") ->  | P99: =IF((AND(B99<=D99,I99<=K99,B99<>"",C99<>"",D99<>"",I99<>"",J99<>"",K99<>"")),"OK",IF(AND(B100="",C100="",D100="",I99="",J99="",K99=""),"","Error")) -> 
A100: 96 | O100: =IF(P100<>"",A100,"") ->  | P100: =IF((AND(B100<=D100,I100<=K100,B100<>"",C100<>"",D100<>"",I100<>"",J100<>"",K100<>"")),"OK",IF(AND(B101="",C101="",D101="",I100="",J100="",K100=""),"","Error")) -> 
A101: 97 | O101: =IF(P101<>"",A101,"") ->  | P101: =IF((AND(B101<=D101,I101<=K101,B101<>"",C101<>"",D101<>"",I101<>"",J101<>"",K101<>"")),"OK",IF(AND(B102="",C102="",D102="",I101="",J101="",K101=""),"","Error")) -> 
A102: 98 | O102: =IF(P102<>"",A102,"") ->  | P102: =IF((AND(B102<=D102,I102<=K102,B102<>"",C102<>"",D102<>"",I102<>"",J102<>"",K102<>"")),"OK",IF(AND(B103="",C103="",D103="",I102="",J102="",K102=""),"","Error")) -> 
A103: 99 | O103: =IF(P103<>"",A103,"") ->  | P103: =IF((AND(B103<=D103,I103<=K103,B103<>"",C103<>"",D103<>"",I103<>"",J103<>"",K103<>"")),"OK",IF(AND(B104="",C104="",D104="",I103="",J103="",K103=""),"","Error")) -> 
A104: 100 | O104: =IF(P104<>"",A104,"") ->  | P104: =IF((AND(B104<=D104,I104<=K104,B104<>"",C104<>"",D104<>"",I104<>"",J104<>"",K104<>"")),"OK",IF(AND(B105="",C105="",D105="",I104="",J104="",K104=""),"","Error")) -> 
A105: 101 | O105: =IF(P105<>"",A105,"") ->  | P105: =IF((AND(B105<=D105,I105<=K105,B105<>"",C105<>"",D105<>"",I105<>"",J105<>"",K105<>"")),"OK",IF(AND(B106="",C106="",D106="",I105="",J105="",K105=""),"","Error")) -> 
A106: 102 | O106: =IF(P106<>"",A106,"") ->  | P106: =IF((AND(B106<=D106,I106<=K106,B106<>"",C106<>"",D106<>"",I106<>"",J106<>"",K106<>"")),"OK",IF(AND(B107="",C107="",D107="",I106="",J106="",K106=""),"","Error")) -> 
A107: 103 | O107: =IF(P107<>"",A107,"") ->  | P107: =IF((AND(B107<=D107,I107<=K107,B107<>"",C107<>"",D107<>"",I107<>"",J107<>"",K107<>"")),"OK",IF(AND(B108="",C108="",D108="",I107="",J107="",K107=""),"","Error")) -> 
A108: 104 | O108: =IF(P108<>"",A108,"") ->  | P108: =IF((AND(B108<=D108,I108<=K108,B108<>"",C108<>"",D108<>"",I108<>"",J108<>"",K108<>"")),"OK",IF(AND(B109="",C109="",D109="",I108="",J108="",K108=""),"","Error")) -> 
A109: 105 | O109: =IF(P109<>"",A109,"") ->  | P109: =IF((AND(B109<=D109,I109<=K109,B109<>"",C109<>"",D109<>"",I109<>"",J109<>"",K109<>"")),"OK",IF(AND(B110="",C110="",D110="",I109="",J109="",K109=""),"","Error")) -> 
A110: 106 | O110: =IF(P110<>"",A110,"") ->  | P110: =IF((AND(B110<=D110,I110<=K110,B110<>"",C110<>"",D110<>"",I110<>"",J110<>"",K110<>"")),"OK",IF(AND(B111="",C111="",D111="",I110="",J110="",K110=""),"","Error")) -> 
A111: 107 | O111: =IF(P111<>"",A111,"") ->  | P111: =IF((AND(B111<=D111,I111<=K111,B111<>"",C111<>"",D111<>"",I111<>"",J111<>"",K111<>"")),"OK",IF(AND(B112="",C112="",D112="",I111="",J111="",K111=""),"","Error")) -> 
A112: 108 | O112: =IF(P112<>"",A112,"") ->  | P112: =IF((AND(B112<=D112,I112<=K112,B112<>"",C112<>"",D112<>"",I112<>"",J112<>"",K112<>"")),"OK",IF(AND(B113="",C113="",D113="",I112="",J112="",K112=""),"","Error")) -> 
A113: 109 | O113: =IF(P113<>"",A113,"") ->  | P113: =IF((AND(B113<=D113,I113<=K113,B113<>"",C113<>"",D113<>"",I113<>"",J113<>"",K113<>"")),"OK",IF(AND(B114="",C114="",D114="",I113="",J113="",K113=""),"","Error")) -> 
A114: 110 | O114: =IF(P114<>"",A114,"") ->  | P114: =IF((AND(B114<=D114,I114<=K114,B114<>"",C114<>"",D114<>"",I114<>"",J114<>"",K114<>"")),"OK",IF(AND(B115="",C115="",D115="",I114="",J114="",K114=""),"","Error")) -> 
A115: 111 | O115: =IF(P115<>"",A115,"") ->  | P115: =IF((AND(B115<=D115,I115<=K115,B115<>"",C115<>"",D115<>"",I115<>"",J115<>"",K115<>"")),"OK",IF(AND(B116="",C116="",D116="",I115="",J115="",K115=""),"","Error")) -> 
A116: 112 | O116: =IF(P116<>"",A116,"") ->  | P116: =IF((AND(B116<=D116,I116<=K116,B116<>"",C116<>"",D116<>"",I116<>"",J116<>"",K116<>"")),"OK",IF(AND(B117="",C117="",D117="",I116="",J116="",K116=""),"","Error")) -> 
A117: 113 | O117: =IF(P117<>"",A117,"") ->  | P117: =IF((AND(B117<=D117,I117<=K117,B117<>"",C117<>"",D117<>"",I117<>"",J117<>"",K117<>"")),"OK",IF(AND(B118="",C118="",D118="",I117="",J117="",K117=""),"","Error")) -> 
A118: 114 | O118: =IF(P118<>"",A118,"") ->  | P118: =IF((AND(B118<=D118,I118<=K118,B118<>"",C118<>"",D118<>"",I118<>"",J118<>"",K118<>"")),"OK",IF(AND(B119="",C119="",D119="",I118="",J118="",K118=""),"","Error")) -> 
A119: 115 | O119: =IF(P119<>"",A119,"") ->  | P119: =IF((AND(B119<=D119,I119<=K119,B119<>"",C119<>"",D119<>"",I119<>"",J119<>"",K119<>"")),"OK",IF(AND(B120="",C120="",D120="",I119="",J119="",K119=""),"","Error")) -> 
A120: 116 | O120: =IF(P120<>"",A120,"") ->  | P120: =IF((AND(B120<=D120,I120<=K120,B120<>"",C120<>"",D120<>"",I120<>"",J120<>"",K120<>"")),"OK",IF(AND(B121="",C121="",D121="",I120="",J120="",K120=""),"","Error")) -> 
A121: 117 | O121: =IF(P121<>"",A121,"") ->  | P121: =IF((AND(B121<=D121,I121<=K121,B121<>"",C121<>"",D121<>"",I121<>"",J121<>"",K121<>"")),"OK",IF(AND(B122="",C122="",D122="",I121="",J121="",K121=""),"","Error")) -> 
A122: 118 | O122: =IF(P122<>"",A122,"") ->  | P122: =IF((AND(B122<=D122,I122<=K122,B122<>"",C122<>"",D122<>"",I122<>"",J122<>"",K122<>"")),"OK",IF(AND(B123="",C123="",D123="",I122="",J122="",K122=""),"","Error")) -> 
A123: 119 | O123: =IF(P123<>"",A123,"") ->  | P123: =IF((AND(B123<=D123,I123<=K123,B123<>"",C123<>"",D123<>"",I123<>"",J123<>"",K123<>"")),"OK",IF(AND(B124="",C124="",D124="",I123="",J123="",K123=""),"","Error")) -> 
A124: 120 | O124: =IF(P124<>"",A124,"") ->  | P124: =IF((AND(B124<=D124,I124<=K124,B124<>"",C124<>"",D124<>"",I124<>"",J124<>"",K124<>"")),"OK",IF(AND(B125="",C125="",D125="",I124="",J124="",K124=""),"","Error")) -> 
A125: 121 | O125: =IF(P125<>"",A125,"") ->  | P125: =IF((AND(B125<=D125,I125<=K125,B125<>"",C125<>"",D125<>"",I125<>"",J125<>"",K125<>"")),"OK",IF(AND(B126="",C126="",D126="",I125="",J125="",K125=""),"","Error")) -> 
A126: 122 | O126: =IF(P126<>"",A126,"") ->  | P126: =IF((AND(B126<=D126,I126<=K126,B126<>"",C126<>"",D126<>"",I126<>"",J126<>"",K126<>"")),"OK",IF(AND(B127="",C127="",D127="",I126="",J126="",K126=""),"","Error")) -> 
A127: 123 | O127: =IF(P127<>"",A127,"") ->  | P127: =IF((AND(B127<=D127,I127<=K127,B127<>"",C127<>"",D127<>"",I127<>"",J127<>"",K127<>"")),"OK",IF(AND(B128="",C128="",D128="",I127="",J127="",K127=""),"","Error")) -> 
A128: 124 | O128: =IF(P128<>"",A128,"") ->  | P128: =IF((AND(B128<=D128,I128<=K128,B128<>"",C128<>"",D128<>"",I128<>"",J128<>"",K128<>"")),"OK",IF(AND(B129="",C129="",D129="",I128="",J128="",K128=""),"","Error")) -> 
A129: 125 | O129: =IF(P129<>"",A129,"") ->  | P129: =IF((AND(B129<=D129,I129<=K129,B129<>"",C129<>"",D129<>"",I129<>"",J129<>"",K129<>"")),"OK",IF(AND(B130="",C130="",D130="",I129="",J129="",K129=""),"","Error")) -> 
A130: 126 | O130: =IF(P130<>"",A130,"") ->  | P130: =IF((AND(B130<=D130,I130<=K130,B130<>"",C130<>"",D130<>"",I130<>"",J130<>"",K130<>"")),"OK",IF(AND(B131="",C131="",D131="",I130="",J130="",K130=""),"","Error")) -> 
A131: 127 | O131: =IF(P131<>"",A131,"") ->  | P131: =IF((AND(B131<=D131,I131<=K131,B131<>"",C131<>"",D131<>"",I131<>"",J131<>"",K131<>"")),"OK",IF(AND(B132="",C132="",D132="",I131="",J131="",K131=""),"","Error")) -> 
A132: 128 | O132: =IF(P132<>"",A132,"") ->  | P132: =IF((AND(B132<=D132,I132<=K132,B132<>"",C132<>"",D132<>"",I132<>"",J132<>"",K132<>"")),"OK",IF(AND(B133="",C133="",D133="",I132="",J132="",K132=""),"","Error")) -> 
A133: 129 | O133: =IF(P133<>"",A133,"") ->  | P133: =IF((AND(B133<=D133,I133<=K133,B133<>"",C133<>"",D133<>"",I133<>"",J133<>"",K133<>"")),"OK",IF(AND(B134="",C134="",D134="",I133="",J133="",K133=""),"","Error")) -> 
A134: 130 | F134: =IF(B134="","",D134-B134) ->  | G134: =IF(E134="","",E134) ->  | M134: =IF(I134="","",K134-I134) ->  | N134: =IF(L134="","",L134) ->  | O134: =IF(P134<>"",A134,"") ->  | P134: =IF((AND(B134<=D134,I134<=K134,B134<>"",C134<>"",D134<>"",I134<>"",J134<>"",K134<>"")),"OK",IF(AND(B135="",C135="",D135="",I134="",J134="",K134=""),"","Error")) -> 
A135: 131 | O135: =IF(P135<>"",A135,"") ->  | P135: =IF((AND(B135<=D135,I135<=K135,B135<>"",C135<>"",D135<>"",I135<>"",J135<>"",K135<>"")),"OK",IF(AND(B136="",C136="",D136="",I135="",J135="",K135=""),"","Error")) -> 
A136: 132 | O136: =IF(P136<>"",A136,"") ->  | P136: =IF((AND(B136<=D136,I136<=K136,B136<>"",C136<>"",D136<>"",I136<>"",J136<>"",K136<>"")),"OK",IF(AND(B137="",C137="",D137="",I136="",J136="",K136=""),"","Error")) -> 
A137: 133 | O137: =IF(P137<>"",A137,"") ->  | P137: =IF((AND(B137<=D137,I137<=K137,B137<>"",C137<>"",D137<>"",I137<>"",J137<>"",K137<>"")),"OK",IF(AND(B138="",C138="",D138="",I137="",J137="",K137=""),"","Error")) -> 
A138: 134 | O138: =IF(P138<>"",A138,"") ->  | P138: =IF((AND(B138<=D138,I138<=K138,B138<>"",C138<>"",D138<>"",I138<>"",J138<>"",K138<>"")),"OK",IF(AND(B139="",C139="",D139="",I138="",J138="",K138=""),"","Error")) -> 
A139: 135 | O139: =IF(P139<>"",A139,"") ->  | P139: =IF((AND(B139<=D139,I139<=K139,B139<>"",C139<>"",D139<>"",I139<>"",J139<>"",K139<>"")),"OK",IF(AND(B140="",C140="",D140="",I139="",J139="",K139=""),"","Error")) -> 
A140: 136 | O140: =IF(P140<>"",A140,"") ->  | P140: =IF((AND(B140<=D140,I140<=K140,B140<>"",C140<>"",D140<>"",I140<>"",J140<>"",K140<>"")),"OK",IF(AND(B141="",C141="",D141="",I140="",J140="",K140=""),"","Error")) -> 
A141: 137 | O141: =IF(P141<>"",A141,"") ->  | P141: =IF((AND(B141<=D141,I141<=K141,B141<>"",C141<>"",D141<>"",I141<>"",J141<>"",K141<>"")),"OK",IF(AND(B142="",C142="",D142="",I141="",J141="",K141=""),"","Error")) -> 
A142: 138 | O142: =IF(P142<>"",A142,"") ->  | P142: =IF((AND(B142<=D142,I142<=K142,B142<>"",C142<>"",D142<>"",I142<>"",J142<>"",K142<>"")),"OK",IF(AND(B143="",C143="",D143="",I142="",J142="",K142=""),"","Error")) -> 
A143: 139 | O143: =IF(P143<>"",A143,"") ->  | P143: =IF((AND(B143<=D143,I143<=K143,B143<>"",C143<>"",D143<>"",I143<>"",J143<>"",K143<>"")),"OK",IF(AND(B144="",C144="",D144="",I143="",J143="",K143=""),"","Error")) -> 
A144: 140 | O144: =IF(P144<>"",A144,"") ->  | P144: =IF((AND(B144<=D144,I144<=K144,B144<>"",C144<>"",D144<>"",I144<>"",J144<>"",K144<>"")),"OK",IF(AND(B145="",C145="",D145="",I144="",J144="",K144=""),"","Error")) -> 
A145: 141 | O145: =IF(P145<>"",A145,"") ->  | P145: =IF((AND(B145<=D145,I145<=K145,B145<>"",C145<>"",D145<>"",I145<>"",J145<>"",K145<>"")),"OK",IF(AND(B146="",C146="",D146="",I145="",J145="",K145=""),"","Error")) -> 
A146: 142 | O146: =IF(P146<>"",A146,"") ->  | P146: =IF((AND(B146<=D146,I146<=K146,B146<>"",C146<>"",D146<>"",I146<>"",J146<>"",K146<>"")),"OK",IF(AND(B147="",C147="",D147="",I146="",J146="",K146=""),"","Error")) -> 
A147: 143 | O147: =IF(P147<>"",A147,"") ->  | P147: =IF((AND(B147<=D147,I147<=K147,B147<>"",C147<>"",D147<>"",I147<>"",J147<>"",K147<>"")),"OK",IF(AND(B148="",C148="",D148="",I147="",J147="",K147=""),"","Error")) -> 
A148: 144 | O148: =IF(P148<>"",A148,"") ->  | P148: =IF((AND(B148<=D148,I148<=K148,B148<>"",C148<>"",D148<>"",I148<>"",J148<>"",K148<>"")),"OK",IF(AND(B149="",C149="",D149="",I148="",J148="",K148=""),"","Error")) -> 
A149: 145 | E149: =IF(D149="","",IF(C149>90,C149-90,C149+90)) ->  | L149: =IF(K149="","",IF(J149>90,J149-90,J149+90)) ->  | O149: =IF(P149<>"",A149,"") ->  | P149: =IF((AND(B149<=D149,I149<=K149,B149<>"",C149<>"",D149<>"",I149<>"",J149<>"",K149<>"")),"OK",IF(AND(B150="",C150="",D150="",I149="",J149="",K149=""),"","Error")) -> 
A150: 146 | O150: =IF(P150<>"",A150,"") ->  | P150: =IF((AND(B150<=D150,I150<=K150,B150<>"",C150<>"",D150<>"",I150<>"",J150<>"",K150<>"")),"OK",IF(AND(B151="",C151="",D151="",I150="",J150="",K150=""),"","Error")) -> 
A151: 147 | O151: =IF(P151<>"",A151,"") ->  | P151: =IF((AND(B151<=D151,I151<=K151,B151<>"",C151<>"",D151<>"",I151<>"",J151<>"",K151<>"")),"OK",IF(AND(B152="",C152="",D152="",I151="",J151="",K151=""),"","Error")) -> 
A152: 148 | O152: =IF(P152<>"",A152,"") ->  | P152: =IF((AND(B152<=D152,I152<=K152,B152<>"",C152<>"",D152<>"",I152<>"",J152<>"",K152<>"")),"OK",IF(AND(B153="",C153="",D153="",I152="",J152="",K152=""),"","Error")) -> 
A153: 149 | O153: =IF(P153<>"",A153,"") ->  | P153: =IF((AND(B153<=D153,I153<=K153,B153<>"",C153<>"",D153<>"",I153<>"",J153<>"",K153<>"")),"OK",IF(AND(B154="",C154="",D154="",I153="",J153="",K153=""),"","Error")) -> 
A154: 150 | O154: =IF(P154<>"",A154,"") ->  | P154: =IF((AND(B154<=D154,I154<=K154,B154<>"",C154<>"",D154<>"",I154<>"",J154<>"",K154<>"")),"OK",IF(AND(B155="",C155="",D155="",I154="",J154="",K154=""),"","Error")) -> 
A155: 151 | O155: =IF(P155<>"",A155,"") ->  | P155: =IF((AND(B155<=D155,I155<=K155,B155<>"",C155<>"",D155<>"",I155<>"",J155<>"",K155<>"")),"OK",IF(AND(B156="",C156="",D156="",I155="",J155="",K155=""),"","Error")) -> 
A156: 152 | O156: =IF(P156<>"",A156,"") ->  | P156: =IF((AND(B156<=D156,I156<=K156,B156<>"",C156<>"",D156<>"",I156<>"",J156<>"",K156<>"")),"OK",IF(AND(B157="",C157="",D157="",I156="",J156="",K156=""),"","Error")) -> 
A157: 153 | O157: =IF(P157<>"",A157,"") ->  | P157: =IF((AND(B157<=D157,I157<=K157,B157<>"",C157<>"",D157<>"",I157<>"",J157<>"",K157<>"")),"OK",IF(AND(B158="",C158="",D158="",I157="",J157="",K157=""),"","Error")) -> 
A158: 154 | O158: =IF(P158<>"",A158,"") ->  | P158: =IF((AND(B158<=D158,I158<=K158,B158<>"",C158<>"",D158<>"",I158<>"",J158<>"",K158<>"")),"OK",IF(AND(B159="",C159="",D159="",I158="",J158="",K158=""),"","Error")) -> 
A159: 155 | O159: =IF(P159<>"",A159,"") ->  | P159: =IF((AND(B159<=D159,I159<=K159,B159<>"",C159<>"",D159<>"",I159<>"",J159<>"",K159<>"")),"OK",IF(AND(B160="",C160="",D160="",I159="",J159="",K159=""),"","Error")) -> 
A160: 156 | O160: =IF(P160<>"",A160,"") ->  | P160: =IF((AND(B160<=D160,I160<=K160,B160<>"",C160<>"",D160<>"",I160<>"",J160<>"",K160<>"")),"OK",IF(AND(B161="",C161="",D161="",I160="",J160="",K160=""),"","Error")) -> 
A161: 157 | O161: =IF(P161<>"",A161,"") ->  | P161: =IF((AND(B161<=D161,I161<=K161,B161<>"",C161<>"",D161<>"",I161<>"",J161<>"",K161<>"")),"OK",IF(AND(B162="",C162="",D162="",I161="",J161="",K161=""),"","Error")) -> 
A162: 158 | O162: =IF(P162<>"",A162,"") ->  | P162: =IF((AND(B162<=D162,I162<=K162,B162<>"",C162<>"",D162<>"",I162<>"",J162<>"",K162<>"")),"OK",IF(AND(B163="",C163="",D163="",I162="",J162="",K162=""),"","Error")) -> 
A163: 159 | O163: =IF(P163<>"",A163,"") ->  | P163: =IF((AND(B163<=D163,I163<=K163,B163<>"",C163<>"",D163<>"",I163<>"",J163<>"",K163<>"")),"OK",IF(AND(B164="",C164="",D164="",I163="",J163="",K163=""),"","Error")) -> 
A164: 160 | O164: =IF(P164<>"",A164,"") ->  | P164: =IF((AND(B164<=D164,I164<=K164,B164<>"",C164<>"",D164<>"",I164<>"",J164<>"",K164<>"")),"OK",IF(AND(B165="",C165="",D165="",I164="",J164="",K164=""),"","Error")) -> 
A165: 161 | O165: =IF(P165<>"",A165,"") ->  | P165: =IF((AND(B165<=D165,I165<=K165,B165<>"",C165<>"",D165<>"",I165<>"",J165<>"",K165<>"")),"OK",IF(AND(B166="",C166="",D166="",I165="",J165="",K165=""),"","Error")) -> 
A166: 162 | O166: =IF(P166<>"",A166,"") ->  | P166: =IF((AND(B166<=D166,I166<=K166,B166<>"",C166<>"",D166<>"",I166<>"",J166<>"",K166<>"")),"OK",IF(AND(B167="",C167="",D167="",I166="",J166="",K166=""),"","Error")) -> 
A167: 163 | O167: =IF(P167<>"",A167,"") ->  | P167: =IF((AND(B167<=D167,I167<=K167,B167<>"",C167<>"",D167<>"",I167<>"",J167<>"",K167<>"")),"OK",IF(AND(B168="",C168="",D168="",I167="",J167="",K167=""),"","Error")) -> 
A168: 164 | O168: =IF(P168<>"",A168,"") ->  | P168: =IF((AND(B168<=D168,I168<=K168,B168<>"",C168<>"",D168<>"",I168<>"",J168<>"",K168<>"")),"OK",IF(AND(B169="",C169="",D169="",I168="",J168="",K168=""),"","Error")) -> 
A169: 165 | O169: =IF(P169<>"",A169,"") ->  | P169: =IF((AND(B169<=D169,I169<=K169,B169<>"",C169<>"",D169<>"",I169<>"",J169<>"",K169<>"")),"OK",IF(AND(B170="",C170="",D170="",I169="",J169="",K169=""),"","Error")) -> 
A170: 166 | O170: =IF(P170<>"",A170,"") ->  | P170: =IF((AND(B170<=D170,I170<=K170,B170<>"",C170<>"",D170<>"",I170<>"",J170<>"",K170<>"")),"OK",IF(AND(B171="",C171="",D171="",I170="",J170="",K170=""),"","Error")) -> 
A171: 167 | O171: =IF(P171<>"",A171,"") ->  | P171: =IF((AND(B171<=D171,I171<=K171,B171<>"",C171<>"",D171<>"",I171<>"",J171<>"",K171<>"")),"OK",IF(AND(B172="",C172="",D172="",I171="",J171="",K171=""),"","Error")) -> 
A172: 168 | O172: =IF(P172<>"",A172,"") ->  | P172: =IF((AND(B172<=D172,I172<=K172,B172<>"",C172<>"",D172<>"",I172<>"",J172<>"",K172<>"")),"OK",IF(AND(B173="",C173="",D173="",I172="",J172="",K172=""),"","Error")) -> 
A173: 169 | O173: =IF(P173<>"",A173,"") ->  | P173: =IF((AND(B173<=D173,I173<=K173,B173<>"",C173<>"",D173<>"",I173<>"",J173<>"",K173<>"")),"OK",IF(AND(B174="",C174="",D174="",I173="",J173="",K173=""),"","Error")) -> 
A174: 170 | O174: =IF(P174<>"",A174,"") ->  | P174: =IF((AND(B174<=D174,I174<=K174,B174<>"",C174<>"",D174<>"",I174<>"",J174<>"",K174<>"")),"OK",IF(AND(B175="",C175="",D175="",I174="",J174="",K174=""),"","Error")) -> 
A175: 171 | O175: =IF(P175<>"",A175,"") ->  | P175: =IF((AND(B175<=D175,I175<=K175,B175<>"",C175<>"",D175<>"",I175<>"",J175<>"",K175<>"")),"OK",IF(AND(B176="",C176="",D176="",I175="",J175="",K175=""),"","Error")) -> 
A176: 172 | O176: =IF(P176<>"",A176,"") ->  | P176: =IF((AND(B176<=D176,I176<=K176,B176<>"",C176<>"",D176<>"",I176<>"",J176<>"",K176<>"")),"OK",IF(AND(B177="",C177="",D177="",I176="",J176="",K176=""),"","Error")) -> 
A177: 173 | O177: =IF(P177<>"",A177,"") ->  | P177: =IF((AND(B177<=D177,I177<=K177,B177<>"",C177<>"",D177<>"",I177<>"",J177<>"",K177<>"")),"OK",IF(AND(B178="",C178="",D178="",I177="",J177="",K177=""),"","Error")) -> 
A178: 174 | O178: =IF(P178<>"",A178,"") ->  | P178: =IF((AND(B178<=D178,I178<=K178,B178<>"",C178<>"",D178<>"",I178<>"",J178<>"",K178<>"")),"OK",IF(AND(B179="",C179="",D179="",I178="",J178="",K178=""),"","Error")) -> 
A179: 175 | O179: =IF(P179<>"",A179,"") ->  | P179: =IF((AND(B179<=D179,I179<=K179,B179<>"",C179<>"",D179<>"",I179<>"",J179<>"",K179<>"")),"OK",IF(AND(B180="",C180="",D180="",I179="",J179="",K179=""),"","Error")) -> 
A180: 176 | O180: =IF(P180<>"",A180,"") ->  | P180: =IF((AND(B180<=D180,I180<=K180,B180<>"",C180<>"",D180<>"",I180<>"",J180<>"",K180<>"")),"OK",IF(AND(B181="",C181="",D181="",I180="",J180="",K180=""),"","Error")) -> 
A181: 177 | O181: =IF(P181<>"",A181,"") ->  | P181: =IF((AND(B181<=D181,I181<=K181,B181<>"",C181<>"",D181<>"",I181<>"",J181<>"",K181<>"")),"OK",IF(AND(B182="",C182="",D182="",I181="",J181="",K181=""),"","Error")) -> 
A182: 178 | O182: =IF(P182<>"",A182,"") ->  | P182: =IF((AND(B182<=D182,I182<=K182,B182<>"",C182<>"",D182<>"",I182<>"",J182<>"",K182<>"")),"OK",IF(AND(B183="",C183="",D183="",I182="",J182="",K182=""),"","Error")) -> 
A183: 179 | O183: =IF(P183<>"",A183,"") ->  | P183: =IF((AND(B183<=D183,I183<=K183,B183<>"",C183<>"",D183<>"",I183<>"",J183<>"",K183<>"")),"OK",IF(AND(B184="",C184="",D184="",I183="",J183="",K183=""),"","Error")) -> 
A184: 180 | O184: =IF(P184<>"",A184,"") ->  | P184: =IF((AND(B184<=D184,I184<=K184,B184<>"",C184<>"",D184<>"",I184<>"",J184<>"",K184<>"")),"OK",IF(AND(B185="",C185="",D185="",I184="",J184="",K184=""),"","Error")) -> 
A185: 181 | O185: =IF(P185<>"",A185,"") ->  | P185: =IF((AND(B185<=D185,I185<=K185,B185<>"",C185<>"",D185<>"",I185<>"",J185<>"",K185<>"")),"OK",IF(AND(B186="",C186="",D186="",I185="",J185="",K185=""),"","Error")) -> 
A186: 182 | O186: =IF(P186<>"",A186,"") ->  | P186: =IF((AND(B186<=D186,I186<=K186,B186<>"",C186<>"",D186<>"",I186<>"",J186<>"",K186<>"")),"OK",IF(AND(B187="",C187="",D187="",I186="",J186="",K186=""),"","Error")) -> 
A187: 183 | O187: =IF(P187<>"",A187,"") ->  | P187: =IF((AND(B187<=D187,I187<=K187,B187<>"",C187<>"",D187<>"",I187<>"",J187<>"",K187<>"")),"OK",IF(AND(B188="",C188="",D188="",I187="",J187="",K187=""),"","Error")) -> 
A188: 184 | O188: =IF(P188<>"",A188,"") ->  | P188: =IF((AND(B188<=D188,I188<=K188,B188<>"",C188<>"",D188<>"",I188<>"",J188<>"",K188<>"")),"OK",IF(AND(B189="",C189="",D189="",I188="",J188="",K188=""),"","Error")) -> 
A189: 185 | O189: =IF(P189<>"",A189,"") ->  | P189: =IF((AND(B189<=D189,I189<=K189,B189<>"",C189<>"",D189<>"",I189<>"",J189<>"",K189<>"")),"OK",IF(AND(B190="",C190="",D190="",I189="",J189="",K189=""),"","Error")) -> 
A190: 186 | O190: =IF(P190<>"",A190,"") ->  | P190: =IF((AND(B190<=D190,I190<=K190,B190<>"",C190<>"",D190<>"",I190<>"",J190<>"",K190<>"")),"OK",IF(AND(B191="",C191="",D191="",I190="",J190="",K190=""),"","Error")) -> 
A191: 187 | O191: =IF(P191<>"",A191,"") ->  | P191: =IF((AND(B191<=D191,I191<=K191,B191<>"",C191<>"",D191<>"",I191<>"",J191<>"",K191<>"")),"OK",IF(AND(B192="",C192="",D192="",I191="",J191="",K191=""),"","Error")) -> 
A192: 188 | O192: =IF(P192<>"",A192,"") ->  | P192: =IF((AND(B192<=D192,I192<=K192,B192<>"",C192<>"",D192<>"",I192<>"",J192<>"",K192<>"")),"OK",IF(AND(B193="",C193="",D193="",I192="",J192="",K192=""),"","Error")) -> 
A193: 189 | O193: =IF(P193<>"",A193,"") ->  | P193: =IF((AND(B193<=D193,I193<=K193,B193<>"",C193<>"",D193<>"",I193<>"",J193<>"",K193<>"")),"OK",IF(AND(B194="",C194="",D194="",I193="",J193="",K193=""),"","Error")) -> 
A194: 190 | O194: =IF(P194<>"",A194,"") ->  | P194: =IF((AND(B194<=D194,I194<=K194,B194<>"",C194<>"",D194<>"",I194<>"",J194<>"",K194<>"")),"OK",IF(AND(B195="",C195="",D195="",I194="",J194="",K194=""),"","Error")) -> 
A195: 191 | O195: =IF(P195<>"",A195,"") ->  | P195: =IF((AND(B195<=D195,I195<=K195,B195<>"",C195<>"",D195<>"",I195<>"",J195<>"",K195<>"")),"OK",IF(AND(B196="",C196="",D196="",I195="",J195="",K195=""),"","Error")) -> 
A196: 192 | O196: =IF(P196<>"",A196,"") ->  | P196: =IF((AND(B196<=D196,I196<=K196,B196<>"",C196<>"",D196<>"",I196<>"",J196<>"",K196<>"")),"OK",IF(AND(B197="",C197="",D197="",I196="",J196="",K196=""),"","Error")) -> 
A197: 193 | O197: =IF(P197<>"",A197,"") ->  | P197: =IF((AND(B197<=D197,I197<=K197,B197<>"",C197<>"",D197<>"",I197<>"",J197<>"",K197<>"")),"OK",IF(AND(B198="",C198="",D198="",I197="",J197="",K197=""),"","Error")) -> 
A198: 194 | F198: =IF(B198="","",D198-B198) ->  | G198: =IF(E198="","",E198) ->  | M198: =IF(I198="","",K198-I198) ->  | N198: =IF(L198="","",L198) ->  | O198: =IF(P198<>"",A198,"") ->  | P198: =IF((AND(B198<=D198,I198<=K198,B198<>"",C198<>"",D198<>"",I198<>"",J198<>"",K198<>"")),"OK",IF(AND(B199="",C199="",D199="",I198="",J198="",K198=""),"","Error")) -> 
A199: 195 | O199: =IF(P199<>"",A199,"") ->  | P199: =IF((AND(B199<=D199,I199<=K199,B199<>"",C199<>"",D199<>"",I199<>"",J199<>"",K199<>"")),"OK",IF(AND(B200="",C200="",D200="",I199="",J199="",K199=""),"","Error")) -> 
A200: 196 | O200: =IF(P200<>"",A200,"") ->  | P200: =IF((AND(B200<=D200,I200<=K200,B200<>"",C200<>"",D200<>"",I200<>"",J200<>"",K200<>"")),"OK",IF(AND(B201="",C201="",D201="",I200="",J200="",K200=""),"","Error")) -> 
... 2804 more rows

Sheet Data_Input_OS
A1: Eye: | B1: OS | D1: Incision size: | F1: 2.4 | G1: mm | I1: Incision location: | L1: 30 | M1: ° | N1: Device: | O1: IOLM700 | R1: Error Check: | S1: =IF(OR(S4>0,F1="",L1="",O1=""),"Error","OK") -> OK
R2: Empty Rows: | S2: =IF(MAX(O5:O3004)>S5,"Error","OK") -> OK
A3: No. | B3: Preoperative corneal astigmatism | I3: Postoperative corneal astigmatism | P3: Integrity check | R3: # of eyes "OK": | S3: =COUNTIF(P5:P3004,"OK") -> 79
B4: Kflat | C4: @flat | D4: Ksteep | E4: @steep | F4: Astigmatism | G4: @ | I4: Kflat | J4: @flat | K4: Ksteep | L4: @steep | M4: Astigmatism | N4: @ | R4: # of eyes "Error": | S4: =COUNTIF(P5:P3004,"Error") -> 0
A5: 1 | B5: 41.11 | C5: 147 | D5: 42.54 | E5: =IF(D5="","",IF(C5>90,C5-90,C5+90)) -> 57 | F5: =IF(B5="","",D5-B5) -> 1.43 | G5: =IF(E5="","",E5) -> 57 | I5: 41.01 | J5: 147 | K5: 42.38 | L5: =IF(K5="","",IF(J5>90,J5-90,J5+90)) -> 57 | M5: =IF(I5="","",K5-I5) -> 1.37 | N5: =IF(L5="","",L5) -> 57 | O5: =IF(P5<>"",A5,"") -> 1 | P5: =IF((AND(B5<=D5,I5<=K5,B5<>"",C5<>"",D5<>"",I5<>"",J5<>"",K5<>"")),"OK",IF(AND(B6="",C6="",D6="",I5="",J5="",K5=""),"","Error")) -> OK | R5: # of eyes Total: | S5: =S4+S3 -> 79
A6: 2 | B6: 40.7 | C6: 108 | D6: 41.3 | E6: 18 | F6: =IF(B6="","",D6-B6) -> 0.6 | G6: =IF(E6="","",E6) -> 18 | I6: 40.72 | J6: 109 | K6: 41.34 | L6: 19 | M6: =IF(I6="","",K6-I6) -> 0.62 | N6: =IF(L6="","",L6) -> 19 | O6: =IF(P6<>"",A6,"") -> 2 | P6: =IF((AND(B6<=D6,I6<=K6,B6<>"",C6<>"",D6<>"",I6<>"",J6<>"",K6<>"")),"OK",IF(AND(B7="",C7="",D7="",I6="",J6="",K6=""),"","Error")) -> OK
A7: 3 | B7: 44.1 | C7: 98 | D7: 44.3 | E7: 8 | F7: 0.2 | G7: 8 | I7: 43.93 | J7: 101 | K7: 44.42 | L7: 11 | M7: 0.49 | N7: 11 | O7: =IF(P7<>"",A7,"") -> 3 | P7: =IF((AND(B7<=D7,I7<=K7,B7<>"",C7<>"",D7<>"",I7<>"",J7<>"",K7<>"")),"OK",IF(AND(B8="",C8="",D8="",I7="",J7="",K7=""),"","Error")) -> OK
A8: 4 | B8: 43.9 | C8: 101 | D8: 44.3 | E8: 11 | F8: 0.4 | G8: 11 | I8: 43.34 | J8: 118 | K8: 44.15 | L8: 28 | M8: 0.81 | N8: 28 | O8: =IF(P8<>"",A8,"") -> 4 | P8: =IF((AND(B8<=D8,I8<=K8,B8<>"",C8<>"",D8<>"",I8<>"",J8<>"",K8<>"")),"OK",IF(AND(B9="",C9="",D9="",I8="",J8="",K8=""),"","Error")) -> OK
A9: 5 | B9: 43.39 | C9: 34 | D9: 44.06 | E9: 124 | F9: 0.67 | G9: 124 | I9: 43.39 | J9: 34 | K9: 44.06 | L9: 124 | M9: 0.67 | N9: 124 | O9: =IF(P9<>"",A9,"") -> 5 | P9: =IF((AND(B9<=D9,I9<=K9,B9<>"",C9<>"",D9<>"",I9<>"",J9<>"",K9<>"")),"OK",IF(AND(B10="",C10="",D10="",I9="",J9="",K9=""),"","Error")) -> OK
A10: 6 | B10: 44.93 | C10: 59 | D10: 45.7 | E10: 149 | F10: 0.77 | G10: 149 | I10: 44.93 | J10: 59 | K10: 45.7 | L10: 149 | M10: 0.77 | N10: 149 | O10: =IF(P10<>"",A10,"") -> 6 | P10: =IF((AND(B10<=D10,I10<=K10,B10<>"",C10<>"",D10<>"",I10<>"",J10<>"",K10<>"")),"OK",IF(AND(B11="",C11="",D11="",I10="",J10="",K10=""),"","Error")) -> OK
A11: 7 | B11: 40.11 | C11: 90 | D11: 40.77 | E11: 180 | F11: 0.66 | G11: 180 | I11: 40.62 | J11: 138 | K11: 40.87 | L11: 48 | M11: 0.25 | N11: 48 | O11: =IF(P11<>"",A11,"") -> 7 | P11: =IF((AND(B11<=D11,I11<=K11,B11<>"",C11<>"",D11<>"",I11<>"",J11<>"",K11<>"")),"OK",IF(AND(B12="",C12="",D12="",I11="",J11="",K11=""),"","Error")) -> OK
A12: 8 | B12: 42.8 | C12: 171 | D12: 43.24 | E12: 81 | F12: 0.44 | G12: 81 | I12: 42.77 | J12: 12 | K12: 43.33 | L12: 102 | M12: 0.56 | N12: 102 | O12: =IF(P12<>"",A12,"") -> 8 | P12: =IF((AND(B12<=D12,I12<=K12,B12<>"",C12<>"",D12<>"",I12<>"",J12<>"",K12<>"")),"OK",IF(AND(B13="",C13="",D13="",I12="",J12="",K12=""),"","Error")) -> OK
A13: 9 | B13: 43.71 | C13: 102 | D13: 44.01 | E13: 12 | F13: 0.3 | G13: 12 | I13: 43.53 | J13: 65 | K13: 44.09 | L13: 155 | M13: 0.56 | N13: 155 | O13: =IF(P13<>"",A13,"") -> 9 | P13: =IF((AND(B13<=D13,I13<=K13,B13<>"",C13<>"",D13<>"",I13<>"",J13<>"",K13<>"")),"OK",IF(AND(B14="",C14="",D14="",I13="",J13="",K13=""),"","Error")) -> OK
A14: 10 | B14: 43.25 | C14: 3 | D14: 44.05 | E14: 93 | F14: 0.8 | G14: 93 | I14: 42.83 | J14: 18 | K14: 44.16 | L14: 108 | M14: 1.33 | N14: 108 | O14: =IF(P14<>"",A14,"") -> 10 | P14: =IF((AND(B14<=D14,I14<=K14,B14<>"",C14<>"",D14<>"",I14<>"",J14<>"",K14<>"")),"OK",IF(AND(B15="",C15="",D15="",I14="",J14="",K14=""),"","Error")) -> OK
A15: 11 | B15: 45.56 | C15: 16 | D15: 46.87 | E15: 106 | F15: 1.31 | G15: 106 | I15: 45.84 | J15: 11 | K15: 46.22 | L15: 101 | M15: 0.38 | N15: 101 | O15: =IF(P15<>"",A15,"") -> 11 | P15: =IF((AND(B15<=D15,I15<=K15,B15<>"",C15<>"",D15<>"",I15<>"",J15<>"",K15<>"")),"OK",IF(AND(B16="",C16="",D16="",I15="",J15="",K15=""),"","Error")) -> OK
A16: 12 | B16: 45.63 | C16: 101 | D16: 46.22 | E16: 11 | F16: 0.59 | G16: 11 | I16: 45.59 | J16: 125 | K16: 46.86 | L16: 35 | M16: 1.27 | N16: 35 | O16: =IF(P16<>"",A16,"") -> 12 | P16: =IF((AND(B16<=D16,I16<=K16,B16<>"",C16<>"",D16<>"",I16<>"",J16<>"",K16<>"")),"OK",IF(AND(B17="",C17="",D17="",I16="",J16="",K16=""),"","Error")) -> OK
A17: 13 | B17: 43.19 | C17: 177 | D17: 44.61 | E17: 87 | F17: 1.42 | G17: 87 | I17: 43.45 | J17: 179 | K17: 44.6 | L17: 89 | M17: 1.15 | N17: 89 | O17: =IF(P17<>"",A17,"") -> 13 | P17: =IF((AND(B17<=D17,I17<=K17,B17<>"",C17<>"",D17<>"",I17<>"",J17<>"",K17<>"")),"OK",IF(AND(B18="",C18="",D18="",I17="",J17="",K17=""),"","Error")) -> OK
A18: 14 | B18: 43.25 | C18: 96 | D18: 43.51 | E18: 6 | F18: 0.26 | G18: 6 | I18: 43.08 | J18: 60 | K18: 43.28 | L18: 150 | M18: 0.2 | N18: 150 | O18: =IF(P18<>"",A18,"") -> 14 | P18: =IF((AND(B18<=D18,I18<=K18,B18<>"",C18<>"",D18<>"",I18<>"",J18<>"",K18<>"")),"OK",IF(AND(B19="",C19="",D19="",I18="",J18="",K18=""),"","Error")) -> OK
A19: 15 | B19: 46.68 | C19: 130 | D19: 47.28 | E19: 40 | F19: 0.6 | G19: 40 | I19: 46 | J19: 112 | K19: 47.19 | L19: 22 | M19: 1.19 | N19: 22 | O19: =IF(P19<>"",A19,"") -> 15 | P19: =IF((AND(B19<=D19,I19<=K19,B19<>"",C19<>"",D19<>"",I19<>"",J19<>"",K19<>"")),"OK",IF(AND(B20="",C20="",D20="",I19="",J19="",K19=""),"","Error")) -> OK
A20: 16 | B20: 42.39 | C20: 104 | D20: 43.74 | E20: 14 | F20: 1.35 | G20: 14 | I20: 42.16 | J20: 63 | K20: 43.93 | L20: 153 | M20: 1.77 | N20: 153 | O20: =IF(P20<>"",A20,"") -> 16 | P20: =IF((AND(B20<=D20,I20<=K20,B20<>"",C20<>"",D20<>"",I20<>"",J20<>"",K20<>"")),"OK",IF(AND(B21="",C21="",D21="",I20="",J20="",K20=""),"","Error")) -> OK
A21: 17 | B21: 46.27 | C21: 98 | D21: 47.15 | E21: 8 | F21: 0.88 | G21: 8 | I21: 38.61 | J21: 169 | K21: 39.58 | L21: 79 | M21: 0.97 | N21: 79 | O21: =IF(P21<>"",A21,"") -> 17 | P21: =IF((AND(B21<=D21,I21<=K21,B21<>"",C21<>"",D21<>"",I21<>"",J21<>"",K21<>"")),"OK",IF(AND(B22="",C22="",D22="",I21="",J21="",K21=""),"","Error")) -> OK
A22: 18 | B22: 43.64 | C22: 21 | D22: 44.4 | E22: 111 | F22: 0.76 | G22: 111 | I22: 43.37 | J22: 20 | K22: 43.94 | L22: 110 | M22: 0.57 | N22: 110 | O22: =IF(P22<>"",A22,"") -> 18 | P22: =IF((AND(B22<=D22,I22<=K22,B22<>"",C22<>"",D22<>"",I22<>"",J22<>"",K22<>"")),"OK",IF(AND(B23="",C23="",D23="",I22="",J22="",K22=""),"","Error")) -> OK
A23: 19 | B23: 43.76 | C23: 104 | D23: 44.67 | E23: 14 | F23: 0.91 | G23: 14 | I23: 43.03 | J23: 80 | K23: 44.31 | L23: 170 | M23: 1.28 | N23: 170 | O23: =IF(P23<>"",A23,"") -> 19 | P23: =IF((AND(B23<=D23,I23<=K23,B23<>"",C23<>"",D23<>"",I23<>"",J23<>"",K23<>"")),"OK",IF(AND(B24="",C24="",D24="",I23="",J23="",K23=""),"","Error")) -> OK
A24: 20 | B24: 43.45 | C24: 87 | D24: 44.48 | E24: 177 | F24: 1.03 | G24: 177 | I24: 43.58 | J24: 78 | K24: 44.69 | L24: 168 | M24: 1.11 | N24: 168 | O24: =IF(P24<>"",A24,"") -> 20 | P24: =IF((AND(B24<=D24,I24<=K24,B24<>"",C24<>"",D24<>"",I24<>"",J24<>"",K24<>"")),"OK",IF(AND(B25="",C25="",D25="",I24="",J24="",K24=""),"","Error")) -> OK
A25: 21 | B25: 42.58 | C25: 125 | D25: 43.03 | E25: 35 | F25: 0.45 | G25: 35 | I25: 42.46 | J25: 89 | K25: 42.74 | L25: 179 | M25: 0.28 | N25: 179 | O25: =IF(P25<>"",A25,"") -> 21 | P25: =IF((AND(B25<=D25,I25<=K25,B25<>"",C25<>"",D25<>"",I25<>"",J25<>"",K25<>"")),"OK",IF(AND(B26="",C26="",D26="",I25="",J25="",K25=""),"","Error")) -> OK
A26: 22 | B26: 43.84 | C26: 152 | D26: 44.43 | E26: 62 | F26: 0.59 | G26: 62 | I26: 43.7 | J26: 1 | K26: 44.21 | L26: 91 | M26: 0.51 | N26: 91 | O26: =IF(P26<>"",A26,"") -> 22 | P26: =IF((AND(B26<=D26,I26<=K26,B26<>"",C26<>"",D26<>"",I26<>"",J26<>"",K26<>"")),"OK",IF(AND(B27="",C27="",D27="",I26="",J26="",K26=""),"","Error")) -> OK
A27: 23 | B27: 43.45 | C27: 80 | D27: 45.23 | E27: 170 | F27: 1.78 | G27: 170 | I27: 43.51 | J27: 71 | K27: 44.94 | L27: 161 | M27: 1.43 | N27: 161 | O27: =IF(P27<>"",A27,"") -> 23 | P27: =IF((AND(B27<=D27,I27<=K27,B27<>"",C27<>"",D27<>"",I27<>"",J27<>"",K27<>"")),"OK",IF(AND(B28="",C28="",D28="",I27="",J27="",K27=""),"","Error")) -> OK
A28: 24 | B28: 44.57 | C28: 50 | D28: 45.19 | E28: 140 | F28: 0.62 | G28: 140 | I28: 44.72 | J28: 34 | K28: 45.63 | L28: 124 | M28: 0.91 | N28: 124 | O28: =IF(P28<>"",A28,"") -> 24 | P28: =IF((AND(B28<=D28,I28<=K28,B28<>"",C28<>"",D28<>"",I28<>"",J28<>"",K28<>"")),"OK",IF(AND(B29="",C29="",D29="",I28="",J28="",K28=""),"","Error")) -> OK
A29: 25 | B29: 42.85 | C29: 87 | D29: 43.93 | E29: 177 | F29: 1.08 | G29: 177 | I29: 42.76 | J29: 80 | K29: 43.79 | L29: 170 | M29: 1.03 | N29: 170 | O29: =IF(P29<>"",A29,"") -> 25 | P29: =IF((AND(B29<=D29,I29<=K29,B29<>"",C29<>"",D29<>"",I29<>"",J29<>"",K29<>"")),"OK",IF(AND(B30="",C30="",D30="",I29="",J29="",K29=""),"","Error")) -> OK
A30: 26 | B30: 43.88 | C30: 161 | D30: 44.34 | E30: 71 | F30: 0.46 | G30: 71 | I30: 43.82 | J30: 10 | K30: 44.33 | L30: 100 | M30: 0.51 | N30: 100 | O30: =IF(P30<>"",A30,"") -> 26 | P30: =IF((AND(B30<=D30,I30<=K30,B30<>"",C30<>"",D30<>"",I30<>"",J30<>"",K30<>"")),"OK",IF(AND(B31="",C31="",D31="",I30="",J30="",K30=""),"","Error")) -> OK
A31: 27 | B31: 44.66 | C31: 73 | D31: 45.88 | E31: 163 | F31: 1.22 | G31: 163 | I31: 44.66 | J31: 74 | K31: 46.05 | L31: 164 | M31: 1.39 | N31: 164 | O31: =IF(P31<>"",A31,"") -> 27 | P31: =IF((AND(B31<=D31,I31<=K31,B31<>"",C31<>"",D31<>"",I31<>"",J31<>"",K31<>"")),"OK",IF(AND(B32="",C32="",D32="",I31="",J31="",K31=""),"","Error")) -> OK
A32: 28 | B32: 43.39 | C32: 62 | D32: 44.3 | E32: 152 | F32: 0.91 | G32: 152 | I32: 43.12 | J32: 66 | K32: 44.09 | L32: 156 | M32: 0.97 | N32: 156 | O32: =IF(P32<>"",A32,"") -> 28 | P32: =IF((AND(B32<=D32,I32<=K32,B32<>"",C32<>"",D32<>"",I32<>"",J32<>"",K32<>"")),"OK",IF(AND(B33="",C33="",D33="",I32="",J32="",K32=""),"","Error")) -> OK
A33: 29 | B33: 45.14 | C33: 56 | D33: 45.97 | E33: 146 | F33: 0.83 | G33: 146 | I33: 44.81 | J33: 50 | K33: 45.73 | L33: 140 | M33: 0.92 | N33: 140 | O33: =IF(P33<>"",A33,"") -> 29 | P33: =IF((AND(B33<=D33,I33<=K33,B33<>"",C33<>"",D33<>"",I33<>"",J33<>"",K33<>"")),"OK",IF(AND(B34="",C34="",D34="",I33="",J33="",K33=""),"","Error")) -> OK
A34: 30 | B34: 42.52 | C34: 10 | D34: 43.1 | E34: 100 | F34: 0.58 | G34: 100 | I34: 42.78 | J34: 21 | K34: 43.38 | L34: 111 | M34: 0.6 | N34: 111 | O34: =IF(P34<>"",A34,"") -> 30 | P34: =IF((AND(B34<=D34,I34<=K34,B34<>"",C34<>"",D34<>"",I34<>"",J34<>"",K34<>"")),"OK",IF(AND(B35="",C35="",D35="",I34="",J34="",K34=""),"","Error")) -> OK
A35: 31 | B35: 47.71 | C35: 55 | D35: 47.93 | E35: 145 | F35: 0.22 | G35: 145 | I35: 47.74 | J35: 59 | K35: 48.01 | L35: 149 | M35: 0.27 | N35: 149 | O35: =IF(P35<>"",A35,"") -> 31 | P35: =IF((AND(B35<=D35,I35<=K35,B35<>"",C35<>"",D35<>"",I35<>"",J35<>"",K35<>"")),"OK",IF(AND(B36="",C36="",D36="",I35="",J35="",K35=""),"","Error")) -> OK
A36: 32 | B36: 41.15 | C36: 157 | D36: 42.07 | E36: 67 | F36: 0.92 | G36: 67 | I36: 41.21 | J36: 165 | K36: 42.15 | L36: 75 | M36: 0.94 | N36: 75 | O36: =IF(P36<>"",A36,"") -> 32 | P36: =IF((AND(B36<=D36,I36<=K36,B36<>"",C36<>"",D36<>"",I36<>"",J36<>"",K36<>"")),"OK",IF(AND(B37="",C37="",D37="",I36="",J36="",K36=""),"","Error")) -> OK
A37: 33 | B37: 42.89 | C37: 1 | D37: 43.51 | E37: 91 | F37: 0.62 | G37: 91 | I37: 43.52 | J37: 6 | K37: 43.9 | L37: 96 | M37: 0.38 | N37: 96 | O37: =IF(P37<>"",A37,"") -> 33 | P37: =IF((AND(B37<=D37,I37<=K37,B37<>"",C37<>"",D37<>"",I37<>"",J37<>"",K37<>"")),"OK",IF(AND(B38="",C38="",D38="",I37="",J37="",K37=""),"","Error")) -> OK
A38: 34 | B38: 45.19 | C38: 62 | D38: 45.98 | E38: 152 | F38: 0.79 | G38: 152 | I38: 45.19 | J38: 62 | K38: 45.96 | L38: 152 | M38: 0.77 | N38: 152 | O38: =IF(P38<>"",A38,"") -> 34 | P38: =IF((AND(B38<=D38,I38<=K38,B38<>"",C38<>"",D38<>"",I38<>"",J38<>"",K38<>"")),"OK",IF(AND(B39="",C39="",D39="",I38="",J38="",K38=""),"","Error")) -> OK
A39: 35 | B39: 44.49 | C39: 165 | D39: 45.01 | E39: 75 | F39: 0.52 | G39: 75 | I39: 44.27 | J39: 162 | K39: 44.84 | L39: 72 | M39: 0.57 | N39: 72 | O39: =IF(P39<>"",A39,"") -> 35 | P39: =IF((AND(B39<=D39,I39<=K39,B39<>"",C39<>"",D39<>"",I39<>"",J39<>"",K39<>"")),"OK",IF(AND(B40="",C40="",D40="",I39="",J39="",K39=""),"","Error")) -> OK
A40: 36 | B40: 43.86 | C40: 84 | D40: 44.74 | E40: 174 | F40: 0.88 | G40: 174 | I40: 44.21 | J40: 76 | K40: 44.95 | L40: 166 | M40: 0.74 | N40: 166 | O40: =IF(P40<>"",A40,"") -> 36 | P40: =IF((AND(B40<=D40,I40<=K40,B40<>"",C40<>"",D40<>"",I40<>"",J40<>"",K40<>"")),"OK",IF(AND(B41="",C41="",D41="",I40="",J40="",K40=""),"","Error")) -> OK
A41: 37 | B41: 46.29 | C41: 26 | D41: 47.31 | E41: 116 | F41: 1.02 | G41: 116 | I41: 46.44 | J41: 8 | K41: 46.68 | L41: 98 | M41: 0.24 | N41: 98 | O41: =IF(P41<>"",A41,"") -> 37 | P41: =IF((AND(B41<=D41,I41<=K41,B41<>"",C41<>"",D41<>"",I41<>"",J41<>"",K41<>"")),"OK",IF(AND(B42="",C42="",D42="",I41="",J41="",K41=""),"","Error")) -> OK
A42: 38 | B42: 44.53 | C42: 173 | D42: 45.97 | E42: 83 | F42: 1.44 | G42: 83 | I42: 44.78 | J42: 179 | K42: 46 | L42: 89 | M42: 1.22 | N42: 89 | O42: =IF(P42<>"",A42,"") -> 38 | P42: =IF((AND(B42<=D42,I42<=K42,B42<>"",C42<>"",D42<>"",I42<>"",J42<>"",K42<>"")),"OK",IF(AND(B43="",C43="",D43="",I42="",J42="",K42=""),"","Error")) -> OK
A43: 39 | B43: 44.05 | C43: 95 | D43: 44.84 | E43: 5 | F43: 0.79 | G43: 5 | I43: 44.03 | J43: 64 | K43: 44.47 | L43: 154 | M43: 0.44 | N43: 154 | O43: =IF(P43<>"",A43,"") -> 39 | P43: =IF((AND(B43<=D43,I43<=K43,B43<>"",C43<>"",D43<>"",I43<>"",J43<>"",K43<>"")),"OK",IF(AND(B44="",C44="",D44="",I43="",J43="",K43=""),"","Error")) -> OK
A44: 40 | B44: 44.3 | C44: 68 | D44: 44.86 | E44: 158 | F44: 0.56 | G44: 158 | I44: 43.88 | J44: 31 | K44: 44.41 | L44: 121 | M44: 0.53 | N44: 121 | O44: =IF(P44<>"",A44,"") -> 40 | P44: =IF((AND(B44<=D44,I44<=K44,B44<>"",C44<>"",D44<>"",I44<>"",J44<>"",K44<>"")),"OK",IF(AND(B45="",C45="",D45="",I44="",J44="",K44=""),"","Error")) -> OK
A45: 41 | B45: 43.8 | C45: 102 | D45: 45.03 | E45: 12 | F45: 1.23 | G45: 12 | I45: 44.44 | J45: 110 | K45: 45.49 | L45: 20 | M45: 1.05 | N45: 20 | O45: =IF(P45<>"",A45,"") -> 41 | P45: =IF((AND(B45<=D45,I45<=K45,B45<>"",C45<>"",D45<>"",I45<>"",J45<>"",K45<>"")),"OK",IF(AND(B46="",C46="",D46="",I45="",J45="",K45=""),"","Error")) -> OK
A46: 42 | B46: 42.32 | C46: 104 | D46: 42.91 | E46: 14 | F46: 0.59 | G46: 14 | I46: 42.34 | J46: 78 | K46: 42.88 | L46: 168 | M46: 0.54 | N46: 168 | O46: =IF(P46<>"",A46,"") -> 42 | P46: =IF((AND(B46<=D46,I46<=K46,B46<>"",C46<>"",D46<>"",I46<>"",J46<>"",K46<>"")),"OK",IF(AND(B47="",C47="",D47="",I46="",J46="",K46=""),"","Error")) -> OK
A47: 43 | B47: 45.47 | C47: 158 | D47: 51.79 | E47: 68 | F47: 6.32 | G47: 68 | I47: 45.08 | J47: 153 | K47: 51.72 | L47: 63 | M47: 6.64 | N47: 63 | O47: =IF(P47<>"",A47,"") -> 43 | P47: =IF((AND(B47<=D47,I47<=K47,B47<>"",C47<>"",D47<>"",I47<>"",J47<>"",K47<>"")),"OK",IF(AND(B48="",C48="",D48="",I47="",J47="",K47=""),"","Error")) -> OK
A48: 44 | B48: 46.02 | C48: 140 | D48: 48.66 | E48: 50 | F48: 2.64 | G48: 50 | I48: 46.16 | J48: 139 | K48: 49.24 | L48: 49 | M48: 3.08 | N48: 49 | O48: =IF(P48<>"",A48,"") -> 44 | P48: =IF((AND(B48<=D48,I48<=K48,B48<>"",C48<>"",D48<>"",I48<>"",J48<>"",K48<>"")),"OK",IF(AND(B49="",C49="",D49="",I48="",J48="",K48=""),"","Error")) -> OK
A49: 45 | B49: 43.1 | C49: 1 | D49: 44.55 | E49: 91 | F49: 1.45 | G49: 91 | I49: 43.11 | J49: 0 | K49: 44.53 | L49: 90 | M49: 1.42 | N49: 90 | O49: =IF(P49<>"",A49,"") -> 45 | P49: =IF((AND(B49<=D49,I49<=K49,B49<>"",C49<>"",D49<>"",I49<>"",J49<>"",K49<>"")),"OK",IF(AND(B50="",C50="",D50="",I49="",J49="",K49=""),"","Error")) -> OK
A50: 46 | B50: 45.33 | C50: 96 | D50: 45.92 | E50: 6 | F50: 0.59 | G50: 6 | I50: 45.6 | J50: 102 | K50: 46.17 | L50: 12 | M50: 0.57 | N50: 12 | O50: =IF(P50<>"",A50,"") -> 46 | P50: =IF((AND(B50<=D50,I50<=K50,B50<>"",C50<>"",D50<>"",I50<>"",J50<>"",K50<>"")),"OK",IF(AND(B51="",C51="",D51="",I50="",J50="",K50=""),"","Error")) -> OK
A51: 47 | B51: 45.22 | C51: 153 | D51: 45.94 | E51: 63 | F51: 0.72 | G51: 63 | I51: 45.06 | J51: 163 | K51: 45.7 | L51: 73 | M51: 0.64 | N51: 73 | O51: =IF(P51<>"",A51,"") -> 47 | P51: =IF((AND(B51<=D51,I51<=K51,B51<>"",C51<>"",D51<>"",I51<>"",J51<>"",K51<>"")),"OK",IF(AND(B52="",C52="",D52="",I51="",J51="",K51=""),"","Error")) -> OK
A52: 48 | B52: 44.1 | C52: 11 | D52: 45.6 | E52: 101 | F52: 1.5 | G52: 101 | I52: 44.26 | J52: 14 | K52: 46.43 | L52: 104 | M52: 2.17 | N52: 104 | O52: =IF(P52<>"",A52,"") -> 48 | P52: =IF((AND(B52<=D52,I52<=K52,B52<>"",C52<>"",D52<>"",I52<>"",J52<>"",K52<>"")),"OK",IF(AND(B53="",C53="",D53="",I52="",J52="",K52=""),"","Error")) -> OK
A53: 49 | B53: 43.13 | C53: 38 | D53: 43.75 | E53: 128 | F53: 0.62 | G53: 128 | I53: 42.96 | J53: 27 | K53: 43.96 | L53: 117 | M53: 1 | N53: 117 | O53: =IF(P53<>"",A53,"") -> 49 | P53: =IF((AND(B53<=D53,I53<=K53,B53<>"",C53<>"",D53<>"",I53<>"",J53<>"",K53<>"")),"OK",IF(AND(B54="",C54="",D54="",I53="",J53="",K53=""),"","Error")) -> OK
A54: 50 | B54: 44.28 | C54: 145 | D54: 44.84 | E54: 55 | F54: 0.56 | G54: 55 | I54: 44.24 | J54: 145 | K54: 44.99 | L54: 55 | M54: 0.75 | N54: 55 | O54: =IF(P54<>"",A54,"") -> 50 | P54: =IF((AND(B54<=D54,I54<=K54,B54<>"",C54<>"",D54<>"",I54<>"",J54<>"",K54<>"")),"OK",IF(AND(B55="",C55="",D55="",I54="",J54="",K54=""),"","Error")) -> OK
A55: 51 | B55: 43.07 | C55: 114 | D55: 43.39 | E55: 24 | F55: 0.32 | G55: 24 | I55: 43.19 | J55: 110 | K55: 43.32 | L55: 20 | M55: 0.13 | N55: 20 | O55: =IF(P55<>"",A55,"") -> 51 | P55: =IF((AND(B55<=D55,I55<=K55,B55<>"",C55<>"",D55<>"",I55<>"",J55<>"",K55<>"")),"OK",IF(AND(B56="",C56="",D56="",I55="",J55="",K55=""),"","Error")) -> OK
A56: 52 | B56: 44.42 | C56: 58 | D56: 44.72 | E56: 148 | F56: 0.3 | G56: 148 | I56: 44.23 | J56: 34 | K56: 44.61 | L56: 124 | M56: 0.38 | N56: 124 | O56: =IF(P56<>"",A56,"") -> 52 | P56: =IF((AND(B56<=D56,I56<=K56,B56<>"",C56<>"",D56<>"",I56<>"",J56<>"",K56<>"")),"OK",IF(AND(B57="",C57="",D57="",I56="",J56="",K56=""),"","Error")) -> OK
A57: 53 | B57: 45.37 | C57: 180 | D57: 45.37 | E57: 90 | F57: 0 | G57: 90 | I57: 45.42 | J57: 180 | K57: 45.42 | L57: 90 | M57: 0 | N57: 90 | O57: =IF(P57<>"",A57,"") -> 53 | P57: =IF((AND(B57<=D57,I57<=K57,B57<>"",C57<>"",D57<>"",I57<>"",J57<>"",K57<>"")),"OK",IF(AND(B58="",C58="",D58="",I57="",J57="",K57=""),"","Error")) -> OK
A58: 54 | B58: 42.02 | C58: 32 | D58: 42.45 | E58: 122 | F58: 0.43 | G58: 122 | I58: 42.01 | J58: 21 | K58: 42.79 | L58: 111 | M58: 0.78 | N58: 111 | O58: =IF(P58<>"",A58,"") -> 54 | P58: =IF((AND(B58<=D58,I58<=K58,B58<>"",C58<>"",D58<>"",I58<>"",J58<>"",K58<>"")),"OK",IF(AND(B59="",C59="",D59="",I58="",J58="",K58=""),"","Error")) -> OK
A59: 55 | B59: 44.36 | C59: 96 | D59: 44.93 | E59: 6 | F59: 0.57 | G59: 6 | I59: 44.8 | J59: 43 | K59: 45 | L59: 133 | M59: 0.2 | N59: 133 | O59: =IF(P59<>"",A59,"") -> 55 | P59: =IF((AND(B59<=D59,I59<=K59,B59<>"",C59<>"",D59<>"",I59<>"",J59<>"",K59<>"")),"OK",IF(AND(B60="",C60="",D60="",I59="",J59="",K59=""),"","Error")) -> OK
A60: 56 | B60: 45.18 | C60: 141 | D60: 45.34 | E60: 51 | F60: 0.16 | G60: 51 | I60: 45.25 | J60: 0 | K60: 45.25 | L60: 90 | M60: 0 | N60: 90 | O60: =IF(P60<>"",A60,"") -> 56 | P60: =IF((AND(B60<=D60,I60<=K60,B60<>"",C60<>"",D60<>"",I60<>"",J60<>"",K60<>"")),"OK",IF(AND(B61="",C61="",D61="",I60="",J60="",K60=""),"","Error")) -> OK
A61: 57 | B61: 43.79 | C61: 76 | D61: 44.99 | E61: 166 | F61: 1.2 | G61: 166 | I61: 43.31 | J61: 63 | K61: 44.71 | L61: 153 | M61: 1.4 | N61: 153 | O61: =IF(P61<>"",A61,"") -> 57 | P61: =IF((AND(B61<=D61,I61<=K61,B61<>"",C61<>"",D61<>"",I61<>"",J61<>"",K61<>"")),"OK",IF(AND(B62="",C62="",D62="",I61="",J61="",K61=""),"","Error")) -> OK
A62: 58 | B62: 43.67 | C62: 34 | D62: 44.24 | E62: 124 | F62: 0.57 | G62: 124 | I62: 43.08 | J62: 45 | K62: 44.25 | L62: 135 | M62: 1.17 | N62: 135 | O62: =IF(P62<>"",A62,"") -> 58 | P62: =IF((AND(B62<=D62,I62<=K62,B62<>"",C62<>"",D62<>"",I62<>"",J62<>"",K62<>"")),"OK",IF(AND(B63="",C63="",D63="",I62="",J62="",K62=""),"","Error")) -> OK
A63: 59 | B63: 47.72 | C63: 160 | D63: 48.18 | E63: 70 | F63: 0.46 | G63: 70 | I63: 47.7 | J63: 159 | K63: 48.2 | L63: 69 | M63: 0.5 | N63: 69 | O63: =IF(P63<>"",A63,"") -> 59 | P63: =IF((AND(B63<=D63,I63<=K63,B63<>"",C63<>"",D63<>"",I63<>"",J63<>"",K63<>"")),"OK",IF(AND(B64="",C64="",D64="",I63="",J63="",K63=""),"","Error")) -> OK
A64: 60 | B64: 41.19 | C64: 112 | D64: 42.18 | E64: 22 | F64: 0.99 | G64: 22 | I64: 40.68 | J64: 114 | K64: 41.51 | L64: 24 | M64: 0.83 | N64: 24 | O64: =IF(P64<>"",A64,"") -> 60 | P64: =IF((AND(B64<=D64,I64<=K64,B64<>"",C64<>"",D64<>"",I64<>"",J64<>"",K64<>"")),"OK",IF(AND(B65="",C65="",D65="",I64="",J64="",K64=""),"","Error")) -> OK
A65: 61 | B65: 40.76 | C65: 77 | D65: 41.66 | E65: 167 | F65: 0.9 | G65: 167 | I65: 40.9 | J65: 65 | K65: 41.56 | L65: 155 | M65: 0.66 | N65: 155 | O65: =IF(P65<>"",A65,"") -> 61 | P65: =IF((AND(B65<=D65,I65<=K65,B65<>"",C65<>"",D65<>"",I65<>"",J65<>"",K65<>"")),"OK",IF(AND(B66="",C66="",D66="",I65="",J65="",K65=""),"","Error")) -> OK
A66: 62 | B66: 41.55 | C66: 115 | D66: 42.36 | E66: 25 | F66: 0.81 | G66: 25 | I66: 41.54 | J66: 103 | K66: 42.21 | L66: 13 | M66: 0.67 | N66: 13 | O66: =IF(P66<>"",A66,"") -> 62 | P66: =IF((AND(B66<=D66,I66<=K66,B66<>"",C66<>"",D66<>"",I66<>"",J66<>"",K66<>"")),"OK",IF(AND(B67="",C67="",D67="",I66="",J66="",K66=""),"","Error")) -> OK
A67: 63 | B67: 44.46 | C67: 127 | D67: 44.99 | E67: 37 | F67: 0.53 | G67: 37 | I67: 44.64 | J67: 0 | K67: 44.64 | L67: 90 | M67: 0 | N67: 90 | O67: =IF(P67<>"",A67,"") -> 63 | P67: =IF((AND(B67<=D67,I67<=K67,B67<>"",C67<>"",D67<>"",I67<>"",J67<>"",K67<>"")),"OK",IF(AND(B68="",C68="",D68="",I67="",J67="",K67=""),"","Error")) -> OK
A68: 64 | B68: 45.9 | C68: 50 | D68: 46.67 | E68: 140 | F68: 0.77 | G68: 140 | I68: 45.76 | J68: 39 | K68: 46.4 | L68: 129 | M68: 0.64 | N68: 129 | O68: =IF(P68<>"",A68,"") -> 64 | P68: =IF((AND(B68<=D68,I68<=K68,B68<>"",C68<>"",D68<>"",I68<>"",J68<>"",K68<>"")),"OK",IF(AND(B69="",C69="",D69="",I68="",J68="",K68=""),"","Error")) -> OK
A69: 65 | B69: 42.63 | C69: 82 | D69: 44.27 | E69: =IF(D69="","",IF(C69>90,C69-90,C69+90)) -> 172 | F69: 1.64 | G69: 172 | I69: 43.29 | J69: 77 | K69: 44.27 | L69: =IF(K69="","",IF(J69>90,J69-90,J69+90)) -> 167 | M69: 0.98 | N69: 167 | O69: =IF(P69<>"",A69,"") -> 65 | P69: =IF((AND(B69<=D69,I69<=K69,B69<>"",C69<>"",D69<>"",I69<>"",J69<>"",K69<>"")),"OK",IF(AND(B70="",C70="",D70="",I69="",J69="",K69=""),"","Error")) -> OK
A70: 66 | B70: 43.67 | C70: 16 | D70: 44.11 | E70: 106 | F70: =IF(B70="","",D70-B70) -> 0.44 | G70: =IF(E70="","",E70) -> 106 | I70: 43.6 | J70: 52 | K70: 43.94 | L70: 142 | M70: =IF(I70="","",K70-I70) -> 0.34 | N70: =IF(L70="","",L70) -> 142 | O70: =IF(P70<>"",A70,"") -> 66 | P70: =IF((AND(B70<=D70,I70<=K70,B70<>"",C70<>"",D70<>"",I70<>"",J70<>"",K70<>"")),"OK",IF(AND(B71="",C71="",D71="",I70="",J70="",K70=""),"","Error")) -> OK
A71: 67 | B71: 36.82 | C71: 12 | D71: 37.4 | E71: 102 | F71: 0.58 | G71: 102 | I71: 36.45 | J71: 19 | K71: 37.11 | L71: 109 | M71: 0.66 | N71: 109 | O71: =IF(P71<>"",A71,"") -> 67 | P71: =IF((AND(B71<=D71,I71<=K71,B71<>"",C71<>"",D71<>"",I71<>"",J71<>"",K71<>"")),"OK",IF(AND(B72="",C72="",D72="",I71="",J71="",K71=""),"","Error")) -> OK
A72: 68 | B72: 42.67 | C72: 135 | D72: 43.95 | E72: 45 | F72: 1.28 | G72: 45 | I72: 42.83 | J72: 118 | K72: 43.45 | L72: 28 | M72: 0.62 | N72: 28 | O72: =IF(P72<>"",A72,"") -> 68 | P72: =IF((AND(B72<=D72,I72<=K72,B72<>"",C72<>"",D72<>"",I72<>"",J72<>"",K72<>"")),"OK",IF(AND(B73="",C73="",D73="",I72="",J72="",K72=""),"","Error")) -> OK
A73: 69 | B73: 44.24 | C73: 102 | D73: 45.2 | E73: 12 | F73: 0.96 | G73: 12 | I73: 43.76 | J73: 96 | K73: 45 | L73: 6 | M73: 1.24 | N73: 6 | O73: =IF(P73<>"",A73,"") -> 69 | P73: =IF((AND(B73<=D73,I73<=K73,B73<>"",C73<>"",D73<>"",I73<>"",J73<>"",K73<>"")),"OK",IF(AND(B74="",C74="",D74="",I73="",J73="",K73=""),"","Error")) -> OK
A74: 70 | B74: 41.25 | C74: 9 | D74: 43.37 | E74: 99 | F74: 2.12 | G74: 99 | I74: 41.25 | J74: 9 | K74: 43.37 | L74: 99 | M74: 2.12 | N74: 99 | O74: =IF(P74<>"",A74,"") -> 70 | P74: =IF((AND(B74<=D74,I74<=K74,B74<>"",C74<>"",D74<>"",I74<>"",J74<>"",K74<>"")),"OK",IF(AND(B75="",C75="",D75="",I74="",J74="",K74=""),"","Error")) -> OK
A75: 71 | B75: 44.1 | C75: 169 | D75: 45.65 | E75: 79 | F75: 1.55 | G75: 79 | I75: 44.12 | J75: 170 | K75: 45.59 | L75: 80 | M75: 1.47 | N75: 80 | O75: =IF(P75<>"",A75,"") -> 71 | P75: =IF((AND(B75<=D75,I75<=K75,B75<>"",C75<>"",D75<>"",I75<>"",J75<>"",K75<>"")),"OK",IF(AND(B76="",C76="",D76="",I75="",J75="",K75=""),"","Error")) -> OK
A76: 72 | B76: 40.31 | C76: 44 | D76: 42.27 | E76: 134 | F76: 1.96 | G76: 134 | I76: 39.95 | J76: 40 | K76: 42.1 | L76: 130 | M76: 2.15 | N76: 130 | O76: =IF(P76<>"",A76,"") -> 72 | P76: =IF((AND(B76<=D76,I76<=K76,B76<>"",C76<>"",D76<>"",I76<>"",J76<>"",K76<>"")),"OK",IF(AND(B77="",C77="",D77="",I76="",J76="",K76=""),"","Error")) -> OK
A77: 73 | B77: 42.53 | C77: 123 | D77: 44.18 | E77: 33 | F77: 1.65 | G77: 33 | I77: 42.63 | J77: 113 | K77: 44.11 | L77: 23 | M77: 1.48 | N77: 23 | O77: =IF(P77<>"",A77,"") -> 73 | P77: =IF((AND(B77<=D77,I77<=K77,B77<>"",C77<>"",D77<>"",I77<>"",J77<>"",K77<>"")),"OK",IF(AND(B78="",C78="",D78="",I77="",J77="",K77=""),"","Error")) -> OK
A78: 74 | B78: 45.93 | C78: 177 | D78: 48.2 | E78: 87 | F78: 2.27 | G78: 87 | I78: 45.91 | J78: 179 | K78: 47.98 | L78: 89 | M78: 2.07 | N78: 89 | O78: =IF(P78<>"",A78,"") -> 74 | P78: =IF((AND(B78<=D78,I78<=K78,B78<>"",C78<>"",D78<>"",I78<>"",J78<>"",K78<>"")),"OK",IF(AND(B79="",C79="",D79="",I78="",J78="",K78=""),"","Error")) -> OK
A79: 75 | B79: 43.31 | C79: 4 | D79: 47.56 | E79: 94 | F79: 4.25 | G79: 94 | I79: 43.1 | J79: 1 | K79: 47.11 | L79: 91 | M79: 4.01 | N79: 91 | O79: =IF(P79<>"",A79,"") -> 75 | P79: =IF((AND(B79<=D79,I79<=K79,B79<>"",C79<>"",D79<>"",I79<>"",J79<>"",K79<>"")),"OK",IF(AND(B80="",C80="",D80="",I79="",J79="",K79=""),"","Error")) -> OK
A80: 76 | B80: 42.06 | C80: 71 | D80: 44.57 | E80: 161 | F80: 2.51 | G80: 161 | I80: 42.14 | J80: 73 | K80: 44.75 | L80: 163 | M80: 2.61 | N80: 163 | O80: =IF(P80<>"",A80,"") -> 76 | P80: =IF((AND(B80<=D80,I80<=K80,B80<>"",C80<>"",D80<>"",I80<>"",J80<>"",K80<>"")),"OK",IF(AND(B81="",C81="",D81="",I80="",J80="",K80=""),"","Error")) -> OK
A81: 77 | B81: 42.75 | C81: 53 | D81: 44.57 | E81: =IF(D81="","",IF(C81>90,C81-90,C81+90)) -> 143 | F81: 1.82 | G81: 143 | I81: 42.8 | J81: 50 | K81: 44.89 | L81: =IF(K81="","",IF(J81>90,J81-90,J81+90)) -> 140 | M81: 2.09 | N81: 140 | O81: =IF(P81<>"",A81,"") -> 77 | P81: =IF((AND(B81<=D81,I81<=K81,B81<>"",C81<>"",D81<>"",I81<>"",J81<>"",K81<>"")),"OK",IF(AND(B82="",C82="",D82="",I81="",J81="",K81=""),"","Error")) -> OK
A82: 78 | B82: 39.57 | C82: 62 | D82: 41.05 | E82: =IF(D82="","",IF(C82>90,C82-90,C82+90)) -> 152 | F82: 1.48 | G82: 152 | I82: 39.36 | J82: 57 | K82: 41.31 | L82: =IF(K82="","",IF(J82>90,J82-90,J82+90)) -> 147 | M82: 1.95 | N82: 147 | O82: =IF(P82<>"",A82,"") -> 78 | P82: =IF((AND(B82<=D82,I82<=K82,B82<>"",C82<>"",D82<>"",I82<>"",J82<>"",K82<>"")),"OK",IF(AND(B83="",C83="",D83="",I82="",J82="",K82=""),"","Error")) -> OK
A83: 79 | B83: 43.8 | C83: 80 | D83: 45.01 | E83: =IF(D83="","",IF(C83>90,C83-90,C83+90)) -> 170 | F83: 1.21 | G83: 170 | I83: 44.08 | J83: 79 | K83: 45.05 | L83: =IF(K83="","",IF(J83>90,J83-90,J83+90)) -> 169 | M83: 0.97 | N83: 169 | O83: =IF(P83<>"",A83,"") -> 79 | P83: =IF((AND(B83<=D83,I83<=K83,B83<>"",C83<>"",D83<>"",I83<>"",J83<>"",K83<>"")),"OK",IF(AND(B84="",C84="",D84="",I83="",J83="",K83=""),"","Error")) -> OK
A84: 80 | E84: =IF(D84="","",IF(C84>90,C84-90,C84+90)) ->  | L84: =IF(K84="","",IF(J84>90,J84-90,J84+90)) ->  | O84: =IF(P84<>"",A84,"") ->  | P84: =IF((AND(B84<=D84,I84<=K84,B84<>"",C84<>"",D84<>"",I84<>"",J84<>"",K84<>"")),"OK",IF(AND(B85="",C85="",D85="",I84="",J84="",K84=""),"","Error")) -> 
A85: 81 | E85: =IF(D85="","",IF(C85>90,C85-90,C85+90)) ->  | L85: =IF(K85="","",IF(J85>90,J85-90,J85+90)) ->  | O85: =IF(P85<>"",A85,"") ->  | P85: =IF((AND(B85<=D85,I85<=K85,B85<>"",C85<>"",D85<>"",I85<>"",J85<>"",K85<>"")),"OK",IF(AND(B86="",C86="",D86="",I85="",J85="",K85=""),"","Error")) -> 
A86: 82 | O86: =IF(P86<>"",A86,"") ->  | P86: =IF((AND(B86<=D86,I86<=K86,B86<>"",C86<>"",D86<>"",I86<>"",J86<>"",K86<>"")),"OK",IF(AND(B87="",C87="",D87="",I86="",J86="",K86=""),"","Error")) -> 
A87: 83 | O87: =IF(P87<>"",A87,"") ->  | P87: =IF((AND(B87<=D87,I87<=K87,B87<>"",C87<>"",D87<>"",I87<>"",J87<>"",K87<>"")),"OK",IF(AND(B88="",C88="",D88="",I87="",J87="",K87=""),"","Error")) -> 
A88: 84 | O88: =IF(P88<>"",A88,"") ->  | P88: =IF((AND(B88<=D88,I88<=K88,B88<>"",C88<>"",D88<>"",I88<>"",J88<>"",K88<>"")),"OK",IF(AND(B89="",C89="",D89="",I88="",J88="",K88=""),"","Error")) -> 
A89: 85 | O89: =IF(P89<>"",A89,"") ->  | P89: =IF((AND(B89<=D89,I89<=K89,B89<>"",C89<>"",D89<>"",I89<>"",J89<>"",K89<>"")),"OK",IF(AND(B90="",C90="",D90="",I89="",J89="",K89=""),"","Error")) -> 
A90: 86 | O90: =IF(P90<>"",A90,"") ->  | P90: =IF((AND(B90<=D90,I90<=K90,B90<>"",C90<>"",D90<>"",I90<>"",J90<>"",K90<>"")),"OK",IF(AND(B91="",C91="",D91="",I90="",J90="",K90=""),"","Error")) -> 
A91: 87 | O91: =IF(P91<>"",A91,"") ->  | P91: =IF((AND(B91<=D91,I91<=K91,B91<>"",C91<>"",D91<>"",I91<>"",J91<>"",K91<>"")),"OK",IF(AND(B92="",C92="",D92="",I91="",J91="",K91=""),"","Error")) -> 
A92: 88 | O92: =IF(P92<>"",A92,"") ->  | P92: =IF((AND(B92<=D92,I92<=K92,B92<>"",C92<>"",D92<>"",I92<>"",J92<>"",K92<>"")),"OK",IF(AND(B93="",C93="",D93="",I92="",J92="",K92=""),"","Error")) -> 
A93: 89 | O93: =IF(P93<>"",A93,"") ->  | P93: =IF((AND(B93<=D93,I93<=K93,B93<>"",C93<>"",D93<>"",I93<>"",J93<>"",K93<>"")),"OK",IF(AND(B94="",C94="",D94="",I93="",J93="",K93=""),"","Error")) -> 
A94: 90 | O94: =IF(P94<>"",A94,"") ->  | P94: =IF((AND(B94<=D94,I94<=K94,B94<>"",C94<>"",D94<>"",I94<>"",J94<>"",K94<>"")),"OK",IF(AND(B95="",C95="",D95="",I94="",J94="",K94=""),"","Error")) -> 
A95: 91 | O95: =IF(P95<>"",A95,"") ->  | P95: =IF((AND(B95<=D95,I95<=K95,B95<>"",C95<>"",D95<>"",I95<>"",J95<>"",K95<>"")),"OK",IF(AND(B96="",C96="",D96="",I95="",J95="",K95=""),"","Error")) -> 
A96: 92 | O96: =IF(P96<>"",A96,"") ->  | P96: =IF((AND(B96<=D96,I96<=K96,B96<>"",C96<>"",D96<>"",I96<>"",J96<>"",K96<>"")),"OK",IF(AND(B97="",C97="",D97="",I96="",J96="",K96=""),"","Error")) -> 
A97: 93 | O97: =IF(P97<>"",A97,"") ->  | P97: =IF((AND(B97<=D97,I97<=K97,B97<>"",C97<>"",D97<>"",I97<>"",J97<>"",K97<>"")),"OK",IF(AND(B98="",C98="",D98="",I97="",J97="",K97=""),"","Error")) -> 
A98: 94 | O98: =IF(P98<>"",A98,"") ->  | P98: =IF((AND(B98<=D98,I98<=K98,B98<>"",C98<>"",D98<>"",I98<>"",J98<>"",K98<>"")),"OK",IF(AND(B99="",C99="",D99="",I98="",J98="",K98=""),"","Error")) -> 
A99: 95 | O99: =IF(P99<>"",A99,"") ->  | P99: =IF((AND(B99<=D99,I99<=K99,B99<>"",C99<>"",D99<>"",I99<>"",J99<>"",K99<>"")),"OK",IF(AND(B100="",C100="",D100="",I99="",J99="",K99=""),"","Error")) -> 
A100: 96 | O100: =IF(P100<>"",A100,"") ->  | P100: =IF((AND(B100<=D100,I100<=K100,B100<>"",C100<>"",D100<>"",I100<>"",J100<>"",K100<>"")),"OK",IF(AND(B101="",C101="",D101="",I100="",J100="",K100=""),"","Error")) -> 
A101: 97 | O101: =IF(P101<>"",A101,"") ->  | P101: =IF((AND(B101<=D101,I101<=K101,B101<>"",C101<>"",D101<>"",I101<>"",J101<>"",K101<>"")),"OK",IF(AND(B102="",C102="",D102="",I101="",J101="",K101=""),"","Error")) -> 
A102: 98 | O102: =IF(P102<>"",A102,"") ->  | P102: =IF((AND(B102<=D102,I102<=K102,B102<>"",C102<>"",D102<>"",I102<>"",J102<>"",K102<>"")),"OK",IF(AND(B103="",C103="",D103="",I102="",J102="",K102=""),"","Error")) -> 
A103: 99 | O103: =IF(P103<>"",A103,"") ->  | P103: =IF((AND(B103<=D103,I103<=K103,B103<>"",C103<>"",D103<>"",I103<>"",J103<>"",K103<>"")),"OK",IF(AND(B104="",C104="",D104="",I103="",J103="",K103=""),"","Error")) -> 
A104: 100 | O104: =IF(P104<>"",A104,"") ->  | P104: =IF((AND(B104<=D104,I104<=K104,B104<>"",C104<>"",D104<>"",I104<>"",J104<>"",K104<>"")),"OK",IF(AND(B105="",C105="",D105="",I104="",J104="",K104=""),"","Error")) -> 
A105: 101 | O105: =IF(P105<>"",A105,"") ->  | P105: =IF((AND(B105<=D105,I105<=K105,B105<>"",C105<>"",D105<>"",I105<>"",J105<>"",K105<>"")),"OK",IF(AND(B106="",C106="",D106="",I105="",J105="",K105=""),"","Error")) -> 
A106: 102 | O106: =IF(P106<>"",A106,"") ->  | P106: =IF((AND(B106<=D106,I106<=K106,B106<>"",C106<>"",D106<>"",I106<>"",J106<>"",K106<>"")),"OK",IF(AND(B107="",C107="",D107="",I106="",J106="",K106=""),"","Error")) -> 
A107: 103 | O107: =IF(P107<>"",A107,"") ->  | P107: =IF((AND(B107<=D107,I107<=K107,B107<>"",C107<>"",D107<>"",I107<>"",J107<>"",K107<>"")),"OK",IF(AND(B108="",C108="",D108="",I107="",J107="",K107=""),"","Error")) -> 
A108: 104 | O108: =IF(P108<>"",A108,"") ->  | P108: =IF((AND(B108<=D108,I108<=K108,B108<>"",C108<>"",D108<>"",I108<>"",J108<>"",K108<>"")),"OK",IF(AND(B109="",C109="",D109="",I108="",J108="",K108=""),"","Error")) -> 
A109: 105 | O109: =IF(P109<>"",A109,"") ->  | P109: =IF((AND(B109<=D109,I109<=K109,B109<>"",C109<>"",D109<>"",I109<>"",J109<>"",K109<>"")),"OK",IF(AND(B110="",C110="",D110="",I109="",J109="",K109=""),"","Error")) -> 
A110: 106 | O110: =IF(P110<>"",A110,"") ->  | P110: =IF((AND(B110<=D110,I110<=K110,B110<>"",C110<>"",D110<>"",I110<>"",J110<>"",K110<>"")),"OK",IF(AND(B111="",C111="",D111="",I110="",J110="",K110=""),"","Error")) -> 
A111: 107 | O111: =IF(P111<>"",A111,"") ->  | P111: =IF((AND(B111<=D111,I111<=K111,B111<>"",C111<>"",D111<>"",I111<>"",J111<>"",K111<>"")),"OK",IF(AND(B112="",C112="",D112="",I111="",J111="",K111=""),"","Error")) -> 
A112: 108 | O112: =IF(P112<>"",A112,"") ->  | P112: =IF((AND(B112<=D112,I112<=K112,B112<>"",C112<>"",D112<>"",I112<>"",J112<>"",K112<>"")),"OK",IF(AND(B113="",C113="",D113="",I112="",J112="",K112=""),"","Error")) -> 
A113: 109 | O113: =IF(P113<>"",A113,"") ->  | P113: =IF((AND(B113<=D113,I113<=K113,B113<>"",C113<>"",D113<>"",I113<>"",J113<>"",K113<>"")),"OK",IF(AND(B114="",C114="",D114="",I113="",J113="",K113=""),"","Error")) -> 
A114: 110 | O114: =IF(P114<>"",A114,"") ->  | P114: =IF((AND(B114<=D114,I114<=K114,B114<>"",C114<>"",D114<>"",I114<>"",J114<>"",K114<>"")),"OK",IF(AND(B115="",C115="",D115="",I114="",J114="",K114=""),"","Error")) -> 
A115: 111 | O115: =IF(P115<>"",A115,"") ->  | P115: =IF((AND(B115<=D115,I115<=K115,B115<>"",C115<>"",D115<>"",I115<>"",J115<>"",K115<>"")),"OK",IF(AND(B116="",C116="",D116="",I115="",J115="",K115=""),"","Error")) -> 
A116: 112 | O116: =IF(P116<>"",A116,"") ->  | P116: =IF((AND(B116<=D116,I116<=K116,B116<>"",C116<>"",D116<>"",I116<>"",J116<>"",K116<>"")),"OK",IF(AND(B117="",C117="",D117="",I116="",J116="",K116=""),"","Error")) -> 
A117: 113 | O117: =IF(P117<>"",A117,"") ->  | P117: =IF((AND(B117<=D117,I117<=K117,B117<>"",C117<>"",D117<>"",I117<>"",J117<>"",K117<>"")),"OK",IF(AND(B118="",C118="",D118="",I117="",J117="",K117=""),"","Error")) -> 
A118: 114 | O118: =IF(P118<>"",A118,"") ->  | P118: =IF((AND(B118<=D118,I118<=K118,B118<>"",C118<>"",D118<>"",I118<>"",J118<>"",K118<>"")),"OK",IF(AND(B119="",C119="",D119="",I118="",J118="",K118=""),"","Error")) -> 
A119: 115 | O119: =IF(P119<>"",A119,"") ->  | P119: =IF((AND(B119<=D119,I119<=K119,B119<>"",C119<>"",D119<>"",I119<>"",J119<>"",K119<>"")),"OK",IF(AND(B120="",C120="",D120="",I119="",J119="",K119=""),"","Error")) -> 
A120: 116 | O120: =IF(P120<>"",A120,"") ->  | P120: =IF((AND(B120<=D120,I120<=K120,B120<>"",C120<>"",D120<>"",I120<>"",J120<>"",K120<>"")),"OK",IF(AND(B121="",C121="",D121="",I120="",J120="",K120=""),"","Error")) -> 
A121: 117 | O121: =IF(P121<>"",A121,"") ->  | P121: =IF((AND(B121<=D121,I121<=K121,B121<>"",C121<>"",D121<>"",I121<>"",J121<>"",K121<>"")),"OK",IF(AND(B122="",C122="",D122="",I121="",J121="",K121=""),"","Error")) -> 
A122: 118 | O122: =IF(P122<>"",A122,"") ->  | P122: =IF((AND(B122<=D122,I122<=K122,B122<>"",C122<>"",D122<>"",I122<>"",J122<>"",K122<>"")),"OK",IF(AND(B123="",C123="",D123="",I122="",J122="",K122=""),"","Error")) -> 
A123: 119 | O123: =IF(P123<>"",A123,"") ->  | P123: =IF((AND(B123<=D123,I123<=K123,B123<>"",C123<>"",D123<>"",I123<>"",J123<>"",K123<>"")),"OK",IF(AND(B124="",C124="",D124="",I123="",J123="",K123=""),"","Error")) -> 
A124: 120 | O124: =IF(P124<>"",A124,"") ->  | P124: =IF((AND(B124<=D124,I124<=K124,B124<>"",C124<>"",D124<>"",I124<>"",J124<>"",K124<>"")),"OK",IF(AND(B125="",C125="",D125="",I124="",J124="",K124=""),"","Error")) -> 
A125: 121 | O125: =IF(P125<>"",A125,"") ->  | P125: =IF((AND(B125<=D125,I125<=K125,B125<>"",C125<>"",D125<>"",I125<>"",J125<>"",K125<>"")),"OK",IF(AND(B126="",C126="",D126="",I125="",J125="",K125=""),"","Error")) -> 
A126: 122 | O126: =IF(P126<>"",A126,"") ->  | P126: =IF((AND(B126<=D126,I126<=K126,B126<>"",C126<>"",D126<>"",I126<>"",J126<>"",K126<>"")),"OK",IF(AND(B127="",C127="",D127="",I126="",J126="",K126=""),"","Error")) -> 
A127: 123 | O127: =IF(P127<>"",A127,"") ->  | P127: =IF((AND(B127<=D127,I127<=K127,B127<>"",C127<>"",D127<>"",I127<>"",J127<>"",K127<>"")),"OK",IF(AND(B128="",C128="",D128="",I127="",J127="",K127=""),"","Error")) -> 
A128: 124 | O128: =IF(P128<>"",A128,"") ->  | P128: =IF((AND(B128<=D128,I128<=K128,B128<>"",C128<>"",D128<>"",I128<>"",J128<>"",K128<>"")),"OK",IF(AND(B129="",C129="",D129="",I128="",J128="",K128=""),"","Error")) -> 
A129: 125 | O129: =IF(P129<>"",A129,"") ->  | P129: =IF((AND(B129<=D129,I129<=K129,B129<>"",C129<>"",D129<>"",I129<>"",J129<>"",K129<>"")),"OK",IF(AND(B130="",C130="",D130="",I129="",J129="",K129=""),"","Error")) -> 
A130: 126 | O130: =IF(P130<>"",A130,"") ->  | P130: =IF((AND(B130<=D130,I130<=K130,B130<>"",C130<>"",D130<>"",I130<>"",J130<>"",K130<>"")),"OK",IF(AND(B131="",C131="",D131="",I130="",J130="",K130=""),"","Error")) -> 
A131: 127 | O131: =IF(P131<>"",A131,"") ->  | P131: =IF((AND(B131<=D131,I131<=K131,B131<>"",C131<>"",D131<>"",I131<>"",J131<>"",K131<>"")),"OK",IF(AND(B132="",C132="",D132="",I131="",J131="",K131=""),"","Error")) -> 
A132: 128 | O132: =IF(P132<>"",A132,"") ->  | P132: =IF((AND(B132<=D132,I132<=K132,B132<>"",C132<>"",D132<>"",I132<>"",J132<>"",K132<>"")),"OK",IF(AND(B133="",C133="",D133="",I132="",J132="",K132=""),"","Error")) -> 
A133: 129 | O133: =IF(P133<>"",A133,"") ->  | P133: =IF((AND(B133<=D133,I133<=K133,B133<>"",C133<>"",D133<>"",I133<>"",J133<>"",K133<>"")),"OK",IF(AND(B134="",C134="",D134="",I133="",J133="",K133=""),"","Error")) -> 
A134: 130 | F134: =IF(B134="","",D134-B134) ->  | G134: =IF(E134="","",E134) ->  | M134: =IF(I134="","",K134-I134) ->  | N134: =IF(L134="","",L134) ->  | O134: =IF(P134<>"",A134,"") ->  | P134: =IF((AND(B134<=D134,I134<=K134,B134<>"",C134<>"",D134<>"",I134<>"",J134<>"",K134<>"")),"OK",IF(AND(B135="",C135="",D135="",I134="",J134="",K134=""),"","Error")) -> 
A135: 131 | O135: =IF(P135<>"",A135,"") ->  | P135: =IF((AND(B135<=D135,I135<=K135,B135<>"",C135<>"",D135<>"",I135<>"",J135<>"",K135<>"")),"OK",IF(AND(B136="",C136="",D136="",I135="",J135="",K135=""),"","Error")) -> 
A136: 132 | O136: =IF(P136<>"",A136,"") ->  | P136: =IF((AND(B136<=D136,I136<=K136,B136<>"",C136<>"",D136<>"",I136<>"",J136<>"",K136<>"")),"OK",IF(AND(B137="",C137="",D137="",I136="",J136="",K136=""),"","Error")) -> 
A137: 133 | O137: =IF(P137<>"",A137,"") ->  | P137: =IF((AND(B137<=D137,I137<=K137,B137<>"",C137<>"",D137<>"",I137<>"",J137<>"",K137<>"")),"OK",IF(AND(B138="",C138="",D138="",I137="",J137="",K137=""),"","Error")) -> 
A138: 134 | O138: =IF(P138<>"",A138,"") ->  | P138: =IF((AND(B138<=D138,I138<=K138,B138<>"",C138<>"",D138<>"",I138<>"",J138<>"",K138<>"")),"OK",IF(AND(B139="",C139="",D139="",I138="",J138="",K138=""),"","Error")) -> 
A139: 135 | O139: =IF(P139<>"",A139,"") ->  | P139: =IF((AND(B139<=D139,I139<=K139,B139<>"",C139<>"",D139<>"",I139<>"",J139<>"",K139<>"")),"OK",IF(AND(B140="",C140="",D140="",I139="",J139="",K139=""),"","Error")) -> 
A140: 136 | O140: =IF(P140<>"",A140,"") ->  | P140: =IF((AND(B140<=D140,I140<=K140,B140<>"",C140<>"",D140<>"",I140<>"",J140<>"",K140<>"")),"OK",IF(AND(B141="",C141="",D141="",I140="",J140="",K140=""),"","Error")) -> 
A141: 137 | O141: =IF(P141<>"",A141,"") ->  | P141: =IF((AND(B141<=D141,I141<=K141,B141<>"",C141<>"",D141<>"",I141<>"",J141<>"",K141<>"")),"OK",IF(AND(B142="",C142="",D142="",I141="",J141="",K141=""),"","Error")) -> 
A142: 138 | O142: =IF(P142<>"",A142,"") ->  | P142: =IF((AND(B142<=D142,I142<=K142,B142<>"",C142<>"",D142<>"",I142<>"",J142<>"",K142<>"")),"OK",IF(AND(B143="",C143="",D143="",I142="",J142="",K142=""),"","Error")) -> 
A143: 139 | O143: =IF(P143<>"",A143,"") ->  | P143: =IF((AND(B143<=D143,I143<=K143,B143<>"",C143<>"",D143<>"",I143<>"",J143<>"",K143<>"")),"OK",IF(AND(B144="",C144="",D144="",I143="",J143="",K143=""),"","Error")) -> 
A144: 140 | O144: =IF(P144<>"",A144,"") ->  | P144: =IF((AND(B144<=D144,I144<=K144,B144<>"",C144<>"",D144<>"",I144<>"",J144<>"",K144<>"")),"OK",IF(AND(B145="",C145="",D145="",I144="",J144="",K144=""),"","Error")) -> 
A145: 141 | O145: =IF(P145<>"",A145,"") ->  | P145: =IF((AND(B145<=D145,I145<=K145,B145<>"",C145<>"",D145<>"",I145<>"",J145<>"",K145<>"")),"OK",IF(AND(B146="",C146="",D146="",I145="",J145="",K145=""),"","Error")) -> 
A146: 142 | O146: =IF(P146<>"",A146,"") ->  | P146: =IF((AND(B146<=D146,I146<=K146,B146<>"",C146<>"",D146<>"",I146<>"",J146<>"",K146<>"")),"OK",IF(AND(B147="",C147="",D147="",I146="",J146="",K146=""),"","Error")) -> 
A147: 143 | O147: =IF(P147<>"",A147,"") ->  | P147: =IF((AND(B147<=D147,I147<=K147,B147<>"",C147<>"",D147<>"",I147<>"",J147<>"",K147<>"")),"OK",IF(AND(B148="",C148="",D148="",I147="",J147="",K147=""),"","Error")) -> 
A148: 144 | O148: =IF(P148<>"",A148,"") ->  | P148: =IF((AND(B148<=D148,I148<=K148,B148<>"",C148<>"",D148<>"",I148<>"",J148<>"",K148<>"")),"OK",IF(AND(B149="",C149="",D149="",I148="",J148="",K148=""),"","Error")) -> 
A149: 145 | E149: =IF(D149="","",IF(C149>90,C149-90,C149+90)) ->  | L149: =IF(K149="","",IF(J149>90,J149-90,J149+90)) ->  | O149: =IF(P149<>"",A149,"") ->  | P149: =IF((AND(B149<=D149,I149<=K149,B149<>"",C149<>"",D149<>"",I149<>"",J149<>"",K149<>"")),"OK",IF(AND(B150="",C150="",D150="",I149="",J149="",K149=""),"","Error")) -> 
A150: 146 | O150: =IF(P150<>"",A150,"") ->  | P150: =IF((AND(B150<=D150,I150<=K150,B150<>"",C150<>"",D150<>"",I150<>"",J150<>"",K150<>"")),"OK",IF(AND(B151="",C151="",D151="",I150="",J150="",K150=""),"","Error")) -> 
A151: 147 | O151: =IF(P151<>"",A151,"") ->  | P151: =IF((AND(B151<=D151,I151<=K151,B151<>"",C151<>"",D151<>"",I151<>"",J151<>"",K151<>"")),"OK",IF(AND(B152="",C152="",D152="",I151="",J151="",K151=""),"","Error")) -> 
A152: 148 | O152: =IF(P152<>"",A152,"") ->  | P152: =IF((AND(B152<=D152,I152<=K152,B152<>"",C152<>"",D152<>"",I152<>"",J152<>"",K152<>"")),"OK",IF(AND(B153="",C153="",D153="",I152="",J152="",K152=""),"","Error")) -> 
A153: 149 | O153: =IF(P153<>"",A153,"") ->  | P153: =IF((AND(B153<=D153,I153<=K153,B153<>"",C153<>"",D153<>"",I153<>"",J153<>"",K153<>"")),"OK",IF(AND(B154="",C154="",D154="",I153="",J153="",K153=""),"","Error")) -> 
A154: 150 | O154: =IF(P154<>"",A154,"") ->  | P154: =IF((AND(B154<=D154,I154<=K154,B154<>"",C154<>"",D154<>"",I154<>"",J154<>"",K154<>"")),"OK",IF(AND(B155="",C155="",D155="",I154="",J154="",K154=""),"","Error")) -> 
A155: 151 | O155: =IF(P155<>"",A155,"") ->  | P155: =IF((AND(B155<=D155,I155<=K155,B155<>"",C155<>"",D155<>"",I155<>"",J155<>"",K155<>"")),"OK",IF(AND(B156="",C156="",D156="",I155="",J155="",K155=""),"","Error")) -> 
A156: 152 | O156: =IF(P156<>"",A156,"") ->  | P156: =IF((AND(B156<=D156,I156<=K156,B156<>"",C156<>"",D156<>"",I156<>"",J156<>"",K156<>"")),"OK",IF(AND(B157="",C157="",D157="",I156="",J156="",K156=""),"","Error")) -> 
A157: 153 | O157: =IF(P157<>"",A157,"") ->  | P157: =IF((AND(B157<=D157,I157<=K157,B157<>"",C157<>"",D157<>"",I157<>"",J157<>"",K157<>"")),"OK",IF(AND(B158="",C158="",D158="",I157="",J157="",K157=""),"","Error")) -> 
A158: 154 | O158: =IF(P158<>"",A158,"") ->  | P158: =IF((AND(B158<=D158,I158<=K158,B158<>"",C158<>"",D158<>"",I158<>"",J158<>"",K158<>"")),"OK",IF(AND(B159="",C159="",D159="",I158="",J158="",K158=""),"","Error")) -> 
A159: 155 | O159: =IF(P159<>"",A159,"") ->  | P159: =IF((AND(B159<=D159,I159<=K159,B159<>"",C159<>"",D159<>"",I159<>"",J159<>"",K159<>"")),"OK",IF(AND(B160="",C160="",D160="",I159="",J159="",K159=""),"","Error")) -> 
A160: 156 | O160: =IF(P160<>"",A160,"") ->  | P160: =IF((AND(B160<=D160,I160<=K160,B160<>"",C160<>"",D160<>"",I160<>"",J160<>"",K160<>"")),"OK",IF(AND(B161="",C161="",D161="",I160="",J160="",K160=""),"","Error")) -> 
A161: 157 | O161: =IF(P161<>"",A161,"") ->  | P161: =IF((AND(B161<=D161,I161<=K161,B161<>"",C161<>"",D161<>"",I161<>"",J161<>"",K161<>"")),"OK",IF(AND(B162="",C162="",D162="",I161="",J161="",K161=""),"","Error")) -> 
A162: 158 | O162: =IF(P162<>"",A162,"") ->  | P162: =IF((AND(B162<=D162,I162<=K162,B162<>"",C162<>"",D162<>"",I162<>"",J162<>"",K162<>"")),"OK",IF(AND(B163="",C163="",D163="",I162="",J162="",K162=""),"","Error")) -> 
A163: 159 | O163: =IF(P163<>"",A163,"") ->  | P163: =IF((AND(B163<=D163,I163<=K163,B163<>"",C163<>"",D163<>"",I163<>"",J163<>"",K163<>"")),"OK",IF(AND(B164="",C164="",D164="",I163="",J163="",K163=""),"","Error")) -> 
A164: 160 | O164: =IF(P164<>"",A164,"") ->  | P164: =IF((AND(B164<=D164,I164<=K164,B164<>"",C164<>"",D164<>"",I164<>"",J164<>"",K164<>"")),"OK",IF(AND(B165="",C165="",D165="",I164="",J164="",K164=""),"","Error")) -> 
A165: 161 | O165: =IF(P165<>"",A165,"") ->  | P165: =IF((AND(B165<=D165,I165<=K165,B165<>"",C165<>"",D165<>"",I165<>"",J165<>"",K165<>"")),"OK",IF(AND(B166="",C166="",D166="",I165="",J165="",K165=""),"","Error")) -> 
A166: 162 | O166: =IF(P166<>"",A166,"") ->  | P166: =IF((AND(B166<=D166,I166<=K166,B166<>"",C166<>"",D166<>"",I166<>"",J166<>"",K166<>"")),"OK",IF(AND(B167="",C167="",D167="",I166="",J166="",K166=""),"","Error")) -> 
A167: 163 | O167: =IF(P167<>"",A167,"") ->  | P167: =IF((AND(B167<=D167,I167<=K167,B167<>"",C167<>"",D167<>"",I167<>"",J167<>"",K167<>"")),"OK",IF(AND(B168="",C168="",D168="",I167="",J167="",K167=""),"","Error")) -> 
A168: 164 | O168: =IF(P168<>"",A168,"") ->  | P168: =IF((AND(B168<=D168,I168<=K168,B168<>"",C168<>"",D168<>"",I168<>"",J168<>"",K168<>"")),"OK",IF(AND(B169="",C169="",D169="",I168="",J168="",K168=""),"","Error")) -> 
A169: 165 | O169: =IF(P169<>"",A169,"") ->  | P169: =IF((AND(B169<=D169,I169<=K169,B169<>"",C169<>"",D169<>"",I169<>"",J169<>"",K169<>"")),"OK",IF(AND(B170="",C170="",D170="",I169="",J169="",K169=""),"","Error")) -> 
A170: 166 | O170: =IF(P170<>"",A170,"") ->  | P170: =IF((AND(B170<=D170,I170<=K170,B170<>"",C170<>"",D170<>"",I170<>"",J170<>"",K170<>"")),"OK",IF(AND(B171="",C171="",D171="",I170="",J170="",K170=""),"","Error")) -> 
A171: 167 | O171: =IF(P171<>"",A171,"") ->  | P171: =IF((AND(B171<=D171,I171<=K171,B171<>"",C171<>"",D171<>"",I171<>"",J171<>"",K171<>"")),"OK",IF(AND(B172="",C172="",D172="",I171="",J171="",K171=""),"","Error")) -> 
A172: 168 | O172: =IF(P172<>"",A172,"") ->  | P172: =IF((AND(B172<=D172,I172<=K172,B172<>"",C172<>"",D172<>"",I172<>"",J172<>"",K172<>"")),"OK",IF(AND(B173="",C173="",D173="",I172="",J172="",K172=""),"","Error")) -> 
A173: 169 | O173: =IF(P173<>"",A173,"") ->  | P173: =IF((AND(B173<=D173,I173<=K173,B173<>"",C173<>"",D173<>"",I173<>"",J173<>"",K173<>"")),"OK",IF(AND(B174="",C174="",D174="",I173="",J173="",K173=""),"","Error")) -> 
A174: 170 | O174: =IF(P174<>"",A174,"") ->  | P174: =IF((AND(B174<=D174,I174<=K174,B174<>"",C174<>"",D174<>"",I174<>"",J174<>"",K174<>"")),"OK",IF(AND(B175="",C175="",D175="",I174="",J174="",K174=""),"","Error")) -> 
A175: 171 | O175: =IF(P175<>"",A175,"") ->  | P175: =IF((AND(B175<=D175,I175<=K175,B175<>"",C175<>"",D175<>"",I175<>"",J175<>"",K175<>"")),"OK",IF(AND(B176="",C176="",D176="",I175="",J175="",K175=""),"","Error")) -> 
A176: 172 | O176: =IF(P176<>"",A176,"") ->  | P176: =IF((AND(B176<=D176,I176<=K176,B176<>"",C176<>"",D176<>"",I176<>"",J176<>"",K176<>"")),"OK",IF(AND(B177="",C177="",D177="",I176="",J176="",K176=""),"","Error")) -> 
A177: 173 | O177: =IF(P177<>"",A177,"") ->  | P177: =IF((AND(B177<=D177,I177<=K177,B177<>"",C177<>"",D177<>"",I177<>"",J177<>"",K177<>"")),"OK",IF(AND(B178="",C178="",D178="",I177="",J177="",K177=""),"","Error")) -> 
A178: 174 | O178: =IF(P178<>"",A178,"") ->  | P178: =IF((AND(B178<=D178,I178<=K178,B178<>"",C178<>"",D178<>"",I178<>"",J178<>"",K178<>"")),"OK",IF(AND(B179="",C179="",D179="",I178="",J178="",K178=""),"","Error")) -> 
A179: 175 | O179: =IF(P179<>"",A179,"") ->  | P179: =IF((AND(B179<=D179,I179<=K179,B179<>"",C179<>"",D179<>"",I179<>"",J179<>"",K179<>"")),"OK",IF(AND(B180="",C180="",D180="",I179="",J179="",K179=""),"","Error")) -> 
A180: 176 | O180: =IF(P180<>"",A180,"") ->  | P180: =IF((AND(B180<=D180,I180<=K180,B180<>"",C180<>"",D180<>"",I180<>"",J180<>"",K180<>"")),"OK",IF(AND(B181="",C181="",D181="",I180="",J180="",K180=""),"","Error")) -> 
A181: 177 | O181: =IF(P181<>"",A181,"") ->  | P181: =IF((AND(B181<=D181,I181<=K181,B181<>"",C181<>"",D181<>"",I181<>"",J181<>"",K181<>"")),"OK",IF(AND(B182="",C182="",D182="",I181="",J181="",K181=""),"","Error")) -> 
A182: 178 | O182: =IF(P182<>"",A182,"") ->  | P182: =IF((AND(B182<=D182,I182<=K182,B182<>"",C182<>"",D182<>"",I182<>"",J182<>"",K182<>"")),"OK",IF(AND(B183="",C183="",D183="",I182="",J182="",K182=""),"","Error")) -> 
A183: 179 | O183: =IF(P183<>"",A183,"") ->  | P183: =IF((AND(B183<=D183,I183<=K183,B183<>"",C183<>"",D183<>"",I183<>"",J183<>"",K183<>"")),"OK",IF(AND(B184="",C184="",D184="",I183="",J183="",K183=""),"","Error")) -> 
A184: 180 | O184: =IF(P184<>"",A184,"") ->  | P184: =IF((AND(B184<=D184,I184<=K184,B184<>"",C184<>"",D184<>"",I184<>"",J184<>"",K184<>"")),"OK",IF(AND(B185="",C185="",D185="",I184="",J184="",K184=""),"","Error")) -> 
A185: 181 | O185: =IF(P185<>"",A185,"") ->  | P185: =IF((AND(B185<=D185,I185<=K185,B185<>"",C185<>"",D185<>"",I185<>"",J185<>"",K185<>"")),"OK",IF(AND(B186="",C186="",D186="",I185="",J185="",K185=""),"","Error")) -> 
A186: 182 | O186: =IF(P186<>"",A186,"") ->  | P186: =IF((AND(B186<=D186,I186<=K186,B186<>"",C186<>"",D186<>"",I186<>"",J186<>"",K186<>"")),"OK",IF(AND(B187="",C187="",D187="",I186="",J186="",K186=""),"","Error")) -> 
A187: 183 | O187: =IF(P187<>"",A187,"") ->  | P187: =IF((AND(B187<=D187,I187<=K187,B187<>"",C187<>"",D187<>"",I187<>"",J187<>"",K187<>"")),"OK",IF(AND(B188="",C188="",D188="",I187="",J187="",K187=""),"","Error")) -> 
A188: 184 | O188: =IF(P188<>"",A188,"") ->  | P188: =IF((AND(B188<=D188,I188<=K188,B188<>"",C188<>"",D188<>"",I188<>"",J188<>"",K188<>"")),"OK",IF(AND(B189="",C189="",D189="",I188="",J188="",K188=""),"","Error")) -> 
A189: 185 | O189: =IF(P189<>"",A189,"") ->  | P189: =IF((AND(B189<=D189,I189<=K189,B189<>"",C189<>"",D189<>"",I189<>"",J189<>"",K189<>"")),"OK",IF(AND(B190="",C190="",D190="",I189="",J189="",K189=""),"","Error")) -> 
A190: 186 | O190: =IF(P190<>"",A190,"") ->  | P190: =IF((AND(B190<=D190,I190<=K190,B190<>"",C190<>"",D190<>"",I190<>"",J190<>"",K190<>"")),"OK",IF(AND(B191="",C191="",D191="",I190="",J190="",K190=""),"","Error")) -> 
A191: 187 | O191: =IF(P191<>"",A191,"") ->  | P191: =IF((AND(B191<=D191,I191<=K191,B191<>"",C191<>"",D191<>"",I191<>"",J191<>"",K191<>"")),"OK",IF(AND(B192="",C192="",D192="",I191="",J191="",K191=""),"","Error")) -> 
A192: 188 | O192: =IF(P192<>"",A192,"") ->  | P192: =IF((AND(B192<=D192,I192<=K192,B192<>"",C192<>"",D192<>"",I192<>"",J192<>"",K192<>"")),"OK",IF(AND(B193="",C193="",D193="",I192="",J192="",K192=""),"","Error")) -> 
A193: 189 | O193: =IF(P193<>"",A193,"") ->  | P193: =IF((AND(B193<=D193,I193<=K193,B193<>"",C193<>"",D193<>"",I193<>"",J193<>"",K193<>"")),"OK",IF(AND(B194="",C194="",D194="",I193="",J193="",K193=""),"","Error")) -> 
A194: 190 | O194: =IF(P194<>"",A194,"") ->  | P194: =IF((AND(B194<=D194,I194<=K194,B194<>"",C194<>"",D194<>"",I194<>"",J194<>"",K194<>"")),"OK",IF(AND(B195="",C195="",D195="",I194="",J194="",K194=""),"","Error")) -> 
A195: 191 | O195: =IF(P195<>"",A195,"") ->  | P195: =IF((AND(B195<=D195,I195<=K195,B195<>"",C195<>"",D195<>"",I195<>"",J195<>"",K195<>"")),"OK",IF(AND(B196="",C196="",D196="",I195="",J195="",K195=""),"","Error")) -> 
A196: 192 | O196: =IF(P196<>"",A196,"") ->  | P196: =IF((AND(B196<=D196,I196<=K196,B196<>"",C196<>"",D196<>"",I196<>"",J196<>"",K196<>"")),"OK",IF(AND(B197="",C197="",D197="",I196="",J196="",K196=""),"","Error")) -> 
A197: 193 | O197: =IF(P197<>"",A197,"") ->  | P197: =IF((AND(B197<=D197,I197<=K197,B197<>"",C197<>"",D197<>"",I197<>"",J197<>"",K197<>"")),"OK",IF(AND(B198="",C198="",D198="",I197="",J197="",K197=""),"","Error")) -> 
A198: 194 | F198: =IF(B198="","",D198-B198) ->  | G198: =IF(E198="","",E198) ->  | M198: =IF(I198="","",K198-I198) ->  | N198: =IF(L198="","",L198) ->  | O198: =IF(P198<>"",A198,"") ->  | P198: =IF((AND(B198<=D198,I198<=K198,B198<>"",C198<>"",D198<>"",I198<>"",J198<>"",K198<>"")),"OK",IF(AND(B199="",C199="",D199="",I198="",J198="",K198=""),"","Error")) -> 
A199: 195 | O199: =IF(P199<>"",A199,"") ->  | P199: =IF((AND(B199<=D199,I199<=K199,B199<>"",C199<>"",D199<>"",I199<>"",J199<>"",K199<>"")),"OK",IF(AND(B200="",C200="",D200="",I199="",J199="",K199=""),"","Error")) -> 
A200: 196 | O200: =IF(P200<>"",A200,"") ->  | P200: =IF((AND(B200<=D200,I200<=K200,B200<>"",C200<>"",D200<>"",I200<>"",J200<>"",K200<>"")),"OK",IF(AND(B201="",C201="",D201="",I200="",J200="",K200=""),"","Error")) -> 
... 2804 more rows

Sheet Figure
Y3: N = | Z3: ='Data_Input-2'!T5 -> 78
D33: Centroid : | E33: =OD!AG5 -> 0.05803073923 | F33: @ | G33: =OD!AH5 -> 124.9215238 | H33: ± | I33: =OD!AG6 -> 0.419258024 | L33: Centroid : | M33: =OS!AG5 -> 0.153892355 | N33: @ | O33: =OS!AH5 -> 121.3921136 | P33: ± | Q33: =OS!AG6 -> 0.3857741263
D34: Mean Absolute: | E34: =OD!AG8 -> 0.3580642247 | F34: ± | G34: =OD!AG9 -> 0.2204340517 | L34: Mean Absolute: | M34: =OS!AG8 -> 0.3473883024 | N34: ± | O34: =OS!AG9 -> 0.2230671044
M41: Adjusted scale for each ring: | Q41: 0.5 | R41: D
M43: Adjusted SD: | Q43: 2

Sheet OD (hidden)
B1: Preoperative corneal astigmatism | F1: Postoperative corneal astigmatism | J1: Pre-op Ast | L1: Post-op Ast | N1: SIA IOLM | W1: =STDEV(S3:S3002)*AB1 -> 0.8908268225 | X1: =STDEV(V3:V3002)*AB1 -> 1.029063914 | Y1: =STDEV(S3:S3002)*AB1 -> 0.8908268225 | Z1: =STDEV(V3:V3002)*AB1 -> 1.029063914 | AB1: =Figure!Q43 -> 2
A2: No. | B2: Kflat | C2: @flat | D2: Ksteep | E2: @steep | F2: Kflat | G2: @flat | H2: Ksteep | I2: @steep | J2: power | K2: @ | L2: power | M2: @ | N2: power | O2: angle | P2: axis | Q2: V1x | R2: V2x | S2: VX | T2: V1y | U2: V2y | V2: VY | W2: Xsd | X2: Ysd | Y2: Xsd | Z2: Ysd
A3: 1 | B3: =IF(Data_Input_OD!B5="","",Data_Input_OD!B5) -> 42.67 | C3: =IF(Data_Input_OD!C5="","",Data_Input_OD!C5) -> 23 | D3: =IF(Data_Input_OD!D5="","",Data_Input_OD!D5) -> 44.75 | E3: =IF(Data_Input_OD!E5="","",Data_Input_OD!E5) -> 113 | F3: =IF(Data_Input_OD!I5="","",Data_Input_OD!I5) -> 42.65 | G3: =IF(Data_Input_OD!J5="","",Data_Input_OD!J5) -> 12 | H3: =IF(Data_Input_OD!K5="","",Data_Input_OD!K5) -> 44.44 | I3: =IF(Data_Input_OD!L5="","",Data_Input_OD!L5) -> 102 | J3: =IFERROR(D3-B3,"") -> 2.08 | K3: =IFERROR(E3,"") -> 113 | L3: =IFERROR(H3-F3,"") -> 1.79 | M3: =IFERROR(I3,"") -> 102 | N3: =IFERROR(SQRT(Y3^2+Z3^2),"") -> 0.7914026443 | O3: =IFERROR(0.5*DEGREES((ATAN(Z3/Y3))),"") -> -38.04105541 | P3: =IFERROR(IF(Y3>0,IF(Z3>0,O3,O3+180),O3+90),"") -> 51.95894459 | Q3: =IFERROR(J3*COS(2*RADIANS(K3)),"") -> -1.444889411 | R3: =IFERROR(L3*COS(2*RADIANS(M3)),"") -> -1.635246369 | S3: =IFERROR(IF((Q3+R3)=0,0.0000001,-Q3+R3),"") -> -0.1903569586 | T3: =IFERROR(J3*SIN(2*RADIANS(K3)),"") -> -1.496226785 | U3: =IFERROR(L3*SIN(2*RADIANS(M3)),"") -> -0.7280585911 | V3: =IFERROR(-T3+U3,"") -> 0.7681681936 | W3: =IFERROR(IF(ABS(S3)>$Y$1,"",IF(ABS(V3)>$Z$1,"",S3)),"") -> -0.1903569586 | X3: =IFERROR(IF(ABS(S3)>$Y$1,"",IF(ABS(V3)>$Z$1,"",V3)),"") -> 0.7681681936 | Y3: =IF(W3="",#N/A,W3) -> -0.1903569586 | Z3: =IF(X3="",#N/A,X3) -> 0.7681681936
A4: 2 | B4: =IF(Data_Input_OD!B6="","",Data_Input_OD!B6) -> 45.43 | C4: =IF(Data_Input_OD!C6="","",Data_Input_OD!C6) -> 105 | D4: =IF(Data_Input_OD!D6="","",Data_Input_OD!D6) -> 46.51 | E4: =IF(Data_Input_OD!E6="","",Data_Input_OD!E6) -> 15 | F4: =IF(Data_Input_OD!I6="","",Data_Input_OD!I6) -> 45.99 | G4: =IF(Data_Input_OD!J6="","",Data_Input_OD!J6) -> 106 | H4: =IF(Data_Input_OD!K6="","",Data_Input_OD!K6) -> 46.73 | I4: =IF(Data_Input_OD!L6="","",Data_Input_OD!L6) -> 16 | J4: =IFERROR(D4-B4,"") -> 1.08 | K4: =IFERROR(E4,"") -> 15 | L4: =IFERROR(H4-F4,"") -> 0.74 | M4: =IFERROR(I4,"") -> 16 | N4: =IFERROR(SQRT(Y4^2+Z4^2),"") -> 0.3414289122 | O4: =IFERROR(0.5*DEGREES((ATAN(Z4/Y4))),"") -> 12.83100663 | P4: =IFERROR(IF(Y4>0,IF(Z4>0,O4,O4+180),O4+90),"") -> 102.8310066 | Q4: =IFERROR(J4*COS(2*RADIANS(K4)),"") -> 0.9353074361 | R4: =IFERROR(L4*COS(2*RADIANS(M4)),"") -> 0.6275555912 | S4: =IFERROR(IF((Q4+R4)=0,0.0000001,-Q4+R4),"") -> -0.3077518449 | T4: =IFERROR(J4*SIN(2*RADIANS(K4)),"") -> 0.54 | U4: =IFERROR(L4*SIN(2*RADIANS(M4)),"") -> 0.3921402555 | V4: =IFERROR(-T4+U4,"") -> -0.1478597445 | W4: =IFERROR(IF(ABS(S4)>$Y$1,"",IF(ABS(V4)>$Z$1,"",S4)),"") -> -0.3077518449 | X4: =IFERROR(IF(ABS(S4)>$Y$1,"",IF(ABS(V4)>$Z$1,"",V4)),"") -> -0.1478597445 | Y4: =IF(W4="",#N/A,W4) -> -0.3077518449 | Z4: -0.1478597445
A5: 3 | B5: =IF(Data_Input_OD!B7="","",Data_Input_OD!B7) -> 45.97 | C5: =IF(Data_Input_OD!C7="","",Data_Input_OD!C7) -> 155 | D5: =IF(Data_Input_OD!D7="","",Data_Input_OD!D7) -> 46.53 | E5: =IF(Data_Input_OD!E7="","",Data_Input_OD!E7) -> 65 | F5: =IF(Data_Input_OD!I7="","",Data_Input_OD!I7) -> 45.97 | G5: =IF(Data_Input_OD!J7="","",Data_Input_OD!J7) -> 155 | H5: =IF(Data_Input_OD!K7="","",Data_Input_OD!K7) -> 46.53 | I5: =IF(Data_Input_OD!L7="","",Data_Input_OD!L7) -> 65 | J5: 0.56 | K5: 65 | L5: 0.56 | M5: 65 | N5: 0 | Q5: -0.3599610614 | R5: -0.3599610614 | S5: 0 | T5: 0.4289848881 | U5: 0.4289848881 | V5: 0 | W5: 0 | X5: 0 | Y5: 0 | Z5: 0 | AB5: ≤ 0.10 D | AC5: =COUNTIF(N$3:N$3002,"<=0.1") -> 8 | AD5: =AC5/COUNT($N$3:$N$3002) -> 0.1066666667 | AF5: Centroid | AG5: =IFERROR(SQRT(AK5^2+AL5^2),"") -> 0.05803073923 | AH5: =AJ5 -> 124.9215238 | AI5: =IFERROR(0.5*DEGREES((ATAN(AL5/AK5))),"") -> 34.92152379 | AJ5: =IFERROR(IF(AK5>0,IF(AL5>0,AI5,AI5+180),AI5+90),"") -> 124.9215238 | AK5: =AVERAGE(W3:W3002) -> -0.01999698601 | AL5: =AVERAGE(X3:X3002) -> -0.05447648342
A6: 4 | B6: =IF(Data_Input_OD!B8="","",Data_Input_OD!B8) -> 44.43 | C6: =IF(Data_Input_OD!C8="","",Data_Input_OD!C8) -> 14 | D6: =IF(Data_Input_OD!D8="","",Data_Input_OD!D8) -> 45.17 | E6: =IF(Data_Input_OD!E8="","",Data_Input_OD!E8) -> 104 | F6: =IF(Data_Input_OD!I8="","",Data_Input_OD!I8) -> 44.78 | G6: =IF(Data_Input_OD!J8="","",Data_Input_OD!J8) -> 172 | H6: =IF(Data_Input_OD!K8="","",Data_Input_OD!K8) -> 45.24 | I6: =IF(Data_Input_OD!L8="","",Data_Input_OD!L8) -> 82 | J6: 0.74 | K6: 104 | L6: 0.46 | M6: 82 | N6: 0.5191083354 | O6: 32.99634774 | P6: 32.99634774 | Q6: -0.6533812187 | R6: -0.4421803801 | S6: 0.2112008386 | T6: -0.3474089565 | U6: 0.1267931837 | V6: 0.4742021401 | W6: 0.2112008386 | X6: 0.4742021401 | Y6: 0.2112008386 | Z6: 0.4742021401 | AB6: ≤ 0.20 D | AC6: =COUNTIF(N$3:N$3002,"<=0.2") -> 18 | AD6: =AC6/COUNT($N$3:$N$3002) -> 0.24 | AF6: SD | AG6: =SQRT(AK6+AL6) -> 0.419258024 | AK6: =VAR(W3:W3002) -> 0.0955603764 | AL6: =VAR(X3:X3002) -> 0.08021691428
A7: 5 | B7: =IF(Data_Input_OD!B9="","",Data_Input_OD!B9) -> 42.67 | C7: =IF(Data_Input_OD!C9="","",Data_Input_OD!C9) -> 137 | D7: =IF(Data_Input_OD!D9="","",Data_Input_OD!D9) -> 43.27 | E7: =IF(Data_Input_OD!E9="","",Data_Input_OD!E9) -> 47 | F7: =IF(Data_Input_OD!I9="","",Data_Input_OD!I9) -> 42.47 | G7: =IF(Data_Input_OD!J9="","",Data_Input_OD!J9) -> 131 | H7: =IF(Data_Input_OD!K9="","",Data_Input_OD!K9) -> 44.13 | I7: =IF(Data_Input_OD!L9="","",Data_Input_OD!L9) -> 41 | J7: 0.6 | K7: 47 | L7: 1.66 | M7: 41 | Q7: -0.04185388425 | R7: 0.2310273476 | S7: 0.2728812318 | T7: 0.5985384302 | U7: 1.643844994 | V7: 1.045306564 | AB7: ≤ 0.50 D | AC7: =COUNTIF(N$3:N$3002,"<=0.5") -> 58 | AD7: 0.7733333333
A8: 6 | B8: =IF(Data_Input_OD!B10="","",Data_Input_OD!B10) -> 44.47 | C8: =IF(Data_Input_OD!C10="","",Data_Input_OD!C10) -> 16 | D8: =IF(Data_Input_OD!D10="","",Data_Input_OD!D10) -> 45.05 | E8: =IF(Data_Input_OD!E10="","",Data_Input_OD!E10) -> 106 | F8: =IF(Data_Input_OD!I10="","",Data_Input_OD!I10) -> 43.9 | G8: =IF(Data_Input_OD!J10="","",Data_Input_OD!J10) -> 7 | H8: =IF(Data_Input_OD!K10="","",Data_Input_OD!K10) -> 44.59 | I8: =IF(Data_Input_OD!L10="","",Data_Input_OD!L10) -> 97 | J8: 0.58 | K8: 106 | L8: 0.69 | M8: 97 | N8: 0.2264384339 | O8: -19.16374944 | P8: 70.83625056 | Q8: -0.4918678958 | R8: -0.6695040511 | S8: -0.1776361554 | T8: -0.3073531733 | U8: -0.166926108 | V8: 0.1404270653 | W8: -0.1776361554 | X8: 0.1404270653 | Y8: -0.1776361554 | Z8: 0.1404270653 | AB8: ≤ 0.75 D | AC8: =COUNTIF(N$3:N$3002,"<=0.75") -> 70 | AD8: 0.9333333333 | AF8: Mean | AG8: =AVERAGE(N3:N3002) -> 0.3580642247
A9: 7 | B9: =IF(Data_Input_OD!B11="","",Data_Input_OD!B11) -> 44.43 | C9: =IF(Data_Input_OD!C11="","",Data_Input_OD!C11) -> 90 | D9: =IF(Data_Input_OD!D11="","",Data_Input_OD!D11) -> 45.69 | E9: =IF(Data_Input_OD!E11="","",Data_Input_OD!E11) -> 180 | F9: =IF(Data_Input_OD!I11="","",Data_Input_OD!I11) -> 44.42 | G9: =IF(Data_Input_OD!J11="","",Data_Input_OD!J11) -> 93 | H9: =IF(Data_Input_OD!K11="","",Data_Input_OD!K11) -> 45.95 | I9: =IF(Data_Input_OD!L11="","",Data_Input_OD!L11) -> 3 | J9: 1.26 | K9: 180 | L9: 1.53 | M9: 3 | N9: 0.3066290596 | O9: 15.71881482 | P9: 15.71881482 | Q9: 1.26 | R9: 1.5216185 | S9: 0.2616184999 | T9: -3.087374106e-16 | U9: 0.1599285488 | V9: 0.1599285488 | W9: 0.2616184999 | X9: 0.1599285488 | Y9: 0.2616184999 | Z9: 0.1599285488 | AB9: ≤ 1.00 D | AC9: =COUNTIF(N$3:N$3002,"<=1") -> 74 | AD9: 0.9866666667 | AF9: SD | AG9: =_xlfn.STDEV.P(N3:N3002) -> 0.2204340517
A10: 8 | B10: =IF(Data_Input_OD!B12="","",Data_Input_OD!B12) -> 47.85 | C10: =IF(Data_Input_OD!C12="","",Data_Input_OD!C12) -> 118 | D10: =IF(Data_Input_OD!D12="","",Data_Input_OD!D12) -> 49.89 | E10: =IF(Data_Input_OD!E12="","",Data_Input_OD!E12) -> 28 | F10: =IF(Data_Input_OD!I12="","",Data_Input_OD!I12) -> 47.87 | G10: =IF(Data_Input_OD!J12="","",Data_Input_OD!J12) -> 139 | H10: =IF(Data_Input_OD!K12="","",Data_Input_OD!K12) -> 49.47 | I10: =IF(Data_Input_OD!L12="","",Data_Input_OD!L12) -> 49 | J10: 2.04 | K10: 28 | L10: 1.6 | M10: 49 | Q10: 1.140753523 | R10: -0.2226769615 | S10: -1.363430485 | T10: 1.691236648 | U10: 1.58442891 | V10: -0.106807738 | AB10: > 1.00 D | AC10: =COUNTIF(N$3:N$3002,">1") -> 1 | AD10: 0.01333333333 | AF10: N= | AG10: =COUNT(N3:N3002) -> 75
A11: 9 | B11: =IF(Data_Input_OD!B13="","",Data_Input_OD!B13) -> 43.12 | C11: =IF(Data_Input_OD!C13="","",Data_Input_OD!C13) -> 83 | D11: =IF(Data_Input_OD!D13="","",Data_Input_OD!D13) -> 43.86 | E11: =IF(Data_Input_OD!E13="","",Data_Input_OD!E13) -> 173 | F11: =IF(Data_Input_OD!I13="","",Data_Input_OD!I13) -> 42.92 | G11: =IF(Data_Input_OD!J13="","",Data_Input_OD!J13) -> 75 | H11: =IF(Data_Input_OD!K13="","",Data_Input_OD!K13) -> 43.93 | I11: =IF(Data_Input_OD!L13="","",Data_Input_OD!L13) -> 165 | J11: 0.74 | K11: 173 | L11: 1.01 | M11: 165 | N11: 0.3616711447 | O11: -32.16539532 | P11: 147.8346047 | Q11: 0.7180188374 | R11: 0.8746856578 | S11: 0.1566668204 | T11: -0.1790222027 | U11: -0.505 | V11: -0.3259777973 | W11: 0.1566668204 | X11: -0.3259777973 | Y11: 0.1566668204 | Z11: -0.3259777973
A12: 10 | B12: =IF(Data_Input_OD!B14="","",Data_Input_OD!B14) -> 47.07 | C12: =IF(Data_Input_OD!C14="","",Data_Input_OD!C14) -> 124 | D12: =IF(Data_Input_OD!D14="","",Data_Input_OD!D14) -> 47.42 | E12: =IF(Data_Input_OD!E14="","",Data_Input_OD!E14) -> 34 | F12: =IF(Data_Input_OD!I14="","",Data_Input_OD!I14) -> 47.07 | G12: =IF(Data_Input_OD!J14="","",Data_Input_OD!J14) -> 124 | H12: =IF(Data_Input_OD!K14="","",Data_Input_OD!K14) -> 47.42 | I12: =IF(Data_Input_OD!L14="","",Data_Input_OD!L14) -> 34 | J12: 0.35 | K12: 34 | L12: 0.35 | M12: 34 | N12: 0 | Q12: 0.1311123077 | R12: 0.1311123077 | S12: 0 | T12: 0.3245143491 | U12: 0.3245143491 | V12: 0 | W12: 0 | X12: 0 | Y12: 0 | Z12: 0
A13: 11 | B13: =IF(Data_Input_OD!B15="","",Data_Input_OD!B15) -> 32.73 | C13: =IF(Data_Input_OD!C15="","",Data_Input_OD!C15) -> 4 | D13: =IF(Data_Input_OD!D15="","",Data_Input_OD!D15) -> 33.97 | E13: =IF(Data_Input_OD!E15="","",Data_Input_OD!E15) -> 94 | F13: =IF(Data_Input_OD!I15="","",Data_Input_OD!I15) -> 32.62 | G13: =IF(Data_Input_OD!J15="","",Data_Input_OD!J15) -> 1 | H13: =IF(Data_Input_OD!K15="","",Data_Input_OD!K15) -> 33.58 | I13: =IF(Data_Input_OD!L15="","",Data_Input_OD!L15) -> 91 | J13: 1.24 | K13: 94 | L13: 0.96 | M13: 91 | N13: 0.3023942319 | O13: 13.69032969 | P13: 13.69032969 | Q13: -1.227932405 | R13: -0.9594151939 | S13: 0.2685172113 | T13: -0.1725746452 | U13: -0.03350351683 | V13: 0.1390711284 | W13: 0.2685172113 | X13: 0.1390711284 | Y13: 0.2685172113 | Z13: 0.1390711284
A14: 12 | B14: =IF(Data_Input_OD!B16="","",Data_Input_OD!B16) -> 45.21 | C14: =IF(Data_Input_OD!C16="","",Data_Input_OD!C16) -> 126 | D14: =IF(Data_Input_OD!D16="","",Data_Input_OD!D16) -> 46.49 | E14: =IF(Data_Input_OD!E16="","",Data_Input_OD!E16) -> 36 | F14: =IF(Data_Input_OD!I16="","",Data_Input_OD!I16) -> 45.33 | G14: =IF(Data_Input_OD!J16="","",Data_Input_OD!J16) -> 116 | H14: =IF(Data_Input_OD!K16="","",Data_Input_OD!K16) -> 46.59 | I14: =IF(Data_Input_OD!L16="","",Data_Input_OD!L16) -> 26 | J14: 1.28 | K14: 36 | L14: 1.26 | M14: 26 | N14: 0.4415059257 | O14: -15.27844401 | P14: 164.721556 | Q14: 0.3955417528 | R14: 0.7757334589 | S14: 0.3801917061 | T14: 1.217352341 | U14: 0.9928935495 | V14: -0.2244587913 | W14: 0.3801917061 | X14: -0.2244587913 | Y14: 0.3801917061 | Z14: -0.2244587913
A15: 13 | B15: =IF(Data_Input_OD!B17="","",Data_Input_OD!B17) -> 45.12 | C15: =IF(Data_Input_OD!C17="","",Data_Input_OD!C17) -> 10 | D15: =IF(Data_Input_OD!D17="","",Data_Input_OD!D17) -> 46.16 | E15: =IF(Data_Input_OD!E17="","",Data_Input_OD!E17) -> 100 | F15: =IF(Data_Input_OD!I17="","",Data_Input_OD!I17) -> 44.99 | G15: =IF(Data_Input_OD!J17="","",Data_Input_OD!J17) -> 15 | H15: =IF(Data_Input_OD!K17="","",Data_Input_OD!K17) -> 46.03 | I15: =IF(Data_Input_OD!L17="","",Data_Input_OD!L17) -> 105 | J15: 1.04 | K15: 100 | L15: 1.04 | M15: 105 | N15: 0.1812839449 | O15: -32.5 | P15: 147.5 | Q15: -0.9772803256 | R15: -0.9006664199 | S15: 0.07661390568 | T15: -0.3557009491 | U15: -0.52 | V15: -0.1642990509 | W15: 0.07661390568 | X15: -0.1642990509 | Y15: 0.07661390568 | Z15: -0.1642990509
A16: 14 | B16: =IF(Data_Input_OD!B18="","",Data_Input_OD!B18) -> 47.68 | C16: =IF(Data_Input_OD!C18="","",Data_Input_OD!C18) -> 41 | D16: =IF(Data_Input_OD!D18="","",Data_Input_OD!D18) -> 47.87 | E16: =IF(Data_Input_OD!E18="","",Data_Input_OD!E18) -> 131 | F16: =IF(Data_Input_OD!I18="","",Data_Input_OD!I18) -> 47.78 | G16: =IF(Data_Input_OD!J18="","",Data_Input_OD!J18) -> 100 | H16: =IF(Data_Input_OD!K18="","",Data_Input_OD!K18) -> 47.95 | I16: =IF(Data_Input_OD!L18="","",Data_Input_OD!L18) -> 10 | J16: 0.19 | K16: 131 | L16: 0.17 | M16: 10 | N16: 0.308752106 | O16: 26.45594441 | P16: 26.45594441 | Q16: -0.02644288918 | R16: 0.1597477455 | S16: 0.1861906347 | T16: -0.1881509331 | U16: 0.05814342437 | V16: 0.2462943574 | W16: 0.1861906347 | X16: 0.2462943574 | Y16: 0.1861906347 | Z16: 0.2462943574
A17: 15 | B17: =IF(Data_Input_OD!B19="","",Data_Input_OD!B19) -> 42.34 | C17: =IF(Data_Input_OD!C19="","",Data_Input_OD!C19) -> 8 | D17: =IF(Data_Input_OD!D19="","",Data_Input_OD!D19) -> 42.92 | E17: =IF(Data_Input_OD!E19="","",Data_Input_OD!E19) -> 98 | F17: =IF(Data_Input_OD!I19="","",Data_Input_OD!I19) -> 41.95 | G17: =IF(Data_Input_OD!J19="","",Data_Input_OD!J19) -> 16 | H17: =IF(Data_Input_OD!K19="","",Data_Input_OD!K19) -> 42.69 | I17: =IF(Data_Input_OD!L19="","",Data_Input_OD!L19) -> 106 | J17: 0.58 | K17: 98 | L17: 0.74 | M17: 106 | N17: 0.2425962906 | O17: 36.61162342 | P17: 126.6116234 | Q17: -0.5575317836 | R17: -0.6275555912 | S17: -0.07002380751 | T17: -0.1598696664 | U17: -0.3921402555 | V17: -0.2322705892 | W17: -0.07002380751 | X17: -0.2322705892 | Y17: -0.07002380751 | Z17: -0.2322705892
A18: 16 | B18: =IF(Data_Input_OD!B20="","",Data_Input_OD!B20) -> 41.35 | C18: =IF(Data_Input_OD!C20="","",Data_Input_OD!C20) -> 100 | D18: =IF(Data_Input_OD!D20="","",Data_Input_OD!D20) -> 42.47 | E18: =IF(Data_Input_OD!E20="","",Data_Input_OD!E20) -> 10 | F18: =IF(Data_Input_OD!I20="","",Data_Input_OD!I20) -> 41.38 | G18: =IF(Data_Input_OD!J20="","",Data_Input_OD!J20) -> 89 | H18: =IF(Data_Input_OD!K20="","",Data_Input_OD!K20) -> 42.4 | I18: =IF(Data_Input_OD!L20="","",Data_Input_OD!L20) -> 179 | J18: 1.12 | K18: 10 | L18: 1.02 | M18: 179 | N18: 0.419964676 | O18: 42.74130686 | P18: 132.7413069 | Q18: 1.052455735 | R18: 1.019378644 | S18: -0.03307709172 | T18: 0.3830625605 | U18: -0.03559748664 | V18: -0.4186600472 | W18: -0.03307709172 | X18: -0.4186600472 | Y18: -0.03307709172 | Z18: -0.4186600472
A19: 17 | B19: =IF(Data_Input_OD!B21="","",Data_Input_OD!B21) -> 43.9 | C19: =IF(Data_Input_OD!C21="","",Data_Input_OD!C21) -> 164 | D19: =IF(Data_Input_OD!D21="","",Data_Input_OD!D21) -> 44.37 | E19: =IF(Data_Input_OD!E21="","",Data_Input_OD!E21) -> 74 | F19: =IF(Data_Input_OD!I21="","",Data_Input_OD!I21) -> 43.71 | G19: =IF(Data_Input_OD!J21="","",Data_Input_OD!J21) -> 167 | H19: =IF(Data_Input_OD!K21="","",Data_Input_OD!K21) -> 44.45 | I19: =IF(Data_Input_OD!L21="","",Data_Input_OD!L21) -> 77 | J19: 0.47 | K19: 74 | L19: 0.74 | M19: 77 | N19: 0.2769667301 | O19: -7.891403359 | P19: 82.10859664 | Q19: -0.3985826052 | R19: -0.6651075943 | S19: -0.2665249891 | T19: 0.2490620542 | U19: 0.3243946486 | V19: 0.07533259443 | W19: -0.2665249891 | X19: 0.07533259443 | Y19: -0.2665249891 | Z19: 0.07533259443
A20: 18 | B20: =IF(Data_Input_OD!B22="","",Data_Input_OD!B22) -> 44.09 | C20: =IF(Data_Input_OD!C22="","",Data_Input_OD!C22) -> 101 | D20: =IF(Data_Input_OD!D22="","",Data_Input_OD!D22) -> 44.25 | E20: =IF(Data_Input_OD!E22="","",Data_Input_OD!E22) -> 11 | F20: =IF(Data_Input_OD!I22="","",Data_Input_OD!I22) -> 43.95 | G20: =IF(Data_Input_OD!J22="","",Data_Input_OD!J22) -> 119 | H20: =IF(Data_Input_OD!K22="","",Data_Input_OD!K22) -> 44.2 | I20: =IF(Data_Input_OD!L22="","",Data_Input_OD!L22) -> 29 | J20: 0.16 | K20: 11 | L20: 0.25 | M20: 29 | N20: 0.1529007536 | O20: -42.02126519 | P20: 47.97873481 | Q20: 0.1483494167 | R20: 0.1324798161 | S20: -0.01586960067 | T20: 0.05993705495 | U20: 0.212012024 | V20: 0.1520749691 | W20: -0.01586960067 | X20: 0.1520749691 | Y20: -0.01586960067 | Z20: 0.1520749691
A21: 19 | B21: =IF(Data_Input_OD!B23="","",Data_Input_OD!B23) -> 43.03 | C21: =IF(Data_Input_OD!C23="","",Data_Input_OD!C23) -> 80 | D21: =IF(Data_Input_OD!D23="","",Data_Input_OD!D23) -> 44.31 | E21: =IF(Data_Input_OD!E23="","",Data_Input_OD!E23) -> 170 | F21: =IF(Data_Input_OD!I23="","",Data_Input_OD!I23) -> 43.05 | G21: =IF(Data_Input_OD!J23="","",Data_Input_OD!J23) -> 77 | H21: =IF(Data_Input_OD!K23="","",Data_Input_OD!K23) -> 44.11 | I21: =IF(Data_Input_OD!L23="","",Data_Input_OD!L23) -> 167 | J21: 1.28 | K21: 170 | L21: 1.06 | M21: 167 | N21: 0.2515261114 | O21: 3.068264053 | P21: 93.06826405 | Q21: 1.202806555 | R21: 0.9527216891 | S21: -0.2500848655 | T21: -0.4377857835 | U21: -0.4646734156 | V21: -0.02688763214 | W21: -0.2500848655 | X21: -0.02688763214 | Y21: -0.2500848655 | Z21: -0.02688763214
A22: 20 | B22: =IF(Data_Input_OD!B24="","",Data_Input_OD!B24) -> 45.07 | C22: =IF(Data_Input_OD!C24="","",Data_Input_OD!C24) -> 91 | D22: =IF(Data_Input_OD!D24="","",Data_Input_OD!D24) -> 47.38 | E22: =IF(Data_Input_OD!E24="","",Data_Input_OD!E24) -> 1 | F22: =IF(Data_Input_OD!I24="","",Data_Input_OD!I24) -> 45.5 | G22: =IF(Data_Input_OD!J24="","",Data_Input_OD!J24) -> 98 | H22: =IF(Data_Input_OD!K24="","",Data_Input_OD!K24) -> 46.45 | I22: =IF(Data_Input_OD!L24="","",Data_Input_OD!L24) -> 8 | J22: 2.31 | K22: 1 | L22: 0.95 | M22: 8 | Q22: 2.30859281 | R22: 0.9131986111 | S22: -1.395394199 | T22: 0.08061783738 | U22: 0.261855488 | V22: 0.1812376506
A23: 21 | B23: =IF(Data_Input_OD!B25="","",Data_Input_OD!B25) -> 42.1 | C23: =IF(Data_Input_OD!C25="","",Data_Input_OD!C25) -> 51 | D23: =IF(Data_Input_OD!D25="","",Data_Input_OD!D25) -> 42.42 | E23: =IF(Data_Input_OD!E25="","",Data_Input_OD!E25) -> 141 | F23: =IF(Data_Input_OD!I25="","",Data_Input_OD!I25) -> 42.01 | G23: =IF(Data_Input_OD!J25="","",Data_Input_OD!J25) -> 34 | H23: =IF(Data_Input_OD!K25="","",Data_Input_OD!K25) -> 42.5 | I23: =IF(Data_Input_OD!L25="","",Data_Input_OD!L25) -> 124 | J23: 0.32 | K23: 141 | L23: 0.49 | M23: 124 | N23: 0.2872521841 | O23: 14.7343171 | P23: 104.7343171 | Q23: 0.06653174106 | R23: -0.1835572308 | S23: -0.2500889718 | T23: -0.3130072322 | U23: -0.4543200887 | V23: -0.1413128565 | W23: -0.2500889718 | X23: -0.1413128565 | Y23: -0.2500889718 | Z23: -0.1413128565
A24: 22 | B24: =IF(Data_Input_OD!B26="","",Data_Input_OD!B26) -> 41.27 | C24: =IF(Data_Input_OD!C26="","",Data_Input_OD!C26) -> 115 | D24: =IF(Data_Input_OD!D26="","",Data_Input_OD!D26) -> 42.2 | E24: =IF(Data_Input_OD!E26="","",Data_Input_OD!E26) -> 25 | F24: =IF(Data_Input_OD!I26="","",Data_Input_OD!I26) -> 41.23 | G24: =IF(Data_Input_OD!J26="","",Data_Input_OD!J26) -> 114 | H24: =IF(Data_Input_OD!K26="","",Data_Input_OD!K26) -> 42.24 | I24: =IF(Data_Input_OD!L26="","",Data_Input_OD!L26) -> 24 | J24: 0.93 | K24: 25 | L24: 1.01 | M24: 24 | N24: 0.08685846166 | O24: 13.0288863 | P24: 13.0288863 | Q24: 0.597792477 | R24: 0.6758219124 | S24: 0.07802943541 | T24: 0.7124213321 | U24: 0.7505762737 | V24: 0.03815494163 | W24: 0.07802943541 | X24: 0.03815494163 | Y24: 0.07802943541 | Z24: 0.03815494163
A25: 23 | B25: =IF(Data_Input_OD!B27="","",Data_Input_OD!B27) -> 44.78 | C25: =IF(Data_Input_OD!C27="","",Data_Input_OD!C27) -> 180 | D25: =IF(Data_Input_OD!D27="","",Data_Input_OD!D27) -> 45.33 | E25: =IF(Data_Input_OD!E27="","",Data_Input_OD!E27) -> 90 | F25: =IF(Data_Input_OD!I27="","",Data_Input_OD!I27) -> 44.7 | G25: =IF(Data_Input_OD!J27="","",Data_Input_OD!J27) -> 180 | H25: =IF(Data_Input_OD!K27="","",Data_Input_OD!K27) -> 45.71 | I25: =IF(Data_Input_OD!L27="","",Data_Input_OD!L27) -> 90 | J25: 0.55 | K25: 90 | L25: 1.01 | M25: 90 | N25: 0.46 | O25: -3.509791787e-15 | P25: 90 | Q25: -0.55 | R25: -1.01 | S25: -0.46 | T25: 6.738316502e-17 | U25: 1.237399939e-16 | V25: 5.635682893e-17 | W25: -0.46 | X25: 5.635682893e-17 | Y25: -0.46 | Z25: 5.635682893e-17
A26: 24 | B26: =IF(Data_Input_OD!B28="","",Data_Input_OD!B28) -> 40.07 | C26: =IF(Data_Input_OD!C28="","",Data_Input_OD!C28) -> 155 | D26: =IF(Data_Input_OD!D28="","",Data_Input_OD!D28) -> 40.67 | E26: =IF(Data_Input_OD!E28="","",Data_Input_OD!E28) -> 65 | F26: =IF(Data_Input_OD!I28="","",Data_Input_OD!I28) -> 40.1 | G26: =IF(Data_Input_OD!J28="","",Data_Input_OD!J28) -> 171 | H26: =IF(Data_Input_OD!K28="","",Data_Input_OD!K28) -> 40.75 | I26: =IF(Data_Input_OD!L28="","",Data_Input_OD!L28) -> 81 | J26: 0.6 | K26: 65 | L26: 0.65 | M26: 81 | N26: 0.347882861 | O26: 24.02934053 | P26: 114.0293405 | Q26: -0.3856725658 | R26: -0.6181867356 | S26: -0.2325141698 | T26: 0.4596266659 | U26: 0.2008610463 | V26: -0.2587656195 | W26: -0.2325141698 | X26: -0.2587656195 | Y26: -0.2325141698 | Z26: -0.2587656195
A27: 25 | B27: =IF(Data_Input_OD!B29="","",Data_Input_OD!B29) -> 38.77 | C27: =IF(Data_Input_OD!C29="","",Data_Input_OD!C29) -> 26 | D27: =IF(Data_Input_OD!D29="","",Data_Input_OD!D29) -> 39.91 | E27: =IF(Data_Input_OD!E29="","",Data_Input_OD!E29) -> 116 | F27: =IF(Data_Input_OD!I29="","",Data_Input_OD!I29) -> 38.81 | G27: =IF(Data_Input_OD!J29="","",Data_Input_OD!J29) -> 47 | H27: =IF(Data_Input_OD!K29="","",Data_Input_OD!K29) -> 39.73 | I27: =IF(Data_Input_OD!L29="","",Data_Input_OD!L29) -> 137 | J27: 1.14 | K27: 116 | L27: 0.92 | M27: 137 | N27: 0.7662763301 | O27: -0.7263602306 | P27: 179.2736398 | Q27: -0.7018540819 | R27: 0.06417595584 | S27: 0.7660300377 | T27: -0.8983322591 | U27: -0.9177589262 | V27: -0.01942666713 | W27: 0.7660300377 | X27: -0.01942666713 | Y27: 0.7660300377 | Z27: -0.01942666713
A28: 26 | B28: =IF(Data_Input_OD!B30="","",Data_Input_OD!B30) -> 42.04 | C28: =IF(Data_Input_OD!C30="","",Data_Input_OD!C30) -> 167 | D28: =IF(Data_Input_OD!D30="","",Data_Input_OD!D30) -> 43.16 | E28: =IF(Data_Input_OD!E30="","",Data_Input_OD!E30) -> 77 | F28: =IF(Data_Input_OD!I30="","",Data_Input_OD!I30) -> 41.97 | G28: =IF(Data_Input_OD!J30="","",Data_Input_OD!J30) -> 168 | H28: =IF(Data_Input_OD!K30="","",Data_Input_OD!K30) -> 43.07 | I28: =IF(Data_Input_OD!L30="","",Data_Input_OD!L30) -> 78 | J28: 1.12 | K28: 77 | L28: 1.1 | M28: 78 | N28: 0.04360048423 | O28: -43.85028746 | P28: 136.1497125 | Q28: -1.006649332 | R28: -1.004900003 | S28: 0.001749328448 | T28: 0.4909756844 | U28: 0.4474103074 | V28: -0.04356537702 | W28: 0.001749328448 | X28: -0.04356537702 | Y28: 0.001749328448 | Z28: -0.04356537702
A29: 27 | B29: =IF(Data_Input_OD!B31="","",Data_Input_OD!B31) -> 41.77 | C29: =IF(Data_Input_OD!C31="","",Data_Input_OD!C31) -> 54 | D29: =IF(Data_Input_OD!D31="","",Data_Input_OD!D31) -> 42 | E29: =IF(Data_Input_OD!E31="","",Data_Input_OD!E31) -> 144 | F29: =IF(Data_Input_OD!I31="","",Data_Input_OD!I31) -> 41.72 | G29: =IF(Data_Input_OD!J31="","",Data_Input_OD!J31) -> 41 | H29: =IF(Data_Input_OD!K31="","",Data_Input_OD!K31) -> 42.21 | I29: =IF(Data_Input_OD!L31="","",Data_Input_OD!L31) -> 131 | J29: 0.23 | K29: 144 | L29: 0.49 | M29: 131 | N29: 0.3006855866 | O29: 31.20405423 | P29: 121.2040542 | Q29: 0.07107390871 | R29: -0.06819481947 | S29: -0.1392687282 | T29: -0.2187429987 | U29: -0.4852313537 | V29: -0.2664883549 | W29: -0.1392687282 | X29: -0.2664883549 | Y29: -0.1392687282 | Z29: -0.2664883549
A30: 28 | B30: =IF(Data_Input_OD!B32="","",Data_Input_OD!B32) -> 40.67 | C30: =IF(Data_Input_OD!C32="","",Data_Input_OD!C32) -> 97 | D30: =IF(Data_Input_OD!D32="","",Data_Input_OD!D32) -> 40.97 | E30: =IF(Data_Input_OD!E32="","",Data_Input_OD!E32) -> 7 | F30: =IF(Data_Input_OD!I32="","",Data_Input_OD!I32) -> 40.86 | G30: =IF(Data_Input_OD!J32="","",Data_Input_OD!J32) -> 161 | H30: =IF(Data_Input_OD!K32="","",Data_Input_OD!K32) -> 40.96 | I30: =IF(Data_Input_OD!L32="","",Data_Input_OD!L32) -> 71 | J30: 0.3 | K30: 7 | L30: 0.1 | M30: 71 | N30: 0.3700536292 | O30: 0.8525031632 | P30: 90.85250316 | Q30: 0.2910887179 | R30: -0.07880107536 | S30: -0.3698897932 | T30: 0.07257656868 | U30: 0.06156614753 | V30: -0.01101042115 | W30: -0.3698897932 | X30: -0.01101042115 | Y30: -0.3698897932 | Z30: -0.01101042115
A31: 29 | B31: =IF(Data_Input_OD!B33="","",Data_Input_OD!B33) -> 44.79 | C31: =IF(Data_Input_OD!C33="","",Data_Input_OD!C33) -> 4 | D31: =IF(Data_Input_OD!D33="","",Data_Input_OD!D33) -> 45.33 | E31: =IF(Data_Input_OD!E33="","",Data_Input_OD!E33) -> 94 | F31: =IF(Data_Input_OD!I33="","",Data_Input_OD!I33) -> 44.65 | G31: =IF(Data_Input_OD!J33="","",Data_Input_OD!J33) -> 26 | H31: =IF(Data_Input_OD!K33="","",Data_Input_OD!K33) -> 46.24 | I31: =IF(Data_Input_OD!L33="","",Data_Input_OD!L33) -> 116 | J31: 0.54 | K31: 94 | L31: 1.59 | M31: 116 | Q31: -0.5347447571 | R31: -0.9789017458 | S31: -0.4441569886 | T31: -0.07515347452 | U31: -1.252937098 | V31: -1.177783624
A32: 30 | B32: =IF(Data_Input_OD!B34="","",Data_Input_OD!B34) -> 42.72 | C32: =IF(Data_Input_OD!C34="","",Data_Input_OD!C34) -> 156 | D32: =IF(Data_Input_OD!D34="","",Data_Input_OD!D34) -> 44.45 | E32: =IF(Data_Input_OD!E34="","",Data_Input_OD!E34) -> 66 | F32: =IF(Data_Input_OD!I34="","",Data_Input_OD!I34) -> 42.69 | G32: =IF(Data_Input_OD!J34="","",Data_Input_OD!J34) -> 164 | H32: =IF(Data_Input_OD!K34="","",Data_Input_OD!K34) -> 44.48 | I32: =IF(Data_Input_OD!L34="","",Data_Input_OD!L34) -> 74 | J32: 1.73 | K32: 66 | L32: 1.79 | M32: 74 | N32: 0.4934792928 | O32: 21.54233702 | P32: 111.542337 | Q32: -1.157595949 | R32: -1.518006092 | S32: -0.3604101431 | T32: 1.285640548 | U32: 0.948555483 | V32: -0.3370850651 | W32: -0.3604101431 | X32: -0.3370850651 | Y32: -0.3604101431 | Z32: -0.3370850651
A33: 31 | B33: =IF(Data_Input_OD!B35="","",Data_Input_OD!B35) -> 41.37 | C33: =IF(Data_Input_OD!C35="","",Data_Input_OD!C35) -> 62 | D33: =IF(Data_Input_OD!D35="","",Data_Input_OD!D35) -> 42.34 | E33: =IF(Data_Input_OD!E35="","",Data_Input_OD!E35) -> 152 | F33: =IF(Data_Input_OD!I35="","",Data_Input_OD!I35) -> 41.72 | G33: =IF(Data_Input_OD!J35="","",Data_Input_OD!J35) -> 79 | H33: =IF(Data_Input_OD!K35="","",Data_Input_OD!K35) -> 42.2 | I33: =IF(Data_Input_OD!L35="","",Data_Input_OD!L35) -> 169 | J33: 0.97 | K33: 152 | L33: 0.48 | M33: 169 | N33: 0.6319020592 | O33: -40.56803078 | P33: 49.43196922 | Q33: 0.5424171164 | R33: 0.4450482502 | S33: -0.09736886617 | T33: -0.8041664454 | U33: -0.1798111648 | V33: 0.6243552805 | W33: -0.09736886617 | X33: 0.6243552805 | Y33: -0.09736886617 | Z33: 0.6243552805
A34: 32 | B34: =IF(Data_Input_OD!B36="","",Data_Input_OD!B36) -> 44.56 | C34: =IF(Data_Input_OD!C36="","",Data_Input_OD!C36) -> 171 | D34: =IF(Data_Input_OD!D36="","",Data_Input_OD!D36) -> 45.04 | E34: =IF(Data_Input_OD!E36="","",Data_Input_OD!E36) -> 81 | F34: =IF(Data_Input_OD!I36="","",Data_Input_OD!I36) -> 44.48 | G34: =IF(Data_Input_OD!J36="","",Data_Input_OD!J36) -> 150 | H34: =IF(Data_Input_OD!K36="","",Data_Input_OD!K36) -> 44.93 | I34: =IF(Data_Input_OD!L36="","",Data_Input_OD!L36) -> 60 | J34: 0.48 | K34: 81 | L34: 0.45 | M34: 60 | N34: 0.3344569261 | O34: 23.09821395 | P34: 23.09821395 | Q34: -0.4565071278 | R34: -0.225 | S34: 0.2315071278 | T34: 0.1483281573 | U34: 0.3897114317 | V34: 0.2413832744 | W34: 0.2315071278 | X34: 0.2413832744 | Y34: 0.2315071278 | Z34: 0.2413832744
A35: 33 | B35: =IF(Data_Input_OD!B37="","",Data_Input_OD!B37) -> 42.28 | C35: =IF(Data_Input_OD!C37="","",Data_Input_OD!C37) -> 18 | D35: =IF(Data_Input_OD!D37="","",Data_Input_OD!D37) -> 43.34 | E35: =IF(Data_Input_OD!E37="","",Data_Input_OD!E37) -> 108 | F35: =IF(Data_Input_OD!I37="","",Data_Input_OD!I37) -> 42.39 | G35: =IF(Data_Input_OD!J37="","",Data_Input_OD!J37) -> 12 | H35: =IF(Data_Input_OD!K37="","",Data_Input_OD!K37) -> 43.22 | I35: =IF(Data_Input_OD!L37="","",Data_Input_OD!L37) -> 102 | J35: 1.06 | K35: 108 | L35: 0.83 | M35: 102 | N35: 0.3022440764 | O35: 35.40830109 | P35: 35.40830109 | Q35: -0.857558014 | R35: -0.7582427298 | S35: 0.09931528419 | T35: -0.6230523674 | U35: -0.3375914138 | V35: 0.2854609537 | W35: 0.09931528419 | X35: 0.2854609537 | Y35: 0.09931528419 | Z35: 0.2854609537
A36: 34 | B36: =IF(Data_Input_OD!B38="","",Data_Input_OD!B38) -> 42.65 | C36: =IF(Data_Input_OD!C38="","",Data_Input_OD!C38) -> 154 | D36: =IF(Data_Input_OD!D38="","",Data_Input_OD!D38) -> 42.96 | E36: =IF(Data_Input_OD!E38="","",Data_Input_OD!E38) -> 64 | F36: =IF(Data_Input_OD!I38="","",Data_Input_OD!I38) -> 42.54 | G36: =IF(Data_Input_OD!J38="","",Data_Input_OD!J38) -> 149 | H36: =IF(Data_Input_OD!K38="","",Data_Input_OD!K38) -> 42.92 | I36: =IF(Data_Input_OD!L38="","",Data_Input_OD!L38) -> 59 | J36: 0.31 | K36: 64 | L36: 0.38 | M36: 59 | N36: 0.09208307874 | O36: 41.11295089 | P36: 41.11295089 | Q36: -0.1908550574 | R36: -0.1783991939 | S36: 0.01245586349 | T36: 0.2442833336 | U36: 0.3355200853 | V36: 0.09123675167 | W36: 0.01245586349 | X36: 0.09123675167 | Y36: 0.01245586349 | Z36: 0.09123675167
A37: 35 | B37: =IF(Data_Input_OD!B39="","",Data_Input_OD!B39) -> 43.81 | C37: =IF(Data_Input_OD!C39="","",Data_Input_OD!C39) -> 83 | D37: =IF(Data_Input_OD!D39="","",Data_Input_OD!D39) -> 44.34 | E37: =IF(Data_Input_OD!E39="","",Data_Input_OD!E39) -> 173 | F37: =IF(Data_Input_OD!I39="","",Data_Input_OD!I39) -> 43.96 | G37: =IF(Data_Input_OD!J39="","",Data_Input_OD!J39) -> 72 | H37: =IF(Data_Input_OD!K39="","",Data_Input_OD!K39) -> 44.74 | I37: =IF(Data_Input_OD!L39="","",Data_Input_OD!L39) -> 162 | J37: 0.53 | K37: 173 | L37: 0.78 | M37: 162 | N37: 0.3502918627 | O37: -35.26329961 | P37: 144.7367004 | Q37: 0.5142567349 | R37: 0.6310332556 | S37: 0.1167765207 | T37: -0.1282186047 | U37: -0.4584724968 | V37: -0.3302538921 | W37: 0.1167765207 | X37: -0.3302538921 | Y37: 0.1167765207 | Z37: -0.3302538921
A38: 36 | B38: =IF(Data_Input_OD!B40="","",Data_Input_OD!B40) -> 42.98 | C38: =IF(Data_Input_OD!C40="","",Data_Input_OD!C40) -> 74 | D38: =IF(Data_Input_OD!D40="","",Data_Input_OD!D40) -> 43.83 | E38: =IF(Data_Input_OD!E40="","",Data_Input_OD!E40) -> 164 | F38: =IF(Data_Input_OD!I40="","",Data_Input_OD!I40) -> 42.55 | G38: =IF(Data_Input_OD!J40="","",Data_Input_OD!J40) -> 69 | H38: =IF(Data_Input_OD!K40="","",Data_Input_OD!K40) -> 43.88 | I38: =IF(Data_Input_OD!L40="","",Data_Input_OD!L40) -> 159 | J38: 0.85 | K38: 164 | L38: 1.33 | M38: 159 | N38: 0.514538308 | O38: -29.33505952 | P38: 150.6649405 | Q38: 0.7208408817 | R38: 0.9883826179 | S38: 0.2675417362 | T38: -0.4504313746 | U38: -0.8899437065 | V38: -0.4395123319 | W38: 0.2675417362 | X38: -0.4395123319 | Y38: 0.2675417362 | Z38: -0.4395123319
A39: 37 | B39: =IF(Data_Input_OD!B41="","",Data_Input_OD!B41) -> 43.03 | C39: =IF(Data_Input_OD!C41="","",Data_Input_OD!C41) -> 166 | D39: =IF(Data_Input_OD!D41="","",Data_Input_OD!D41) -> 43.92 | E39: =IF(Data_Input_OD!E41="","",Data_Input_OD!E41) -> 76 | F39: =IF(Data_Input_OD!I41="","",Data_Input_OD!I41) -> 43.67 | G39: =IF(Data_Input_OD!J41="","",Data_Input_OD!J41) -> 156 | H39: =IF(Data_Input_OD!K41="","",Data_Input_OD!K41) -> 44.33 | I39: =IF(Data_Input_OD!L41="","",Data_Input_OD!L41) -> 66 | J39: 0.89 | K39: 76 | L39: 0.66 | M39: 66 | N39: 0.3517799157 | O39: 5.958938968 | P39: 5.958938968 | Q39: -0.7858233576 | R39: -0.4416262002 | S39: 0.3441971574 | T39: 0.4178296909 | U39: 0.4904755848 | V39: 0.07264589394 | W39: 0.3441971574 | X39: 0.07264589394 | Y39: 0.3441971574 | Z39: 0.07264589394
A40: 38 | B40: =IF(Data_Input_OD!B42="","",Data_Input_OD!B42) -> 45.59 | C40: =IF(Data_Input_OD!C42="","",Data_Input_OD!C42) -> 4 | D40: =IF(Data_Input_OD!D42="","",Data_Input_OD!D42) -> 46.06 | E40: =IF(Data_Input_OD!E42="","",Data_Input_OD!E42) -> 94 | F40: =IF(Data_Input_OD!I42="","",Data_Input_OD!I42) -> 45.73 | G40: =IF(Data_Input_OD!J42="","",Data_Input_OD!J42) -> 13 | H40: =IF(Data_Input_OD!K42="","",Data_Input_OD!K42) -> 45.92 | I40: =IF(Data_Input_OD!L42="","",Data_Input_OD!L42) -> 103 | J40: 0.47 | K40: 94 | L40: 0.19 | M40: 103 | N40: 0.2951970633 | O40: -1.736175435 | P40: 178.2638246 | Q40: -0.4654259923 | R40: -0.1707708688 | S40: 0.2946551235 | T40: -0.06541135745 | U40: -0.08329051789 | V40: -0.01787916044 | W40: 0.2946551235 | X40: -0.01787916044 | Y40: 0.2946551235 | Z40: -0.01787916044
A41: 39 | B41: =IF(Data_Input_OD!B43="","",Data_Input_OD!B43) -> 43.94 | C41: =IF(Data_Input_OD!C43="","",Data_Input_OD!C43) -> 24 | D41: =IF(Data_Input_OD!D43="","",Data_Input_OD!D43) -> 45.16 | E41: =IF(Data_Input_OD!E43="","",Data_Input_OD!E43) -> 114 | F41: =IF(Data_Input_OD!I43="","",Data_Input_OD!I43) -> 43.97 | G41: =IF(Data_Input_OD!J43="","",Data_Input_OD!J43) -> 27 | H41: =IF(Data_Input_OD!K43="","",Data_Input_OD!K43) -> 45.29 | I41: =IF(Data_Input_OD!L43="","",Data_Input_OD!L43) -> 117 | J41: 1.22 | K41: 114 | L41: 1.32 | M41: 117 | N41: 0.1662644863 | O41: -37.9574112 | P41: 142.0425888 | Q41: -0.8163393398 | R41: -0.775876533 | S41: 0.04046280673 | T41: -0.9066366871 | U41: -1.067902433 | V41: -0.1612657455 | W41: 0.04046280673 | X41: -0.1612657455 | Y41: 0.04046280673 | Z41: -0.1612657455
A42: 40 | B42: =IF(Data_Input_OD!B44="","",Data_Input_OD!B44) -> 44.96 | C42: =IF(Data_Input_OD!C44="","",Data_Input_OD!C44) -> 52 | D42: =IF(Data_Input_OD!D44="","",Data_Input_OD!D44) -> 45.83 | E42: =IF(Data_Input_OD!E44="","",Data_Input_OD!E44) -> 142 | F42: =IF(Data_Input_OD!I44="","",Data_Input_OD!I44) -> 45.29 | G42: =IF(Data_Input_OD!J44="","",Data_Input_OD!J44) -> 15 | H42: =IF(Data_Input_OD!K44="","",Data_Input_OD!K44) -> 46.71 | I42: =IF(Data_Input_OD!L44="","",Data_Input_OD!L44) -> 105 | J42: 0.87 | K42: 142 | L42: 1.42 | M42: 105 | Q42: 0.2104720492 | R42: -1.229756073 | S42: -1.440228123 | T42: -0.8441572819 | U42: -0.71 | V42: 0.1341572819
A43: 41 | B43: =IF(Data_Input_OD!B45="","",Data_Input_OD!B45) -> 45.95 | C43: =IF(Data_Input_OD!C45="","",Data_Input_OD!C45) -> 11 | D43: =IF(Data_Input_OD!D45="","",Data_Input_OD!D45) -> 47.58 | E43: =IF(Data_Input_OD!E45="","",Data_Input_OD!E45) -> 101 | F43: =IF(Data_Input_OD!I45="","",Data_Input_OD!I45) -> 46.97 | G43: =IF(Data_Input_OD!J45="","",Data_Input_OD!J45) -> 160 | H43: =IF(Data_Input_OD!K45="","",Data_Input_OD!K45) -> 48.21 | I43: =IF(Data_Input_OD!L45="","",Data_Input_OD!L45) -> 70 | J43: 1.63 | K43: 101 | L43: 1.24 | M43: 70 | Q43: -1.511309683 | R43: -0.9498951095 | S43: 0.5614145735 | T43: -0.6106087473 | U43: 0.797056636 | V43: 1.407665383
A44: 42 | B44: =IF(Data_Input_OD!B46="","",Data_Input_OD!B46) -> 43.51 | C44: =IF(Data_Input_OD!C46="","",Data_Input_OD!C46) -> 88 | D44: =IF(Data_Input_OD!D46="","",Data_Input_OD!D46) -> 45.28 | E44: =IF(Data_Input_OD!E46="","",Data_Input_OD!E46) -> 178 | F44: =IF(Data_Input_OD!I46="","",Data_Input_OD!I46) -> 44.91 | G44: =IF(Data_Input_OD!J46="","",Data_Input_OD!J46) -> 46 | H44: =IF(Data_Input_OD!K46="","",Data_Input_OD!K46) -> 45.87 | I44: =IF(Data_Input_OD!L46="","",Data_Input_OD!L46) -> 136 | J44: 1.77 | K44: 178 | L44: 0.96 | M44: 136 | Q44: 1.765688369 | R44: 0.03350351683 | S44: -1.732184852 | T44: -0.1234689585 | U44: -0.9594151939 | V44: -0.8359462354
A45: 43 | B45: =IF(Data_Input_OD!B47="","",Data_Input_OD!B47) -> 43.76 | C45: =IF(Data_Input_OD!C47="","",Data_Input_OD!C47) -> 173 | D45: =IF(Data_Input_OD!D47="","",Data_Input_OD!D47) -> 44.37 | E45: =IF(Data_Input_OD!E47="","",Data_Input_OD!E47) -> 83 | F45: =IF(Data_Input_OD!I47="","",Data_Input_OD!I47) -> 43.59 | G45: =IF(Data_Input_OD!J47="","",Data_Input_OD!J47) -> 180 | H45: =IF(Data_Input_OD!K47="","",Data_Input_OD!K47) -> 44.42 | I45: =IF(Data_Input_OD!L47="","",Data_Input_OD!L47) -> 90 | J45: 0.61 | K45: 83 | L45: 0.83 | M45: 90 | N45: 0.2801402284 | O45: 15.89408517 | P45: 105.8940852 | Q45: -0.591880393 | R45: -0.83 | S45: -0.238119607 | T45: 0.1475723563 | U45: 1.016873218e-16 | V45: -0.1475723563 | W45: -0.238119607 | X45: -0.1475723563 | Y45: -0.238119607 | Z45: -0.1475723563
A46: 44 | B46: =IF(Data_Input_OD!B48="","",Data_Input_OD!B48) -> 44.5 | C46: =IF(Data_Input_OD!C48="","",Data_Input_OD!C48) -> 133 | D46: =IF(Data_Input_OD!D48="","",Data_Input_OD!D48) -> 44.75 | E46: =IF(Data_Input_OD!E48="","",Data_Input_OD!E48) -> 43 | F46: =IF(Data_Input_OD!I48="","",Data_Input_OD!I48) -> 44.41 | G46: =IF(Data_Input_OD!J48="","",Data_Input_OD!J48) -> 102 | H46: =IF(Data_Input_OD!K48="","",Data_Input_OD!K48) -> 44.71 | I46: =IF(Data_Input_OD!L48="","",Data_Input_OD!L48) -> 12 | J46: 0.25 | K46: 43 | L46: 0.3 | M46: 12 | N46: 0.2864947915 | O46: -13.19825365 | P46: 166.8017463 | Q46: 0.01743911844 | R46: 0.2740636373 | S46: 0.2566245189 | T46: 0.2493910126 | U46: 0.1220209929 | V46: -0.1273700196 | W46: 0.2566245189 | X46: -0.1273700196 | Y46: 0.2566245189 | Z46: -0.1273700196
A47: 45 | B47: =IF(Data_Input_OD!B49="","",Data_Input_OD!B49) -> 42.09 | C47: =IF(Data_Input_OD!C49="","",Data_Input_OD!C49) -> 73 | D47: =IF(Data_Input_OD!D49="","",Data_Input_OD!D49) -> 42.76 | E47: =IF(Data_Input_OD!E49="","",Data_Input_OD!E49) -> 163 | F47: =IF(Data_Input_OD!I49="","",Data_Input_OD!I49) -> 41.46 | G47: =IF(Data_Input_OD!J49="","",Data_Input_OD!J49) -> 72 | H47: =IF(Data_Input_OD!K49="","",Data_Input_OD!K49) -> 42.52 | I47: =IF(Data_Input_OD!L49="","",Data_Input_OD!L49) -> 162 | J47: 0.67 | K47: 163 | L47: 1.06 | M47: 162 | N47: 0.3911077464 | O47: -19.71375701 | P47: 160.286243 | Q47: 0.5554551736 | R47: 0.857558014 | S47: 0.3021028404 | T47: -0.3746592453 | U47: -0.6230523674 | V47: -0.2483931221 | W47: 0.3021028404 | X47: -0.2483931221 | Y47: 0.3021028404 | Z47: -0.2483931221
A48: 46 | B48: =IF(Data_Input_OD!B50="","",Data_Input_OD!B50) -> 44.41 | C48: =IF(Data_Input_OD!C50="","",Data_Input_OD!C50) -> 92 | D48: =IF(Data_Input_OD!D50="","",Data_Input_OD!D50) -> 44.83 | E48: =IF(Data_Input_OD!E50="","",Data_Input_OD!E50) -> 2 | F48: =IF(Data_Input_OD!I50="","",Data_Input_OD!I50) -> 44.62 | G48: =IF(Data_Input_OD!J50="","",Data_Input_OD!J50) -> 107 | H48: =IF(Data_Input_OD!K50="","",Data_Input_OD!K50) -> 45.36 | I48: =IF(Data_Input_OD!L50="","",Data_Input_OD!L50) -> 17 | J48: 0.42 | K48: 2 | L48: 0.74 | M48: 17 | N48: 0.4309044082 | O48: 31.58318035 | P48: 31.58318035 | Q48: 0.4189769011 | R48: 0.6134878037 | S48: 0.1945109026 | T48: 0.02929771897 | U48: 0.4138027486 | V48: 0.3845050296 | W48: 0.1945109026 | X48: 0.3845050296 | Y48: 0.1945109026 | Z48: 0.3845050296
A49: 47 | B49: =IF(Data_Input_OD!B51="","",Data_Input_OD!B51) -> 41.94 | C49: =IF(Data_Input_OD!C51="","",Data_Input_OD!C51) -> 68 | D49: =IF(Data_Input_OD!D51="","",Data_Input_OD!D51) -> 43.3 | E49: =IF(Data_Input_OD!E51="","",Data_Input_OD!E51) -> 158 | F49: =IF(Data_Input_OD!I51="","",Data_Input_OD!I51) -> 41.58 | G49: =IF(Data_Input_OD!J51="","",Data_Input_OD!J51) -> 81 | H49: =IF(Data_Input_OD!K51="","",Data_Input_OD!K51) -> 43.15 | I49: =IF(Data_Input_OD!L51="","",Data_Input_OD!L51) -> 171 | J49: 1.36 | K49: 158 | L49: 1.57 | M49: 171 | N49: 0.6901375984 | O49: 20.87659851 | P49: 20.87659851 | Q49: 0.9783021285 | R49: 1.493158731 | S49: 0.5148566021 | T49: -0.9447353838 | U49: -0.4851566812 | V49: 0.4595787027 | W49: 0.5148566021 | X49: 0.4595787027 | Y49: 0.5148566021 | Z49: 0.4595787027
A50: 48 | B50: =IF(Data_Input_OD!B52="","",Data_Input_OD!B52) -> 44.3 | C50: =IF(Data_Input_OD!C52="","",Data_Input_OD!C52) -> 4 | D50: =IF(Data_Input_OD!D52="","",Data_Input_OD!D52) -> 45.73 | E50: =IF(Data_Input_OD!E52="","",Data_Input_OD!E52) -> 94 | F50: =IF(Data_Input_OD!I52="","",Data_Input_OD!I52) -> 44.25 | G50: =IF(Data_Input_OD!J52="","",Data_Input_OD!J52) -> 3 | H50: =IF(Data_Input_OD!K52="","",Data_Input_OD!K52) -> 45.79 | I50: =IF(Data_Input_OD!L52="","",Data_Input_OD!L52) -> 93 | J50: 1.43 | K50: 94 | L50: 1.54 | M50: 93 | N50: 0.1215855315 | O50: -9.116940406 | P50: 80.88305959 | Q50: -1.416083338 | R50: -1.531563719 | S50: -0.1154803806 | T50: -0.1990175344 | U50: -0.1609738334 | V50: 0.03804370094 | W50: -0.1154803806 | X50: 0.03804370094 | Y50: -0.1154803806 | Z50: 0.03804370094
A51: 49 | B51: =IF(Data_Input_OD!B53="","",Data_Input_OD!B53) -> 43.85 | C51: =IF(Data_Input_OD!C53="","",Data_Input_OD!C53) -> 116 | D51: =IF(Data_Input_OD!D53="","",Data_Input_OD!D53) -> 44.43 | E51: =IF(Data_Input_OD!E53="","",Data_Input_OD!E53) -> 26 | F51: =IF(Data_Input_OD!I53="","",Data_Input_OD!I53) -> 44.1 | G51: =IF(Data_Input_OD!J53="","",Data_Input_OD!J53) -> 119 | H51: =IF(Data_Input_OD!K53="","",Data_Input_OD!K53) -> 44.28 | I51: =IF(Data_Input_OD!L53="","",Data_Input_OD!L53) -> 29 | J51: 0.58 | K51: 26 | L51: 0.18 | M51: 29 | N51: 0.401427239 | O51: 24.65676497 | P51: 114.656765 | Q51: 0.3570836557 | R51: 0.09538546756 | S51: -0.2616981881 | T51: 0.4570462371 | U51: 0.1526486573 | V51: -0.3043975798 | W51: -0.2616981881 | X51: -0.3043975798 | Y51: -0.2616981881 | Z51: -0.3043975798
A52: 50 | B52: =IF(Data_Input_OD!B54="","",Data_Input_OD!B54) -> 43.96 | C52: =IF(Data_Input_OD!C54="","",Data_Input_OD!C54) -> 153 | D52: =IF(Data_Input_OD!D54="","",Data_Input_OD!D54) -> 44.84 | E52: =IF(Data_Input_OD!E54="","",Data_Input_OD!E54) -> 63 | F52: =IF(Data_Input_OD!I54="","",Data_Input_OD!I54) -> 44.2 | G52: =IF(Data_Input_OD!J54="","",Data_Input_OD!J54) -> 155 | H52: =IF(Data_Input_OD!K54="","",Data_Input_OD!K54) -> 44.99 | I52: =IF(Data_Input_OD!L54="","",Data_Input_OD!L54) -> 65 | J52: 0.88 | K52: 63 | L52: 0.79 | M52: 65 | N52: 0.1071771642 | O52: -42.47109977 | P52: 137.5289002 | Q52: -0.517251022 | R52: -0.5078022117 | S52: 0.009448810365 | T52: 0.711934955 | U52: 0.6051751101 | V52: -0.106759845 | W52: 0.009448810365 | X52: -0.106759845 | Y52: 0.009448810365 | Z52: -0.106759845
A53: 51 | B53: =IF(Data_Input_OD!B55="","",Data_Input_OD!B55) -> 43.46 | C53: =IF(Data_Input_OD!C55="","",Data_Input_OD!C55) -> 131 | D53: =IF(Data_Input_OD!D55="","",Data_Input_OD!D55) -> 44.66 | E53: =IF(Data_Input_OD!E55="","",Data_Input_OD!E55) -> 41 | F53: =IF(Data_Input_OD!I55="","",Data_Input_OD!I55) -> 43.61 | G53: =IF(Data_Input_OD!J55="","",Data_Input_OD!J55) -> 139 | H53: =IF(Data_Input_OD!K55="","",Data_Input_OD!K55) -> 44.46 | I53: =IF(Data_Input_OD!L55="","",Data_Input_OD!L55) -> 49 | J53: 1.2 | K53: 41 | L53: 0.85 | M53: 49 | N53: 0.4489166295 | O53: 25.26994502 | P53: 115.269945 | Q53: 0.1670077212 | R53: -0.1182971358 | S53: -0.285304857 | T53: 1.188321682 | U53: 0.8417278584 | V53: -0.3465938241 | W53: -0.285304857 | X53: -0.3465938241 | Y53: -0.285304857 | Z53: -0.3465938241
A54: 52 | B54: =IF(Data_Input_OD!B56="","",Data_Input_OD!B56) -> 44.3 | C54: =IF(Data_Input_OD!C56="","",Data_Input_OD!C56) -> 168 | D54: =IF(Data_Input_OD!D56="","",Data_Input_OD!D56) -> 46.56 | E54: =IF(Data_Input_OD!E56="","",Data_Input_OD!E56) -> 78 | F54: =IF(Data_Input_OD!I56="","",Data_Input_OD!I56) -> 44.12 | G54: =IF(Data_Input_OD!J56="","",Data_Input_OD!J56) -> 169 | H54: =IF(Data_Input_OD!K56="","",Data_Input_OD!K56) -> 46.71 | I54: =IF(Data_Input_OD!L56="","",Data_Input_OD!L56) -> 79 | J54: 2.26 | K54: 78 | L54: 2.59 | M54: 79 | N54: 0.3406339182 | O54: -4.305907684 | P54: 85.69409232 | Q54: -2.064612734 | R54: -2.401406183 | S54: -0.3367934491 | T54: 0.9192248134 | U54: 0.9702310769 | V54: 0.0510062636 | W54: -0.3367934491 | X54: 0.0510062636 | Y54: -0.3367934491 | Z54: 0.0510062636
A55: 53 | B55: =IF(Data_Input_OD!B57="","",Data_Input_OD!B57) -> 44.15 | C55: =IF(Data_Input_OD!C57="","",Data_Input_OD!C57) -> 138 | D55: =IF(Data_Input_OD!D57="","",Data_Input_OD!D57) -> 44.76 | E55: =IF(Data_Input_OD!E57="","",Data_Input_OD!E57) -> 48 | F55: =IF(Data_Input_OD!I57="","",Data_Input_OD!I57) -> 44.18 | G55: =IF(Data_Input_OD!J57="","",Data_Input_OD!J57) -> 124 | H55: =IF(Data_Input_OD!K57="","",Data_Input_OD!K57) -> 44.73 | I55: =IF(Data_Input_OD!L57="","",Data_Input_OD!L57) -> 34 | J55: 0.61 | K55: 48 | L55: 0.55 | M55: 34 | N55: 0.286604545 | O55: -9.860002183 | P55: 170.1399978 | Q55: -0.06376236259 | R55: 0.2060336264 | S55: 0.269795989 | T55: 0.6066583562 | U55: 0.50995112 | V55: -0.09670723616 | W55: 0.269795989 | X55: -0.09670723616 | Y55: 0.269795989 | Z55: -0.09670723616
A56: 54 | B56: =IF(Data_Input_OD!B58="","",Data_Input_OD!B58) -> 43.96 | C56: =IF(Data_Input_OD!C58="","",Data_Input_OD!C58) -> 93 | D56: =IF(Data_Input_OD!D58="","",Data_Input_OD!D58) -> 44.91 | E56: =IF(Data_Input_OD!E58="","",Data_Input_OD!E58) -> 3 | F56: =IF(Data_Input_OD!I58="","",Data_Input_OD!I58) -> 44.02 | G56: =IF(Data_Input_OD!J58="","",Data_Input_OD!J58) -> 95 | H56: =IF(Data_Input_OD!K58="","",Data_Input_OD!K58) -> 45.05 | I56: =IF(Data_Input_OD!L58="","",Data_Input_OD!L58) -> 5 | J56: 0.95 | K56: 3 | L56: 1.03 | M56: 5 | N56: 0.105674754 | O56: 24.41824831 | P56: 24.41824831 | Q56: 0.9447958006 | R56: 1.014351986 | S56: 0.069556185 | T56: 0.0993020401 | U56: 0.178857623 | V56: 0.07955558289 | W56: 0.069556185 | X56: 0.07955558289 | Y56: 0.069556185 | Z56: 0.07955558289
A57: 55 | B57: =IF(Data_Input_OD!B59="","",Data_Input_OD!B59) -> 43.98 | C57: =IF(Data_Input_OD!C59="","",Data_Input_OD!C59) -> 133 | D57: =IF(Data_Input_OD!D59="","",Data_Input_OD!D59) -> 44.87 | E57: =IF(Data_Input_OD!E59="","",Data_Input_OD!E59) -> 43 | F57: =IF(Data_Input_OD!I59="","",Data_Input_OD!I59) -> 44.11 | G57: =IF(Data_Input_OD!J59="","",Data_Input_OD!J59) -> 145 | H57: =IF(Data_Input_OD!K59="","",Data_Input_OD!K59) -> 45.04 | I57: =IF(Data_Input_OD!L59="","",Data_Input_OD!L59) -> 55 | J57: 0.89 | K57: 43 | L57: 0.93 | M57: 55 | N57: 0.3804166787 | O57: 1.048341347 | P57: 91.04834135 | Q57: 0.06208326163 | R57: -0.3180787333 | S57: -0.3801619949 | T57: 0.8878320047 | U57: 0.8739141373 | V57: -0.0139178674 | W57: -0.3801619949 | X57: -0.0139178674 | Y57: -0.3801619949 | Z57: -0.0139178674
A58: 56 | B58: =IF(Data_Input_OD!B60="","",Data_Input_OD!B60) -> 41.99 | C58: =IF(Data_Input_OD!C60="","",Data_Input_OD!C60) -> 87 | D58: =IF(Data_Input_OD!D60="","",Data_Input_OD!D60) -> 43.17 | E58: =IF(Data_Input_OD!E60="","",Data_Input_OD!E60) -> 177 | F58: =IF(Data_Input_OD!I60="","",Data_Input_OD!I60) -> 41.81 | G58: =IF(Data_Input_OD!J60="","",Data_Input_OD!J60) -> 73 | H58: =IF(Data_Input_OD!K60="","",Data_Input_OD!K60) -> 42.98 | I58: =IF(Data_Input_OD!L60="","",Data_Input_OD!L60) -> 163 | J58: 1.18 | K58: 177 | L58: 1.17 | M58: 163 | N58: 0.5685992496 | O58: 34.51110955 | P58: 124.5111096 | Q58: 1.173535837 | R58: 0.9699739599 | S58: -0.2035618766 | T58: -0.1233435867 | U58: -0.6542556971 | V58: -0.5309121104 | W58: -0.2035618766 | X58: -0.5309121104 | Y58: -0.2035618766 | Z58: -0.5309121104
A59: 57 | B59: =IF(Data_Input_OD!B61="","",Data_Input_OD!B61) -> 45.65 | C59: =IF(Data_Input_OD!C61="","",Data_Input_OD!C61) -> 165 | D59: =IF(Data_Input_OD!D61="","",Data_Input_OD!D61) -> 46.3 | E59: =IF(Data_Input_OD!E61="","",Data_Input_OD!E61) -> 75 | F59: =IF(Data_Input_OD!I61="","",Data_Input_OD!I61) -> 45.65 | G59: =IF(Data_Input_OD!J61="","",Data_Input_OD!J61) -> 165 | H59: =IF(Data_Input_OD!K61="","",Data_Input_OD!K61) -> 46.3 | I59: =IF(Data_Input_OD!L61="","",Data_Input_OD!L61) -> 75 | J59: 0.65 | K59: 75 | L59: 0.65 | M59: 75 | N59: 0 | Q59: -0.5629165125 | R59: -0.5629165125 | S59: 0 | T59: 0.325 | U59: 0.325 | V59: 0 | W59: 0 | X59: 0 | Y59: 0 | Z59: 0
A60: 58 | B60: =IF(Data_Input_OD!B62="","",Data_Input_OD!B62) -> 43.69 | C60: =IF(Data_Input_OD!C62="","",Data_Input_OD!C62) -> 88 | D60: =IF(Data_Input_OD!D62="","",Data_Input_OD!D62) -> 44.43 | E60: =IF(Data_Input_OD!E62="","",Data_Input_OD!E62) -> 178 | F60: =IF(Data_Input_OD!I62="","",Data_Input_OD!I62) -> 44.07 | G60: =IF(Data_Input_OD!J62="","",Data_Input_OD!J62) -> 0 | H60: =IF(Data_Input_OD!K62="","",Data_Input_OD!K62) -> 44.07 | I60: =IF(Data_Input_OD!L62="","",Data_Input_OD!L62) -> 90 | J60: 0.74 | K60: 178 | L60: 0 | M60: 90 | N60: 0.74 | O60: -2 | P60: 88 | Q60: 0.7381973972 | R60: 0 | S60: -0.7381973972 | T60: -0.05161979057 | U60: 0 | V60: 0.05161979057 | W60: -0.7381973972 | X60: 0.05161979057 | Y60: -0.7381973972 | Z60: 0.05161979057
A61: 59 | B61: =IF(Data_Input_OD!B63="","",Data_Input_OD!B63) -> 44.88 | C61: =IF(Data_Input_OD!C63="","",Data_Input_OD!C63) -> 166 | D61: =IF(Data_Input_OD!D63="","",Data_Input_OD!D63) -> 45.92 | E61: =IF(Data_Input_OD!E63="","",Data_Input_OD!E63) -> 76 | F61: =IF(Data_Input_OD!I63="","",Data_Input_OD!I63) -> 44.56 | G61: =IF(Data_Input_OD!J63="","",Data_Input_OD!J63) -> 164 | H61: =IF(Data_Input_OD!K63="","",Data_Input_OD!K63) -> 46.48 | I61: =IF(Data_Input_OD!L63="","",Data_Input_OD!L63) -> 74 | J61: 1.04 | K61: 76 | L61: 1.92 | M61: 74 | N61: 0.8855101405 | O61: -18.34965437 | P61: 71.65034563 | Q61: -0.9182654966 | R61: -1.628252345 | S61: -0.709986848 | T61: 0.4882504253 | U61: 1.017444987 | V61: 0.529194562 | W61: -0.709986848 | X61: 0.529194562 | Y61: -0.709986848 | Z61: 0.529194562
A62: 60 | B62: =IF(Data_Input_OD!B64="","",Data_Input_OD!B64) -> 46.58 | C62: =IF(Data_Input_OD!C64="","",Data_Input_OD!C64) -> 157 | D62: =IF(Data_Input_OD!D64="","",Data_Input_OD!D64) -> 47.05 | E62: =IF(Data_Input_OD!E64="","",Data_Input_OD!E64) -> 67 | F62: =IF(Data_Input_OD!I64="","",Data_Input_OD!I64) -> 46.59 | G62: =IF(Data_Input_OD!J64="","",Data_Input_OD!J64) -> 168 | H62: =IF(Data_Input_OD!K64="","",Data_Input_OD!K64) -> 47.09 | I62: =IF(Data_Input_OD!L64="","",Data_Input_OD!L64) -> 78 | J62: 0.47 | K62: 67 | L62: 0.5 | M62: 78 | N62: 0.187412882 | O62: 22.97972748 | P62: 112.9797275 | Q62: -0.3264894341 | R62: -0.4567727288 | S62: -0.1302832947 | T62: 0.3380897062 | U62: 0.2033683215 | V62: -0.1347213846 | W62: -0.1302832947 | X62: -0.1347213846 | Y62: -0.1302832947 | Z62: -0.1347213846
A63: 61 | B63: =IF(Data_Input_OD!B65="","",Data_Input_OD!B65) -> 42.72 | C63: =IF(Data_Input_OD!C65="","",Data_Input_OD!C65) -> 82 | D63: =IF(Data_Input_OD!D65="","",Data_Input_OD!D65) -> 42.87 | E63: =IF(Data_Input_OD!E65="","",Data_Input_OD!E65) -> 172 | F63: =IF(Data_Input_OD!I65="","",Data_Input_OD!I65) -> 42.42 | G63: =IF(Data_Input_OD!J65="","",Data_Input_OD!J65) -> 65 | H63: =IF(Data_Input_OD!K65="","",Data_Input_OD!K65) -> 42.89 | I63: =IF(Data_Input_OD!L65="","",Data_Input_OD!L65) -> 155 | J63: 0.15 | K63: 172 | L63: 0.47 | M63: 155 | N63: 0.3556764011 | O63: -31.82025766 | P63: 148.1797423 | Q63: 0.1441892544 | R63: 0.3021101766 | S63: 0.1579209222 | T63: -0.04134560337 | U63: -0.3600408883 | V63: -0.3186952849 | W63: 0.1579209222 | X63: -0.3186952849 | Y63: 0.1579209222 | Z63: -0.3186952849
A64: 62 | B64: =IF(Data_Input_OD!B66="","",Data_Input_OD!B66) -> 45.09 | C64: =IF(Data_Input_OD!C66="","",Data_Input_OD!C66) -> 6 | D64: =IF(Data_Input_OD!D66="","",Data_Input_OD!D66) -> 45.85 | E64: =IF(Data_Input_OD!E66="","",Data_Input_OD!E66) -> 96 | F64: =IF(Data_Input_OD!I66="","",Data_Input_OD!I66) -> 44.84 | G64: =IF(Data_Input_OD!J66="","",Data_Input_OD!J66) -> 22 | H64: =IF(Data_Input_OD!K66="","",Data_Input_OD!K66) -> 45.71 | I64: =IF(Data_Input_OD!L66="","",Data_Input_OD!L66) -> 112 | J64: 0.76 | K64: 96 | L64: 0.87 | M64: 112 | N64: 0.4615638608 | O64: -37.62169508 | P64: 142.3783049 | Q64: -0.7433921766 | R64: -0.6258256263 | S64: 0.1175665503 | T64: -0.158012885 | U64: -0.6043527823 | V64: -0.4463398973 | W64: 0.1175665503 | X64: -0.4463398973 | Y64: 0.1175665503 | Z64: -0.4463398973
A65: 63 | B65: =IF(Data_Input_OD!B67="","",Data_Input_OD!B67) -> 41.47 | C65: =IF(Data_Input_OD!C67="","",Data_Input_OD!C67) -> 31 | D65: =IF(Data_Input_OD!D67="","",Data_Input_OD!D67) -> 42.72 | E65: =IF(Data_Input_OD!E67="","",Data_Input_OD!E67) -> 121 | F65: =IF(Data_Input_OD!I67="","",Data_Input_OD!I67) -> 40.79 | G65: =IF(Data_Input_OD!J67="","",Data_Input_OD!J67) -> 29 | H65: =IF(Data_Input_OD!K67="","",Data_Input_OD!K67) -> 42.19 | I65: =IF(Data_Input_OD!L67="","",Data_Input_OD!L67) -> 119 | J65: 1.25 | K65: 121 | L65: 1.4 | M65: 119 | N65: 0.1761414888 | O65: 14.16408498 | P65: 104.164085 | Q65: -0.5868394535 | R65: -0.7418869699 | S65: -0.1550475164 | T65: -1.103684491 | U65: -1.187267335 | V65: -0.08358284355 | W65: -0.1550475164 | X65: -0.08358284355 | Y65: -0.1550475164 | Z65: -0.08358284355
A66: 64 | B66: =IF(Data_Input_OD!B68="","",Data_Input_OD!B68) -> 43.8 | C66: =IF(Data_Input_OD!C68="","",Data_Input_OD!C68) -> 162 | D66: =IF(Data_Input_OD!D68="","",Data_Input_OD!D68) -> 44.44 | E66: =IF(Data_Input_OD!E68="","",Data_Input_OD!E68) -> 72 | F66: =IF(Data_Input_OD!I68="","",Data_Input_OD!I68) -> 43.68 | G66: =IF(Data_Input_OD!J68="","",Data_Input_OD!J68) -> 152 | H66: =IF(Data_Input_OD!K68="","",Data_Input_OD!K68) -> 44.02 | I66: =IF(Data_Input_OD!L68="","",Data_Input_OD!L68) -> 62 | J66: 0.64 | K66: 72 | L66: 0.34 | M66: 62 | N66: 0.3409483413 | O66: -8.028997107 | P66: 171.9710029 | Q66: -0.5177708764 | R66: -0.1901255872 | S66: 0.3276452892 | T66: 0.3761825615 | U66: 0.2818727747 | V66: -0.0943097868 | W66: 0.3276452892 | X66: -0.0943097868 | Y66: 0.3276452892 | Z66: -0.0943097868
A67: 65 | B67: =IF(Data_Input_OD!B69="","",Data_Input_OD!B69) -> 40.84 | C67: =IF(Data_Input_OD!C69="","",Data_Input_OD!C69) -> 131 | D67: =IF(Data_Input_OD!D69="","",Data_Input_OD!D69) -> 41.95 | E67: =IF(Data_Input_OD!E69="","",Data_Input_OD!E69) -> 41 | F67: =IF(Data_Input_OD!I69="","",Data_Input_OD!I69) -> 41.37 | G67: =IF(Data_Input_OD!J69="","",Data_Input_OD!J69) -> 128 | H67: =IF(Data_Input_OD!K69="","",Data_Input_OD!K69) -> 41.86 | I67: =IF(Data_Input_OD!L69="","",Data_Input_OD!L69) -> 38 | J67: 1.11 | K67: 41 | L67: 0.49 | M67: 38 | N67: 0.6247872296 | O67: 43.35114158 | P67: 133.3511416 | Q67: 0.1544821421 | R67: 0.1185417288 | S67: -0.03594041322 | T67: 1.099197556 | U67: 0.4754449059 | V67: -0.6237526504 | W67: -0.03594041322 | X67: -0.6237526504 | Y67: -0.03594041322 | Z67: -0.6237526504
A68: 66 | B68: =IF(Data_Input_OD!B70="","",Data_Input_OD!B70) -> 43.54 | C68: =IF(Data_Input_OD!C70="","",Data_Input_OD!C70) -> 18 | D68: =IF(Data_Input_OD!D70="","",Data_Input_OD!D70) -> 43.78 | E68: =IF(Data_Input_OD!E70="","",Data_Input_OD!E70) -> 108 | F68: =IF(Data_Input_OD!I70="","",Data_Input_OD!I70) -> 43.81 | G68: =IF(Data_Input_OD!J70="","",Data_Input_OD!J70) -> 26 | H68: =IF(Data_Input_OD!K70="","",Data_Input_OD!K70) -> 44.06 | I68: =IF(Data_Input_OD!L70="","",Data_Input_OD!L70) -> 116 | J68: =IFERROR(D68-B68,"") -> 0.24 | K68: =IFERROR(E68,"") -> 108 | L68: =IFERROR(H68-F68,"") -> 0.25 | M68: =IFERROR(I68,"") -> 116 | N68: =IFERROR(SQRT(Y68^2+Z68^2),"") -> 0.06891006086 | O68: =IFERROR(0.5*DEGREES((ATAN(Z68/Y68))),"") -> -27.13113126 | P68: =IFERROR(IF(Y68>0,IF(Z68>0,O68,O68+180),O68+90),"") -> 152.8688687 | Q68: =IFERROR(J68*COS(2*RADIANS(K68)),"") -> -0.1941640786 | R68: =IFERROR(L68*COS(2*RADIANS(M68)),"") -> -0.1539153688 | S68: =IFERROR(IF((Q68+R68)=0,0.0000001,-Q68+R68),"") -> 0.04024870982 | T68: =IFERROR(J68*SIN(2*RADIANS(K68)),"") -> -0.1410684606 | U68: =IFERROR(L68*SIN(2*RADIANS(M68)),"") -> -0.1970026884 | V68: =IFERROR(-T68+U68,"") -> -0.05593422785 | W68: =IFERROR(IF(ABS(S68)>$Y$1,"",IF(ABS(V68)>$Z$1,"",S68)),"") -> 0.04024870982 | X68: =IFERROR(IF(ABS(S68)>$Y$1,"",IF(ABS(V68)>$Z$1,"",V68)),"") -> -0.05593422785 | Y68: =IF(W68="",#N/A,W68) -> 0.04024870982 | Z68: -0.05593422785
A69: 67 | B69: =IF(Data_Input_OD!B71="","",Data_Input_OD!B71) -> 44.53 | C69: =IF(Data_Input_OD!C71="","",Data_Input_OD!C71) -> 129 | D69: =IF(Data_Input_OD!D71="","",Data_Input_OD!D71) -> 45.02 | E69: =IF(Data_Input_OD!E71="","",Data_Input_OD!E71) -> 39 | F69: =IF(Data_Input_OD!I71="","",Data_Input_OD!I71) -> 44.58 | G69: =IF(Data_Input_OD!J71="","",Data_Input_OD!J71) -> 128 | H69: =IF(Data_Input_OD!K71="","",Data_Input_OD!K71) -> 44.87 | I69: =IF(Data_Input_OD!L71="","",Data_Input_OD!L71) -> 38 | J69: 0.49 | K69: 39 | L69: 0.29 | M69: 38 | N69: 0.2004323501 | O69: 40.44719386 | P69: 130.4471939 | Q69: 0.1018767285 | R69: 0.07015734972 | S69: -0.03171937878 | T69: 0.4792923244 | U69: 0.2813857606 | V69: -0.1979065637 | W69: -0.03171937878 | X69: -0.1979065637 | Y69: -0.03171937878 | Z69: -0.1979065637
A70: 68 | B70: =IF(Data_Input_OD!B72="","",Data_Input_OD!B72) -> 41.94 | C70: =IF(Data_Input_OD!C72="","",Data_Input_OD!C72) -> 122 | D70: =IF(Data_Input_OD!D72="","",Data_Input_OD!D72) -> 43.91 | E70: =IF(Data_Input_OD!E72="","",Data_Input_OD!E72) -> 32 | F70: =IF(Data_Input_OD!I72="","",Data_Input_OD!I72) -> 41.73 | G70: =IF(Data_Input_OD!J72="","",Data_Input_OD!J72) -> 122 | H70: =IF(Data_Input_OD!K72="","",Data_Input_OD!K72) -> 43.85 | I70: =IF(Data_Input_OD!L72="","",Data_Input_OD!L72) -> 32 | J70: 1.97 | K70: 32 | L70: 2.12 | M70: 32 | N70: 0.15 | O70: 32 | P70: 32 | Q70: 0.8635911592 | R70: 0.9293468312 | S70: 0.06575567202 | T70: 1.770624271 | U70: 1.905443378 | V70: 0.1348191069 | W70: 0.06575567202 | X70: 0.1348191069 | Y70: 0.06575567202 | Z70: 0.1348191069
A71: 69 | B71: =IF(Data_Input_OD!B73="","",Data_Input_OD!B73) -> 41.97 | C71: =IF(Data_Input_OD!C73="","",Data_Input_OD!C73) -> 133 | D71: =IF(Data_Input_OD!D73="","",Data_Input_OD!D73) -> 42.64 | E71: =IF(Data_Input_OD!E73="","",Data_Input_OD!E73) -> 43 | F71: =IF(Data_Input_OD!I73="","",Data_Input_OD!I73) -> 42.1 | G71: =IF(Data_Input_OD!J73="","",Data_Input_OD!J73) -> 126 | H71: =IF(Data_Input_OD!K73="","",Data_Input_OD!K73) -> 42.61 | I71: =IF(Data_Input_OD!L73="","",Data_Input_OD!L73) -> 36 | J71: 0.67 | K71: 43 | L71: 0.51 | M71: 36 | N71: 0.214242621 | O71: -29.41901101 | P71: 150.580989 | Q71: 0.04673683741 | R71: 0.1575986671 | S71: 0.1108618297 | T71: 0.6683679137 | U71: 0.4850388233 | V71: -0.1833290904 | W71: 0.1108618297 | X71: -0.1833290904 | Y71: 0.1108618297 | Z71: -0.1833290904
A72: 70 | B72: =IF(Data_Input_OD!B74="","",Data_Input_OD!B74) -> 42.51 | C72: =IF(Data_Input_OD!C74="","",Data_Input_OD!C74) -> 99 | D72: =IF(Data_Input_OD!D74="","",Data_Input_OD!D74) -> 43.76 | E72: =IF(Data_Input_OD!E74="","",Data_Input_OD!E74) -> 9 | F72: =IF(Data_Input_OD!I74="","",Data_Input_OD!I74) -> 42.12 | G72: =IF(Data_Input_OD!J74="","",Data_Input_OD!J74) -> 87 | H72: =IF(Data_Input_OD!K74="","",Data_Input_OD!K74) -> 44.15 | I72: =IF(Data_Input_OD!L74="","",Data_Input_OD!L74) -> 177 | J72: 1.25 | K72: 9 | L72: 2.03 | M72: 177 | N72: 1.023306798 | O72: -17.8956117 | P72: 162.1043883 | Q72: 1.188820645 | R72: 2.018879448 | S72: 0.8300588022 | T72: 0.386271243 | U72: -0.2121927804 | V72: -0.5984640234 | W72: 0.8300588022 | X72: -0.5984640234 | Y72: 0.8300588022 | Z72: -0.5984640234
A73: 71 | B73: =IF(Data_Input_OD!B75="","",Data_Input_OD!B75) -> 40.95 | C73: =IF(Data_Input_OD!C75="","",Data_Input_OD!C75) -> 5 | D73: =IF(Data_Input_OD!D75="","",Data_Input_OD!D75) -> 43.55 | E73: =IF(Data_Input_OD!E75="","",Data_Input_OD!E75) -> 95 | F73: =IF(Data_Input_OD!I75="","",Data_Input_OD!I75) -> 40.95 | G73: =IF(Data_Input_OD!J75="","",Data_Input_OD!J75) -> 5 | H73: =IF(Data_Input_OD!K75="","",Data_Input_OD!K75) -> 43.55 | I73: =IF(Data_Input_OD!L75="","",Data_Input_OD!L75) -> 95 | J73: 2.6 | K73: 95 | L73: 2.6 | M73: 95 | N73: 0 | Q73: -2.560500158 | R73: -2.560500158 | S73: 0 | T73: -0.4514852619 | U73: -0.4514852619 | V73: 0 | W73: 0 | X73: 0 | Y73: 0 | Z73: 0
A74: 72 | B74: =IF(Data_Input_OD!B76="","",Data_Input_OD!B76) -> 38.96 | C74: =IF(Data_Input_OD!C76="","",Data_Input_OD!C76) -> 91 | D74: =IF(Data_Input_OD!D76="","",Data_Input_OD!D76) -> 48 | E74: =IF(Data_Input_OD!E76="","",Data_Input_OD!E76) -> 1 | F74: =IF(Data_Input_OD!I76="","",Data_Input_OD!I76) -> 39.04 | G74: =IF(Data_Input_OD!J76="","",Data_Input_OD!J76) -> 93 | H74: =IF(Data_Input_OD!K76="","",Data_Input_OD!K76) -> 47.7 | I74: =IF(Data_Input_OD!L76="","",Data_Input_OD!L76) -> 3 | J74: 9.04 | K74: 1 | L74: 8.66 | M74: 3 | N74: 0.7251230733 | O74: -27.20861557 | P74: 62.79138443 | Q74: 9.034493076 | R74: 8.612559614 | S74: -0.4219334624 | T74: 0.3154914502 | U74: 0.9052164919 | V74: 0.5897250417 | W74: -0.4219334624 | X74: 0.5897250417 | Y74: -0.4219334624 | Z74: 0.5897250417
A75: 73 | B75: =IF(Data_Input_OD!B77="","",Data_Input_OD!B77) -> 41.39 | C75: =IF(Data_Input_OD!C77="","",Data_Input_OD!C77) -> 150 | D75: =IF(Data_Input_OD!D77="","",Data_Input_OD!D77) -> 43.97 | E75: =IF(Data_Input_OD!E77="","",Data_Input_OD!E77) -> 60 | F75: =IF(Data_Input_OD!I77="","",Data_Input_OD!I77) -> 41.35 | G75: =IF(Data_Input_OD!J77="","",Data_Input_OD!J77) -> 146 | H75: =IF(Data_Input_OD!K77="","",Data_Input_OD!K77) -> 43.79 | I75: =IF(Data_Input_OD!L77="","",Data_Input_OD!L77) -> 56 | J75: 2.58 | K75: 60 | L75: 2.44 | M75: 56 | N75: 0.3769998771 | O75: 2.128365838 | P75: 2.128365838 | Q75: -1.29 | R75: -0.9140400879 | S75: 0.3759599121 | T75: 2.234345542 | U75: 2.262328605 | V75: 0.02798306338 | W75: 0.3759599121 | X75: 0.02798306338 | Y75: 0.3759599121 | Z75: 0.02798306338
A76: 74 | B76: =IF(Data_Input_OD!B78="","",Data_Input_OD!B78) -> 43.98 | C76: =IF(Data_Input_OD!C78="","",Data_Input_OD!C78) -> 16 | D76: =IF(Data_Input_OD!D78="","",Data_Input_OD!D78) -> 45.26 | E76: =IF(Data_Input_OD!E78="","",Data_Input_OD!E78) -> 106 | F76: =IF(Data_Input_OD!I78="","",Data_Input_OD!I78) -> 43.74 | G76: =IF(Data_Input_OD!J78="","",Data_Input_OD!J78) -> 11 | H76: =IF(Data_Input_OD!K78="","",Data_Input_OD!K78) -> 45.51 | I76: =IF(Data_Input_OD!L78="","",Data_Input_OD!L78) -> 101 | J76: 1.28 | K76: 106 | L76: 1.77 | M76: 101 | N76: 0.555822912 | O76: -0.785743412 | P76: 89.21425659 | Q76: -1.085501563 | R76: -1.641115423 | S76: -0.5556138595 | T76: -0.6782966582 | U76: -0.6630536703 | V76: 0.01524298787 | W76: -0.5556138595 | X76: 0.01524298787 | Y76: -0.5556138595 | Z76: 0.01524298787
A77: 75 | B77: =IF(Data_Input_OD!B79="","",Data_Input_OD!B79) -> 40.1 | C77: =IF(Data_Input_OD!C79="","",Data_Input_OD!C79) -> 39 | D77: =IF(Data_Input_OD!D79="","",Data_Input_OD!D79) -> 42.17 | E77: =IF(Data_Input_OD!E79="","",Data_Input_OD!E79) -> 129 | F77: =IF(Data_Input_OD!I79="","",Data_Input_OD!I79) -> 40.67 | G77: =IF(Data_Input_OD!J79="","",Data_Input_OD!J79) -> 156 | H77: =IF(Data_Input_OD!K79="","",Data_Input_OD!K79) -> 42.27 | I77: =IF(Data_Input_OD!L79="","",Data_Input_OD!L79) -> 66 | J77: 2.07 | K77: 129 | L77: 1.6 | M77: 66 | Q77: -0.4303772 | R77: -1.07060897 | S77: -0.6402317702 | T77: -2.024765534 | U77: 1.189031721 | V77: 3.213797254
A78: 76 | B78: =IF(Data_Input_OD!B80="","",Data_Input_OD!B80) -> 46.04 | C78: =IF(Data_Input_OD!C80="","",Data_Input_OD!C80) -> 50 | D78: =IF(Data_Input_OD!D80="","",Data_Input_OD!D80) -> 50.02 | E78: =IF(Data_Input_OD!E80="","",Data_Input_OD!E80) -> 140 | F78: =IF(Data_Input_OD!I80="","",Data_Input_OD!I80) -> 45.42 | G78: =IF(Data_Input_OD!J80="","",Data_Input_OD!J80) -> 48 | H78: =IF(Data_Input_OD!K80="","",Data_Input_OD!K80) -> 50.04 | I78: =IF(Data_Input_OD!L80="","",Data_Input_OD!L80) -> 138 | J78: 3.98 | K78: 140 | L78: 4.62 | M78: 138 | N78: 0.7065285124 | O78: 36.43089195 | P78: 126.430892 | Q78: 0.6911197471 | R78: 0.4829215003 | S78: -0.2081982468 | T78: -3.919534857 | U78: -4.594691157 | V78: -0.6751562996 | W78: -0.2081982468 | X78: -0.6751562996 | Y78: -0.2081982468 | Z78: -0.6751562996
A79: 77 | B79: =IF(Data_Input_OD!B81="","",Data_Input_OD!B81) -> 44.33 | C79: =IF(Data_Input_OD!C81="","",Data_Input_OD!C81) -> 76 | D79: =IF(Data_Input_OD!D81="","",Data_Input_OD!D81) -> 46.33 | E79: =IF(Data_Input_OD!E81="","",Data_Input_OD!E81) -> 166 | F79: =IF(Data_Input_OD!I81="","",Data_Input_OD!I81) -> 44.57 | G79: =IF(Data_Input_OD!J81="","",Data_Input_OD!J81) -> 65 | H79: =IF(Data_Input_OD!K81="","",Data_Input_OD!K81) -> 46.11 | I79: =IF(Data_Input_OD!L81="","",Data_Input_OD!L81) -> 155 | J79: 2 | K79: 166 | L79: 1.54 | M79: 155 | N79: 0.8124945882 | O79: 8.618609102 | P79: 98.6186091 | Q79: 1.765895186 | R79: 0.9898929189 | S79: -0.7760022668 | T79: -0.9389431256 | U79: -1.179708442 | V79: -0.2407653168 | W79: -0.7760022668 | X79: -0.2407653168 | Y79: -0.7760022668 | Z79: -0.2407653168
A80: 78 | B80: =IF(Data_Input_OD!B82="","",Data_Input_OD!B82) -> 42.23 | C80: =IF(Data_Input_OD!C82="","",Data_Input_OD!C82) -> 170 | D80: =IF(Data_Input_OD!D82="","",Data_Input_OD!D82) -> 44.61 | E80: =IF(Data_Input_OD!E82="","",Data_Input_OD!E82) -> 80 | F80: =IF(Data_Input_OD!I82="","",Data_Input_OD!I82) -> 42.3 | G80: =IF(Data_Input_OD!J82="","",Data_Input_OD!J82) -> 173 | H80: =IF(Data_Input_OD!K82="","",Data_Input_OD!K82) -> 44.85 | I80: =IF(Data_Input_OD!L82="","",Data_Input_OD!L82) -> 83 | J80: 2.38 | K80: 80 | L80: 2.55 | M80: 83 | N80: 0.3088579512 | O80: 19.82813696 | P80: 109.828137 | Q80: -2.236468437 | R80: -2.474254102 | S80: -0.2377856645 | T80: 0.8140079411 | U80: 0.6169008338 | V80: -0.1971071073 | W80: -0.2377856645 | X80: -0.1971071073 | Y80: -0.2377856645 | Z80: -0.1971071073
A81: 79 | B81: =IF(Data_Input_OD!B83="","",Data_Input_OD!B83) -> 44.06 | C81: =IF(Data_Input_OD!C83="","",Data_Input_OD!C83) -> 88 | D81: =IF(Data_Input_OD!D83="","",Data_Input_OD!D83) -> 45.5 | E81: =IF(Data_Input_OD!E83="","",Data_Input_OD!E83) -> 178 | F81: =IF(Data_Input_OD!I83="","",Data_Input_OD!I83) -> 44.35 | G81: =IF(Data_Input_OD!J83="","",Data_Input_OD!J83) -> 82 | H81: =IF(Data_Input_OD!K83="","",Data_Input_OD!K83) -> 45.56 | I81: =IF(Data_Input_OD!L83="","",Data_Input_OD!L83) -> 172 | J81: 1.44 | K81: 178 | L81: 1.21 | M81: 172 | N81: 0.3592370262 | O81: 20.22547828 | P81: 110.2254783 | Q81: 1.436492232 | R81: 1.163126652 | S81: -0.2733655803 | T81: -0.1004493222 | U81: -0.3335212005 | V81: -0.2330718783 | W81: -0.2733655803 | X81: -0.2330718783 | Y81: -0.2733655803 | Z81: -0.2330718783
A82: 80 | B82: =IF(Data_Input_OD!B84="","",Data_Input_OD!B84) -> 45.62 | C82: =IF(Data_Input_OD!C84="","",Data_Input_OD!C84) -> 103 | D82: =IF(Data_Input_OD!D84="","",Data_Input_OD!D84) -> 46.85 | E82: =IF(Data_Input_OD!E84="","",Data_Input_OD!E84) -> 13 | F82: =IF(Data_Input_OD!I84="","",Data_Input_OD!I84) -> 45.45 | G82: =IF(Data_Input_OD!J84="","",Data_Input_OD!J84) -> 100 | H82: =IF(Data_Input_OD!K84="","",Data_Input_OD!K84) -> 46.69 | I82: =IF(Data_Input_OD!L84="","",Data_Input_OD!L84) -> 10 | J82: 1.23 | K82: 13 | L82: 1.24 | M82: 10 | N82: 0.1296549666 | O82: -31.29129241 | P82: 148.7087076 | Q82: 1.105516677 | R82: 1.16521885 | S82: 0.05970217283 | T82: 0.5391965106 | U82: 0.4241049777 | V82: -0.1150915328 | W82: 0.05970217283 | X82: -0.1150915328 | Y82: 0.05970217283 | Z82: -0.1150915328
A83: 81 | B83: =IF(Data_Input_OD!B85="","",Data_Input_OD!B85) -> 43.42 | C83: =IF(Data_Input_OD!C85="","",Data_Input_OD!C85) -> 97 | D83: =IF(Data_Input_OD!D85="","",Data_Input_OD!D85) -> 44.97 | E83: =IF(Data_Input_OD!E85="","",Data_Input_OD!E85) -> 7 | F83: =IF(Data_Input_OD!I85="","",Data_Input_OD!I85) -> 43.55 | G83: =IF(Data_Input_OD!J85="","",Data_Input_OD!J85) -> 90 | H83: =IF(Data_Input_OD!K85="","",Data_Input_OD!K85) -> 44.72 | I83: =IF(Data_Input_OD!L85="","",Data_Input_OD!L85) -> 180 | J83: 1.55 | K83: 7 | L83: 1.17 | M83: 180 | N83: 0.5021328517 | O83: 24.15577926 | P83: 114.1557793 | Q83: 1.503958376 | R83: 1.17 | S83: -0.3339583757 | T83: 0.3749789382 | U83: -2.866847384e-16 | V83: -0.3749789382 | W83: -0.3339583757 | X83: -0.3749789382 | Y83: -0.3339583757 | Z83: -0.3749789382
A84: 82 | B84: =IF(Data_Input_OD!B86="","",Data_Input_OD!B86) -> 39.81 | C84: =IF(Data_Input_OD!C86="","",Data_Input_OD!C86) -> 178 | D84: =IF(Data_Input_OD!D86="","",Data_Input_OD!D86) -> 42.17 | E84: =IF(Data_Input_OD!E86="","",Data_Input_OD!E86) -> 88 | F84: =IF(Data_Input_OD!I86="","",Data_Input_OD!I86) -> 40.2 | G84: =IF(Data_Input_OD!J86="","",Data_Input_OD!J86) -> 179 | H84: =IF(Data_Input_OD!K86="","",Data_Input_OD!K86) -> 42.01 | I84: =IF(Data_Input_OD!L86="","",Data_Input_OD!L86) -> 89 | J84: 2.36 | K84: 88 | L84: 1.81 | M84: 89 | N84: 0.5547109938 | O84: -5.269389991 | P84: 174.73061 | Q84: -2.354251159 | R84: -1.808897397 | S84: 0.5453537617 | T84: 0.164625278 | U84: 0.06316808903 | V84: -0.101457189 | W84: 0.5453537617 | X84: -0.101457189 | Y84: 0.5453537617 | Z84: -0.101457189
A85: 83 | B85: =IF(Data_Input_OD!B87="","",Data_Input_OD!B87) -> 44.7 | C85: =IF(Data_Input_OD!C87="","",Data_Input_OD!C87) -> 97 | D85: =IF(Data_Input_OD!D87="","",Data_Input_OD!D87) -> 44.98 | E85: =IF(Data_Input_OD!E87="","",Data_Input_OD!E87) -> 7 | F85: =IF(Data_Input_OD!I87="","",Data_Input_OD!I87) -> 44.56 | G85: =IF(Data_Input_OD!J87="","",Data_Input_OD!J87) -> 108 | H85: =IF(Data_Input_OD!K87="","",Data_Input_OD!K87) -> 45.03 | I85: =IF(Data_Input_OD!L87="","",Data_Input_OD!L87) -> 18 | J85: 0.28 | K85: 7 | L85: 0.47 | M85: 18 | N85: 0.2350855365 | O85: 31.24934556 | P85: 31.24934556 | Q85: 0.2716828034 | R85: 0.3802379874 | S85: 0.108555184 | T85: 0.06773813077 | U85: 0.2762590686 | V85: 0.2085209378 | W85: 0.108555184 | X85: 0.2085209378 | Y85: 0.108555184 | Z85: 0.2085209378
A86: 84 | B86: =IF(Data_Input_OD!B88="","",Data_Input_OD!B88) ->  | C86: =IF(Data_Input_OD!C88="","",Data_Input_OD!C88) ->  | D86: =IF(Data_Input_OD!D88="","",Data_Input_OD!D88) ->  | E86: =IF(Data_Input_OD!E88="","",Data_Input_OD!E88) ->  | F86: =IF(Data_Input_OD!I88="","",Data_Input_OD!I88) ->  | G86: =IF(Data_Input_OD!J88="","",Data_Input_OD!J88) ->  | H86: =IF(Data_Input_OD!K88="","",Data_Input_OD!K88) ->  | I86: =IF(Data_Input_OD!L88="","",Data_Input_OD!L88) -> 
A87: 85 | B87: =IF(Data_Input_OD!B89="","",Data_Input_OD!B89) ->  | C87: =IF(Data_Input_OD!C89="","",Data_Input_OD!C89) ->  | D87: =IF(Data_Input_OD!D89="","",Data_Input_OD!D89) ->  | E87: =IF(Data_Input_OD!E89="","",Data_Input_OD!E89) ->  | F87: =IF(Data_Input_OD!I89="","",Data_Input_OD!I89) ->  | G87: =IF(Data_Input_OD!J89="","",Data_Input_OD!J89) ->  | H87: =IF(Data_Input_OD!K89="","",Data_Input_OD!K89) ->  | I87: =IF(Data_Input_OD!L89="","",Data_Input_OD!L89) -> 
A88: 86 | B88: =IF(Data_Input_OD!B90="","",Data_Input_OD!B90) ->  | C88: =IF(Data_Input_OD!C90="","",Data_Input_OD!C90) ->  | D88: =IF(Data_Input_OD!D90="","",Data_Input_OD!D90) ->  | E88: =IF(Data_Input_OD!E90="","",Data_Input_OD!E90) ->  | F88: =IF(Data_Input_OD!I90="","",Data_Input_OD!I90) ->  | G88: =IF(Data_Input_OD!J90="","",Data_Input_OD!J90) ->  | H88: =IF(Data_Input_OD!K90="","",Data_Input_OD!K90) ->  | I88: =IF(Data_Input_OD!L90="","",Data_Input_OD!L90) -> 
A89: 87 | B89: =IF(Data_Input_OD!B91="","",Data_Input_OD!B91) ->  | C89: =IF(Data_Input_OD!C91="","",Data_Input_OD!C91) ->  | D89: =IF(Data_Input_OD!D91="","",Data_Input_OD!D91) ->  | E89: =IF(Data_Input_OD!E91="","",Data_Input_OD!E91) ->  | F89: =IF(Data_Input_OD!I91="","",Data_Input_OD!I91) ->  | G89: =IF(Data_Input_OD!J91="","",Data_Input_OD!J91) ->  | H89: =IF(Data_Input_OD!K91="","",Data_Input_OD!K91) ->  | I89: =IF(Data_Input_OD!L91="","",Data_Input_OD!L91) -> 
A90: 88 | B90: =IF(Data_Input_OD!B92="","",Data_Input_OD!B92) ->  | C90: =IF(Data_Input_OD!C92="","",Data_Input_OD!C92) ->  | D90: =IF(Data_Input_OD!D92="","",Data_Input_OD!D92) ->  | E90: =IF(Data_Input_OD!E92="","",Data_Input_OD!E92) ->  | F90: =IF(Data_Input_OD!I92="","",Data_Input_OD!I92) ->  | G90: =IF(Data_Input_OD!J92="","",Data_Input_OD!J92) ->  | H90: =IF(Data_Input_OD!K92="","",Data_Input_OD!K92) ->  | I90: =IF(Data_Input_OD!L92="","",Data_Input_OD!L92) -> 
A91: 89 | B91: =IF(Data_Input_OD!B93="","",Data_Input_OD!B93) ->  | C91: =IF(Data_Input_OD!C93="","",Data_Input_OD!C93) ->  | D91: =IF(Data_Input_OD!D93="","",Data_Input_OD!D93) ->  | E91: =IF(Data_Input_OD!E93="","",Data_Input_OD!E93) ->  | F91: =IF(Data_Input_OD!I93="","",Data_Input_OD!I93) ->  | G91: =IF(Data_Input_OD!J93="","",Data_Input_OD!J93) ->  | H91: =IF(Data_Input_OD!K93="","",Data_Input_OD!K93) ->  | I91: =IF(Data_Input_OD!L93="","",Data_Input_OD!L93) -> 
A92: 90 | B92: =IF(Data_Input_OD!B94="","",Data_Input_OD!B94) ->  | C92: =IF(Data_Input_OD!C94="","",Data_Input_OD!C94) ->  | D92: =IF(Data_Input_OD!D94="","",Data_Input_OD!D94) ->  | E92: =IF(Data_Input_OD!E94="","",Data_Input_OD!E94) ->  | F92: =IF(Data_Input_OD!I94="","",Data_Input_OD!I94) ->  | G92: =IF(Data_Input_OD!J94="","",Data_Input_OD!J94) ->  | H92: =IF(Data_Input_OD!K94="","",Data_Input_OD!K94) ->  | I92: =IF(Data_Input_OD!L94="","",Data_Input_OD!L94) -> 
A93: 91 | B93: =IF(Data_Input_OD!B95="","",Data_Input_OD!B95) ->  | C93: =IF(Data_Input_OD!C95="","",Data_Input_OD!C95) ->  | D93: =IF(Data_Input_OD!D95="","",Data_Input_OD!D95) ->  | E93: =IF(Data_Input_OD!E95="","",Data_Input_OD!E95) ->  | F93: =IF(Data_Input_OD!I95="","",Data_Input_OD!I95) ->  | G93: =IF(Data_Input_OD!J95="","",Data_Input_OD!J95) ->  | H93: =IF(Data_Input_OD!K95="","",Data_Input_OD!K95) ->  | I93: =IF(Data_Input_OD!L95="","",Data_Input_OD!L95) -> 
A94: 92 | B94: =IF(Data_Input_OD!B96="","",Data_Input_OD!B96) ->  | C94: =IF(Data_Input_OD!C96="","",Data_Input_OD!C96) ->  | D94: =IF(Data_Input_OD!D96="","",Data_Input_OD!D96) ->  | E94: =IF(Data_Input_OD!E96="","",Data_Input_OD!E96) ->  | F94: =IF(Data_Input_OD!I96="","",Data_Input_OD!I96) ->  | G94: =IF(Data_Input_OD!J96="","",Data_Input_OD!J96) ->  | H94: =IF(Data_Input_OD!K96="","",Data_Input_OD!K96) ->  | I94: =IF(Data_Input_OD!L96="","",Data_Input_OD!L96) -> 
A95: 93 | B95: =IF(Data_Input_OD!B97="","",Data_Input_OD!B97) ->  | C95: =IF(Data_Input_OD!C97="","",Data_Input_OD!C97) ->  | D95: =IF(Data_Input_OD!D97="","",Data_Input_OD!D97) ->  | E95: =IF(Data_Input_OD!E97="","",Data_Input_OD!E97) ->  | F95: =IF(Data_Input_OD!I97="","",Data_Input_OD!I97) ->  | G95: =IF(Data_Input_OD!J97="","",Data_Input_OD!J97) ->  | H95: =IF(Data_Input_OD!K97="","",Data_Input_OD!K97) ->  | I95: =IF(Data_Input_OD!L97="","",Data_Input_OD!L97) -> 
A96: 94 | B96: =IF(Data_Input_OD!B98="","",Data_Input_OD!B98) ->  | C96: =IF(Data_Input_OD!C98="","",Data_Input_OD!C98) ->  | D96: =IF(Data_Input_OD!D98="","",Data_Input_OD!D98) ->  | E96: =IF(Data_Input_OD!E98="","",Data_Input_OD!E98) ->  | F96: =IF(Data_Input_OD!I98="","",Data_Input_OD!I98) ->  | G96: =IF(Data_Input_OD!J98="","",Data_Input_OD!J98) ->  | H96: =IF(Data_Input_OD!K98="","",Data_Input_OD!K98) ->  | I96: =IF(Data_Input_OD!L98="","",Data_Input_OD!L98) -> 
A97: 95 | B97: =IF(Data_Input_OD!B99="","",Data_Input_OD!B99) ->  | C97: =IF(Data_Input_OD!C99="","",Data_Input_OD!C99) ->  | D97: =IF(Data_Input_OD!D99="","",Data_Input_OD!D99) ->  | E97: =IF(Data_Input_OD!E99="","",Data_Input_OD!E99) ->  | F97: =IF(Data_Input_OD!I99="","",Data_Input_OD!I99) ->  | G97: =IF(Data_Input_OD!J99="","",Data_Input_OD!J99) ->  | H97: =IF(Data_Input_OD!K99="","",Data_Input_OD!K99) ->  | I97: =IF(Data_Input_OD!L99="","",Data_Input_OD!L99) -> 
A98: 96 | B98: =IF(Data_Input_OD!B100="","",Data_Input_OD!B100) ->  | C98: =IF(Data_Input_OD!C100="","",Data_Input_OD!C100) ->  | D98: =IF(Data_Input_OD!D100="","",Data_Input_OD!D100) ->  | E98: =IF(Data_Input_OD!E100="","",Data_Input_OD!E100) ->  | F98: =IF(Data_Input_OD!I100="","",Data_Input_OD!I100) ->  | G98: =IF(Data_Input_OD!J100="","",Data_Input_OD!J100) ->  | H98: =IF(Data_Input_OD!K100="","",Data_Input_OD!K100) ->  | I98: =IF(Data_Input_OD!L100="","",Data_Input_OD!L100) -> 
A99: 97 | B99: =IF(Data_Input_OD!B101="","",Data_Input_OD!B101) ->  | C99: =IF(Data_Input_OD!C101="","",Data_Input_OD!C101) ->  | D99: =IF(Data_Input_OD!D101="","",Data_Input_OD!D101) ->  | E99: =IF(Data_Input_OD!E101="","",Data_Input_OD!E101) ->  | F99: =IF(Data_Input_OD!I101="","",Data_Input_OD!I101) ->  | G99: =IF(Data_Input_OD!J101="","",Data_Input_OD!J101) ->  | H99: =IF(Data_Input_OD!K101="","",Data_Input_OD!K101) ->  | I99: =IF(Data_Input_OD!L101="","",Data_Input_OD!L101) -> 
A100: 98 | B100: =IF(Data_Input_OD!B102="","",Data_Input_OD!B102) ->  | C100: =IF(Data_Input_OD!C102="","",Data_Input_OD!C102) ->  | D100: =IF(Data_Input_OD!D102="","",Data_Input_OD!D102) ->  | E100: =IF(Data_Input_OD!E102="","",Data_Input_OD!E102) ->  | F100: =IF(Data_Input_OD!I102="","",Data_Input_OD!I102) ->  | G100: =IF(Data_Input_OD!J102="","",Data_Input_OD!J102) ->  | H100: =IF(Data_Input_OD!K102="","",Data_Input_OD!K102) ->  | I100: =IF(Data_Input_OD!L102="","",Data_Input_OD!L102) -> 
A101: 99 | B101: =IF(Data_Input_OD!B103="","",Data_Input_OD!B103) ->  | C101: =IF(Data_Input_OD!C103="","",Data_Input_OD!C103) ->  | D101: =IF(Data_Input_OD!D103="","",Data_Input_OD!D103) ->  | E101: =IF(Data_Input_OD!E103="","",Data_Input_OD!E103) ->  | F101: =IF(Data_Input_OD!I103="","",Data_Input_OD!I103) ->  | G101: =IF(Data_Input_OD!J103="","",Data_Input_OD!J103) ->  | H101: =IF(Data_Input_OD!K103="","",Data_Input_OD!K103) ->  | I101: =IF(Data_Input_OD!L103="","",Data_Input_OD!L103) -> 
A102: 100 | B102: =IF(Data_Input_OD!B104="","",Data_Input_OD!B104) ->  | C102: =IF(Data_Input_OD!C104="","",Data_Input_OD!C104) ->  | D102: =IF(Data_Input_OD!D104="","",Data_Input_OD!D104) ->  | E102: =IF(Data_Input_OD!E104="","",Data_Input_OD!E104) ->  | F102: =IF(Data_Input_OD!I104="","",Data_Input_OD!I104) ->  | G102: =IF(Data_Input_OD!J104="","",Data_Input_OD!J104) ->  | H102: =IF(Data_Input_OD!K104="","",Data_Input_OD!K104) ->  | I102: =IF(Data_Input_OD!L104="","",Data_Input_OD!L104) -> 
A103: 101 | B103: =IF(Data_Input_OD!B105="","",Data_Input_OD!B105) ->  | C103: =IF(Data_Input_OD!C105="","",Data_Input_OD!C105) ->  | D103: =IF(Data_Input_OD!D105="","",Data_Input_OD!D105) ->  | E103: =IF(Data_Input_OD!E105="","",Data_Input_OD!E105) ->  | F103: =IF(Data_Input_OD!I105="","",Data_Input_OD!I105) ->  | G103: =IF(Data_Input_OD!J105="","",Data_Input_OD!J105) ->  | H103: =IF(Data_Input_OD!K105="","",Data_Input_OD!K105) ->  | I103: =IF(Data_Input_OD!L105="","",Data_Input_OD!L105) -> 
A104: 102 | B104: =IF(Data_Input_OD!B106="","",Data_Input_OD!B106) ->  | C104: =IF(Data_Input_OD!C106="","",Data_Input_OD!C106) ->  | D104: =IF(Data_Input_OD!D106="","",Data_Input_OD!D106) ->  | E104: =IF(Data_Input_OD!E106="","",Data_Input_OD!E106) ->  | F104: =IF(Data_Input_OD!I106="","",Data_Input_OD!I106) ->  | G104: =IF(Data_Input_OD!J106="","",Data_Input_OD!J106) ->  | H104: =IF(Data_Input_OD!K106="","",Data_Input_OD!K106) ->  | I104: =IF(Data_Input_OD!L106="","",Data_Input_OD!L106) -> 
A105: 103 | B105: =IF(Data_Input_OD!B107="","",Data_Input_OD!B107) ->  | C105: =IF(Data_Input_OD!C107="","",Data_Input_OD!C107) ->  | D105: =IF(Data_Input_OD!D107="","",Data_Input_OD!D107) ->  | E105: =IF(Data_Input_OD!E107="","",Data_Input_OD!E107) ->  | F105: =IF(Data_Input_OD!I107="","",Data_Input_OD!I107) ->  | G105: =IF(Data_Input_OD!J107="","",Data_Input_OD!J107) ->  | H105: =IF(Data_Input_OD!K107="","",Data_Input_OD!K107) ->  | I105: =IF(Data_Input_OD!L107="","",Data_Input_OD!L107) -> 
A106: 104 | B106: =IF(Data_Input_OD!B108="","",Data_Input_OD!B108) ->  | C106: =IF(Data_Input_OD!C108="","",Data_Input_OD!C108) ->  | D106: =IF(Data_Input_OD!D108="","",Data_Input_OD!D108) ->  | E106: =IF(Data_Input_OD!E108="","",Data_Input_OD!E108) ->  | F106: =IF(Data_Input_OD!I108="","",Data_Input_OD!I108) ->  | G106: =IF(Data_Input_OD!J108="","",Data_Input_OD!J108) ->  | H106: =IF(Data_Input_OD!K108="","",Data_Input_OD!K108) ->  | I106: =IF(Data_Input_OD!L108="","",Data_Input_OD!L108) -> 
A107: 105 | B107: =IF(Data_Input_OD!B109="","",Data_Input_OD!B109) ->  | C107: =IF(Data_Input_OD!C109="","",Data_Input_OD!C109) ->  | D107: =IF(Data_Input_OD!D109="","",Data_Input_OD!D109) ->  | E107: =IF(Data_Input_OD!E109="","",Data_Input_OD!E109) ->  | F107: =IF(Data_Input_OD!I109="","",Data_Input_OD!I109) ->  | G107: =IF(Data_Input_OD!J109="","",Data_Input_OD!J109) ->  | H107: =IF(Data_Input_OD!K109="","",Data_Input_OD!K109) ->  | I107: =IF(Data_Input_OD!L109="","",Data_Input_OD!L109) -> 
A108: 106 | B108: =IF(Data_Input_OD!B110="","",Data_Input_OD!B110) ->  | C108: =IF(Data_Input_OD!C110="","",Data_Input_OD!C110) ->  | D108: =IF(Data_Input_OD!D110="","",Data_Input_OD!D110) ->  | E108: =IF(Data_Input_OD!E110="","",Data_Input_OD!E110) ->  | F108: =IF(Data_Input_OD!I110="","",Data_Input_OD!I110) ->  | G108: =IF(Data_Input_OD!J110="","",Data_Input_OD!J110) ->  | H108: =IF(Data_Input_OD!K110="","",Data_Input_OD!K110) ->  | I108: =IF(Data_Input_OD!L110="","",Data_Input_OD!L110) -> 
A109: 107 | B109: =IF(Data_Input_OD!B111="","",Data_Input_OD!B111) ->  | C109: =IF(Data_Input_OD!C111="","",Data_Input_OD!C111) ->  | D109: =IF(Data_Input_OD!D111="","",Data_Input_OD!D111) ->  | E109: =IF(Data_Input_OD!E111="","",Data_Input_OD!E111) ->  | F109: =IF(Data_Input_OD!I111="","",Data_Input_OD!I111) ->  | G109: =IF(Data_Input_OD!J111="","",Data_Input_OD!J111) ->  | H109: =IF(Data_Input_OD!K111="","",Data_Input_OD!K111) ->  | I109: =IF(Data_Input_OD!L111="","",Data_Input_OD!L111) -> 
A110: 108 | B110: =IF(Data_Input_OD!B112="","",Data_Input_OD!B112) ->  | C110: =IF(Data_Input_OD!C112="","",Data_Input_OD!C112) ->  | D110: =IF(Data_Input_OD!D112="","",Data_Input_OD!D112) ->  | E110: =IF(Data_Input_OD!E112="","",Data_Input_OD!E112) ->  | F110: =IF(Data_Input_OD!I112="","",Data_Input_OD!I112) ->  | G110: =IF(Data_Input_OD!J112="","",Data_Input_OD!J112) ->  | H110: =IF(Data_Input_OD!K112="","",Data_Input_OD!K112) ->  | I110: =IF(Data_Input_OD!L112="","",Data_Input_OD!L112) -> 
A111: 109 | B111: =IF(Data_Input_OD!B113="","",Data_Input_OD!B113) ->  | C111: =IF(Data_Input_OD!C113="","",Data_Input_OD!C113) ->  | D111: =IF(Data_Input_OD!D113="","",Data_Input_OD!D113) ->  | E111: =IF(Data_Input_OD!E113="","",Data_Input_OD!E113) ->  | F111: =IF(Data_Input_OD!I113="","",Data_Input_OD!I113) ->  | G111: =IF(Data_Input_OD!J113="","",Data_Input_OD!J113) ->  | H111: =IF(Data_Input_OD!K113="","",Data_Input_OD!K113) ->  | I111: =IF(Data_Input_OD!L113="","",Data_Input_OD!L113) -> 
A112: 110 | B112: =IF(Data_Input_OD!B114="","",Data_Input_OD!B114) ->  | C112: =IF(Data_Input_OD!C114="","",Data_Input_OD!C114) ->  | D112: =IF(Data_Input_OD!D114="","",Data_Input_OD!D114) ->  | E112: =IF(Data_Input_OD!E114="","",Data_Input_OD!E114) ->  | F112: =IF(Data_Input_OD!I114="","",Data_Input_OD!I114) ->  | G112: =IF(Data_Input_OD!J114="","",Data_Input_OD!J114) ->  | H112: =IF(Data_Input_OD!K114="","",Data_Input_OD!K114) ->  | I112: =IF(Data_Input_OD!L114="","",Data_Input_OD!L114) -> 
A113: 111 | B113: =IF(Data_Input_OD!B115="","",Data_Input_OD!B115) ->  | C113: =IF(Data_Input_OD!C115="","",Data_Input_OD!C115) ->  | D113: =IF(Data_Input_OD!D115="","",Data_Input_OD!D115) ->  | E113: =IF(Data_Input_OD!E115="","",Data_Input_OD!E115) ->  | F113: =IF(Data_Input_OD!I115="","",Data_Input_OD!I115) ->  | G113: =IF(Data_Input_OD!J115="","",Data_Input_OD!J115) ->  | H113: =IF(Data_Input_OD!K115="","",Data_Input_OD!K115) ->  | I113: =IF(Data_Input_OD!L115="","",Data_Input_OD!L115) -> 
A114: 112 | B114: =IF(Data_Input_OD!B116="","",Data_Input_OD!B116) ->  | C114: =IF(Data_Input_OD!C116="","",Data_Input_OD!C116) ->  | D114: =IF(Data_Input_OD!D116="","",Data_Input_OD!D116) ->  | E114: =IF(Data_Input_OD!E116="","",Data_Input_OD!E116) ->  | F114: =IF(Data_Input_OD!I116="","",Data_Input_OD!I116) ->  | G114: =IF(Data_Input_OD!J116="","",Data_Input_OD!J116) ->  | H114: =IF(Data_Input_OD!K116="","",Data_Input_OD!K116) ->  | I114: =IF(Data_Input_OD!L116="","",Data_Input_OD!L116) -> 
A115: 113 | B115: =IF(Data_Input_OD!B117="","",Data_Input_OD!B117) ->  | C115: =IF(Data_Input_OD!C117="","",Data_Input_OD!C117) ->  | D115: =IF(Data_Input_OD!D117="","",Data_Input_OD!D117) ->  | E115: =IF(Data_Input_OD!E117="","",Data_Input_OD!E117) ->  | F115: =IF(Data_Input_OD!I117="","",Data_Input_OD!I117) ->  | G115: =IF(Data_Input_OD!J117="","",Data_Input_OD!J117) ->  | H115: =IF(Data_Input_OD!K117="","",Data_Input_OD!K117) ->  | I115: =IF(Data_Input_OD!L117="","",Data_Input_OD!L117) -> 
A116: 114 | B116: =IF(Data_Input_OD!B118="","",Data_Input_OD!B118) ->  | C116: =IF(Data_Input_OD!C118="","",Data_Input_OD!C118) ->  | D116: =IF(Data_Input_OD!D118="","",Data_Input_OD!D118) ->  | E116: =IF(Data_Input_OD!E118="","",Data_Input_OD!E118) ->  | F116: =IF(Data_Input_OD!I118="","",Data_Input_OD!I118) ->  | G116: =IF(Data_Input_OD!J118="","",Data_Input_OD!J118) ->  | H116: =IF(Data_Input_OD!K118="","",Data_Input_OD!K118) ->  | I116: =IF(Data_Input_OD!L118="","",Data_Input_OD!L118) -> 
A117: 115 | B117: =IF(Data_Input_OD!B119="","",Data_Input_OD!B119) ->  | C117: =IF(Data_Input_OD!C119="","",Data_Input_OD!C119) ->  | D117: =IF(Data_Input_OD!D119="","",Data_Input_OD!D119) ->  | E117: =IF(Data_Input_OD!E119="","",Data_Input_OD!E119) ->  | F117: =IF(Data_Input_OD!I119="","",Data_Input_OD!I119) ->  | G117: =IF(Data_Input_OD!J119="","",Data_Input_OD!J119) ->  | H117: =IF(Data_Input_OD!K119="","",Data_Input_OD!K119) ->  | I117: =IF(Data_Input_OD!L119="","",Data_Input_OD!L119) -> 
A118: 116 | B118: =IF(Data_Input_OD!B120="","",Data_Input_OD!B120) ->  | C118: =IF(Data_Input_OD!C120="","",Data_Input_OD!C120) ->  | D118: =IF(Data_Input_OD!D120="","",Data_Input_OD!D120) ->  | E118: =IF(Data_Input_OD!E120="","",Data_Input_OD!E120) ->  | F118: =IF(Data_Input_OD!I120="","",Data_Input_OD!I120) ->  | G118: =IF(Data_Input_OD!J120="","",Data_Input_OD!J120) ->  | H118: =IF(Data_Input_OD!K120="","",Data_Input_OD!K120) ->  | I118: =IF(Data_Input_OD!L120="","",Data_Input_OD!L120) -> 
A119: 117 | B119: =IF(Data_Input_OD!B121="","",Data_Input_OD!B121) ->  | C119: =IF(Data_Input_OD!C121="","",Data_Input_OD!C121) ->  | D119: =IF(Data_Input_OD!D121="","",Data_Input_OD!D121) ->  | E119: =IF(Data_Input_OD!E121="","",Data_Input_OD!E121) ->  | F119: =IF(Data_Input_OD!I121="","",Data_Input_OD!I121) ->  | G119: =IF(Data_Input_OD!J121="","",Data_Input_OD!J121) ->  | H119: =IF(Data_Input_OD!K121="","",Data_Input_OD!K121) ->  | I119: =IF(Data_Input_OD!L121="","",Data_Input_OD!L121) -> 
A120: 118 | B120: =IF(Data_Input_OD!B122="","",Data_Input_OD!B122) ->  | C120: =IF(Data_Input_OD!C122="","",Data_Input_OD!C122) ->  | D120: =IF(Data_Input_OD!D122="","",Data_Input_OD!D122) ->  | E120: =IF(Data_Input_OD!E122="","",Data_Input_OD!E122) ->  | F120: =IF(Data_Input_OD!I122="","",Data_Input_OD!I122) ->  | G120: =IF(Data_Input_OD!J122="","",Data_Input_OD!J122) ->  | H120: =IF(Data_Input_OD!K122="","",Data_Input_OD!K122) ->  | I120: =IF(Data_Input_OD!L122="","",Data_Input_OD!L122) -> 
A121: 119 | B121: =IF(Data_Input_OD!B123="","",Data_Input_OD!B123) ->  | C121: =IF(Data_Input_OD!C123="","",Data_Input_OD!C123) ->  | D121: =IF(Data_Input_OD!D123="","",Data_Input_OD!D123) ->  | E121: =IF(Data_Input_OD!E123="","",Data_Input_OD!E123) ->  | F121: =IF(Data_Input_OD!I123="","",Data_Input_OD!I123) ->  | G121: =IF(Data_Input_OD!J123="","",Data_Input_OD!J123) ->  | H121: =IF(Data_Input_OD!K123="","",Data_Input_OD!K123) ->  | I121: =IF(Data_Input_OD!L123="","",Data_Input_OD!L123) -> 
A122: 120 | B122: =IF(Data_Input_OD!B124="","",Data_Input_OD!B124) ->  | C122: =IF(Data_Input_OD!C124="","",Data_Input_OD!C124) ->  | D122: =IF(Data_Input_OD!D124="","",Data_Input_OD!D124) ->  | E122: =IF(Data_Input_OD!E124="","",Data_Input_OD!E124) ->  | F122: =IF(Data_Input_OD!I124="","",Data_Input_OD!I124) ->  | G122: =IF(Data_Input_OD!J124="","",Data_Input_OD!J124) ->  | H122: =IF(Data_Input_OD!K124="","",Data_Input_OD!K124) ->  | I122: =IF(Data_Input_OD!L124="","",Data_Input_OD!L124) -> 
A123: 121 | B123: =IF(Data_Input_OD!B125="","",Data_Input_OD!B125) ->  | C123: =IF(Data_Input_OD!C125="","",Data_Input_OD!C125) ->  | D123: =IF(Data_Input_OD!D125="","",Data_Input_OD!D125) ->  | E123: =IF(Data_Input_OD!E125="","",Data_Input_OD!E125) ->  | F123: =IF(Data_Input_OD!I125="","",Data_Input_OD!I125) ->  | G123: =IF(Data_Input_OD!J125="","",Data_Input_OD!J125) ->  | H123: =IF(Data_Input_OD!K125="","",Data_Input_OD!K125) ->  | I123: =IF(Data_Input_OD!L125="","",Data_Input_OD!L125) -> 
A124: 122 | B124: =IF(Data_Input_OD!B126="","",Data_Input_OD!B126) ->  | C124: =IF(Data_Input_OD!C126="","",Data_Input_OD!C126) ->  | D124: =IF(Data_Input_OD!D126="","",Data_Input_OD!D126) ->  | E124: =IF(Data_Input_OD!E126="","",Data_Input_OD!E126) ->  | F124: =IF(Data_Input_OD!I126="","",Data_Input_OD!I126) ->  | G124: =IF(Data_Input_OD!J126="","",Data_Input_OD!J126) ->  | H124: =IF(Data_Input_OD!K126="","",Data_Input_OD!K126) ->  | I124: =IF(Data_Input_OD!L126="","",Data_Input_OD!L126) -> 
A125: 123 | B125: =IF(Data_Input_OD!B127="","",Data_Input_OD!B127) ->  | C125: =IF(Data_Input_OD!C127="","",Data_Input_OD!C127) ->  | D125: =IF(Data_Input_OD!D127="","",Data_Input_OD!D127) ->  | E125: =IF(Data_Input_OD!E127="","",Data_Input_OD!E127) ->  | F125: =IF(Data_Input_OD!I127="","",Data_Input_OD!I127) ->  | G125: =IF(Data_Input_OD!J127="","",Data_Input_OD!J127) ->  | H125: =IF(Data_Input_OD!K127="","",Data_Input_OD!K127) ->  | I125: =IF(Data_Input_OD!L127="","",Data_Input_OD!L127) -> 
A126: 124 | B126: =IF(Data_Input_OD!B128="","",Data_Input_OD!B128) ->  | C126: =IF(Data_Input_OD!C128="","",Data_Input_OD!C128) ->  | D126: =IF(Data_Input_OD!D128="","",Data_Input_OD!D128) ->  | E126: =IF(Data_Input_OD!E128="","",Data_Input_OD!E128) ->  | F126: =IF(Data_Input_OD!I128="","",Data_Input_OD!I128) ->  | G126: =IF(Data_Input_OD!J128="","",Data_Input_OD!J128) ->  | H126: =IF(Data_Input_OD!K128="","",Data_Input_OD!K128) ->  | I126: =IF(Data_Input_OD!L128="","",Data_Input_OD!L128) -> 
A127: 125 | B127: =IF(Data_Input_OD!B129="","",Data_Input_OD!B129) ->  | C127: =IF(Data_Input_OD!C129="","",Data_Input_OD!C129) ->  | D127: =IF(Data_Input_OD!D129="","",Data_Input_OD!D129) ->  | E127: =IF(Data_Input_OD!E129="","",Data_Input_OD!E129) ->  | F127: =IF(Data_Input_OD!I129="","",Data_Input_OD!I129) ->  | G127: =IF(Data_Input_OD!J129="","",Data_Input_OD!J129) ->  | H127: =IF(Data_Input_OD!K129="","",Data_Input_OD!K129) ->  | I127: =IF(Data_Input_OD!L129="","",Data_Input_OD!L129) -> 
A128: 126 | B128: =IF(Data_Input_OD!B130="","",Data_Input_OD!B130) ->  | C128: =IF(Data_Input_OD!C130="","",Data_Input_OD!C130) ->  | D128: =IF(Data_Input_OD!D130="","",Data_Input_OD!D130) ->  | E128: =IF(Data_Input_OD!E130="","",Data_Input_OD!E130) ->  | F128: =IF(Data_Input_OD!I130="","",Data_Input_OD!I130) ->  | G128: =IF(Data_Input_OD!J130="","",Data_Input_OD!J130) ->  | H128: =IF(Data_Input_OD!K130="","",Data_Input_OD!K130) ->  | I128: =IF(Data_Input_OD!L130="","",Data_Input_OD!L130) -> 
A129: 127 | B129: =IF(Data_Input_OD!B131="","",Data_Input_OD!B131) ->  | C129: =IF(Data_Input_OD!C131="","",Data_Input_OD!C131) ->  | D129: =IF(Data_Input_OD!D131="","",Data_Input_OD!D131) ->  | E129: =IF(Data_Input_OD!E131="","",Data_Input_OD!E131) ->  | F129: =IF(Data_Input_OD!I131="","",Data_Input_OD!I131) ->  | G129: =IF(Data_Input_OD!J131="","",Data_Input_OD!J131) ->  | H129: =IF(Data_Input_OD!K131="","",Data_Input_OD!K131) ->  | I129: =IF(Data_Input_OD!L131="","",Data_Input_OD!L131) -> 
A130: 128 | B130: =IF(Data_Input_OD!B132="","",Data_Input_OD!B132) ->  | C130: =IF(Data_Input_OD!C132="","",Data_Input_OD!C132) ->  | D130: =IF(Data_Input_OD!D132="","",Data_Input_OD!D132) ->  | E130: =IF(Data_Input_OD!E132="","",Data_Input_OD!E132) ->  | F130: =IF(Data_Input_OD!I132="","",Data_Input_OD!I132) ->  | G130: =IF(Data_Input_OD!J132="","",Data_Input_OD!J132) ->  | H130: =IF(Data_Input_OD!K132="","",Data_Input_OD!K132) ->  | I130: =IF(Data_Input_OD!L132="","",Data_Input_OD!L132) -> 
A131: 129 | B131: =IF(Data_Input_OD!B133="","",Data_Input_OD!B133) ->  | C131: =IF(Data_Input_OD!C133="","",Data_Input_OD!C133) ->  | D131: =IF(Data_Input_OD!D133="","",Data_Input_OD!D133) ->  | E131: =IF(Data_Input_OD!E133="","",Data_Input_OD!E133) ->  | F131: =IF(Data_Input_OD!I133="","",Data_Input_OD!I133) ->  | G131: =IF(Data_Input_OD!J133="","",Data_Input_OD!J133) ->  | H131: =IF(Data_Input_OD!K133="","",Data_Input_OD!K133) ->  | I131: =IF(Data_Input_OD!L133="","",Data_Input_OD!L133) -> 
A132: 130 | B132: =IF(Data_Input_OD!B134="","",Data_Input_OD!B134) ->  | C132: =IF(Data_Input_OD!C134="","",Data_Input_OD!C134) ->  | D132: =IF(Data_Input_OD!D134="","",Data_Input_OD!D134) ->  | E132: =IF(Data_Input_OD!E134="","",Data_Input_OD!E134) ->  | F132: =IF(Data_Input_OD!I134="","",Data_Input_OD!I134) ->  | G132: =IF(Data_Input_OD!J134="","",Data_Input_OD!J134) ->  | H132: =IF(Data_Input_OD!K134="","",Data_Input_OD!K134) ->  | I132: =IF(Data_Input_OD!L134="","",Data_Input_OD!L134) ->  | J132: =IFERROR(D132-B132,"") ->  | K132: =IFERROR(E132,"") ->  | L132: =IFERROR(H132-F132,"") ->  | M132: =IFERROR(I132,"") ->  | N132: =IFERROR(SQRT(Y132^2+Z132^2),"") ->  | O132: =IFERROR(0.5*DEGREES((ATAN(Z132/Y132))),"") ->  | P132: =IFERROR(IF(Y132>0,IF(Z132>0,O132,O132+180),O132+90),"") ->  | Q132: =IFERROR(J132*COS(2*RADIANS(K132)),"") ->  | R132: =IFERROR(L132*COS(2*RADIANS(M132)),"") ->  | S132: =IFERROR(IF((Q132+R132)=0,0.0000001,-Q132+R132),"") ->  | T132: =IFERROR(J132*SIN(2*RADIANS(K132)),"") ->  | U132: =IFERROR(L132*SIN(2*RADIANS(M132)),"") ->  | V132: =IFERROR(-T132+U132,"") ->  | W132: =IFERROR(IF(ABS(S132)>$Y$1,"",IF(ABS(V132)>$Z$1,"",S132)),"") ->  | X132: =IFERROR(IF(ABS(S132)>$Y$1,"",IF(ABS(V132)>$Z$1,"",V132)),"") ->  | Y132: =IF(W132="",#N/A,W132) -> 
A133: 131 | B133: =IF(Data_Input_OD!B135="","",Data_Input_OD!B135) ->  | C133: =IF(Data_Input_OD!C135="","",Data_Input_OD!C135) ->  | D133: =IF(Data_Input_OD!D135="","",Data_Input_OD!D135) ->  | E133: =IF(Data_Input_OD!E135="","",Data_Input_OD!E135) ->  | F133: =IF(Data_Input_OD!I135="","",Data_Input_OD!I135) ->  | G133: =IF(Data_Input_OD!J135="","",Data_Input_OD!J135) ->  | H133: =IF(Data_Input_OD!K135="","",Data_Input_OD!K135) ->  | I133: =IF(Data_Input_OD!L135="","",Data_Input_OD!L135) -> 
A134: 132 | B134: =IF(Data_Input_OD!B136="","",Data_Input_OD!B136) ->  | C134: =IF(Data_Input_OD!C136="","",Data_Input_OD!C136) ->  | D134: =IF(Data_Input_OD!D136="","",Data_Input_OD!D136) ->  | E134: =IF(Data_Input_OD!E136="","",Data_Input_OD!E136) ->  | F134: =IF(Data_Input_OD!I136="","",Data_Input_OD!I136) ->  | G134: =IF(Data_Input_OD!J136="","",Data_Input_OD!J136) ->  | H134: =IF(Data_Input_OD!K136="","",Data_Input_OD!K136) ->  | I134: =IF(Data_Input_OD!L136="","",Data_Input_OD!L136) -> 
A135: 133 | B135: =IF(Data_Input_OD!B137="","",Data_Input_OD!B137) ->  | C135: =IF(Data_Input_OD!C137="","",Data_Input_OD!C137) ->  | D135: =IF(Data_Input_OD!D137="","",Data_Input_OD!D137) ->  | E135: =IF(Data_Input_OD!E137="","",Data_Input_OD!E137) ->  | F135: =IF(Data_Input_OD!I137="","",Data_Input_OD!I137) ->  | G135: =IF(Data_Input_OD!J137="","",Data_Input_OD!J137) ->  | H135: =IF(Data_Input_OD!K137="","",Data_Input_OD!K137) ->  | I135: =IF(Data_Input_OD!L137="","",Data_Input_OD!L137) -> 
A136: 134 | B136: =IF(Data_Input_OD!B138="","",Data_Input_OD!B138) ->  | C136: =IF(Data_Input_OD!C138="","",Data_Input_OD!C138) ->  | D136: =IF(Data_Input_OD!D138="","",Data_Input_OD!D138) ->  | E136: =IF(Data_Input_OD!E138="","",Data_Input_OD!E138) ->  | F136: =IF(Data_Input_OD!I138="","",Data_Input_OD!I138) ->  | G136: =IF(Data_Input_OD!J138="","",Data_Input_OD!J138) ->  | H136: =IF(Data_Input_OD!K138="","",Data_Input_OD!K138) ->  | I136: =IF(Data_Input_OD!L138="","",Data_Input_OD!L138) -> 
A137: 135 | B137: =IF(Data_Input_OD!B139="","",Data_Input_OD!B139) ->  | C137: =IF(Data_Input_OD!C139="","",Data_Input_OD!C139) ->  | D137: =IF(Data_Input_OD!D139="","",Data_Input_OD!D139) ->  | E137: =IF(Data_Input_OD!E139="","",Data_Input_OD!E139) ->  | F137: =IF(Data_Input_OD!I139="","",Data_Input_OD!I139) ->  | G137: =IF(Data_Input_OD!J139="","",Data_Input_OD!J139) ->  | H137: =IF(Data_Input_OD!K139="","",Data_Input_OD!K139) ->  | I137: =IF(Data_Input_OD!L139="","",Data_Input_OD!L139) -> 
A138: 136 | B138: =IF(Data_Input_OD!B140="","",Data_Input_OD!B140) ->  | C138: =IF(Data_Input_OD!C140="","",Data_Input_OD!C140) ->  | D138: =IF(Data_Input_OD!D140="","",Data_Input_OD!D140) ->  | E138: =IF(Data_Input_OD!E140="","",Data_Input_OD!E140) ->  | F138: =IF(Data_Input_OD!I140="","",Data_Input_OD!I140) ->  | G138: =IF(Data_Input_OD!J140="","",Data_Input_OD!J140) ->  | H138: =IF(Data_Input_OD!K140="","",Data_Input_OD!K140) ->  | I138: =IF(Data_Input_OD!L140="","",Data_Input_OD!L140) -> 
A139: 137 | B139: =IF(Data_Input_OD!B141="","",Data_Input_OD!B141) ->  | C139: =IF(Data_Input_OD!C141="","",Data_Input_OD!C141) ->  | D139: =IF(Data_Input_OD!D141="","",Data_Input_OD!D141) ->  | E139: =IF(Data_Input_OD!E141="","",Data_Input_OD!E141) ->  | F139: =IF(Data_Input_OD!I141="","",Data_Input_OD!I141) ->  | G139: =IF(Data_Input_OD!J141="","",Data_Input_OD!J141) ->  | H139: =IF(Data_Input_OD!K141="","",Data_Input_OD!K141) ->  | I139: =IF(Data_Input_OD!L141="","",Data_Input_OD!L141) -> 
A140: 138 | B140: =IF(Data_Input_OD!B142="","",Data_Input_OD!B142) ->  | C140: =IF(Data_Input_OD!C142="","",Data_Input_OD!C142) ->  | D140: =IF(Data_Input_OD!D142="","",Data_Input_OD!D142) ->  | E140: =IF(Data_Input_OD!E142="","",Data_Input_OD!E142) ->  | F140: =IF(Data_Input_OD!I142="","",Data_Input_OD!I142) ->  | G140: =IF(Data_Input_OD!J142="","",Data_Input_OD!J142) ->  | H140: =IF(Data_Input_OD!K142="","",Data_Input_OD!K142) ->  | I140: =IF(Data_Input_OD!L142="","",Data_Input_OD!L142) -> 
A141: 139 | B141: =IF(Data_Input_OD!B143="","",Data_Input_OD!B143) ->  | C141: =IF(Data_Input_OD!C143="","",Data_Input_OD!C143) ->  | D141: =IF(Data_Input_OD!D143="","",Data_Input_OD!D143) ->  | E141: =IF(Data_Input_OD!E143="","",Data_Input_OD!E143) ->  | F141: =IF(Data_Input_OD!I143="","",Data_Input_OD!I143) ->  | G141: =IF(Data_Input_OD!J143="","",Data_Input_OD!J143) ->  | H141: =IF(Data_Input_OD!K143="","",Data_Input_OD!K143) ->  | I141: =IF(Data_Input_OD!L143="","",Data_Input_OD!L143) -> 
A142: 140 | B142: =IF(Data_Input_OD!B144="","",Data_Input_OD!B144) ->  | C142: =IF(Data_Input_OD!C144="","",Data_Input_OD!C144) ->  | D142: =IF(Data_Input_OD!D144="","",Data_Input_OD!D144) ->  | E142: =IF(Data_Input_OD!E144="","",Data_Input_OD!E144) ->  | F142: =IF(Data_Input_OD!I144="","",Data_Input_OD!I144) ->  | G142: =IF(Data_Input_OD!J144="","",Data_Input_OD!J144) ->  | H142: =IF(Data_Input_OD!K144="","",Data_Input_OD!K144) ->  | I142: =IF(Data_Input_OD!L144="","",Data_Input_OD!L144) -> 
A143: 141 | B143: =IF(Data_Input_OD!B145="","",Data_Input_OD!B145) ->  | C143: =IF(Data_Input_OD!C145="","",Data_Input_OD!C145) ->  | D143: =IF(Data_Input_OD!D145="","",Data_Input_OD!D145) ->  | E143: =IF(Data_Input_OD!E145="","",Data_Input_OD!E145) ->  | F143: =IF(Data_Input_OD!I145="","",Data_Input_OD!I145) ->  | G143: =IF(Data_Input_OD!J145="","",Data_Input_OD!J145) ->  | H143: =IF(Data_Input_OD!K145="","",Data_Input_OD!K145) ->  | I143: =IF(Data_Input_OD!L145="","",Data_Input_OD!L145) -> 
A144: 142 | B144: =IF(Data_Input_OD!B146="","",Data_Input_OD!B146) ->  | C144: =IF(Data_Input_OD!C146="","",Data_Input_OD!C146) ->  | D144: =IF(Data_Input_OD!D146="","",Data_Input_OD!D146) ->  | E144: =IF(Data_Input_OD!E146="","",Data_Input_OD!E146) ->  | F144: =IF(Data_Input_OD!I146="","",Data_Input_OD!I146) ->  | G144: =IF(Data_Input_OD!J146="","",Data_Input_OD!J146) ->  | H144: =IF(Data_Input_OD!K146="","",Data_Input_OD!K146) ->  | I144: =IF(Data_Input_OD!L146="","",Data_Input_OD!L146) -> 
A145: 143 | B145: =IF(Data_Input_OD!B147="","",Data_Input_OD!B147) ->  | C145: =IF(Data_Input_OD!C147="","",Data_Input_OD!C147) ->  | D145: =IF(Data_Input_OD!D147="","",Data_Input_OD!D147) ->  | E145: =IF(Data_Input_OD!E147="","",Data_Input_OD!E147) ->  | F145: =IF(Data_Input_OD!I147="","",Data_Input_OD!I147) ->  | G145: =IF(Data_Input_OD!J147="","",Data_Input_OD!J147) ->  | H145: =IF(Data_Input_OD!K147="","",Data_Input_OD!K147) ->  | I145: =IF(Data_Input_OD!L147="","",Data_Input_OD!L147) -> 
A146: 144 | B146: =IF(Data_Input_OD!B148="","",Data_Input_OD!B148) ->  | C146: =IF(Data_Input_OD!C148="","",Data_Input_OD!C148) ->  | D146: =IF(Data_Input_OD!D148="","",Data_Input_OD!D148) ->  | E146: =IF(Data_Input_OD!E148="","",Data_Input_OD!E148) ->  | F146: =IF(Data_Input_OD!I148="","",Data_Input_OD!I148) ->  | G146: =IF(Data_Input_OD!J148="","",Data_Input_OD!J148) ->  | H146: =IF(Data_Input_OD!K148="","",Data_Input_OD!K148) ->  | I146: =IF(Data_Input_OD!L148="","",Data_Input_OD!L148) -> 
A147: 145 | B147: =IF(Data_Input_OD!B149="","",Data_Input_OD!B149) ->  | C147: =IF(Data_Input_OD!C149="","",Data_Input_OD!C149) ->  | D147: =IF(Data_Input_OD!D149="","",Data_Input_OD!D149) ->  | E147: =IF(Data_Input_OD!E149="","",Data_Input_OD!E149) ->  | F147: =IF(Data_Input_OD!I149="","",Data_Input_OD!I149) ->  | G147: =IF(Data_Input_OD!J149="","",Data_Input_OD!J149) ->  | H147: =IF(Data_Input_OD!K149="","",Data_Input_OD!K149) ->  | I147: =IF(Data_Input_OD!L149="","",Data_Input_OD!L149) -> 
A148: 146 | B148: =IF(Data_Input_OD!B150="","",Data_Input_OD!B150) ->  | C148: =IF(Data_Input_OD!C150="","",Data_Input_OD!C150) ->  | D148: =IF(Data_Input_OD!D150="","",Data_Input_OD!D150) ->  | E148: =IF(Data_Input_OD!E150="","",Data_Input_OD!E150) ->  | F148: =IF(Data_Input_OD!I150="","",Data_Input_OD!I150) ->  | G148: =IF(Data_Input_OD!J150="","",Data_Input_OD!J150) ->  | H148: =IF(Data_Input_OD!K150="","",Data_Input_OD!K150) ->  | I148: =IF(Data_Input_OD!L150="","",Data_Input_OD!L150) -> 
A149: 147 | B149: =IF(Data_Input_OD!B151="","",Data_Input_OD!B151) ->  | C149: =IF(Data_Input_OD!C151="","",Data_Input_OD!C151) ->  | D149: =IF(Data_Input_OD!D151="","",Data_Input_OD!D151) ->  | E149: =IF(Data_Input_OD!E151="","",Data_Input_OD!E151) ->  | F149: =IF(Data_Input_OD!I151="","",Data_Input_OD!I151) ->  | G149: =IF(Data_Input_OD!J151="","",Data_Input_OD!J151) ->  | H149: =IF(Data_Input_OD!K151="","",Data_Input_OD!K151) ->  | I149: =IF(Data_Input_OD!L151="","",Data_Input_OD!L151) -> 
A150: 148 | B150: =IF(Data_Input_OD!B152="","",Data_Input_OD!B152) ->  | C150: =IF(Data_Input_OD!C152="","",Data_Input_OD!C152) ->  | D150: =IF(Data_Input_OD!D152="","",Data_Input_OD!D152) ->  | E150: =IF(Data_Input_OD!E152="","",Data_Input_OD!E152) ->  | F150: =IF(Data_Input_OD!I152="","",Data_Input_OD!I152) ->  | G150: =IF(Data_Input_OD!J152="","",Data_Input_OD!J152) ->  | H150: =IF(Data_Input_OD!K152="","",Data_Input_OD!K152) ->  | I150: =IF(Data_Input_OD!L152="","",Data_Input_OD!L152) -> 
A151: 149 | B151: =IF(Data_Input_OD!B153="","",Data_Input_OD!B153) ->  | C151: =IF(Data_Input_OD!C153="","",Data_Input_OD!C153) ->  | D151: =IF(Data_Input_OD!D153="","",Data_Input_OD!D153) ->  | E151: =IF(Data_Input_OD!E153="","",Data_Input_OD!E153) ->  | F151: =IF(Data_Input_OD!I153="","",Data_Input_OD!I153) ->  | G151: =IF(Data_Input_OD!J153="","",Data_Input_OD!J153) ->  | H151: =IF(Data_Input_OD!K153="","",Data_Input_OD!K153) ->  | I151: =IF(Data_Input_OD!L153="","",Data_Input_OD!L153) -> 
A152: 150 | B152: =IF(Data_Input_OD!B154="","",Data_Input_OD!B154) ->  | C152: =IF(Data_Input_OD!C154="","",Data_Input_OD!C154) ->  | D152: =IF(Data_Input_OD!D154="","",Data_Input_OD!D154) ->  | E152: =IF(Data_Input_OD!E154="","",Data_Input_OD!E154) ->  | F152: =IF(Data_Input_OD!I154="","",Data_Input_OD!I154) ->  | G152: =IF(Data_Input_OD!J154="","",Data_Input_OD!J154) ->  | H152: =IF(Data_Input_OD!K154="","",Data_Input_OD!K154) ->  | I152: =IF(Data_Input_OD!L154="","",Data_Input_OD!L154) -> 
A153: 151 | B153: =IF(Data_Input_OD!B155="","",Data_Input_OD!B155) ->  | C153: =IF(Data_Input_OD!C155="","",Data_Input_OD!C155) ->  | D153: =IF(Data_Input_OD!D155="","",Data_Input_OD!D155) ->  | E153: =IF(Data_Input_OD!E155="","",Data_Input_OD!E155) ->  | F153: =IF(Data_Input_OD!I155="","",Data_Input_OD!I155) ->  | G153: =IF(Data_Input_OD!J155="","",Data_Input_OD!J155) ->  | H153: =IF(Data_Input_OD!K155="","",Data_Input_OD!K155) ->  | I153: =IF(Data_Input_OD!L155="","",Data_Input_OD!L155) -> 
A154: 152 | B154: =IF(Data_Input_OD!B156="","",Data_Input_OD!B156) ->  | C154: =IF(Data_Input_OD!C156="","",Data_Input_OD!C156) ->  | D154: =IF(Data_Input_OD!D156="","",Data_Input_OD!D156) ->  | E154: =IF(Data_Input_OD!E156="","",Data_Input_OD!E156) ->  | F154: =IF(Data_Input_OD!I156="","",Data_Input_OD!I156) ->  | G154: =IF(Data_Input_OD!J156="","",Data_Input_OD!J156) ->  | H154: =IF(Data_Input_OD!K156="","",Data_Input_OD!K156) ->  | I154: =IF(Data_Input_OD!L156="","",Data_Input_OD!L156) -> 
A155: 153 | B155: =IF(Data_Input_OD!B157="","",Data_Input_OD!B157) ->  | C155: =IF(Data_Input_OD!C157="","",Data_Input_OD!C157) ->  | D155: =IF(Data_Input_OD!D157="","",Data_Input_OD!D157) ->  | E155: =IF(Data_Input_OD!E157="","",Data_Input_OD!E157) ->  | F155: =IF(Data_Input_OD!I157="","",Data_Input_OD!I157) ->  | G155: =IF(Data_Input_OD!J157="","",Data_Input_OD!J157) ->  | H155: =IF(Data_Input_OD!K157="","",Data_Input_OD!K157) ->  | I155: =IF(Data_Input_OD!L157="","",Data_Input_OD!L157) -> 
A156: 154 | B156: =IF(Data_Input_OD!B158="","",Data_Input_OD!B158) ->  | C156: =IF(Data_Input_OD!C158="","",Data_Input_OD!C158) ->  | D156: =IF(Data_Input_OD!D158="","",Data_Input_OD!D158) ->  | E156: =IF(Data_Input_OD!E158="","",Data_Input_OD!E158) ->  | F156: =IF(Data_Input_OD!I158="","",Data_Input_OD!I158) ->  | G156: =IF(Data_Input_OD!J158="","",Data_Input_OD!J158) ->  | H156: =IF(Data_Input_OD!K158="","",Data_Input_OD!K158) ->  | I156: =IF(Data_Input_OD!L158="","",Data_Input_OD!L158) -> 
A157: 155 | B157: =IF(Data_Input_OD!B159="","",Data_Input_OD!B159) ->  | C157: =IF(Data_Input_OD!C159="","",Data_Input_OD!C159) ->  | D157: =IF(Data_Input_OD!D159="","",Data_Input_OD!D159) ->  | E157: =IF(Data_Input_OD!E159="","",Data_Input_OD!E159) ->  | F157: =IF(Data_Input_OD!I159="","",Data_Input_OD!I159) ->  | G157: =IF(Data_Input_OD!J159="","",Data_Input_OD!J159) ->  | H157: =IF(Data_Input_OD!K159="","",Data_Input_OD!K159) ->  | I157: =IF(Data_Input_OD!L159="","",Data_Input_OD!L159) -> 
A158: 156 | B158: =IF(Data_Input_OD!B160="","",Data_Input_OD!B160) ->  | C158: =IF(Data_Input_OD!C160="","",Data_Input_OD!C160) ->  | D158: =IF(Data_Input_OD!D160="","",Data_Input_OD!D160) ->  | E158: =IF(Data_Input_OD!E160="","",Data_Input_OD!E160) ->  | F158: =IF(Data_Input_OD!I160="","",Data_Input_OD!I160) ->  | G158: =IF(Data_Input_OD!J160="","",Data_Input_OD!J160) ->  | H158: =IF(Data_Input_OD!K160="","",Data_Input_OD!K160) ->  | I158: =IF(Data_Input_OD!L160="","",Data_Input_OD!L160) -> 
A159: 157 | B159: =IF(Data_Input_OD!B161="","",Data_Input_OD!B161) ->  | C159: =IF(Data_Input_OD!C161="","",Data_Input_OD!C161) ->  | D159: =IF(Data_Input_OD!D161="","",Data_Input_OD!D161) ->  | E159: =IF(Data_Input_OD!E161="","",Data_Input_OD!E161) ->  | F159: =IF(Data_Input_OD!I161="","",Data_Input_OD!I161) ->  | G159: =IF(Data_Input_OD!J161="","",Data_Input_OD!J161) ->  | H159: =IF(Data_Input_OD!K161="","",Data_Input_OD!K161) ->  | I159: =IF(Data_Input_OD!L161="","",Data_Input_OD!L161) -> 
A160: 158 | B160: =IF(Data_Input_OD!B162="","",Data_Input_OD!B162) ->  | C160: =IF(Data_Input_OD!C162="","",Data_Input_OD!C162) ->  | D160: =IF(Data_Input_OD!D162="","",Data_Input_OD!D162) ->  | E160: =IF(Data_Input_OD!E162="","",Data_Input_OD!E162) ->  | F160: =IF(Data_Input_OD!I162="","",Data_Input_OD!I162) ->  | G160: =IF(Data_Input_OD!J162="","",Data_Input_OD!J162) ->  | H160: =IF(Data_Input_OD!K162="","",Data_Input_OD!K162) ->  | I160: =IF(Data_Input_OD!L162="","",Data_Input_OD!L162) -> 
A161: 159 | B161: =IF(Data_Input_OD!B163="","",Data_Input_OD!B163) ->  | C161: =IF(Data_Input_OD!C163="","",Data_Input_OD!C163) ->  | D161: =IF(Data_Input_OD!D163="","",Data_Input_OD!D163) ->  | E161: =IF(Data_Input_OD!E163="","",Data_Input_OD!E163) ->  | F161: =IF(Data_Input_OD!I163="","",Data_Input_OD!I163) ->  | G161: =IF(Data_Input_OD!J163="","",Data_Input_OD!J163) ->  | H161: =IF(Data_Input_OD!K163="","",Data_Input_OD!K163) ->  | I161: =IF(Data_Input_OD!L163="","",Data_Input_OD!L163) -> 
A162: 160 | B162: =IF(Data_Input_OD!B164="","",Data_Input_OD!B164) ->  | C162: =IF(Data_Input_OD!C164="","",Data_Input_OD!C164) ->  | D162: =IF(Data_Input_OD!D164="","",Data_Input_OD!D164) ->  | E162: =IF(Data_Input_OD!E164="","",Data_Input_OD!E164) ->  | F162: =IF(Data_Input_OD!I164="","",Data_Input_OD!I164) ->  | G162: =IF(Data_Input_OD!J164="","",Data_Input_OD!J164) ->  | H162: =IF(Data_Input_OD!K164="","",Data_Input_OD!K164) ->  | I162: =IF(Data_Input_OD!L164="","",Data_Input_OD!L164) -> 
A163: 161 | B163: =IF(Data_Input_OD!B165="","",Data_Input_OD!B165) ->  | C163: =IF(Data_Input_OD!C165="","",Data_Input_OD!C165) ->  | D163: =IF(Data_Input_OD!D165="","",Data_Input_OD!D165) ->  | E163: =IF(Data_Input_OD!E165="","",Data_Input_OD!E165) ->  | F163: =IF(Data_Input_OD!I165="","",Data_Input_OD!I165) ->  | G163: =IF(Data_Input_OD!J165="","",Data_Input_OD!J165) ->  | H163: =IF(Data_Input_OD!K165="","",Data_Input_OD!K165) ->  | I163: =IF(Data_Input_OD!L165="","",Data_Input_OD!L165) -> 
A164: 162 | B164: =IF(Data_Input_OD!B166="","",Data_Input_OD!B166) ->  | C164: =IF(Data_Input_OD!C166="","",Data_Input_OD!C166) ->  | D164: =IF(Data_Input_OD!D166="","",Data_Input_OD!D166) ->  | E164: =IF(Data_Input_OD!E166="","",Data_Input_OD!E166) ->  | F164: =IF(Data_Input_OD!I166="","",Data_Input_OD!I166) ->  | G164: =IF(Data_Input_OD!J166="","",Data_Input_OD!J166) ->  | H164: =IF(Data_Input_OD!K166="","",Data_Input_OD!K166) ->  | I164: =IF(Data_Input_OD!L166="","",Data_Input_OD!L166) -> 
A165: 163 | B165: =IF(Data_Input_OD!B167="","",Data_Input_OD!B167) ->  | C165: =IF(Data_Input_OD!C167="","",Data_Input_OD!C167) ->  | D165: =IF(Data_Input_OD!D167="","",Data_Input_OD!D167) ->  | E165: =IF(Data_Input_OD!E167="","",Data_Input_OD!E167) ->  | F165: =IF(Data_Input_OD!I167="","",Data_Input_OD!I167) ->  | G165: =IF(Data_Input_OD!J167="","",Data_Input_OD!J167) ->  | H165: =IF(Data_Input_OD!K167="","",Data_Input_OD!K167) ->  | I165: =IF(Data_Input_OD!L167="","",Data_Input_OD!L167) -> 
A166: 164 | B166: =IF(Data_Input_OD!B168="","",Data_Input_OD!B168) ->  | C166: =IF(Data_Input_OD!C168="","",Data_Input_OD!C168) ->  | D166: =IF(Data_Input_OD!D168="","",Data_Input_OD!D168) ->  | E166: =IF(Data_Input_OD!E168="","",Data_Input_OD!E168) ->  | F166: =IF(Data_Input_OD!I168="","",Data_Input_OD!I168) ->  | G166: =IF(Data_Input_OD!J168="","",Data_Input_OD!J168) ->  | H166: =IF(Data_Input_OD!K168="","",Data_Input_OD!K168) ->  | I166: =IF(Data_Input_OD!L168="","",Data_Input_OD!L168) -> 
A167: 165 | B167: =IF(Data_Input_OD!B169="","",Data_Input_OD!B169) ->  | C167: =IF(Data_Input_OD!C169="","",Data_Input_OD!C169) ->  | D167: =IF(Data_Input_OD!D169="","",Data_Input_OD!D169) ->  | E167: =IF(Data_Input_OD!E169="","",Data_Input_OD!E169) ->  | F167: =IF(Data_Input_OD!I169="","",Data_Input_OD!I169) ->  | G167: =IF(Data_Input_OD!J169="","",Data_Input_OD!J169) ->  | H167: =IF(Data_Input_OD!K169="","",Data_Input_OD!K169) ->  | I167: =IF(Data_Input_OD!L169="","",Data_Input_OD!L169) -> 
A168: 166 | B168: =IF(Data_Input_OD!B170="","",Data_Input_OD!B170) ->  | C168: =IF(Data_Input_OD!C170="","",Data_Input_OD!C170) ->  | D168: =IF(Data_Input_OD!D170="","",Data_Input_OD!D170) ->  | E168: =IF(Data_Input_OD!E170="","",Data_Input_OD!E170) ->  | F168: =IF(Data_Input_OD!I170="","",Data_Input_OD!I170) ->  | G168: =IF(Data_Input_OD!J170="","",Data_Input_OD!J170) ->  | H168: =IF(Data_Input_OD!K170="","",Data_Input_OD!K170) ->  | I168: =IF(Data_Input_OD!L170="","",Data_Input_OD!L170) -> 
A169: 167 | B169: =IF(Data_Input_OD!B171="","",Data_Input_OD!B171) ->  | C169: =IF(Data_Input_OD!C171="","",Data_Input_OD!C171) ->  | D169: =IF(Data_Input_OD!D171="","",Data_Input_OD!D171) ->  | E169: =IF(Data_Input_OD!E171="","",Data_Input_OD!E171) ->  | F169: =IF(Data_Input_OD!I171="","",Data_Input_OD!I171) ->  | G169: =IF(Data_Input_OD!J171="","",Data_Input_OD!J171) ->  | H169: =IF(Data_Input_OD!K171="","",Data_Input_OD!K171) ->  | I169: =IF(Data_Input_OD!L171="","",Data_Input_OD!L171) -> 
A170: 168 | B170: =IF(Data_Input_OD!B172="","",Data_Input_OD!B172) ->  | C170: =IF(Data_Input_OD!C172="","",Data_Input_OD!C172) ->  | D170: =IF(Data_Input_OD!D172="","",Data_Input_OD!D172) ->  | E170: =IF(Data_Input_OD!E172="","",Data_Input_OD!E172) ->  | F170: =IF(Data_Input_OD!I172="","",Data_Input_OD!I172) ->  | G170: =IF(Data_Input_OD!J172="","",Data_Input_OD!J172) ->  | H170: =IF(Data_Input_OD!K172="","",Data_Input_OD!K172) ->  | I170: =IF(Data_Input_OD!L172="","",Data_Input_OD!L172) -> 
A171: 169 | B171: =IF(Data_Input_OD!B173="","",Data_Input_OD!B173) ->  | C171: =IF(Data_Input_OD!C173="","",Data_Input_OD!C173) ->  | D171: =IF(Data_Input_OD!D173="","",Data_Input_OD!D173) ->  | E171: =IF(Data_Input_OD!E173="","",Data_Input_OD!E173) ->  | F171: =IF(Data_Input_OD!I173="","",Data_Input_OD!I173) ->  | G171: =IF(Data_Input_OD!J173="","",Data_Input_OD!J173) ->  | H171: =IF(Data_Input_OD!K173="","",Data_Input_OD!K173) ->  | I171: =IF(Data_Input_OD!L173="","",Data_Input_OD!L173) -> 
A172: 170 | B172: =IF(Data_Input_OD!B174="","",Data_Input_OD!B174) ->  | C172: =IF(Data_Input_OD!C174="","",Data_Input_OD!C174) ->  | D172: =IF(Data_Input_OD!D174="","",Data_Input_OD!D174) ->  | E172: =IF(Data_Input_OD!E174="","",Data_Input_OD!E174) ->  | F172: =IF(Data_Input_OD!I174="","",Data_Input_OD!I174) ->  | G172: =IF(Data_Input_OD!J174="","",Data_Input_OD!J174) ->  | H172: =IF(Data_Input_OD!K174="","",Data_Input_OD!K174) ->  | I172: =IF(Data_Input_OD!L174="","",Data_Input_OD!L174) -> 
A173: 171 | B173: =IF(Data_Input_OD!B175="","",Data_Input_OD!B175) ->  | C173: =IF(Data_Input_OD!C175="","",Data_Input_OD!C175) ->  | D173: =IF(Data_Input_OD!D175="","",Data_Input_OD!D175) ->  | E173: =IF(Data_Input_OD!E175="","",Data_Input_OD!E175) ->  | F173: =IF(Data_Input_OD!I175="","",Data_Input_OD!I175) ->  | G173: =IF(Data_Input_OD!J175="","",Data_Input_OD!J175) ->  | H173: =IF(Data_Input_OD!K175="","",Data_Input_OD!K175) ->  | I173: =IF(Data_Input_OD!L175="","",Data_Input_OD!L175) -> 
A174: 172 | B174: =IF(Data_Input_OD!B176="","",Data_Input_OD!B176) ->  | C174: =IF(Data_Input_OD!C176="","",Data_Input_OD!C176) ->  | D174: =IF(Data_Input_OD!D176="","",Data_Input_OD!D176) ->  | E174: =IF(Data_Input_OD!E176="","",Data_Input_OD!E176) ->  | F174: =IF(Data_Input_OD!I176="","",Data_Input_OD!I176) ->  | G174: =IF(Data_Input_OD!J176="","",Data_Input_OD!J176) ->  | H174: =IF(Data_Input_OD!K176="","",Data_Input_OD!K176) ->  | I174: =IF(Data_Input_OD!L176="","",Data_Input_OD!L176) -> 
A175: 173 | B175: =IF(Data_Input_OD!B177="","",Data_Input_OD!B177) ->  | C175: =IF(Data_Input_OD!C177="","",Data_Input_OD!C177) ->  | D175: =IF(Data_Input_OD!D177="","",Data_Input_OD!D177) ->  | E175: =IF(Data_Input_OD!E177="","",Data_Input_OD!E177) ->  | F175: =IF(Data_Input_OD!I177="","",Data_Input_OD!I177) ->  | G175: =IF(Data_Input_OD!J177="","",Data_Input_OD!J177) ->  | H175: =IF(Data_Input_OD!K177="","",Data_Input_OD!K177) ->  | I175: =IF(Data_Input_OD!L177="","",Data_Input_OD!L177) -> 
A176: 174 | B176: =IF(Data_Input_OD!B178="","",Data_Input_OD!B178) ->  | C176: =IF(Data_Input_OD!C178="","",Data_Input_OD!C178) ->  | D176: =IF(Data_Input_OD!D178="","",Data_Input_OD!D178) ->  | E176: =IF(Data_Input_OD!E178="","",Data_Input_OD!E178) ->  | F176: =IF(Data_Input_OD!I178="","",Data_Input_OD!I178) ->  | G176: =IF(Data_Input_OD!J178="","",Data_Input_OD!J178) ->  | H176: =IF(Data_Input_OD!K178="","",Data_Input_OD!K178) ->  | I176: =IF(Data_Input_OD!L178="","",Data_Input_OD!L178) -> 
A177: 175 | B177: =IF(Data_Input_OD!B179="","",Data_Input_OD!B179) ->  | C177: =IF(Data_Input_OD!C179="","",Data_Input_OD!C179) ->  | D177: =IF(Data_Input_OD!D179="","",Data_Input_OD!D179) ->  | E177: =IF(Data_Input_OD!E179="","",Data_Input_OD!E179) ->  | F177: =IF(Data_Input_OD!I179="","",Data_Input_OD!I179) ->  | G177: =IF(Data_Input_OD!J179="","",Data_Input_OD!J179) ->  | H177: =IF(Data_Input_OD!K179="","",Data_Input_OD!K179) ->  | I177: =IF(Data_Input_OD!L179="","",Data_Input_OD!L179) -> 
A178: 176 | B178: =IF(Data_Input_OD!B180="","",Data_Input_OD!B180) ->  | C178: =IF(Data_Input_OD!C180="","",Data_Input_OD!C180) ->  | D178: =IF(Data_Input_OD!D180="","",Data_Input_OD!D180) ->  | E178: =IF(Data_Input_OD!E180="","",Data_Input_OD!E180) ->  | F178: =IF(Data_Input_OD!I180="","",Data_Input_OD!I180) ->  | G178: =IF(Data_Input_OD!J180="","",Data_Input_OD!J180) ->  | H178: =IF(Data_Input_OD!K180="","",Data_Input_OD!K180) ->  | I178: =IF(Data_Input_OD!L180="","",Data_Input_OD!L180) -> 
A179: 177 | B179: =IF(Data_Input_OD!B181="","",Data_Input_OD!B181) ->  | C179: =IF(Data_Input_OD!C181="","",Data_Input_OD!C181) ->  | D179: =IF(Data_Input_OD!D181="","",Data_Input_OD!D181) ->  | E179: =IF(Data_Input_OD!E181="","",Data_Input_OD!E181) ->  | F179: =IF(Data_Input_OD!I181="","",Data_Input_OD!I181) ->  | G179: =IF(Data_Input_OD!J181="","",Data_Input_OD!J181) ->  | H179: =IF(Data_Input_OD!K181="","",Data_Input_OD!K181) ->  | I179: =IF(Data_Input_OD!L181="","",Data_Input_OD!L181) -> 
A180: 178 | B180: =IF(Data_Input_OD!B182="","",Data_Input_OD!B182) ->  | C180: =IF(Data_Input_OD!C182="","",Data_Input_OD!C182) ->  | D180: =IF(Data_Input_OD!D182="","",Data_Input_OD!D182) ->  | E180: =IF(Data_Input_OD!E182="","",Data_Input_OD!E182) ->  | F180: =IF(Data_Input_OD!I182="","",Data_Input_OD!I182) ->  | G180: =IF(Data_Input_OD!J182="","",Data_Input_OD!J182) ->  | H180: =IF(Data_Input_OD!K182="","",Data_Input_OD!K182) ->  | I180: =IF(Data_Input_OD!L182="","",Data_Input_OD!L182) -> 
A181: 179 | B181: =IF(Data_Input_OD!B183="","",Data_Input_OD!B183) ->  | C181: =IF(Data_Input_OD!C183="","",Data_Input_OD!C183) ->  | D181: =IF(Data_Input_OD!D183="","",Data_Input_OD!D183) ->  | E181: =IF(Data_Input_OD!E183="","",Data_Input_OD!E183) ->  | F181: =IF(Data_Input_OD!I183="","",Data_Input_OD!I183) ->  | G181: =IF(Data_Input_OD!J183="","",Data_Input_OD!J183) ->  | H181: =IF(Data_Input_OD!K183="","",Data_Input_OD!K183) ->  | I181: =IF(Data_Input_OD!L183="","",Data_Input_OD!L183) -> 
A182: 180 | B182: =IF(Data_Input_OD!B184="","",Data_Input_OD!B184) ->  | C182: =IF(Data_Input_OD!C184="","",Data_Input_OD!C184) ->  | D182: =IF(Data_Input_OD!D184="","",Data_Input_OD!D184) ->  | E182: =IF(Data_Input_OD!E184="","",Data_Input_OD!E184) ->  | F182: =IF(Data_Input_OD!I184="","",Data_Input_OD!I184) ->  | G182: =IF(Data_Input_OD!J184="","",Data_Input_OD!J184) ->  | H182: =IF(Data_Input_OD!K184="","",Data_Input_OD!K184) ->  | I182: =IF(Data_Input_OD!L184="","",Data_Input_OD!L184) -> 
A183: 181 | B183: =IF(Data_Input_OD!B185="","",Data_Input_OD!B185) ->  | C183: =IF(Data_Input_OD!C185="","",Data_Input_OD!C185) ->  | D183: =IF(Data_Input_OD!D185="","",Data_Input_OD!D185) ->  | E183: =IF(Data_Input_OD!E185="","",Data_Input_OD!E185) ->  | F183: =IF(Data_Input_OD!I185="","",Data_Input_OD!I185) ->  | G183: =IF(Data_Input_OD!J185="","",Data_Input_OD!J185) ->  | H183: =IF(Data_Input_OD!K185="","",Data_Input_OD!K185) ->  | I183: =IF(Data_Input_OD!L185="","",Data_Input_OD!L185) -> 
A184: 182 | B184: =IF(Data_Input_OD!B186="","",Data_Input_OD!B186) ->  | C184: =IF(Data_Input_OD!C186="","",Data_Input_OD!C186) ->  | D184: =IF(Data_Input_OD!D186="","",Data_Input_OD!D186) ->  | E184: =IF(Data_Input_OD!E186="","",Data_Input_OD!E186) ->  | F184: =IF(Data_Input_OD!I186="","",Data_Input_OD!I186) ->  | G184: =IF(Data_Input_OD!J186="","",Data_Input_OD!J186) ->  | H184: =IF(Data_Input_OD!K186="","",Data_Input_OD!K186) ->  | I184: =IF(Data_Input_OD!L186="","",Data_Input_OD!L186) -> 
A185: 183 | B185: =IF(Data_Input_OD!B187="","",Data_Input_OD!B187) ->  | C185: =IF(Data_Input_OD!C187="","",Data_Input_OD!C187) ->  | D185: =IF(Data_Input_OD!D187="","",Data_Input_OD!D187) ->  | E185: =IF(Data_Input_OD!E187="","",Data_Input_OD!E187) ->  | F185: =IF(Data_Input_OD!I187="","",Data_Input_OD!I187) ->  | G185: =IF(Data_Input_OD!J187="","",Data_Input_OD!J187) ->  | H185: =IF(Data_Input_OD!K187="","",Data_Input_OD!K187) ->  | I185: =IF(Data_Input_OD!L187="","",Data_Input_OD!L187) -> 
A186: 184 | B186: =IF(Data_Input_OD!B188="","",Data_Input_OD!B188) ->  | C186: =IF(Data_Input_OD!C188="","",Data_Input_OD!C188) ->  | D186: =IF(Data_Input_OD!D188="","",Data_Input_OD!D188) ->  | E186: =IF(Data_Input_OD!E188="","",Data_Input_OD!E188) ->  | F186: =IF(Data_Input_OD!I188="","",Data_Input_OD!I188) ->  | G186: =IF(Data_Input_OD!J188="","",Data_Input_OD!J188) ->  | H186: =IF(Data_Input_OD!K188="","",Data_Input_OD!K188) ->  | I186: =IF(Data_Input_OD!L188="","",Data_Input_OD!L188) -> 
A187: 185 | B187: =IF(Data_Input_OD!B189="","",Data_Input_OD!B189) ->  | C187: =IF(Data_Input_OD!C189="","",Data_Input_OD!C189) ->  | D187: =IF(Data_Input_OD!D189="","",Data_Input_OD!D189) ->  | E187: =IF(Data_Input_OD!E189="","",Data_Input_OD!E189) ->  | F187: =IF(Data_Input_OD!I189="","",Data_Input_OD!I189) ->  | G187: =IF(Data_Input_OD!J189="","",Data_Input_OD!J189) ->  | H187: =IF(Data_Input_OD!K189="","",Data_Input_OD!K189) ->  | I187: =IF(Data_Input_OD!L189="","",Data_Input_OD!L189) -> 
A188: 186 | B188: =IF(Data_Input_OD!B190="","",Data_Input_OD!B190) ->  | C188: =IF(Data_Input_OD!C190="","",Data_Input_OD!C190) ->  | D188: =IF(Data_Input_OD!D190="","",Data_Input_OD!D190) ->  | E188: =IF(Data_Input_OD!E190="","",Data_Input_OD!E190) ->  | F188: =IF(Data_Input_OD!I190="","",Data_Input_OD!I190) ->  | G188: =IF(Data_Input_OD!J190="","",Data_Input_OD!J190) ->  | H188: =IF(Data_Input_OD!K190="","",Data_Input_OD!K190) ->  | I188: =IF(Data_Input_OD!L190="","",Data_Input_OD!L190) -> 
A189: 187 | B189: =IF(Data_Input_OD!B191="","",Data_Input_OD!B191) ->  | C189: =IF(Data_Input_OD!C191="","",Data_Input_OD!C191) ->  | D189: =IF(Data_Input_OD!D191="","",Data_Input_OD!D191) ->  | E189: =IF(Data_Input_OD!E191="","",Data_Input_OD!E191) ->  | F189: =IF(Data_Input_OD!I191="","",Data_Input_OD!I191) ->  | G189: =IF(Data_Input_OD!J191="","",Data_Input_OD!J191) ->  | H189: =IF(Data_Input_OD!K191="","",Data_Input_OD!K191) ->  | I189: =IF(Data_Input_OD!L191="","",Data_Input_OD!L191) -> 
A190: 188 | B190: =IF(Data_Input_OD!B192="","",Data_Input_OD!B192) ->  | C190: =IF(Data_Input_OD!C192="","",Data_Input_OD!C192) ->  | D190: =IF(Data_Input_OD!D192="","",Data_Input_OD!D192) ->  | E190: =IF(Data_Input_OD!E192="","",Data_Input_OD!E192) ->  | F190: =IF(Data_Input_OD!I192="","",Data_Input_OD!I192) ->  | G190: =IF(Data_Input_OD!J192="","",Data_Input_OD!J192) ->  | H190: =IF(Data_Input_OD!K192="","",Data_Input_OD!K192) ->  | I190: =IF(Data_Input_OD!L192="","",Data_Input_OD!L192) -> 
A191: 189 | B191: =IF(Data_Input_OD!B193="","",Data_Input_OD!B193) ->  | C191: =IF(Data_Input_OD!C193="","",Data_Input_OD!C193) ->  | D191: =IF(Data_Input_OD!D193="","",Data_Input_OD!D193) ->  | E191: =IF(Data_Input_OD!E193="","",Data_Input_OD!E193) ->  | F191: =IF(Data_Input_OD!I193="","",Data_Input_OD!I193) ->  | G191: =IF(Data_Input_OD!J193="","",Data_Input_OD!J193) ->  | H191: =IF(Data_Input_OD!K193="","",Data_Input_OD!K193) ->  | I191: =IF(Data_Input_OD!L193="","",Data_Input_OD!L193) -> 
A192: 190 | B192: =IF(Data_Input_OD!B194="","",Data_Input_OD!B194) ->  | C192: =IF(Data_Input_OD!C194="","",Data_Input_OD!C194) ->  | D192: =IF(Data_Input_OD!D194="","",Data_Input_OD!D194) ->  | E192: =IF(Data_Input_OD!E194="","",Data_Input_OD!E194) ->  | F192: =IF(Data_Input_OD!I194="","",Data_Input_OD!I194) ->  | G192: =IF(Data_Input_OD!J194="","",Data_Input_OD!J194) ->  | H192: =IF(Data_Input_OD!K194="","",Data_Input_OD!K194) ->  | I192: =IF(Data_Input_OD!L194="","",Data_Input_OD!L194) -> 
A193: 191 | B193: =IF(Data_Input_OD!B195="","",Data_Input_OD!B195) ->  | C193: =IF(Data_Input_OD!C195="","",Data_Input_OD!C195) ->  | D193: =IF(Data_Input_OD!D195="","",Data_Input_OD!D195) ->  | E193: =IF(Data_Input_OD!E195="","",Data_Input_OD!E195) ->  | F193: =IF(Data_Input_OD!I195="","",Data_Input_OD!I195) ->  | G193: =IF(Data_Input_OD!J195="","",Data_Input_OD!J195) ->  | H193: =IF(Data_Input_OD!K195="","",Data_Input_OD!K195) ->  | I193: =IF(Data_Input_OD!L195="","",Data_Input_OD!L195) -> 
A194: 192 | B194: =IF(Data_Input_OD!B196="","",Data_Input_OD!B196) ->  | C194: =IF(Data_Input_OD!C196="","",Data_Input_OD!C196) ->  | D194: =IF(Data_Input_OD!D196="","",Data_Input_OD!D196) ->  | E194: =IF(Data_Input_OD!E196="","",Data_Input_OD!E196) ->  | F194: =IF(Data_Input_OD!I196="","",Data_Input_OD!I196) ->  | G194: =IF(Data_Input_OD!J196="","",Data_Input_OD!J196) ->  | H194: =IF(Data_Input_OD!K196="","",Data_Input_OD!K196) ->  | I194: =IF(Data_Input_OD!L196="","",Data_Input_OD!L196) -> 
A195: 193 | B195: =IF(Data_Input_OD!B197="","",Data_Input_OD!B197) ->  | C195: =IF(Data_Input_OD!C197="","",Data_Input_OD!C197) ->  | D195: =IF(Data_Input_OD!D197="","",Data_Input_OD!D197) ->  | E195: =IF(Data_Input_OD!E197="","",Data_Input_OD!E197) ->  | F195: =IF(Data_Input_OD!I197="","",Data_Input_OD!I197) ->  | G195: =IF(Data_Input_OD!J197="","",Data_Input_OD!J197) ->  | H195: =IF(Data_Input_OD!K197="","",Data_Input_OD!K197) ->  | I195: =IF(Data_Input_OD!L197="","",Data_Input_OD!L197) -> 
A196: 194 | B196: =IF(Data_Input_OD!B198="","",Data_Input_OD!B198) ->  | C196: =IF(Data_Input_OD!C198="","",Data_Input_OD!C198) ->  | D196: =IF(Data_Input_OD!D198="","",Data_Input_OD!D198) ->  | E196: =IF(Data_Input_OD!E198="","",Data_Input_OD!E198) ->  | F196: =IF(Data_Input_OD!I198="","",Data_Input_OD!I198) ->  | G196: =IF(Data_Input_OD!J198="","",Data_Input_OD!J198) ->  | H196: =IF(Data_Input_OD!K198="","",Data_Input_OD!K198) ->  | I196: =IF(Data_Input_OD!L198="","",Data_Input_OD!L198) ->  | J196: =IFERROR(D196-B196,"") ->  | K196: =IFERROR(E196,"") ->  | L196: =IFERROR(H196-F196,"") ->  | M196: =IFERROR(I196,"") ->  | N196: =IFERROR(SQRT(Y196^2+Z196^2),"") ->  | O196: =IFERROR(0.5*DEGREES((ATAN(Z196/Y196))),"") ->  | P196: =IFERROR(IF(Y196>0,IF(Z196>0,O196,O196+180),O196+90),"") ->  | Q196: =IFERROR(J196*COS(2*RADIANS(K196)),"") ->  | R196: =IFERROR(L196*COS(2*RADIANS(M196)),"") ->  | S196: =IFERROR(IF((Q196+R196)=0,0.0000001,-Q196+R196),"") ->  | T196: =IFERROR(J196*SIN(2*RADIANS(K196)),"") ->  | U196: =IFERROR(L196*SIN(2*RADIANS(M196)),"") ->  | V196: =IFERROR(-T196+U196,"") ->  | W196: =IFERROR(IF(ABS(S196)>$Y$1,"",IF(ABS(V196)>$Z$1,"",S196)),"") ->  | X196: =IFERROR(IF(ABS(S196)>$Y$1,"",IF(ABS(V196)>$Z$1,"",V196)),"") ->  | Y196: =IF(W196="",#N/A,W196) -> 
A197: 195 | B197: =IF(Data_Input_OD!B199="","",Data_Input_OD!B199) ->  | C197: =IF(Data_Input_OD!C199="","",Data_Input_OD!C199) ->  | D197: =IF(Data_Input_OD!D199="","",Data_Input_OD!D199) ->  | E197: =IF(Data_Input_OD!E199="","",Data_Input_OD!E199) ->  | F197: =IF(Data_Input_OD!I199="","",Data_Input_OD!I199) ->  | G197: =IF(Data_Input_OD!J199="","",Data_Input_OD!J199) ->  | H197: =IF(Data_Input_OD!K199="","",Data_Input_OD!K199) ->  | I197: =IF(Data_Input_OD!L199="","",Data_Input_OD!L199) -> 
A198: 196 | B198: =IF(Data_Input_OD!B200="","",Data_Input_OD!B200) ->  | C198: =IF(Data_Input_OD!C200="","",Data_Input_OD!C200) ->  | D198: =IF(Data_Input_OD!D200="","",Data_Input_OD!D200) ->  | E198: =IF(Data_Input_OD!E200="","",Data_Input_OD!E200) ->  | F198: =IF(Data_Input_OD!I200="","",Data_Input_OD!I200) ->  | G198: =IF(Data_Input_OD!J200="","",Data_Input_OD!J200) ->  | H198: =IF(Data_Input_OD!K200="","",Data_Input_OD!K200) ->  | I198: =IF(Data_Input_OD!L200="","",Data_Input_OD!L200) -> 
A199: 197 | B199: =IF(Data_Input_OD!B201="","",Data_Input_OD!B201) ->  | C199: =IF(Data_Input_OD!C201="","",Data_Input_OD!C201) ->  | D199: =IF(Data_Input_OD!D201="","",Data_Input_OD!D201) ->  | E199: =IF(Data_Input_OD!E201="","",Data_Input_OD!E201) ->  | F199: =IF(Data_Input_OD!I201="","",Data_Input_OD!I201) ->  | G199: =IF(Data_Input_OD!J201="","",Data_Input_OD!J201) ->  | H199: =IF(Data_Input_OD!K201="","",Data_Input_OD!K201) ->  | I199: =IF(Data_Input_OD!L201="","",Data_Input_OD!L201) -> 
A200: 198 | B200: =IF(Data_Input_OD!B202="","",Data_Input_OD!B202) ->  | C200: =IF(Data_Input_OD!C202="","",Data_Input_OD!C202) ->  | D200: =IF(Data_Input_OD!D202="","",Data_Input_OD!D202) ->  | E200: =IF(Data_Input_OD!E202="","",Data_Input_OD!E202) ->  | F200: =IF(Data_Input_OD!I202="","",Data_Input_OD!I202) ->  | G200: =IF(Data_Input_OD!J202="","",Data_Input_OD!J202) ->  | H200: =IF(Data_Input_OD!K202="","",Data_Input_OD!K202) ->  | I200: =IF(Data_Input_OD!L202="","",Data_Input_OD!L202) -> 
... 2802 more rows

Sheet A (hidden)
C31: Preoperative Corneal Astigmatism | E31: Postoperative Refractice Astigmatism
B32: ≤ 0.25 D | C32: =Preoperative_data!N4 -> 0 | D32: =Preoperative_data!O4 -> 0 | E32: =Postoperative_data!BD4 -> 31 | F32: =Postoperative_data!BE4 -> 0.3974358974
B33: ≤ 0.50 D | C33: =Preoperative_data!N5 -> 5 | D33: =Preoperative_data!O5 -> 0.0641025641 | E33: =Postoperative_data!BD5 -> 49 | F33: =Postoperative_data!BE5 -> 0.6282051282
B34: ≤ 0.75 D | C34: =Preoperative_data!N6 -> 18 | D34: =Preoperative_data!O6 -> 0.2307692308 | E34: =Postoperative_data!BD6 -> 65 | F34: =Postoperative_data!BE6 -> 0.8333333333
B35: ≤ 1.00 D | C35: =Preoperative_data!N7 -> 35 | D35: =Preoperative_data!O7 -> 0.4487179487 | E35: =Postoperative_data!BD7 -> 71 | F35: =Postoperative_data!BE7 -> 0.9102564103
B36: ≤ 1.50 D | C36: =Preoperative_data!N8 -> 56 | D36: =Preoperative_data!O8 -> 0.7179487179 | E36: =Postoperative_data!BD8 -> 78 | F36: =Postoperative_data!BE8 -> 1
B37: ≤ 2.00 D | C37: =Preoperative_data!N9 -> 66 | D37: =Preoperative_data!O9 -> 0.8461538462 | E37: =Postoperative_data!BD9 -> 78 | F37: =Postoperative_data!BE9 -> 1

Sheet OS (hidden)
B1: Preoperative corneal astigmatism | F1: Postoperative corneal astigmatism | J1: Pre-op Ast | L1: Post-op Ast | N1: SIA IOLM | W1: =STDEV(S3:S3002)*AB1 -> 0.7095817755 | X1: =STDEV(V3:V3002)*AB1 -> 0.8178487604 | Y1: =STDEV(S3:S3002)*AB1 -> 0.7095817755 | Z1: =STDEV(V3:V3002)*AB1 -> 0.8178487604 | AB1: =Figure!Q43 -> 2
A2: No. | B2: Kflat | C2: @flat | D2: Ksteep | E2: @steep | F2: Kflat | G2: @flat | H2: Ksteep | I2: @steep | J2: power | K2: @ | L2: power | M2: @ | N2: power | O2: angle | P2: axis | Q2: V1x | R2: V2x | S2: VX | T2: V1y | U2: V2y | V2: VY | W2: Xsd | X2: Ysd | Y2: Xsd | Z2: Ysd
A3: 1 | B3: =IF(Data_Input_OS!B5="","",Data_Input_OS!B5) -> 41.11 | C3: =IF(Data_Input_OS!C5="","",Data_Input_OS!C5) -> 147 | D3: =IF(Data_Input_OS!D5="","",Data_Input_OS!D5) -> 42.54 | E3: =IF(Data_Input_OS!E5="","",Data_Input_OS!E5) -> 57 | F3: =IF(Data_Input_OS!I5="","",Data_Input_OS!I5) -> 41.01 | G3: =IF(Data_Input_OS!J5="","",Data_Input_OS!J5) -> 147 | H3: =IF(Data_Input_OS!K5="","",Data_Input_OS!K5) -> 42.38 | I3: =IF(Data_Input_OS!L5="","",Data_Input_OS!L5) -> 57 | J3: =IFERROR(D3-B3,"") -> 1.43 | K3: =IFERROR(E3,"") -> 57 | L3: =IFERROR(H3-F3,"") -> 1.37 | M3: =IFERROR(I3,"") -> 57 | N3: =IFERROR(SQRT(Y3^2+Z3^2),"") -> 0.06 | O3: =IFERROR(0.5*DEGREES((ATAN(Z3/Y3))),"") -> -33 | P3: =IFERROR(IF(Y3>0,IF(Z3>0,O3,O3+180),O3+90),"") -> 147 | Q3: =IFERROR(J3*COS(2*RADIANS(K3)),"") -> -0.5816333996 | R3: =IFERROR(L3*COS(2*RADIANS(M3)),"") -> -0.557229201 | S3: =IFERROR(IF((Q3+R3)=0,0.0000001,-Q3+R3),"") -> 0.02440419858 | T3: =IFERROR(J3*SIN(2*RADIANS(K3)),"") -> 1.306370004 | U3: =IFERROR(L3*SIN(2*RADIANS(M3)),"") -> 1.251557277 | V3: =IFERROR(-T3+U3,"") -> -0.05481272746 | W3: =IFERROR(IF(ABS(S3)>$Y$1,"",IF(ABS(V3)>$Z$1,"",S3)),"") -> 0.02440419858 | X3: =IFERROR(IF(ABS(S3)>$Y$1,"",IF(ABS(V3)>$Z$1,"",V3)),"") -> -0.05481272746 | Y3: =IF(W3="",#N/A,W3) -> 0.02440419858 | Z3: =IF(X3="",#N/A,X3) -> -0.05481272746
A4: 2 | B4: =IF(Data_Input_OS!B6="","",Data_Input_OS!B6) -> 40.7 | C4: =IF(Data_Input_OS!C6="","",Data_Input_OS!C6) -> 108 | D4: =IF(Data_Input_OS!D6="","",Data_Input_OS!D6) -> 41.3 | E4: =IF(Data_Input_OS!E6="","",Data_Input_OS!E6) -> 18 | F4: =IF(Data_Input_OS!I6="","",Data_Input_OS!I6) -> 40.72 | G4: =IF(Data_Input_OS!J6="","",Data_Input_OS!J6) -> 109 | H4: =IF(Data_Input_OS!K6="","",Data_Input_OS!K6) -> 41.34 | I4: =IF(Data_Input_OS!L6="","",Data_Input_OS!L6) -> 19 | J4: =IFERROR(D4-B4,"") -> 0.6 | K4: =IFERROR(E4,"") -> 18 | L4: =IFERROR(H4-F4,"") -> 0.62 | M4: =IFERROR(I4,"") -> 19 | N4: =IFERROR(SQRT(Y4^2+Z4^2),"") -> 0.02921001023 | O4: =IFERROR(0.5*DEGREES((ATAN(Z4/Y4))),"") -> 41.89821603 | P4: =IFERROR(IF(Y4>0,IF(Z4>0,O4,O4+180),O4+90),"") -> 41.89821603 | Q4: =IFERROR(J4*COS(2*RADIANS(K4)),"") -> 0.4854101966 | R4: =IFERROR(L4*COS(2*RADIANS(M4)),"") -> 0.4885666672 | S4: =IFERROR(IF((Q4+R4)=0,0.0000001,-Q4+R4),"") -> 0.003156470611 | T4: =IFERROR(J4*SIN(2*RADIANS(K4)),"") -> 0.3526711514 | U4: =IFERROR(L4*SIN(2*RADIANS(M4)),"") -> 0.3817101147 | V4: =IFERROR(-T4+U4,"") -> 0.02903896333 | W4: =IFERROR(IF(ABS(S4)>$Y$1,"",IF(ABS(V4)>$Z$1,"",S4)),"") -> 0.003156470611 | X4: =IFERROR(IF(ABS(S4)>$Y$1,"",IF(ABS(V4)>$Z$1,"",V4)),"") -> 0.02903896333 | Y4: =IF(W4="",#N/A,W4) -> 0.003156470611 | Z4: 0.02903896333
A5: 3 | B5: =IF(Data_Input_OS!B7="","",Data_Input_OS!B7) -> 44.1 | C5: =IF(Data_Input_OS!C7="","",Data_Input_OS!C7) -> 98 | D5: =IF(Data_Input_OS!D7="","",Data_Input_OS!D7) -> 44.3 | E5: =IF(Data_Input_OS!E7="","",Data_Input_OS!E7) -> 8 | F5: =IF(Data_Input_OS!I7="","",Data_Input_OS!I7) -> 43.93 | G5: =IF(Data_Input_OS!J7="","",Data_Input_OS!J7) -> 101 | H5: =IF(Data_Input_OS!K7="","",Data_Input_OS!K7) -> 44.42 | I5: =IF(Data_Input_OS!L7="","",Data_Input_OS!L7) -> 11 | J5: 0.2 | K5: 8 | L5: 0.49 | M5: 11 | N5: 0.2918453503 | O5: 13.05388694 | P5: 13.05388694 | Q5: 0.1922523392 | R5: 0.4543200887 | S5: 0.2620677496 | T5: 0.05512747116 | U5: 0.1835572308 | V5: 0.1284297596 | W5: 0.2620677496 | X5: 0.1284297596 | Y5: 0.2620677496 | Z5: 0.1284297596 | AB5: ≤ 0.10 D | AC5: =COUNTIF(N$3:N$3002,"<=0.1") -> 12 | AD5: =AC5/COUNT($N$3:$N$3002) -> 0.1666666667 | AF5: Centroid | AG5: =IFERROR(SQRT(AK5^2+AL5^2),"") -> 0.153892355 | AH5: =AJ5 -> 121.3921136 | AI5: =IFERROR(0.5*DEGREES((ATAN(AL5/AK5))),"") -> 31.3921136 | AJ5: =IFERROR(IF(AK5>0,IF(AL5>0,AI5,AI5+180),AI5+90),"") -> 121.3921136 | AK5: =AVERAGE(W3:W3002) -> -0.07038155358 | AL5: =AVERAGE(X3:X3002) -> -0.1368550103
A6: 4 | B6: =IF(Data_Input_OS!B8="","",Data_Input_OS!B8) -> 43.9 | C6: =IF(Data_Input_OS!C8="","",Data_Input_OS!C8) -> 101 | D6: =IF(Data_Input_OS!D8="","",Data_Input_OS!D8) -> 44.3 | E6: =IF(Data_Input_OS!E8="","",Data_Input_OS!E8) -> 11 | F6: =IF(Data_Input_OS!I8="","",Data_Input_OS!I8) -> 43.34 | G6: =IF(Data_Input_OS!J8="","",Data_Input_OS!J8) -> 118 | H6: =IF(Data_Input_OS!K8="","",Data_Input_OS!K8) -> 44.15 | I6: =IF(Data_Input_OS!L8="","",Data_Input_OS!L8) -> 28 | J6: 0.4 | K6: 11 | L6: 0.81 | M6: 28 | N6: 0.5280943599 | O6: 40.52962619 | P6: 40.52962619 | Q6: 0.3708735418 | R6: 0.4529462518 | S6: 0.08207270998 | T6: 0.1498426374 | U6: 0.6715204338 | V6: 0.5216777964 | W6: 0.08207270998 | X6: 0.5216777964 | Y6: 0.08207270998 | Z6: 0.5216777964 | AB6: ≤ 0.20 D | AC6: =COUNTIF(N$3:N$3002,"<=0.2") -> 21 | AD6: =AC6/COUNT($N$3:$N$3002) -> 0.2916666667 | AF6: SD | AG6: =SQRT(AK6+AL6) -> 0.3857741263 | AK6: =VAR(W3:W3002) -> 0.06936662158 | AL6: =VAR(X3:X3002) -> 0.07945505491
A7: 5 | B7: =IF(Data_Input_OS!B9="","",Data_Input_OS!B9) -> 43.39 | C7: =IF(Data_Input_OS!C9="","",Data_Input_OS!C9) -> 34 | D7: =IF(Data_Input_OS!D9="","",Data_Input_OS!D9) -> 44.06 | E7: =IF(Data_Input_OS!E9="","",Data_Input_OS!E9) -> 124 | F7: =IF(Data_Input_OS!I9="","",Data_Input_OS!I9) -> 43.39 | G7: =IF(Data_Input_OS!J9="","",Data_Input_OS!J9) -> 34 | H7: =IF(Data_Input_OS!K9="","",Data_Input_OS!K9) -> 44.06 | I7: =IF(Data_Input_OS!L9="","",Data_Input_OS!L9) -> 124 | J7: 0.67 | K7: 124 | L7: 0.67 | M7: 124 | N7: 0 | Q7: -0.2509864176 | R7: -0.2509864176 | S7: 0 | T7: -0.6212131826 | U7: -0.6212131826 | V7: 0 | W7: 0 | X7: 0 | Y7: 0 | Z7: 0 | AB7: ≤ 0.50 D | AC7: =COUNTIF(N$3:N$3002,"<=0.5") -> 53 | AD7: 0.7361111111
A8: 6 | B8: =IF(Data_Input_OS!B10="","",Data_Input_OS!B10) -> 44.93 | C8: =IF(Data_Input_OS!C10="","",Data_Input_OS!C10) -> 59 | D8: =IF(Data_Input_OS!D10="","",Data_Input_OS!D10) -> 45.7 | E8: =IF(Data_Input_OS!E10="","",Data_Input_OS!E10) -> 149 | F8: =IF(Data_Input_OS!I10="","",Data_Input_OS!I10) -> 44.93 | G8: =IF(Data_Input_OS!J10="","",Data_Input_OS!J10) -> 59 | H8: =IF(Data_Input_OS!K10="","",Data_Input_OS!K10) -> 45.7 | I8: =IF(Data_Input_OS!L10="","",Data_Input_OS!L10) -> 149 | J8: 0.77 | K8: 149 | L8: 0.77 | M8: 149 | N8: 0 | Q8: 0.3614931033 | R8: 0.3614931033 | S8: 0 | T8: -0.6798696465 | U8: -0.6798696465 | V8: 0 | W8: 0 | X8: 0 | Y8: 0 | Z8: 0 | AB8: ≤ 0.75 D | AC8: =COUNTIF(N$3:N$3002,"<=0.75") -> 69 | AD8: 0.9583333333 | AF8: Mean | AG8: =AVERAGE(N3:N3002) -> 0.3473883024
A9: 7 | B9: =IF(Data_Input_OS!B11="","",Data_Input_OS!B11) -> 40.11 | C9: =IF(Data_Input_OS!C11="","",Data_Input_OS!C11) -> 90 | D9: =IF(Data_Input_OS!D11="","",Data_Input_OS!D11) -> 40.77 | E9: =IF(Data_Input_OS!E11="","",Data_Input_OS!E11) -> 180 | F9: =IF(Data_Input_OS!I11="","",Data_Input_OS!I11) -> 40.62 | G9: =IF(Data_Input_OS!J11="","",Data_Input_OS!J11) -> 138 | H9: =IF(Data_Input_OS!K11="","",Data_Input_OS!K11) -> 40.87 | I9: =IF(Data_Input_OS!L11="","",Data_Input_OS!L11) -> 48 | J9: 0.66 | K9: 180 | L9: 0.25 | M9: 48 | N9: 0.72979065 | O9: -9.959379639 | P9: 80.04062036 | Q9: 0.66 | R9: -0.02613211582 | S9: -0.6861321158 | T9: -1.61719596e-16 | U9: 0.2486304738 | V9: 0.2486304738 | W9: -0.6861321158 | X9: 0.2486304738 | Y9: -0.6861321158 | Z9: 0.2486304738 | AB9: ≤ 1.00 D | AC9: =COUNTIF(N$3:N$3002,"<=1") -> 72 | AD9: 1 | AF9: SD | AG9: =_xlfn.STDEV.P(N3:N3002) -> 0.2230671044
A10: 8 | B10: =IF(Data_Input_OS!B12="","",Data_Input_OS!B12) -> 42.8 | C10: =IF(Data_Input_OS!C12="","",Data_Input_OS!C12) -> 171 | D10: =IF(Data_Input_OS!D12="","",Data_Input_OS!D12) -> 43.24 | E10: =IF(Data_Input_OS!E12="","",Data_Input_OS!E12) -> 81 | F10: =IF(Data_Input_OS!I12="","",Data_Input_OS!I12) -> 42.77 | G10: =IF(Data_Input_OS!J12="","",Data_Input_OS!J12) -> 12 | H10: =IF(Data_Input_OS!K12="","",Data_Input_OS!K12) -> 43.33 | I10: =IF(Data_Input_OS!L12="","",Data_Input_OS!L12) -> 102 | J10: 0.44 | K10: 81 | L10: 0.56 | M10: 102 | N10: 0.375470678 | O10: 37.82009892 | P10: 127.8200989 | Q10: -0.4184648672 | R10: -0.5115854563 | S10: -0.09312058911 | T10: 0.1359674775 | U10: -0.2277725201 | V10: -0.3637399976 | W10: -0.09312058911 | X10: -0.3637399976 | Y10: -0.09312058911 | Z10: -0.3637399976 | AB10: > 1.00 D | AC10: =COUNTIF(N$3:N$3002,">1") -> 0 | AD10: 0 | AF10: N= | AG10: =COUNT(N3:N3002) -> 72
A11: 9 | B11: =IF(Data_Input_OS!B13="","",Data_Input_OS!B13) -> 43.71 | C11: =IF(Data_Input_OS!C13="","",Data_Input_OS!C13) -> 102 | D11: =IF(Data_Input_OS!D13="","",Data_Input_OS!D13) -> 44.01 | E11: =IF(Data_Input_OS!E13="","",Data_Input_OS!E13) -> 12 | F11: =IF(Data_Input_OS!I13="","",Data_Input_OS!I13) -> 43.53 | G11: =IF(Data_Input_OS!J13="","",Data_Input_OS!J13) -> 65 | H11: =IF(Data_Input_OS!K13="","",Data_Input_OS!K13) -> 44.09 | I11: =IF(Data_Input_OS!L13="","",Data_Input_OS!L13) -> 155 | J11: 0.3 | K11: 12 | L11: 0.56 | M11: 155 | N11: 0.5576610516 | O11: -40.56968172 | P11: 139.4303183 | Q11: 0.2740636373 | R11: 0.3599610614 | S11: 0.08589742413 | T11: 0.1220209929 | U11: -0.4289848881 | V11: -0.5510058811 | W11: 0.08589742413 | X11: -0.5510058811 | Y11: 0.08589742413 | Z11: -0.5510058811
A12: 10 | B12: =IF(Data_Input_OS!B14="","",Data_Input_OS!B14) -> 43.25 | C12: =IF(Data_Input_OS!C14="","",Data_Input_OS!C14) -> 3 | D12: =IF(Data_Input_OS!D14="","",Data_Input_OS!D14) -> 44.05 | E12: =IF(Data_Input_OS!E14="","",Data_Input_OS!E14) -> 93 | F12: =IF(Data_Input_OS!I14="","",Data_Input_OS!I14) -> 42.83 | G12: =IF(Data_Input_OS!J14="","",Data_Input_OS!J14) -> 18 | H12: =IF(Data_Input_OS!K14="","",Data_Input_OS!K14) -> 44.16 | I12: =IF(Data_Input_OS!L14="","",Data_Input_OS!L14) -> 108 | J12: 0.8 | K12: 93 | L12: 1.33 | M12: 108 | N12: 0.7523283464 | O12: 34.05961088 | P12: 124.0596109 | Q12: -0.7956175163 | R12: -1.075992603 | S12: -0.2803750862 | T12: -0.08362277061 | U12: -0.7817543855 | V12: -0.6981316149 | W12: -0.2803750862 | X12: -0.6981316149 | Y12: -0.2803750862 | Z12: -0.6981316149
A13: 11 | B13: =IF(Data_Input_OS!B15="","",Data_Input_OS!B15) -> 45.56 | C13: =IF(Data_Input_OS!C15="","",Data_Input_OS!C15) -> 16 | D13: =IF(Data_Input_OS!D15="","",Data_Input_OS!D15) -> 46.87 | E13: =IF(Data_Input_OS!E15="","",Data_Input_OS!E15) -> 106 | F13: =IF(Data_Input_OS!I15="","",Data_Input_OS!I15) -> 45.84 | G13: =IF(Data_Input_OS!J15="","",Data_Input_OS!J15) -> 11 | H13: =IF(Data_Input_OS!K15="","",Data_Input_OS!K15) -> 46.22 | I13: =IF(Data_Input_OS!L15="","",Data_Input_OS!L15) -> 101 | J13: 1.31 | K13: 106 | L13: 0.38 | M13: 101 | Q13: -1.110943006 | R13: -0.3523298647 | S13: 0.7586131412 | T13: -0.6941942361 | U13: -0.1423505055 | V13: 0.5518437306
A14: 12 | B14: =IF(Data_Input_OS!B16="","",Data_Input_OS!B16) -> 45.63 | C14: =IF(Data_Input_OS!C16="","",Data_Input_OS!C16) -> 101 | D14: =IF(Data_Input_OS!D16="","",Data_Input_OS!D16) -> 46.22 | E14: =IF(Data_Input_OS!E16="","",Data_Input_OS!E16) -> 11 | F14: =IF(Data_Input_OS!I16="","",Data_Input_OS!I16) -> 45.59 | G14: =IF(Data_Input_OS!J16="","",Data_Input_OS!J16) -> 125 | H14: =IF(Data_Input_OS!K16="","",Data_Input_OS!K16) -> 46.86 | I14: =IF(Data_Input_OS!L16="","",Data_Input_OS!L16) -> 35 | J14: 0.59 | K14: 11 | L14: 1.27 | M14: 35 | Q14: 0.5470384742 | R14: 0.434365582 | S14: -0.1126728922 | T14: 0.2210178901 | U14: 1.193409628 | V14: 0.9723917383
A15: 13 | B15: =IF(Data_Input_OS!B17="","",Data_Input_OS!B17) -> 43.19 | C15: =IF(Data_Input_OS!C17="","",Data_Input_OS!C17) -> 177 | D15: =IF(Data_Input_OS!D17="","",Data_Input_OS!D17) -> 44.61 | E15: =IF(Data_Input_OS!E17="","",Data_Input_OS!E17) -> 87 | F15: =IF(Data_Input_OS!I17="","",Data_Input_OS!I17) -> 43.45 | G15: =IF(Data_Input_OS!J17="","",Data_Input_OS!J17) -> 179 | H15: =IF(Data_Input_OS!K17="","",Data_Input_OS!K17) -> 44.6 | I15: =IF(Data_Input_OS!L17="","",Data_Input_OS!L17) -> 89 | J15: 1.42 | K15: 87 | L15: 1.15 | M15: 89 | N15: 0.2843515638 | O15: -11.19324843 | P15: 168.8067516 | Q15: -1.412221091 | R15: -1.149299451 | S15: 0.2629216404 | T15: 0.1484304178 | U15: 0.04013442121 | V15: -0.1082959966 | W15: 0.2629216404 | X15: -0.1082959966 | Y15: 0.2629216404 | Z15: -0.1082959966
A16: 14 | B16: =IF(Data_Input_OS!B18="","",Data_Input_OS!B18) -> 43.25 | C16: =IF(Data_Input_OS!C18="","",Data_Input_OS!C18) -> 96 | D16: =IF(Data_Input_OS!D18="","",Data_Input_OS!D18) -> 43.51 | E16: =IF(Data_Input_OS!E18="","",Data_Input_OS!E18) -> 6 | F16: =IF(Data_Input_OS!I18="","",Data_Input_OS!I18) -> 43.08 | G16: =IF(Data_Input_OS!J18="","",Data_Input_OS!J18) -> 60 | H16: =IF(Data_Input_OS!K18="","",Data_Input_OS!K18) -> 43.28 | I16: =IF(Data_Input_OS!L18="","",Data_Input_OS!L18) -> 150 | J16: 0.26 | K16: 6 | L16: 0.2 | M16: 150 | N16: 0.2747038998 | O16: 27.91110954 | P16: 117.9111095 | Q16: 0.2543183762 | R16: 0.1 | S16: -0.1543183762 | T16: 0.05405703961 | U16: -0.1732050808 | V16: -0.2272621204 | W16: -0.1543183762 | X16: -0.2272621204 | Y16: -0.1543183762 | Z16: -0.2272621204
A17: 15 | B17: =IF(Data_Input_OS!B19="","",Data_Input_OS!B19) -> 46.68 | C17: =IF(Data_Input_OS!C19="","",Data_Input_OS!C19) -> 130 | D17: =IF(Data_Input_OS!D19="","",Data_Input_OS!D19) -> 47.28 | E17: =IF(Data_Input_OS!E19="","",Data_Input_OS!E19) -> 40 | F17: =IF(Data_Input_OS!I19="","",Data_Input_OS!I19) -> 46 | G17: =IF(Data_Input_OS!J19="","",Data_Input_OS!J19) -> 112 | H17: =IF(Data_Input_OS!K19="","",Data_Input_OS!K19) -> 47.19 | I17: =IF(Data_Input_OS!L19="","",Data_Input_OS!L19) -> 22 | J17: 0.6 | K17: 40 | L17: 1.19 | M17: 22 | Q17: 0.1041889066 | R17: 0.8560143624 | S17: 0.7518254558 | T17: 0.5908846518 | U17: 0.8266434608 | V17: 0.235758809
A18: 16 | B18: =IF(Data_Input_OS!B20="","",Data_Input_OS!B20) -> 42.39 | C18: =IF(Data_Input_OS!C20="","",Data_Input_OS!C20) -> 104 | D18: =IF(Data_Input_OS!D20="","",Data_Input_OS!D20) -> 43.74 | E18: =IF(Data_Input_OS!E20="","",Data_Input_OS!E20) -> 14 | F18: =IF(Data_Input_OS!I20="","",Data_Input_OS!I20) -> 42.16 | G18: =IF(Data_Input_OS!J20="","",Data_Input_OS!J20) -> 63 | H18: =IF(Data_Input_OS!K20="","",Data_Input_OS!K20) -> 43.93 | I18: =IF(Data_Input_OS!L20="","",Data_Input_OS!L20) -> 153 | J18: 1.35 | K18: 14 | L18: 1.77 | M18: 153 | Q18: 1.19197925 | R18: 1.040379897 | S18: -0.1515993538 | T18: 0.6337866098 | U18: -1.43196008 | V18: -2.06574669
A19: 17 | B19: =IF(Data_Input_OS!B21="","",Data_Input_OS!B21) -> 46.27 | C19: =IF(Data_Input_OS!C21="","",Data_Input_OS!C21) -> 98 | D19: =IF(Data_Input_OS!D21="","",Data_Input_OS!D21) -> 47.15 | E19: =IF(Data_Input_OS!E21="","",Data_Input_OS!E21) -> 8 | F19: =IF(Data_Input_OS!I21="","",Data_Input_OS!I21) -> 38.61 | G19: =IF(Data_Input_OS!J21="","",Data_Input_OS!J21) -> 169 | H19: =IF(Data_Input_OS!K21="","",Data_Input_OS!K21) -> 39.58 | I19: =IF(Data_Input_OS!L21="","",Data_Input_OS!L21) -> 79 | J19: 0.88 | K19: 8 | L19: 0.97 | M19: 79 | Q19: 0.8459102924 | R19: -0.8993683389 | S19: -1.745278631 | T19: 0.2425608731 | U19: 0.3633683956 | V19: 0.1208075225
A20: 18 | B20: =IF(Data_Input_OS!B22="","",Data_Input_OS!B22) -> 43.64 | C20: =IF(Data_Input_OS!C22="","",Data_Input_OS!C22) -> 21 | D20: =IF(Data_Input_OS!D22="","",Data_Input_OS!D22) -> 44.4 | E20: =IF(Data_Input_OS!E22="","",Data_Input_OS!E22) -> 111 | F20: =IF(Data_Input_OS!I22="","",Data_Input_OS!I22) -> 43.37 | G20: =IF(Data_Input_OS!J22="","",Data_Input_OS!J22) -> 20 | H20: =IF(Data_Input_OS!K22="","",Data_Input_OS!K22) -> 43.94 | I20: =IF(Data_Input_OS!L22="","",Data_Input_OS!L22) -> 110 | J20: 0.76 | K20: 111 | L20: 0.57 | M20: 110 | N20: 0.1913838746 | O20: 23.98309055 | P20: 23.98309055 | Q20: -0.5647900674 | R20: -0.4366453326 | S20: 0.1281447348 | T20: -0.5085392608 | U20: -0.3663889375 | V20: 0.1421503233 | W20: 0.1281447348 | X20: 0.1421503233 | Y20: 0.1281447348 | Z20: 0.1421503233
A21: 19 | B21: =IF(Data_Input_OS!B23="","",Data_Input_OS!B23) -> 43.76 | C21: =IF(Data_Input_OS!C23="","",Data_Input_OS!C23) -> 104 | D21: =IF(Data_Input_OS!D23="","",Data_Input_OS!D23) -> 44.67 | E21: =IF(Data_Input_OS!E23="","",Data_Input_OS!E23) -> 14 | F21: =IF(Data_Input_OS!I23="","",Data_Input_OS!I23) -> 43.03 | G21: =IF(Data_Input_OS!J23="","",Data_Input_OS!J23) -> 80 | H21: =IF(Data_Input_OS!K23="","",Data_Input_OS!K23) -> 44.31 | I21: =IF(Data_Input_OS!L23="","",Data_Input_OS!L23) -> 170 | J21: 0.91 | K21: 14 | L21: 1.28 | M21: 170 | Q21: 0.8034823095 | R21: 1.202806555 | S21: 0.3993242451 | T21: 0.4272191221 | U21: -0.4377857835 | V21: -0.8650049056
A22: 20 | B22: =IF(Data_Input_OS!B24="","",Data_Input_OS!B24) -> 43.45 | C22: =IF(Data_Input_OS!C24="","",Data_Input_OS!C24) -> 87 | D22: =IF(Data_Input_OS!D24="","",Data_Input_OS!D24) -> 44.48 | E22: =IF(Data_Input_OS!E24="","",Data_Input_OS!E24) -> 177 | F22: =IF(Data_Input_OS!I24="","",Data_Input_OS!I24) -> 43.58 | G22: =IF(Data_Input_OS!J24="","",Data_Input_OS!J24) -> 78 | H22: =IF(Data_Input_OS!K24="","",Data_Input_OS!K24) -> 44.69 | I22: =IF(Data_Input_OS!L24="","",Data_Input_OS!L24) -> 168 | J22: 1.03 | K22: 177 | L22: 1.11 | M22: 168 | N22: 0.3439682687 | O22: 44.14018052 | P22: 134.1401805 | Q22: 1.024357552 | R22: 1.014035458 | S22: -0.01032209425 | T22: -0.1076643172 | U22: -0.4514776738 | V22: -0.3438133566 | W22: -0.01032209425 | X22: -0.3438133566 | Y22: -0.01032209425 | Z22: -0.3438133566
A23: 21 | B23: =IF(Data_Input_OS!B25="","",Data_Input_OS!B25) -> 42.58 | C23: =IF(Data_Input_OS!C25="","",Data_Input_OS!C25) -> 125 | D23: =IF(Data_Input_OS!D25="","",Data_Input_OS!D25) -> 43.03 | E23: =IF(Data_Input_OS!E25="","",Data_Input_OS!E25) -> 35 | F23: =IF(Data_Input_OS!I25="","",Data_Input_OS!I25) -> 42.46 | G23: =IF(Data_Input_OS!J25="","",Data_Input_OS!J25) -> 89 | H23: =IF(Data_Input_OS!K25="","",Data_Input_OS!K25) -> 42.74 | I23: =IF(Data_Input_OS!L25="","",Data_Input_OS!L25) -> 179 | J23: 0.45 | K23: 35 | L23: 0.28 | M23: 179 | N23: 0.4505859712 | O23: -36.88603648 | P23: 143.1139635 | Q23: 0.1539090645 | R23: 0.2798294316 | S23: 0.1259203671 | T23: 0.4228616794 | U23: -0.009771859077 | V23: -0.4326335384 | W23: 0.1259203671 | X23: -0.4326335384 | Y23: 0.1259203671 | Z23: -0.4326335384
A24: 22 | B24: =IF(Data_Input_OS!B26="","",Data_Input_OS!B26) -> 43.84 | C24: =IF(Data_Input_OS!C26="","",Data_Input_OS!C26) -> 152 | D24: =IF(Data_Input_OS!D26="","",Data_Input_OS!D26) -> 44.43 | E24: =IF(Data_Input_OS!E26="","",Data_Input_OS!E26) -> 62 | F24: =IF(Data_Input_OS!I26="","",Data_Input_OS!I26) -> 43.7 | G24: =IF(Data_Input_OS!J26="","",Data_Input_OS!J26) -> 1 | H24: =IF(Data_Input_OS!K26="","",Data_Input_OS!K26) -> 44.21 | I24: =IF(Data_Input_OS!L26="","",Data_Input_OS!L26) -> 91 | J24: 0.59 | K24: 62 | L24: 0.51 | M24: 91 | N24: 0.5378611222 | O24: 35.23735482 | P24: 125.2373548 | Q24: -0.329923813 | R24: -0.5096893218 | S24: -0.1797655087 | T24: 0.4891321678 | U24: -0.01779874332 | V24: -0.5069309111 | W24: -0.1797655087 | X24: -0.5069309111 | Y24: -0.1797655087 | Z24: -0.5069309111
A25: 23 | B25: =IF(Data_Input_OS!B27="","",Data_Input_OS!B27) -> 43.45 | C25: =IF(Data_Input_OS!C27="","",Data_Input_OS!C27) -> 80 | D25: =IF(Data_Input_OS!D27="","",Data_Input_OS!D27) -> 45.23 | E25: =IF(Data_Input_OS!E27="","",Data_Input_OS!E27) -> 170 | F25: =IF(Data_Input_OS!I27="","",Data_Input_OS!I27) -> 43.51 | G25: =IF(Data_Input_OS!J27="","",Data_Input_OS!J27) -> 71 | H25: =IF(Data_Input_OS!K27="","",Data_Input_OS!K27) -> 44.94 | I25: =IF(Data_Input_OS!L27="","",Data_Input_OS!L27) -> 161 | J25: 1.78 | K25: 170 | L25: 1.43 | M25: 161 | N25: 0.609640457 | O25: 13.22794109 | P25: 103.2279411 | Q25: 1.672652865 | R25: 1.126855378 | S25: -0.5457974873 | T25: -0.6087958551 | U25: -0.8803959097 | V25: -0.2716000546 | W25: -0.5457974873 | X25: -0.2716000546 | Y25: -0.5457974873 | Z25: -0.2716000546
A26: 24 | B26: =IF(Data_Input_OS!B28="","",Data_Input_OS!B28) -> 44.57 | C26: =IF(Data_Input_OS!C28="","",Data_Input_OS!C28) -> 50 | D26: =IF(Data_Input_OS!D28="","",Data_Input_OS!D28) -> 45.19 | E26: =IF(Data_Input_OS!E28="","",Data_Input_OS!E28) -> 140 | F26: =IF(Data_Input_OS!I28="","",Data_Input_OS!I28) -> 44.72 | G26: =IF(Data_Input_OS!J28="","",Data_Input_OS!J28) -> 34 | H26: =IF(Data_Input_OS!K28="","",Data_Input_OS!K28) -> 45.63 | I26: =IF(Data_Input_OS!L28="","",Data_Input_OS!L28) -> 124 | J26: 0.62 | K26: 140 | L26: 0.91 | M26: 124 | N26: 0.5055319261 | O26: 13.73261483 | P26: 103.7326148 | Q26: 0.1076618702 | R26: -0.340892 | S26: -0.4485538702 | T26: -0.6105808069 | U26: -0.8437373077 | V26: -0.2331565008 | W26: -0.4485538702 | X26: -0.2331565008 | Y26: -0.4485538702 | Z26: -0.2331565008
A27: 25 | B27: =IF(Data_Input_OS!B29="","",Data_Input_OS!B29) -> 42.85 | C27: =IF(Data_Input_OS!C29="","",Data_Input_OS!C29) -> 87 | D27: =IF(Data_Input_OS!D29="","",Data_Input_OS!D29) -> 43.93 | E27: =IF(Data_Input_OS!E29="","",Data_Input_OS!E29) -> 177 | F27: =IF(Data_Input_OS!I29="","",Data_Input_OS!I29) -> 42.76 | G27: =IF(Data_Input_OS!J29="","",Data_Input_OS!J29) -> 80 | H27: =IF(Data_Input_OS!K29="","",Data_Input_OS!K29) -> 43.79 | I27: =IF(Data_Input_OS!L29="","",Data_Input_OS!L29) -> 170 | J27: 1.08 | K27: 177 | L27: 1.03 | M27: 170 | N27: 0.2618894198 | O27: 33.03827905 | P27: 123.0382791 | Q27: 1.074083647 | R27: 0.9678833994 | S27: -0.1062002476 | T27: -0.1128907403 | U27: -0.3522807476 | V27: -0.2393900073 | W27: -0.1062002476 | X27: -0.2393900073 | Y27: -0.1062002476 | Z27: -0.2393900073
A28: 26 | B28: =IF(Data_Input_OS!B30="","",Data_Input_OS!B30) -> 43.88 | C28: =IF(Data_Input_OS!C30="","",Data_Input_OS!C30) -> 161 | D28: =IF(Data_Input_OS!D30="","",Data_Input_OS!D30) -> 44.34 | E28: =IF(Data_Input_OS!E30="","",Data_Input_OS!E30) -> 71 | F28: =IF(Data_Input_OS!I30="","",Data_Input_OS!I30) -> 43.82 | G28: =IF(Data_Input_OS!J30="","",Data_Input_OS!J30) -> 10 | H28: =IF(Data_Input_OS!K30="","",Data_Input_OS!K30) -> 44.33 | I28: =IF(Data_Input_OS!L30="","",Data_Input_OS!L30) -> 100 | J28: 0.46 | K28: 71 | L28: 0.51 | M28: 100 | N28: 0.472294274 | O28: 37.84361057 | P28: 127.8436106 | Q28: -0.3624849467 | R28: -0.4792432366 | S28: -0.1167582899 | T28: 0.2832042786 | U28: -0.1744302731 | V28: -0.4576345517 | W28: -0.1167582899 | X28: -0.4576345517 | Y28: -0.1167582899 | Z28: -0.4576345517
A29: 27 | B29: =IF(Data_Input_OS!B31="","",Data_Input_OS!B31) -> 44.66 | C29: =IF(Data_Input_OS!C31="","",Data_Input_OS!C31) -> 73 | D29: =IF(Data_Input_OS!D31="","",Data_Input_OS!D31) -> 45.88 | E29: =IF(Data_Input_OS!E31="","",Data_Input_OS!E31) -> 163 | F29: =IF(Data_Input_OS!I31="","",Data_Input_OS!I31) -> 44.66 | G29: =IF(Data_Input_OS!J31="","",Data_Input_OS!J31) -> 74 | H29: =IF(Data_Input_OS!K31="","",Data_Input_OS!K31) -> 46.05 | I29: =IF(Data_Input_OS!L31="","",Data_Input_OS!L31) -> 164 | J29: 1.22 | K29: 163 | L29: 1.39 | M29: 164 | N29: 0.1759717906 | O29: -8.999000547 | P29: 171.0009995 | Q29: 1.011425839 | R29: 1.178786854 | S29: 0.1673610151 | T29: -0.6822153422 | U29: -0.7365877773 | V29: -0.05437243505 | W29: 0.1673610151 | X29: -0.05437243505 | Y29: 0.1673610151 | Z29: -0.05437243505
A30: 28 | B30: =IF(Data_Input_OS!B32="","",Data_Input_OS!B32) -> 43.39 | C30: =IF(Data_Input_OS!C32="","",Data_Input_OS!C32) -> 62 | D30: =IF(Data_Input_OS!D32="","",Data_Input_OS!D32) -> 44.3 | E30: =IF(Data_Input_OS!E32="","",Data_Input_OS!E32) -> 152 | F30: =IF(Data_Input_OS!I32="","",Data_Input_OS!I32) -> 43.12 | G30: =IF(Data_Input_OS!J32="","",Data_Input_OS!J32) -> 66 | H30: =IF(Data_Input_OS!K32="","",Data_Input_OS!K32) -> 44.09 | I30: =IF(Data_Input_OS!L32="","",Data_Input_OS!L32) -> 156 | J30: 0.91 | K30: 152 | L30: 0.97 | M30: 156 | N30: 0.1441553032 | O30: 6.73392139 | P30: 6.73392139 | Q30: 0.5088655422 | R30: 0.6490566882 | S30: 0.140191146 | T30: -0.754424191 | U30: -0.7208504807 | V30: 0.03357371031 | W30: 0.140191146 | X30: 0.03357371031 | Y30: 0.140191146 | Z30: 0.03357371031
A31: 29 | B31: =IF(Data_Input_OS!B33="","",Data_Input_OS!B33) -> 45.14 | C31: =IF(Data_Input_OS!C33="","",Data_Input_OS!C33) -> 56 | D31: =IF(Data_Input_OS!D33="","",Data_Input_OS!D33) -> 45.97 | E31: =IF(Data_Input_OS!E33="","",Data_Input_OS!E33) -> 146 | F31: =IF(Data_Input_OS!I33="","",Data_Input_OS!I33) -> 44.81 | G31: =IF(Data_Input_OS!J33="","",Data_Input_OS!J33) -> 50 | H31: =IF(Data_Input_OS!K33="","",Data_Input_OS!K33) -> 45.73 | I31: =IF(Data_Input_OS!L33="","",Data_Input_OS!L33) -> 140 | J31: 0.83 | K31: 146 | L31: 0.92 | M31: 140 | N31: 0.2036491693 | O31: 21.03648675 | P31: 111.0364868 | Q31: 0.3109234725 | R31: 0.1597563235 | S31: -0.1511671491 | T31: -0.7695625993 | U31: -0.9060231328 | V31: -0.1364605335 | W31: -0.1511671491 | X31: -0.1364605335 | Y31: -0.1511671491 | Z31: -0.1364605335
A32: 30 | B32: =IF(Data_Input_OS!B34="","",Data_Input_OS!B34) -> 42.52 | C32: =IF(Data_Input_OS!C34="","",Data_Input_OS!C34) -> 10 | D32: =IF(Data_Input_OS!D34="","",Data_Input_OS!D34) -> 43.1 | E32: =IF(Data_Input_OS!E34="","",Data_Input_OS!E34) -> 100 | F32: =IF(Data_Input_OS!I34="","",Data_Input_OS!I34) -> 42.78 | G32: =IF(Data_Input_OS!J34="","",Data_Input_OS!J34) -> 21 | H32: =IF(Data_Input_OS!K34="","",Data_Input_OS!K34) -> 43.38 | I32: =IF(Data_Input_OS!L34="","",Data_Input_OS!L34) -> 111 | J32: 0.58 | K32: 100 | L32: 0.6 | M32: 111 | N32: 0.2260089317 | O32: -31.99167447 | P32: 148.0083255 | Q32: -0.5450217201 | R32: -0.4458868953 | S32: 0.09913482477 | T32: -0.1983716831 | U32: -0.4014783638 | V32: -0.2031066807 | W32: 0.09913482477 | X32: -0.2031066807 | Y32: 0.09913482477 | Z32: -0.2031066807
A33: 31 | B33: =IF(Data_Input_OS!B35="","",Data_Input_OS!B35) -> 47.71 | C33: =IF(Data_Input_OS!C35="","",Data_Input_OS!C35) -> 55 | D33: =IF(Data_Input_OS!D35="","",Data_Input_OS!D35) -> 47.93 | E33: =IF(Data_Input_OS!E35="","",Data_Input_OS!E35) -> 145 | F33: =IF(Data_Input_OS!I35="","",Data_Input_OS!I35) -> 47.74 | G33: =IF(Data_Input_OS!J35="","",Data_Input_OS!J35) -> 59 | H33: =IF(Data_Input_OS!K35="","",Data_Input_OS!K35) -> 48.01 | I33: =IF(Data_Input_OS!L35="","",Data_Input_OS!L35) -> 149 | J33: 0.22 | K33: 145 | L33: 0.27 | M33: 149 | N33: 0.0604661346 | O33: -15.78891566 | P33: 164.2110843 | Q33: 0.07524443153 | R33: 0.126757322 | S33: 0.05151289042 | T33: -0.2067323766 | U33: -0.2383958501 | V33: -0.0316634735 | W33: 0.05151289042 | X33: -0.0316634735 | Y33: 0.05151289042 | Z33: -0.0316634735
A34: 32 | B34: =IF(Data_Input_OS!B36="","",Data_Input_OS!B36) -> 41.15 | C34: =IF(Data_Input_OS!C36="","",Data_Input_OS!C36) -> 157 | D34: =IF(Data_Input_OS!D36="","",Data_Input_OS!D36) -> 42.07 | E34: =IF(Data_Input_OS!E36="","",Data_Input_OS!E36) -> 67 | F34: =IF(Data_Input_OS!I36="","",Data_Input_OS!I36) -> 41.21 | G34: =IF(Data_Input_OS!J36="","",Data_Input_OS!J36) -> 165 | H34: =IF(Data_Input_OS!K36="","",Data_Input_OS!K36) -> 42.15 | I34: =IF(Data_Input_OS!L36="","",Data_Input_OS!L36) -> 75 | J34: 0.92 | K34: 67 | L34: 0.94 | M34: 75 | N34: 0.2596185099 | O34: 23.81243033 | P34: 113.8124303 | Q34: -0.6390857008 | R34: -0.8140638796 | S34: -0.1749781787 | T34: 0.6617926163 | U34: 0.47 | V34: -0.1917926163 | W34: -0.1749781787 | X34: -0.1917926163 | Y34: -0.1749781787 | Z34: -0.1917926163
A35: 33 | B35: =IF(Data_Input_OS!B37="","",Data_Input_OS!B37) -> 42.89 | C35: =IF(Data_Input_OS!C37="","",Data_Input_OS!C37) -> 1 | D35: =IF(Data_Input_OS!D37="","",Data_Input_OS!D37) -> 43.51 | E35: =IF(Data_Input_OS!E37="","",Data_Input_OS!E37) -> 91 | F35: =IF(Data_Input_OS!I37="","",Data_Input_OS!I37) -> 43.52 | G35: =IF(Data_Input_OS!J37="","",Data_Input_OS!J37) -> 6 | H35: =IF(Data_Input_OS!K37="","",Data_Input_OS!K37) -> 43.9 | I35: =IF(Data_Input_OS!L37="","",Data_Input_OS!L37) -> 96 | J35: 0.62 | K35: 91 | L35: 0.38 | M35: 96 | N35: 0.254477085 | O35: -6.514311895 | P35: 173.4856881 | Q35: -0.6196223128 | R35: -0.3716960883 | S35: 0.2479262245 | T35: -0.02163768796 | U35: -0.07900644251 | V35: -0.05736875456 | W35: 0.2479262245 | X35: -0.05736875456 | Y35: 0.2479262245 | Z35: -0.05736875456
A36: 34 | B36: =IF(Data_Input_OS!B38="","",Data_Input_OS!B38) -> 45.19 | C36: =IF(Data_Input_OS!C38="","",Data_Input_OS!C38) -> 62 | D36: =IF(Data_Input_OS!D38="","",Data_Input_OS!D38) -> 45.98 | E36: =IF(Data_Input_OS!E38="","",Data_Input_OS!E38) -> 152 | F36: =IF(Data_Input_OS!I38="","",Data_Input_OS!I38) -> 45.19 | G36: =IF(Data_Input_OS!J38="","",Data_Input_OS!J38) -> 62 | H36: =IF(Data_Input_OS!K38="","",Data_Input_OS!K38) -> 45.96 | I36: =IF(Data_Input_OS!L38="","",Data_Input_OS!L38) -> 152 | J36: 0.79 | K36: 152 | L36: 0.77 | M36: 152 | N36: 0.02 | O36: -28 | P36: 62 | Q36: 0.4417623937 | R36: 0.4305785357 | S36: -0.01118385807 | T36: -0.6549396823 | U36: -0.6383589309 | V36: 0.01658075145 | W36: -0.01118385807 | X36: 0.01658075145 | Y36: -0.01118385807 | Z36: 0.01658075145
A37: 35 | B37: =IF(Data_Input_OS!B39="","",Data_Input_OS!B39) -> 44.49 | C37: =IF(Data_Input_OS!C39="","",Data_Input_OS!C39) -> 165 | D37: =IF(Data_Input_OS!D39="","",Data_Input_OS!D39) -> 45.01 | E37: =IF(Data_Input_OS!E39="","",Data_Input_OS!E39) -> 75 | F37: =IF(Data_Input_OS!I39="","",Data_Input_OS!I39) -> 44.27 | G37: =IF(Data_Input_OS!J39="","",Data_Input_OS!J39) -> 162 | H37: =IF(Data_Input_OS!K39="","",Data_Input_OS!K39) -> 44.84 | I37: =IF(Data_Input_OS!L39="","",Data_Input_OS!L39) -> 72 | J37: 0.52 | K37: 75 | L37: 0.57 | M37: 72 | N37: 0.07581174332 | O37: -40.90247063 | P37: 49.09752937 | Q37: -0.45033321 | R37: -0.4611396868 | S37: -0.01080647683 | T37: 0.26 | U37: 0.3350375938 | V37: 0.07503759381 | W37: -0.01080647683 | X37: 0.07503759381 | Y37: -0.01080647683 | Z37: 0.07503759381
A38: 36 | B38: =IF(Data_Input_OS!B40="","",Data_Input_OS!B40) -> 43.86 | C38: =IF(Data_Input_OS!C40="","",Data_Input_OS!C40) -> 84 | D38: =IF(Data_Input_OS!D40="","",Data_Input_OS!D40) -> 44.74 | E38: =IF(Data_Input_OS!E40="","",Data_Input_OS!E40) -> 174 | F38: =IF(Data_Input_OS!I40="","",Data_Input_OS!I40) -> 44.21 | G38: =IF(Data_Input_OS!J40="","",Data_Input_OS!J40) -> 76 | H38: =IF(Data_Input_OS!K40="","",Data_Input_OS!K40) -> 44.95 | I38: =IF(Data_Input_OS!L40="","",Data_Input_OS!L40) -> 166 | J38: 0.88 | K38: 174 | L38: 0.74 | M38: 166 | N38: 0.264674833 | O38: 19.20614427 | P38: 109.2061443 | Q38: 0.8607698886 | R38: 0.6533812187 | S38: -0.2073886699 | T38: -0.1829622879 | U38: -0.3474089565 | V38: -0.1644466685 | W38: -0.2073886699 | X38: -0.1644466685 | Y38: -0.2073886699 | Z38: -0.1644466685
A39: 37 | B39: =IF(Data_Input_OS!B41="","",Data_Input_OS!B41) -> 46.29 | C39: =IF(Data_Input_OS!C41="","",Data_Input_OS!C41) -> 26 | D39: =IF(Data_Input_OS!D41="","",Data_Input_OS!D41) -> 47.31 | E39: =IF(Data_Input_OS!E41="","",Data_Input_OS!E41) -> 116 | F39: =IF(Data_Input_OS!I41="","",Data_Input_OS!I41) -> 46.44 | G39: =IF(Data_Input_OS!J41="","",Data_Input_OS!J41) -> 8 | H39: =IF(Data_Input_OS!K41="","",Data_Input_OS!K41) -> 46.68 | I39: =IF(Data_Input_OS!L41="","",Data_Input_OS!L41) -> 98 | J39: 1.02 | K39: 116 | L39: 0.24 | M39: 98 | N39: 0.8377978751 | O39: 30.84682297 | P39: 30.84682297 | Q39: -0.6279747048 | R39: -0.230702807 | S39: 0.3972718978 | T39: -0.8037709687 | U39: -0.0661529654 | V39: 0.7376180033 | W39: 0.3972718978 | X39: 0.7376180033 | Y39: 0.3972718978 | Z39: 0.7376180033
A40: 38 | B40: =IF(Data_Input_OS!B42="","",Data_Input_OS!B42) -> 44.53 | C40: =IF(Data_Input_OS!C42="","",Data_Input_OS!C42) -> 173 | D40: =IF(Data_Input_OS!D42="","",Data_Input_OS!D42) -> 45.97 | E40: =IF(Data_Input_OS!E42="","",Data_Input_OS!E42) -> 83 | F40: =IF(Data_Input_OS!I42="","",Data_Input_OS!I42) -> 44.78 | G40: =IF(Data_Input_OS!J42="","",Data_Input_OS!J42) -> 179 | H40: =IF(Data_Input_OS!K42="","",Data_Input_OS!K42) -> 46 | I40: =IF(Data_Input_OS!L42="","",Data_Input_OS!L42) -> 89 | J40: 1.44 | K40: 83 | L40: 1.22 | M40: 89 | N40: 0.3538086913 | O40: -29.90035527 | P40: 150.0996447 | Q40: -1.397225846 | R40: -1.219256809 | S40: 0.1779690369 | T40: 0.3483675297 | U40: 0.04257738598 | V40: -0.3057901437 | W40: 0.1779690369 | X40: -0.3057901437 | Y40: 0.1779690369 | Z40: -0.3057901437
A41: 39 | B41: =IF(Data_Input_OS!B43="","",Data_Input_OS!B43) -> 44.05 | C41: =IF(Data_Input_OS!C43="","",Data_Input_OS!C43) -> 95 | D41: =IF(Data_Input_OS!D43="","",Data_Input_OS!D43) -> 44.84 | E41: =IF(Data_Input_OS!E43="","",Data_Input_OS!E43) -> 5 | F41: =IF(Data_Input_OS!I43="","",Data_Input_OS!I43) -> 44.03 | G41: =IF(Data_Input_OS!J43="","",Data_Input_OS!J43) -> 64 | H41: =IF(Data_Input_OS!K43="","",Data_Input_OS!K43) -> 44.47 | I41: =IF(Data_Input_OS!L43="","",Data_Input_OS!L43) -> 154 | J41: 0.79 | K41: 5 | L41: 0.44 | M41: 154 | N41: 0.7009446266 | O41: 21.82945662 | P41: 111.8294566 | Q41: 0.7779981249 | R41: 0.2708910491 | S41: -0.5071070757 | T41: 0.1371820604 | U41: -0.3467247316 | V41: -0.4839067919 | W41: -0.5071070757 | X41: -0.4839067919 | Y41: -0.5071070757 | Z41: -0.4839067919
A42: 40 | B42: =IF(Data_Input_OS!B44="","",Data_Input_OS!B44) -> 44.3 | C42: =IF(Data_Input_OS!C44="","",Data_Input_OS!C44) -> 68 | D42: =IF(Data_Input_OS!D44="","",Data_Input_OS!D44) -> 44.86 | E42: =IF(Data_Input_OS!E44="","",Data_Input_OS!E44) -> 158 | F42: =IF(Data_Input_OS!I44="","",Data_Input_OS!I44) -> 43.88 | G42: =IF(Data_Input_OS!J44="","",Data_Input_OS!J44) -> 31 | H42: =IF(Data_Input_OS!K44="","",Data_Input_OS!K44) -> 44.41 | I42: =IF(Data_Input_OS!L44="","",Data_Input_OS!L44) -> 121 | J42: 0.56 | K42: 158 | L42: 0.53 | M42: 121 | N42: 0.6564157719 | O42: 3.454124527 | P42: 93.45412453 | Q42: 0.4028302882 | R42: -0.2488199283 | S42: -0.6516502165 | T42: -0.3890086875 | U42: -0.4679622242 | V42: -0.07895353676 | W42: -0.6516502165 | X42: -0.07895353676 | Y42: -0.6516502165 | Z42: -0.07895353676
A43: 41 | B43: =IF(Data_Input_OS!B45="","",Data_Input_OS!B45) -> 43.8 | C43: =IF(Data_Input_OS!C45="","",Data_Input_OS!C45) -> 102 | D43: =IF(Data_Input_OS!D45="","",Data_Input_OS!D45) -> 45.03 | E43: =IF(Data_Input_OS!E45="","",Data_Input_OS!E45) -> 12 | F43: =IF(Data_Input_OS!I45="","",Data_Input_OS!I45) -> 44.44 | G43: =IF(Data_Input_OS!J45="","",Data_Input_OS!J45) -> 110 | H43: =IF(Data_Input_OS!K45="","",Data_Input_OS!K45) -> 45.49 | I43: =IF(Data_Input_OS!L45="","",Data_Input_OS!L45) -> 20 | J43: 1.23 | K43: 12 | L43: 1.05 | M43: 20 | N43: 0.363951974 | O43: -14.33767408 | P43: 75.66232592 | Q43: 1.123660913 | R43: 0.8043466653 | S43: -0.3193142476 | T43: 0.500286071 | U43: 0.6749269902 | V43: 0.1746409192 | W43: -0.3193142476 | X43: 0.1746409192 | Y43: -0.3193142476 | Z43: 0.1746409192
A44: 42 | B44: =IF(Data_Input_OS!B46="","",Data_Input_OS!B46) -> 42.32 | C44: =IF(Data_Input_OS!C46="","",Data_Input_OS!C46) -> 104 | D44: =IF(Data_Input_OS!D46="","",Data_Input_OS!D46) -> 42.91 | E44: =IF(Data_Input_OS!E46="","",Data_Input_OS!E46) -> 14 | F44: =IF(Data_Input_OS!I46="","",Data_Input_OS!I46) -> 42.34 | G44: =IF(Data_Input_OS!J46="","",Data_Input_OS!J46) -> 78 | H44: =IF(Data_Input_OS!K46="","",Data_Input_OS!K46) -> 42.88 | I44: =IF(Data_Input_OS!L46="","",Data_Input_OS!L46) -> 168 | J44: 0.59 | K44: 14 | L44: 0.54 | M44: 168 | N44: 0.4973937152 | O44: 43.40811826 | P44: 133.4081183 | Q44: 0.5209390798 | R44: 0.4933145471 | S44: -0.02762453266 | T44: 0.276988222 | U44: -0.2196377873 | V44: -0.4966260093 | W44: -0.02762453266 | X44: -0.4966260093 | Y44: -0.02762453266 | Z44: -0.4966260093
A45: 43 | B45: =IF(Data_Input_OS!B47="","",Data_Input_OS!B47) -> 45.47 | C45: =IF(Data_Input_OS!C47="","",Data_Input_OS!C47) -> 158 | D45: =IF(Data_Input_OS!D47="","",Data_Input_OS!D47) -> 51.79 | E45: =IF(Data_Input_OS!E47="","",Data_Input_OS!E47) -> 68 | F45: =IF(Data_Input_OS!I47="","",Data_Input_OS!I47) -> 45.08 | G45: =IF(Data_Input_OS!J47="","",Data_Input_OS!J47) -> 153 | H45: =IF(Data_Input_OS!K47="","",Data_Input_OS!K47) -> 51.72 | I45: =IF(Data_Input_OS!L47="","",Data_Input_OS!L47) -> 63 | J45: 6.32 | K45: 68 | L45: 6.64 | M45: 63 | Q45: -4.546227538 | R45: -3.902894075 | S45: 0.6433334629 | T45: 4.390240901 | U45: 5.371872843 | V45: 0.9816319413
A46: 44 | B46: =IF(Data_Input_OS!B48="","",Data_Input_OS!B48) -> 46.02 | C46: =IF(Data_Input_OS!C48="","",Data_Input_OS!C48) -> 140 | D46: =IF(Data_Input_OS!D48="","",Data_Input_OS!D48) -> 48.66 | E46: =IF(Data_Input_OS!E48="","",Data_Input_OS!E48) -> 50 | F46: =IF(Data_Input_OS!I48="","",Data_Input_OS!I48) -> 46.16 | G46: =IF(Data_Input_OS!J48="","",Data_Input_OS!J48) -> 139 | H46: =IF(Data_Input_OS!K48="","",Data_Input_OS!K48) -> 49.24 | I46: =IF(Data_Input_OS!L48="","",Data_Input_OS!L48) -> 49 | J46: 2.64 | K46: 50 | L46: 3.08 | M46: 49 | N46: 0.4511170743 | O46: 43.10758951 | P46: 43.10758951 | Q46: -0.458431189 | R46: -0.428653151 | S46: 0.02977803808 | T46: 2.599892468 | U46: 3.050025652 | V46: 0.4501331838 | W46: 0.02977803808 | X46: 0.4501331838 | Y46: 0.02977803808 | Z46: 0.4501331838
A47: 45 | B47: =IF(Data_Input_OS!B49="","",Data_Input_OS!B49) -> 43.1 | C47: =IF(Data_Input_OS!C49="","",Data_Input_OS!C49) -> 1 | D47: =IF(Data_Input_OS!D49="","",Data_Input_OS!D49) -> 44.55 | E47: =IF(Data_Input_OS!E49="","",Data_Input_OS!E49) -> 91 | F47: =IF(Data_Input_OS!I49="","",Data_Input_OS!I49) -> 43.11 | G47: =IF(Data_Input_OS!J49="","",Data_Input_OS!J49) -> 0 | H47: =IF(Data_Input_OS!K49="","",Data_Input_OS!K49) -> 44.53 | I47: =IF(Data_Input_OS!L49="","",Data_Input_OS!L49) -> 90 | J47: 1.45 | K47: 91 | L47: 1.42 | M47: 90 | N47: 0.05838299697 | O47: 30.04236313 | P47: 30.04236313 | Q47: -1.449116699 | R47: -1.42 | S47: 0.02911669918 | T47: -0.05060427022 | U47: 1.739710806e-16 | V47: 0.05060427022 | W47: 0.02911669918 | X47: 0.05060427022 | Y47: 0.02911669918 | Z47: 0.05060427022
A48: 46 | B48: =IF(Data_Input_OS!B50="","",Data_Input_OS!B50) -> 45.33 | C48: =IF(Data_Input_OS!C50="","",Data_Input_OS!C50) -> 96 | D48: =IF(Data_Input_OS!D50="","",Data_Input_OS!D50) -> 45.92 | E48: =IF(Data_Input_OS!E50="","",Data_Input_OS!E50) -> 6 | F48: =IF(Data_Input_OS!I50="","",Data_Input_OS!I50) -> 45.6 | G48: =IF(Data_Input_OS!J50="","",Data_Input_OS!J50) -> 102 | H48: =IF(Data_Input_OS!K50="","",Data_Input_OS!K50) -> 46.17 | I48: =IF(Data_Input_OS!L50="","",Data_Input_OS!L50) -> 12 | J48: 0.59 | K48: 6 | L48: 0.57 | M48: 12 | N48: 0.1228736088 | O48: -31.34206327 | P48: 58.65793673 | Q48: 0.5771070844 | R48: 0.5207209109 | S48: -0.05638617358 | T48: 0.1226678976 | U48: 0.2318398866 | V48: 0.109171989 | W48: -0.05638617358 | X48: 0.109171989 | Y48: -0.05638617358 | Z48: 0.109171989
A49: 47 | B49: =IF(Data_Input_OS!B51="","",Data_Input_OS!B51) -> 45.22 | C49: =IF(Data_Input_OS!C51="","",Data_Input_OS!C51) -> 153 | D49: =IF(Data_Input_OS!D51="","",Data_Input_OS!D51) -> 45.94 | E49: =IF(Data_Input_OS!E51="","",Data_Input_OS!E51) -> 63 | F49: =IF(Data_Input_OS!I51="","",Data_Input_OS!I51) -> 45.06 | G49: =IF(Data_Input_OS!J51="","",Data_Input_OS!J51) -> 163 | H49: =IF(Data_Input_OS!K51="","",Data_Input_OS!K51) -> 45.7 | I49: =IF(Data_Input_OS!L51="","",Data_Input_OS!L51) -> 73 | J49: 0.72 | K49: 63 | L49: 0.64 | M49: 73 | N49: 0.2489563831 | O49: 32.22447343 | P49: 122.2244734 | Q49: -0.4232053817 | R49: -0.5305840464 | S49: -0.1073786648 | T49: 0.5824922359 | U49: 0.3578834582 | V49: -0.2246087777 | W49: -0.1073786648 | X49: -0.2246087777 | Y49: -0.1073786648 | Z49: -0.2246087777
A50: 48 | B50: =IF(Data_Input_OS!B52="","",Data_Input_OS!B52) -> 44.1 | C50: =IF(Data_Input_OS!C52="","",Data_Input_OS!C52) -> 11 | D50: =IF(Data_Input_OS!D52="","",Data_Input_OS!D52) -> 45.6 | E50: =IF(Data_Input_OS!E52="","",Data_Input_OS!E52) -> 101 | F50: =IF(Data_Input_OS!I52="","",Data_Input_OS!I52) -> 44.26 | G50: =IF(Data_Input_OS!J52="","",Data_Input_OS!J52) -> 14 | H50: =IF(Data_Input_OS!K52="","",Data_Input_OS!K52) -> 46.43 | I50: =IF(Data_Input_OS!L52="","",Data_Input_OS!L52) -> 104 | J50: 1.5 | K50: 101 | L50: 2.17 | M50: 104 | N50: 0.6961052084 | O50: 20.50857841 | P50: 110.5085784 | Q50: -1.390775782 | R50: -1.915996277 | S50: -0.5252204947 | T50: -0.5619098901 | U50: -1.018753291 | V50: -0.4568434011 | W50: -0.5252204947 | X50: -0.4568434011 | Y50: -0.5252204947 | Z50: -0.4568434011
A51: 49 | B51: =IF(Data_Input_OS!B53="","",Data_Input_OS!B53) -> 43.13 | C51: =IF(Data_Input_OS!C53="","",Data_Input_OS!C53) -> 38 | D51: =IF(Data_Input_OS!D53="","",Data_Input_OS!D53) -> 43.75 | E51: =IF(Data_Input_OS!E53="","",Data_Input_OS!E53) -> 128 | F51: =IF(Data_Input_OS!I53="","",Data_Input_OS!I53) -> 42.96 | G51: =IF(Data_Input_OS!J53="","",Data_Input_OS!J53) -> 27 | H51: =IF(Data_Input_OS!K53="","",Data_Input_OS!K53) -> 43.96 | I51: =IF(Data_Input_OS!L53="","",Data_Input_OS!L53) -> 117 | J51: 0.62 | K51: 128 | L51: 1 | M51: 117 | N51: 0.4844502248 | O51: 12.67617116 | P51: 102.6761712 | Q51: -0.1499915753 | R51: -0.5877852523 | S51: -0.437793677 | T51: -0.6015833503 | U51: -0.8090169944 | V51: -0.2074336441 | W51: -0.437793677 | X51: -0.2074336441 | Y51: -0.437793677 | Z51: -0.2074336441
A52: 50 | B52: =IF(Data_Input_OS!B54="","",Data_Input_OS!B54) -> 44.28 | C52: =IF(Data_Input_OS!C54="","",Data_Input_OS!C54) -> 145 | D52: =IF(Data_Input_OS!D54="","",Data_Input_OS!D54) -> 44.84 | E52: =IF(Data_Input_OS!E54="","",Data_Input_OS!E54) -> 55 | F52: =IF(Data_Input_OS!I54="","",Data_Input_OS!I54) -> 44.24 | G52: =IF(Data_Input_OS!J54="","",Data_Input_OS!J54) -> 145 | H52: =IF(Data_Input_OS!K54="","",Data_Input_OS!K54) -> 44.99 | I52: =IF(Data_Input_OS!L54="","",Data_Input_OS!L54) -> 55 | J52: 0.56 | K52: 55 | L52: 0.75 | M52: 55 | N52: 0.19 | O52: -35 | P52: 55 | Q52: -0.1915312803 | R52: -0.2565151075 | S52: -0.06498382723 | T52: 0.5262278676 | U52: 0.7047694656 | V52: 0.1785415979 | W52: -0.06498382723 | X52: 0.1785415979 | Y52: -0.06498382723 | Z52: 0.1785415979
A53: 51 | B53: =IF(Data_Input_OS!B55="","",Data_Input_OS!B55) -> 43.07 | C53: =IF(Data_Input_OS!C55="","",Data_Input_OS!C55) -> 114 | D53: =IF(Data_Input_OS!D55="","",Data_Input_OS!D55) -> 43.39 | E53: =IF(Data_Input_OS!E55="","",Data_Input_OS!E55) -> 24 | F53: =IF(Data_Input_OS!I55="","",Data_Input_OS!I55) -> 43.19 | G53: =IF(Data_Input_OS!J55="","",Data_Input_OS!J55) -> 110 | H53: =IF(Data_Input_OS!K55="","",Data_Input_OS!K55) -> 43.32 | I53: =IF(Data_Input_OS!L55="","",Data_Input_OS!L55) -> 20 | J53: 0.32 | K53: 24 | L53: 0.13 | M53: 20 | N53: 0.1921189649 | O53: 26.70187396 | P53: 116.701874 | Q53: 0.214121794 | R53: 0.09958577761 | S53: -0.1145360164 | T53: 0.2378063442 | U53: 0.08356238926 | V53: -0.1542439549 | W53: -0.1145360164 | X53: -0.1542439549 | Y53: -0.1145360164 | Z53: -0.1542439549
A54: 52 | B54: =IF(Data_Input_OS!B56="","",Data_Input_OS!B56) -> 44.42 | C54: =IF(Data_Input_OS!C56="","",Data_Input_OS!C56) -> 58 | D54: =IF(Data_Input_OS!D56="","",Data_Input_OS!D56) -> 44.72 | E54: =IF(Data_Input_OS!E56="","",Data_Input_OS!E56) -> 148 | F54: =IF(Data_Input_OS!I56="","",Data_Input_OS!I56) -> 44.23 | G54: =IF(Data_Input_OS!J56="","",Data_Input_OS!J56) -> 34 | H54: =IF(Data_Input_OS!K56="","",Data_Input_OS!K56) -> 44.61 | I54: =IF(Data_Input_OS!L56="","",Data_Input_OS!L56) -> 124 | J54: 0.3 | K54: 148 | L54: 0.38 | M54: 124 | N54: 0.2860738047 | O54: 8.400755784 | P54: 98.40075578 | Q54: 0.131511344 | R54: -0.1423505055 | S54: -0.2738618495 | T54: -0.2696382139 | U54: -0.3523298647 | V54: -0.08269165085 | W54: -0.2738618495 | X54: -0.08269165085 | Y54: -0.2738618495 | Z54: -0.08269165085
A55: 53 | B55: =IF(Data_Input_OS!B57="","",Data_Input_OS!B57) -> 45.37 | C55: =IF(Data_Input_OS!C57="","",Data_Input_OS!C57) -> 180 | D55: =IF(Data_Input_OS!D57="","",Data_Input_OS!D57) -> 45.37 | E55: =IF(Data_Input_OS!E57="","",Data_Input_OS!E57) -> 90 | F55: =IF(Data_Input_OS!I57="","",Data_Input_OS!I57) -> 45.42 | G55: =IF(Data_Input_OS!J57="","",Data_Input_OS!J57) -> 180 | H55: =IF(Data_Input_OS!K57="","",Data_Input_OS!K57) -> 45.42 | I55: =IF(Data_Input_OS!L57="","",Data_Input_OS!L57) -> 90 | J55: 0 | K55: 90 | L55: 0 | M55: 90 | N55: 1e-07 | O55: 0 | P55: 180 | Q55: 0 | R55: 0 | S55: 1e-07 | T55: 0 | U55: 0 | V55: 0 | W55: 1e-07 | X55: 0 | Y55: 1e-07 | Z55: 0
A56: 54 | B56: =IF(Data_Input_OS!B58="","",Data_Input_OS!B58) -> 42.02 | C56: =IF(Data_Input_OS!C58="","",Data_Input_OS!C58) -> 32 | D56: =IF(Data_Input_OS!D58="","",Data_Input_OS!D58) -> 42.45 | E56: =IF(Data_Input_OS!E58="","",Data_Input_OS!E58) -> 122 | F56: =IF(Data_Input_OS!I58="","",Data_Input_OS!I58) -> 42.01 | G56: =IF(Data_Input_OS!J58="","",Data_Input_OS!J58) -> 21 | H56: =IF(Data_Input_OS!K58="","",Data_Input_OS!K58) -> 42.79 | I56: =IF(Data_Input_OS!L58="","",Data_Input_OS!L58) -> 111 | J56: 0.43 | K56: 122 | L56: 0.78 | M56: 111 | N56: 0.4139384862 | O56: 9.54943981 | P56: 99.54943981 | Q56: -0.1884995931 | R56: -0.5796529639 | S56: -0.3911533708 | T56: -0.3864814399 | U56: -0.521921873 | V56: -0.1354404331 | W56: -0.3911533708 | X56: -0.1354404331 | Y56: -0.3911533708 | Z56: -0.1354404331
A57: 55 | B57: =IF(Data_Input_OS!B59="","",Data_Input_OS!B59) -> 44.36 | C57: =IF(Data_Input_OS!C59="","",Data_Input_OS!C59) -> 96 | D57: =IF(Data_Input_OS!D59="","",Data_Input_OS!D59) -> 44.93 | E57: =IF(Data_Input_OS!E59="","",Data_Input_OS!E59) -> 6 | F57: =IF(Data_Input_OS!I59="","",Data_Input_OS!I59) -> 44.8 | G57: =IF(Data_Input_OS!J59="","",Data_Input_OS!J59) -> 43 | H57: =IF(Data_Input_OS!K59="","",Data_Input_OS!K59) -> 45 | I57: =IF(Data_Input_OS!L59="","",Data_Input_OS!L59) -> 133 | J57: 0.57 | K57: 6 | L57: 0.2 | M57: 133 | N57: 0.6540224133 | O57: 14.54740504 | P57: 104.547405 | Q57: 0.5575441324 | R57: -0.01395129475 | S57: -0.5714954272 | T57: 0.1185096638 | U57: -0.1995128101 | V57: -0.3180224738 | W57: -0.5714954272 | X57: -0.3180224738 | Y57: -0.5714954272 | Z57: -0.3180224738
A58: 56 | B58: =IF(Data_Input_OS!B60="","",Data_Input_OS!B60) -> 45.18 | C58: =IF(Data_Input_OS!C60="","",Data_Input_OS!C60) -> 141 | D58: =IF(Data_Input_OS!D60="","",Data_Input_OS!D60) -> 45.34 | E58: =IF(Data_Input_OS!E60="","",Data_Input_OS!E60) -> 51 | F58: =IF(Data_Input_OS!I60="","",Data_Input_OS!I60) -> 45.25 | G58: =IF(Data_Input_OS!J60="","",Data_Input_OS!J60) -> 0 | H58: =IF(Data_Input_OS!K60="","",Data_Input_OS!K60) -> 45.25 | I58: =IF(Data_Input_OS!L60="","",Data_Input_OS!L60) -> 90 | J58: 0.16 | K58: 51 | L58: 0 | M58: 90 | N58: 0.16 | O58: -39 | P58: 141 | Q58: -0.03326587053 | R58: 0 | S58: 0.03326587053 | T58: 0.1565036161 | U58: 0 | V58: -0.1565036161 | W58: 0.03326587053 | X58: -0.1565036161 | Y58: 0.03326587053 | Z58: -0.1565036161
A59: 57 | B59: =IF(Data_Input_OS!B61="","",Data_Input_OS!B61) -> 43.79 | C59: =IF(Data_Input_OS!C61="","",Data_Input_OS!C61) -> 76 | D59: =IF(Data_Input_OS!D61="","",Data_Input_OS!D61) -> 44.99 | E59: =IF(Data_Input_OS!E61="","",Data_Input_OS!E61) -> 166 | F59: =IF(Data_Input_OS!I61="","",Data_Input_OS!I61) -> 43.31 | G59: =IF(Data_Input_OS!J61="","",Data_Input_OS!J61) -> 63 | H59: =IF(Data_Input_OS!K61="","",Data_Input_OS!K61) -> 44.71 | I59: =IF(Data_Input_OS!L61="","",Data_Input_OS!L61) -> 153 | J59: 1.2 | K59: 166 | L59: 1.4 | M59: 153 | N59: 0.61648358 | O59: 33.71379033 | P59: 123.7137903 | Q59: 1.059537111 | R59: 0.8228993532 | S59: -0.2366377582 | T59: -0.5633658753 | U59: -1.132623792 | V59: -0.5692579168 | W59: -0.2366377582 | X59: -0.5692579168 | Y59: -0.2366377582 | Z59: -0.5692579168
A60: 58 | B60: =IF(Data_Input_OS!B62="","",Data_Input_OS!B62) -> 43.67 | C60: =IF(Data_Input_OS!C62="","",Data_Input_OS!C62) -> 34 | D60: =IF(Data_Input_OS!D62="","",Data_Input_OS!D62) -> 44.24 | E60: =IF(Data_Input_OS!E62="","",Data_Input_OS!E62) -> 124 | F60: =IF(Data_Input_OS!I62="","",Data_Input_OS!I62) -> 43.08 | G60: =IF(Data_Input_OS!J62="","",Data_Input_OS!J62) -> 45 | H60: =IF(Data_Input_OS!K62="","",Data_Input_OS!K62) -> 44.25 | I60: =IF(Data_Input_OS!L62="","",Data_Input_OS!L62) -> 135 | J60: 0.57 | K60: 124 | L60: 1.17 | M60: 135 | N60: 0.6761081088 | O60: -35.79495902 | P60: 144.205041 | Q60: -0.2135257582 | R60: -2.150135538e-16 | S60: 0.2135257582 | T60: -0.5284947971 | U60: -1.17 | V60: -0.6415052029 | W60: 0.2135257582 | X60: -0.6415052029 | Y60: 0.2135257582 | Z60: -0.6415052029
A61: 59 | B61: =IF(Data_Input_OS!B63="","",Data_Input_OS!B63) -> 47.72 | C61: =IF(Data_Input_OS!C63="","",Data_Input_OS!C63) -> 160 | D61: =IF(Data_Input_OS!D63="","",Data_Input_OS!D63) -> 48.18 | E61: =IF(Data_Input_OS!E63="","",Data_Input_OS!E63) -> 70 | F61: =IF(Data_Input_OS!I63="","",Data_Input_OS!I63) -> 47.7 | G61: =IF(Data_Input_OS!J63="","",Data_Input_OS!J63) -> 159 | H61: =IF(Data_Input_OS!K63="","",Data_Input_OS!K63) -> 48.2 | I61: =IF(Data_Input_OS!L63="","",Data_Input_OS!L63) -> 69 | J61: 0.46 | K61: 70 | L61: 0.5 | M61: 69 | N61: 0.04336149872 | O61: -31.86493036 | P61: 58.13506964 | Q61: -0.3523804438 | R61: -0.3715724127 | S61: -0.0191919689 | T61: 0.2956823005 | U61: 0.3345653032 | V61: 0.03888300272 | W61: -0.0191919689 | X61: 0.03888300272 | Y61: -0.0191919689 | Z61: 0.03888300272
A62: 60 | B62: =IF(Data_Input_OS!B64="","",Data_Input_OS!B64) -> 41.19 | C62: =IF(Data_Input_OS!C64="","",Data_Input_OS!C64) -> 112 | D62: =IF(Data_Input_OS!D64="","",Data_Input_OS!D64) -> 42.18 | E62: =IF(Data_Input_OS!E64="","",Data_Input_OS!E64) -> 22 | F62: =IF(Data_Input_OS!I64="","",Data_Input_OS!I64) -> 40.68 | G62: =IF(Data_Input_OS!J64="","",Data_Input_OS!J64) -> 114 | H62: =IF(Data_Input_OS!K64="","",Data_Input_OS!K64) -> 41.51 | I62: =IF(Data_Input_OS!L64="","",Data_Input_OS!L64) -> 24 | J62: 0.99 | K62: 22 | L62: 0.83 | M62: 24 | N62: 0.1720559206 | O62: 12.16792429 | P62: 102.1679243 | Q62: 0.7121464023 | R62: 0.5553784033 | S62: -0.1567679991 | T62: 0.6877117868 | U62: 0.6168102051 | V62: -0.07090158161 | W62: -0.1567679991 | X62: -0.07090158161 | Y62: -0.1567679991 | Z62: -0.07090158161
A63: 61 | B63: =IF(Data_Input_OS!B65="","",Data_Input_OS!B65) -> 40.76 | C63: =IF(Data_Input_OS!C65="","",Data_Input_OS!C65) -> 77 | D63: =IF(Data_Input_OS!D65="","",Data_Input_OS!D65) -> 41.66 | E63: =IF(Data_Input_OS!E65="","",Data_Input_OS!E65) -> 167 | F63: =IF(Data_Input_OS!I65="","",Data_Input_OS!I65) -> 40.9 | G63: =IF(Data_Input_OS!J65="","",Data_Input_OS!J65) -> 65 | H63: =IF(Data_Input_OS!K65="","",Data_Input_OS!K65) -> 41.56 | I63: =IF(Data_Input_OS!L65="","",Data_Input_OS!L65) -> 155 | J63: 0.9 | K63: 167 | L63: 0.66 | M63: 155 | N63: 0.4003848103 | O63: 8.051692421 | P63: 98.05169242 | Q63: 0.8089146417 | R63: 0.4242398224 | S63: -0.3846748193 | T63: -0.3945340321 | U63: -0.5055893325 | V63: -0.1110553003 | W63: -0.3846748193 | X63: -0.1110553003 | Y63: -0.3846748193 | Z63: -0.1110553003
A64: 62 | B64: =IF(Data_Input_OS!B66="","",Data_Input_OS!B66) -> 41.55 | C64: =IF(Data_Input_OS!C66="","",Data_Input_OS!C66) -> 115 | D64: =IF(Data_Input_OS!D66="","",Data_Input_OS!D66) -> 42.36 | E64: =IF(Data_Input_OS!E66="","",Data_Input_OS!E66) -> 25 | F64: =IF(Data_Input_OS!I66="","",Data_Input_OS!I66) -> 41.54 | G64: =IF(Data_Input_OS!J66="","",Data_Input_OS!J66) -> 103 | H64: =IF(Data_Input_OS!K66="","",Data_Input_OS!K66) -> 42.21 | I64: =IF(Data_Input_OS!L66="","",Data_Input_OS!L66) -> 13 | J64: 0.81 | K64: 25 | L64: 0.67 | M64: 13 | N64: 0.336805226 | O64: -37.99531102 | P64: 142.004689 | Q64: 0.5206579638 | R64: 0.602192011 | S64: 0.08153404717 | T64: 0.6204959989 | U64: 0.2937086683 | V64: -0.3267873306 | W64: 0.08153404717 | X64: -0.3267873306 | Y64: 0.08153404717 | Z64: -0.3267873306
A65: 63 | B65: =IF(Data_Input_OS!B67="","",Data_Input_OS!B67) -> 44.46 | C65: =IF(Data_Input_OS!C67="","",Data_Input_OS!C67) -> 127 | D65: =IF(Data_Input_OS!D67="","",Data_Input_OS!D67) -> 44.99 | E65: =IF(Data_Input_OS!E67="","",Data_Input_OS!E67) -> 37 | F65: =IF(Data_Input_OS!I67="","",Data_Input_OS!I67) -> 44.64 | G65: =IF(Data_Input_OS!J67="","",Data_Input_OS!J67) -> 0 | H65: =IF(Data_Input_OS!K67="","",Data_Input_OS!K67) -> 44.64 | I65: =IF(Data_Input_OS!L67="","",Data_Input_OS!L67) -> 90 | J65: 0.53 | K65: 37 | L65: 0 | M65: 90 | N65: 0.53 | O65: 37 | P65: 127 | Q65: 0.1460877986 | R65: 0 | S65: -0.1460877986 | T65: 0.5094686988 | U65: 0 | V65: -0.5094686988 | W65: -0.1460877986 | X65: -0.5094686988 | Y65: -0.1460877986 | Z65: -0.5094686988
A66: 64 | B66: =IF(Data_Input_OS!B68="","",Data_Input_OS!B68) -> 45.9 | C66: =IF(Data_Input_OS!C68="","",Data_Input_OS!C68) -> 50 | D66: =IF(Data_Input_OS!D68="","",Data_Input_OS!D68) -> 46.67 | E66: =IF(Data_Input_OS!E68="","",Data_Input_OS!E68) -> 140 | F66: =IF(Data_Input_OS!I68="","",Data_Input_OS!I68) -> 45.76 | G66: =IF(Data_Input_OS!J68="","",Data_Input_OS!J68) -> 39 | H66: =IF(Data_Input_OS!K68="","",Data_Input_OS!K68) -> 46.4 | I66: =IF(Data_Input_OS!L68="","",Data_Input_OS!L68) -> 129 | J66: 0.77 | K66: 140 | L66: 0.64 | M66: 129 | N66: 0.2977710411 | O66: -13.18797411 | P66: 76.81202589 | Q66: 0.1337090968 | R66: -0.1330634821 | S66: -0.2667725789 | T66: -0.7583019698 | U66: -0.6260144645 | V66: 0.1322875053 | W66: -0.2667725789 | X66: 0.1322875053 | Y66: -0.2667725789 | Z66: 0.1322875053
A67: 65 | B67: =IF(Data_Input_OS!B69="","",Data_Input_OS!B69) -> 42.63 | C67: =IF(Data_Input_OS!C69="","",Data_Input_OS!C69) -> 82 | D67: =IF(Data_Input_OS!D69="","",Data_Input_OS!D69) -> 44.27 | E67: =IF(Data_Input_OS!E69="","",Data_Input_OS!E69) -> 172 | F67: =IF(Data_Input_OS!I69="","",Data_Input_OS!I69) -> 43.29 | G67: =IF(Data_Input_OS!J69="","",Data_Input_OS!J69) -> 77 | H67: =IF(Data_Input_OS!K69="","",Data_Input_OS!K69) -> 44.27 | I67: =IF(Data_Input_OS!L69="","",Data_Input_OS!L69) -> 167 | J67: 1.64 | K67: 172 | L67: 0.98 | M67: 167 | N67: 0.6960129013 | O67: -0.9238538548 | P67: 89.07614615 | Q67: 1.576469181 | R67: 0.8808181654 | S67: -0.695651016 | T67: -0.4520452635 | U67: -0.4296037239 | V67: 0.02244153969 | W67: -0.695651016 | X67: 0.02244153969 | Y67: -0.695651016 | Z67: 0.02244153969
A68: 66 | B68: =IF(Data_Input_OS!B70="","",Data_Input_OS!B70) -> 43.67 | C68: =IF(Data_Input_OS!C70="","",Data_Input_OS!C70) -> 16 | D68: =IF(Data_Input_OS!D70="","",Data_Input_OS!D70) -> 44.11 | E68: =IF(Data_Input_OS!E70="","",Data_Input_OS!E70) -> 106 | F68: =IF(Data_Input_OS!I70="","",Data_Input_OS!I70) -> 43.6 | G68: =IF(Data_Input_OS!J70="","",Data_Input_OS!J70) -> 52 | H68: =IF(Data_Input_OS!K70="","",Data_Input_OS!K70) -> 43.94 | I68: =IF(Data_Input_OS!L70="","",Data_Input_OS!L70) -> 142 | J68: =IFERROR(D68-B68,"") -> 0.44 | K68: =IFERROR(E68,"") -> 106 | L68: =IFERROR(H68-F68,"") -> 0.34 | M68: =IFERROR(I68,"") -> 142 | N68: =IFERROR(SQRT(Y68^2+Z68^2),"") -> 0.4655557059 | O68: =IFERROR(0.5*DEGREES((ATAN(Z68/Y68))),"") -> -5.996325924 | P68: =IFERROR(IF(Y68>0,IF(Z68>0,O68,O68+180),O68+90),"") -> 174.0036741 | Q68: =IFERROR(J68*COS(2*RADIANS(K68)),"") -> -0.3731411623 | R68: =IFERROR(L68*COS(2*RADIANS(M68)),"") -> 0.0822534445 | S68: =IFERROR(IF((Q68+R68)=0,0.0000001,-Q68+R68),"") -> 0.4553946068 | T68: =IFERROR(J68*SIN(2*RADIANS(K68)),"") -> -0.2331644763 | U68: =IFERROR(L68*SIN(2*RADIANS(M68)),"") -> -0.3299005469 | V68: =IFERROR(-T68+U68,"") -> -0.09673607067 | W68: =IFERROR(IF(ABS(S68)>$Y$1,"",IF(ABS(V68)>$Z$1,"",S68)),"") -> 0.4553946068 | X68: =IFERROR(IF(ABS(S68)>$Y$1,"",IF(ABS(V68)>$Z$1,"",V68)),"") -> -0.09673607067 | Y68: =IF(W68="",#N/A,W68) -> 0.4553946068 | Z68: -0.09673607067
A69: 67 | B69: =IF(Data_Input_OS!B71="","",Data_Input_OS!B71) -> 36.82 | C69: =IF(Data_Input_OS!C71="","",Data_Input_OS!C71) -> 12 | D69: =IF(Data_Input_OS!D71="","",Data_Input_OS!D71) -> 37.4 | E69: =IF(Data_Input_OS!E71="","",Data_Input_OS!E71) -> 102 | F69: =IF(Data_Input_OS!I71="","",Data_Input_OS!I71) -> 36.45 | G69: =IF(Data_Input_OS!J71="","",Data_Input_OS!J71) -> 19 | H69: =IF(Data_Input_OS!K71="","",Data_Input_OS!K71) -> 37.11 | I69: =IF(Data_Input_OS!L71="","",Data_Input_OS!L71) -> 109 | J69: 0.58 | K69: 102 | L69: 0.66 | M69: 109 | N69: 0.1707090858 | O69: -43.35965438 | P69: 136.6403456 | Q69: -0.5298563654 | R69: -0.5200870974 | S69: 0.009769268052 | T69: -0.235907253 | U69: -0.4063365737 | V69: -0.1704293207 | W69: 0.009769268052 | X69: -0.1704293207 | Y69: 0.009769268052 | Z69: -0.1704293207
A70: 68 | B70: =IF(Data_Input_OS!B72="","",Data_Input_OS!B72) -> 42.67 | C70: =IF(Data_Input_OS!C72="","",Data_Input_OS!C72) -> 135 | D70: =IF(Data_Input_OS!D72="","",Data_Input_OS!D72) -> 43.95 | E70: =IF(Data_Input_OS!E72="","",Data_Input_OS!E72) -> 45 | F70: =IF(Data_Input_OS!I72="","",Data_Input_OS!I72) -> 42.83 | G70: =IF(Data_Input_OS!J72="","",Data_Input_OS!J72) -> 118 | H70: =IF(Data_Input_OS!K72="","",Data_Input_OS!K72) -> 43.45 | I70: =IF(Data_Input_OS!L72="","",Data_Input_OS!L72) -> 28 | J70: 1.28 | K70: 45 | L70: 0.62 | M70: 28 | N70: 0.840804118 | O70: -32.82395164 | P70: 147.1760484 | Q70: 7.840950111e-17 | R70: 0.3466996002 | S70: 0.3466996002 | T70: 1.28 | U70: 0.514003295 | V70: -0.765996705 | W70: 0.3466996002 | X70: -0.765996705 | Y70: 0.3466996002 | Z70: -0.765996705
A71: 69 | B71: =IF(Data_Input_OS!B73="","",Data_Input_OS!B73) -> 44.24 | C71: =IF(Data_Input_OS!C73="","",Data_Input_OS!C73) -> 102 | D71: =IF(Data_Input_OS!D73="","",Data_Input_OS!D73) -> 45.2 | E71: =IF(Data_Input_OS!E73="","",Data_Input_OS!E73) -> 12 | F71: =IF(Data_Input_OS!I73="","",Data_Input_OS!I73) -> 43.76 | G71: =IF(Data_Input_OS!J73="","",Data_Input_OS!J73) -> 96 | H71: =IF(Data_Input_OS!K73="","",Data_Input_OS!K73) -> 45 | I71: =IF(Data_Input_OS!L73="","",Data_Input_OS!L73) -> 6 | J71: 0.96 | K71: 12 | L71: 1.24 | M71: 6 | N71: 0.3611456661 | O71: -10.77527053 | P71: 169.2247295 | Q71: 0.8770036393 | R71: 1.212903025 | S71: 0.3358993856 | T71: 0.3904671774 | U71: 0.2578104966 | V71: -0.1326566807 | W71: 0.3358993856 | X71: -0.1326566807 | Y71: 0.3358993856 | Z71: -0.1326566807
A72: 70 | B72: =IF(Data_Input_OS!B74="","",Data_Input_OS!B74) -> 41.25 | C72: =IF(Data_Input_OS!C74="","",Data_Input_OS!C74) -> 9 | D72: =IF(Data_Input_OS!D74="","",Data_Input_OS!D74) -> 43.37 | E72: =IF(Data_Input_OS!E74="","",Data_Input_OS!E74) -> 99 | F72: =IF(Data_Input_OS!I74="","",Data_Input_OS!I74) -> 41.25 | G72: =IF(Data_Input_OS!J74="","",Data_Input_OS!J74) -> 9 | H72: =IF(Data_Input_OS!K74="","",Data_Input_OS!K74) -> 43.37 | I72: =IF(Data_Input_OS!L74="","",Data_Input_OS!L74) -> 99 | J72: 2.12 | K72: 99 | L72: 2.12 | M72: 99 | N72: 0 | Q72: -2.016239815 | R72: -2.016239815 | S72: 0 | T72: -0.6551160281 | U72: -0.6551160281 | V72: 0 | W72: 0 | X72: 0 | Y72: 0 | Z72: 0
A73: 71 | B73: =IF(Data_Input_OS!B75="","",Data_Input_OS!B75) -> 44.1 | C73: =IF(Data_Input_OS!C75="","",Data_Input_OS!C75) -> 169 | D73: =IF(Data_Input_OS!D75="","",Data_Input_OS!D75) -> 45.65 | E73: =IF(Data_Input_OS!E75="","",Data_Input_OS!E75) -> 79 | F73: =IF(Data_Input_OS!I75="","",Data_Input_OS!I75) -> 44.12 | G73: =IF(Data_Input_OS!J75="","",Data_Input_OS!J75) -> 170 | H73: =IF(Data_Input_OS!K75="","",Data_Input_OS!K75) -> 45.59 | I73: =IF(Data_Input_OS!L75="","",Data_Input_OS!L75) -> 80 | J73: 1.55 | K73: 79 | L73: 1.47 | M73: 80 | N73: 0.09579144677 | O73: -27.19101692 | P73: 152.8089831 | Q73: -1.437134975 | R73: -1.381348153 | S73: 0.05578682202 | T73: 0.5806402198 | U73: 0.5027696107 | V73: -0.07787060911 | W73: 0.05578682202 | X73: -0.07787060911 | Y73: 0.05578682202 | Z73: -0.07787060911
A74: 72 | B74: =IF(Data_Input_OS!B76="","",Data_Input_OS!B76) -> 40.31 | C74: =IF(Data_Input_OS!C76="","",Data_Input_OS!C76) -> 44 | D74: =IF(Data_Input_OS!D76="","",Data_Input_OS!D76) -> 42.27 | E74: =IF(Data_Input_OS!E76="","",Data_Input_OS!E76) -> 134 | F74: =IF(Data_Input_OS!I76="","",Data_Input_OS!I76) -> 39.95 | G74: =IF(Data_Input_OS!J76="","",Data_Input_OS!J76) -> 40 | H74: =IF(Data_Input_OS!K76="","",Data_Input_OS!K76) -> 42.1 | I74: =IF(Data_Input_OS!L76="","",Data_Input_OS!L76) -> 130 | J74: 1.96 | K74: 134 | L74: 2.15 | M74: 130 | N74: 0.3436869457 | O74: 13.73437248 | P74: 103.7343725 | Q74: -0.06840301354 | R74: -0.373343582 | S74: -0.3049405684 | T74: -1.958806021 | U74: -2.117336669 | V74: -0.158530648 | W74: -0.3049405684 | X74: -0.158530648 | Y74: -0.3049405684 | Z74: -0.158530648
A75: 73 | B75: =IF(Data_Input_OS!B77="","",Data_Input_OS!B77) -> 42.53 | C75: =IF(Data_Input_OS!C77="","",Data_Input_OS!C77) -> 123 | D75: =IF(Data_Input_OS!D77="","",Data_Input_OS!D77) -> 44.18 | E75: =IF(Data_Input_OS!E77="","",Data_Input_OS!E77) -> 33 | F75: =IF(Data_Input_OS!I77="","",Data_Input_OS!I77) -> 42.63 | G75: =IF(Data_Input_OS!J77="","",Data_Input_OS!J77) -> 113 | H75: =IF(Data_Input_OS!K77="","",Data_Input_OS!K77) -> 44.11 | I75: =IF(Data_Input_OS!L77="","",Data_Input_OS!L77) -> 23 | J75: 1.65 | K75: 33 | L75: 1.48 | M75: 23 | N75: 0.5687189465 | O75: -25.56006746 | P75: 154.4399325 | Q75: 0.6711154611 | R75: 1.028094388 | S75: 0.3569789272 | T75: 1.507350005 | U75: 1.064622905 | V75: -0.4427271006 | W75: 0.3569789272 | X75: -0.4427271006 | Y75: 0.3569789272 | Z75: -0.4427271006
A76: 74 | B76: =IF(Data_Input_OS!B78="","",Data_Input_OS!B78) -> 45.93 | C76: =IF(Data_Input_OS!C78="","",Data_Input_OS!C78) -> 177 | D76: =IF(Data_Input_OS!D78="","",Data_Input_OS!D78) -> 48.2 | E76: =IF(Data_Input_OS!E78="","",Data_Input_OS!E78) -> 87 | F76: =IF(Data_Input_OS!I78="","",Data_Input_OS!I78) -> 45.91 | G76: =IF(Data_Input_OS!J78="","",Data_Input_OS!J78) -> 179 | H76: =IF(Data_Input_OS!K78="","",Data_Input_OS!K78) -> 47.98 | I76: =IF(Data_Input_OS!L78="","",Data_Input_OS!L78) -> 89 | J76: 2.27 | K76: 87 | L76: 2.07 | M76: 89 | N76: 0.2507839079 | O76: -20.57707323 | P76: 159.4229268 | Q76: -2.257564702 | R76: -2.068739012 | S76: 0.1888256906 | T76: 0.2372796116 | U76: 0.07224195817 | V76: -0.1650376534 | W76: 0.1888256906 | X76: -0.1650376534 | Y76: 0.1888256906 | Z76: -0.1650376534
A77: 75 | B77: =IF(Data_Input_OS!B79="","",Data_Input_OS!B79) -> 43.31 | C77: =IF(Data_Input_OS!C79="","",Data_Input_OS!C79) -> 4 | D77: =IF(Data_Input_OS!D79="","",Data_Input_OS!D79) -> 47.56 | E77: =IF(Data_Input_OS!E79="","",Data_Input_OS!E79) -> 94 | F77: =IF(Data_Input_OS!I79="","",Data_Input_OS!I79) -> 43.1 | G77: =IF(Data_Input_OS!J79="","",Data_Input_OS!J79) -> 1 | H77: =IF(Data_Input_OS!K79="","",Data_Input_OS!K79) -> 47.11 | I77: =IF(Data_Input_OS!L79="","",Data_Input_OS!L79) -> 91 | J77: 4.25 | K77: 94 | L77: 4.01 | M77: 91 | N77: 0.494288576 | O77: 32.99766528 | P77: 32.99766528 | Q77: -4.208639292 | R77: -4.007557216 | S77: 0.2010820758 | T77: -0.5914856791 | U77: -0.1399469818 | V77: 0.4515386973 | W77: 0.2010820758 | X77: 0.4515386973 | Y77: 0.2010820758 | Z77: 0.4515386973
A78: 76 | B78: =IF(Data_Input_OS!B80="","",Data_Input_OS!B80) -> 42.06 | C78: =IF(Data_Input_OS!C80="","",Data_Input_OS!C80) -> 71 | D78: =IF(Data_Input_OS!D80="","",Data_Input_OS!D80) -> 44.57 | E78: =IF(Data_Input_OS!E80="","",Data_Input_OS!E80) -> 161 | F78: =IF(Data_Input_OS!I80="","",Data_Input_OS!I80) -> 42.14 | G78: =IF(Data_Input_OS!J80="","",Data_Input_OS!J80) -> 73 | H78: =IF(Data_Input_OS!K80="","",Data_Input_OS!K80) -> 44.75 | I78: =IF(Data_Input_OS!L80="","",Data_Input_OS!L80) -> 163 | J78: 2.51 | K78: 161 | L78: 2.61 | M78: 163 | N78: 0.2047347081 | O78: 12.39081771 | P78: 12.39081771 | Q78: 1.977906992 | R78: 2.163788064 | S78: 0.1858810728 | T78: -1.545310303 | U78: -1.459493478 | V78: 0.08581682501 | W78: 0.1858810728 | X78: 0.08581682501 | Y78: 0.1858810728 | Z78: 0.08581682501
